Workbook

Sheet Cover
B2: AER
B3: RAB Inference Model
B4: 2022-10-24 | D4: Version 2.7 | E4: Final
B6: Accompanying report: | E6: CEPA_AER_EVRAB_Multiples Part II
B10: Disclaimers
B14: Version history
B16: Version | C16: Date | D16: Author | E16: Description of changes
B17: 2.7 | C17: 2022-10-24 | D17: BOE | E17: Release version
B25: Contents | G25: Notes and assumptions
G26: Adjust inputs in 'controls' tab (F44 to G54).
B27: Controls | G27: Click button 'Solve for Excess Equity returns'
B28: Summary - AST | G28: Model will then estimate excess equity returns for AST and SKI for given inputs
B29: Summary - SKI
B30: FinalGraphs
B31: REV - AED
B32: REV - ANT
B33: REV - AGD
B34: REV - SAPN
B35: REV - Citi
B36: REV - Powercor
B37: REV - TransGrid
B42: Format key
D44: Cell intentionally blank
B45: Value | D45: Hardcoded input
B46: Value | D46: User input
B47: Value | D47: Calculation
B48: Value | D48: Unique formula
B49: Value | D49: Annotation
B50: Sheet colour | D50: Information sheet
B51: Sheet colour | D51: Input sheet
B52: Sheet colour | D52: Calculation sheet
B53: Sheet colour | D53: Output sheet

Sheet Controls
A1: Controls
A2: This sheet provides the controls.
F4: AST | I4: SKI
F6: AED | G6: ANT | H6: AGD | I6: SAPN | J6: Citi | K6: Powercor | L6: TransGrid
E9: Capex inputs
E11: Net capex as percent of closing RAB | F11: 0.05000173176 | G11: 0.05728345393 | H11: 0.05083180657 | I11: 0.0483098208 | J11: 0.0528969304 | K11: 0.04882956183 | L11: 0.04209437779
E14: Closing RAB multiple | F14: =1+((F45*(1-F46))/(F54-Controls!F44)) -> 1.085634089 | G14: =1+((F45*(1-F46))/(F54-Controls!F44)) -> 1.085634089 | H14: =1+((F45*(1-F46))/(F54-Controls!F44)) -> 1.085634089 | I14: =1+((G45*(1-G46))/(G54-Controls!G44)) -> 1.085634089 | J14: =1+((G45*(1-G46))/(G54-Controls!G44)) -> 1.085634089 | K14: =1+((G45*(1-G46))/(G54-Controls!G44)) -> 1.085634089 | L14: =1+((G45*(1-G46))/(G54-Controls!G44)) -> 1.085634089
E16: Allowance return | F16: =$F$35 -> 0.016 | G16: =$F$35 -> 0.016 | H16: =$F$35 -> 0.016 | I16: =$G$35 -> 0.016 | J16: =$G$35 -> 0.016 | K16: =$G$35 -> 0.016 | L16: =$G$35 -> 0.016
E18: Visible period real RAB growth | F18: ='Summary - AST'!R15 -> 0.0095 | G18: ='Summary - AST'!R16 -> 0.0095 | H18: ='Summary - AST'!R17 -> 0.0095 | I18: ='Summary - SKI'!R15 -> 0.0095 | J18: ='Summary - SKI'!R16 -> 0.0095 | K18: ='Summary - SKI'!R17 -> 0.0095 | L18: ='Summary - SKI'!R18 -> 0.0095
E20: Visible period nominal RAB growth | F20: ='Summary - AST'!R22 -> 0.0347375 | G20: ='Summary - AST'!R23 -> 0.0347375 | H20: ='Summary - AST'!R24 -> 0.0347375 | I20: ='Summary - SKI'!R23 -> 0.0347375 | J20: ='Summary - SKI'!R24 -> 0.0347375 | K20: ='Summary - SKI'!R25 -> 0.0347375 | L20: ='Summary - SKI'!R26 -> 0.0347375
F22: AST | G22: SKI
E23: Historical EV/RAB - Low | F23: 1.47 | G23: 1.35
E24: Historical EV/RAB - High | F24: 1.76 | G24: 1.53
E25: RAB mid point | F25: 1.61 | G25: 1.44
E27: modelled EV/RABa | F27: ='Summary - AST'!J21 -> 1.61 | G27: ='Summary - SKI'!J22 -> 1.439999104
E29: Short term inputs
E31: Solved Excess equity returns | F31: 0.03842959513 | G31: 0.02410923918
E33: Target EV/RAB | F33: 1.61 | G33: 1.44
E35: Excess Allowance return | F35: 0.016 | G35: 0.016
E37: real RAB growth | F37: 0.0095 | G37: 0.0095
E39: nominal RAB growth | F39: =((1+F37)*(1+$F$50))-1 -> 0.0347375 | G39: =((1+G37)*(1+$F$50))-1 -> 0.0347375
E41: Terminal value assumptions
E43: real RAB growth | F43: 0.0095 | G43: 0.0095
E44: nominal RAB growth | F44: =((1+F43)*(1+$F$50))-1 -> 0.0347375 | G44: =((1+G43)*(1+$F$50))-1 -> 0.0347375
E45: Excess allowance | F45: 0.005 | G45: 0.005
E46: Gearing | F46: 0.6 | G46: 0.6
E48: Other assumptions
E50: Inflation | F50: 0.025
E52: Terminal WACC
E54: nominal | F54: =WACC!$AY$88 -> 0.05809268524 | G54: =WACC!$AZ$88 -> 0.05809268524
E55: real | F55: =WACC!$AY$89 -> 0.03228554658 | G55: =WACC!$AZ$89 -> 0.03228554658

Sheet Summary - AST
A1: Summary - AST
A2: This sheet provides a summary for AST
E4: Date: | F4: 2022-06-30
F6: Historical EV | H6: Adjusted EV ratio
E7: EV ratio (low) | F7: 1.56 | G7: =F7*$F$18 -> 15396.13899 | H7: =G7/$G$18 -> 1.50940151
E8: EV ratio (high) | F8: 1.7 | G8: =F8*$F$18 -> 16777.84377 | H8: =G8/$G$18 -> 1.644860619
E9: Mid-point | F9: =AVERAGE(F7:F8) -> 1.63 | G9: =F9*$F$18 -> 16086.99138 | H9: =G9/$G$18 -> 1.577131065
E11: EV:RAB multiples | P11: RAB growth | W11: Average nominal return to equity
P13: RAB growth (real)
E14: Entity | F14: RAB | G14: RABa | H14: Modelled EV no adjustments | I14: Modelled EV with adjustments | J14: Modelled EV with adjustments plus trailing CoD adj. | K14: Historical EV ratio | P14: 2050 RAB | Q14: 2050 compared to Y1 | R14: CAGR (Y29) | W14: Allowed | X14: Achieved | Y14: difference
E15: AusNet Electricity Distribution | F15: ='REV - AED'!Q149 -> 4941.453797 | G15: 5058.885895 | H15: ='REV - AED'!H397 -> 5035.996037 | I15: ='REV - AED'!H427 -> 8095.175687 | J15: =I15+(G15-F15) -> 8212.607785 | K15: =F15*$F$9 -> 8054.56969 | P15: ='REV - AED'!AT149 -> 6500.370552 | Q15: =P15/F15 -> 1.315477351 | R15: =_xlfn.RRI(29,F15,P15) -> 0.0095 | W15: =AVERAGE('REV - AED'!R11:AT11) -> 0.05117958154 | X15: =AVERAGE('REV - AED'!R474:AT474) -> 0.08536659623 | Y15: =X15-W15 -> 0.03418701469
E16: AusNet Transmission | F16: ='REV - ANT'!Q147 -> 3166.909677 | G16: 3332.518352 | H16: ='REV - ANT'!H393 -> 3224.923059 | I16: ='REV - ANT'!H420 -> 5131.302812 | J16: =I16+(G16-F16) -> 5296.911487 | K16: =F16*$F$9 -> 5162.062773 | P16: ='REV - ANT'!AT147 -> 4165.997952 | Q16: =P16/F16 -> 1.315477351 | R16: =_xlfn.RRI(29,F16,P16) -> 0.0095 | W16: =AVERAGE('REV - ANT'!R11:AT11) -> 0.05252481243 | X16: =AVERAGE('REV - ANT'!R462:AT462) -> 0.08532848241 | Y16: =X16-W16 -> 0.03280366998
E17: AusNet Gas Distribution | F17: ='REV - AGD'!Q155 -> 1760.956392 | G17: 1808.757138 | H17: ='REV - AGD'!H409 -> 1761.571876 | I17: ='REV - AGD'!H438 -> 2864.939812 | J17: 2912.740557 | K17: =F17*$F$9 -> 2870.35892 | P17: ='REV - AGD'!AT155 -> 2316.49825 | Q17: =P17/F17 -> 1.315477351 | R17: 0.0095 | W17: =AVERAGE('REV - AGD'!R11:AT11) -> 0.05942196688 | X17: =AVERAGE('REV - AGD'!R480:AT480) -> 0.08385342009 | Y17: =X17-W17 -> 0.02443145321
E18: Totals | F18: =SUM(F15:F17) -> 9869.319867 | G18: =SUM(G15:G17) -> 10200.16138 | H18: =SUM(H15:H17) -> 10022.49097 | I18: =SUM(I15:I17) -> 16091.41831 | J18: =I18+(G18-F18) -> 16422.25983 | K18: =F18*$F$9 -> 16086.99138 | P18: =SUM(P15:P17) -> 12982.86675 | Q18: 1.315477351 | R18: 0.0095
E20: RAB to EV | H20: =H18/$F$18 -> 1.015519925 | I20: =I18/$F$18 -> 1.630448555 | J20: =J18/$F$18 -> 1.663970775 | K20: =K18/$F$18 -> 1.63 | P20: RAB growth (Nominal)
E21: RABa to EV | H21: =H18/$G$18 -> 0.9825816077 | I21: =I18/$G$18 -> 1.57756507 | J21: =J18/$G$18 -> 1.61 | K21: =K18/$G$18 -> 1.577131065 | P21: 2050 RAB | Q21: 2050 compared to Y1 | R21: CAGR (Y29)
P22: ='REV - AED'!AT158 -> 13302.40636 | Q22: =P22/F15 -> 2.692002578 | R22: =_xlfn.RRI(29,F15,P22) -> 0.0347375
P23: ='REV - ANT'!AT156 -> 8525.329014 | Q23: =P23/F16 -> 2.692002578 | R23: =_xlfn.RRI(29,F16,P23) -> 0.0347375
P24: ='REV - AGD'!AT164 -> 4740.499149 | Q24: 2.692002578 | R24: =_xlfn.RRI(29,F17,P24) -> 0.0347375
P25: =SUM(P22:P24) -> 26568.23453 | Q25: 2.692002578 | R25: =_xlfn.RRI(29,F18,P25) -> 0.0347375

Sheet Summary - SKI
A1: Summary - SKI
A2: This sheet provides a summary for SKI
E4: Date: | F4: 2021-06-30
F6: Historical EV | H6: Adjusted EV ratio
E7: EV ratio (low) | F7: 1.52 | G7: =F7*$F$19 -> 9502.000945 | H7: =G7/$G$19 -> 1.438298624
E8: EV ratio (high) | F8: 1.74 | G8: =F8*$F$19 -> 10877.29056 | H8: =G8/$G$19 -> 1.646473425
E9: Mid-point | F9: =AVERAGE(F7:F8) -> 1.63 | G9: =F9*$F$19 -> 10189.64575 | H9: =G9/$G$19 -> 1.542386025
E11: EV:RAB multiples | P11: RAB growth | W11: Average nominal return to equity
P13: RAB growth (real)
E14: Entity | F14: RAB | G14: RABa | H14: Modelled EV no adjustments | I14: Modelled EV with adjustments | J14: Modelled EV with adjustments plus trailing CoD adj. | K14: Historical EV ratio | L14: net capex | P14: 2050 RAB | Q14: 2050 compared to Y1 | R14: CAGR (Y30) | W14: Allowed | X14: Achieved | Y14: difference
E15: SA Power Networks | F15: ='REV - SAPN'!Q149 -> 4304.710863 | G15: 4558.697387 | H15: ='REV - SAPN'!H398 -> 4352.471343 | I15: ='REV - SAPN'!H427 -> 6207.403192 | J15: =I15+(G15-F15) -> 6461.389715 | K15: =F15*$F$9 -> 7016.678707 | L15: 0.02 | P15: ='REV - SAPN'!AU149 -> 5716.545765 | Q15: =P15/F15 -> 1.327974386 | R15: =_xlfn.RRI(30,F15,P15) -> 0.0095 | W15: =AVERAGE('REV - SAPN'!R11:AU11) -> 0.04559668654 | X15: =AVERAGE('REV - SAPN'!R469:AU469) -> 0.08409621415 | Y15: =X15-W15 -> 0.03849952761
E16: Citipower | F16: ='REV - Citi'!Q147 -> 1983.468725 | G16: 2092.210021 | H16: ='REV - Citi'!H394 -> 2048.299185 | I16: ='REV - Citi'!H423 -> 2911.423073 | J16: =I16+(G16-F16) -> 3020.16437 | K16: =F16*$F$9 -> 3233.054022 | L16: 0.02 | P16: ='REV - Citi'!AU147 -> 2633.995662 | Q16: =P16/F16 -> 1.327974386 | R16: =_xlfn.RRI(30,F16,P16) -> 0.0095 | W16: =AVERAGE('REV - Citi'!R11:AU11) -> 0.0503951974 | X16: =AVERAGE('REV - Citi'!R465:AU465) -> 0.08602469216 | Y16: =X16-W16 -> 0.03562949476
E17: Powercor | F17: ='REV - Powercor'!Q147 -> 4524.047198 | G17: 4772.072665 | H17: ='REV - Powercor'!H394 -> 4568.653016 | I17: ='REV - Powercor'!H423 -> 6653.860708 | J17: 6901.886175 | K17: =F17*$F$9 -> 7374.196933 | L17: 0.02 | P17: ='REV - Powercor'!AU147 -> 6007.818799 | Q17: 1.327974386 | R17: 0.0095 | W17: =AVERAGE('REV - Powercor'!R11:AU11) -> 0.0503951974 | X17: =AVERAGE('REV - Powercor'!R466:AU466) -> 0.08393003544 | Y17: 0.03353483803
E18: TransGrid | F18: ='REV - TransGrid'!Q153 -> 6351.267727 | G18: 6723.231742 | H18: ='REV - TransGrid'!H406 -> 6366.806228 | I18: ='REV - TransGrid'!H435 -> 9523.76747 | J18: 9895.731485 | K18: =F18*$F$9 -> 10352.56639 | L18: 0.02 | P18: ='REV - TransGrid'!AU153 -> 8434.320859 | Q18: 1.327974386 | R18: 0.0095 | W18: =AVERAGE('REV - TransGrid'!R11:AU11) -> 0.074 | X18: =AVERAGE('REV - TransGrid'!R477:AU477) -> 0.08369244472 | Y18: 0.00969244472
E19: Totals | F19: =0.49*F15+0.49*F16+0.49*F17+0.1501*F18 -> 6251.316411 | G19: =0.49*G15+0.49*G16+0.49*G17+0.1501*G18 -> 6606.41732 | H19: 6330.675151 | I19: 9158.134114 | J19: 9513.235023 | K19: 10189.64575 | P19: =0.49*P15+0.49*P16+0.49*P17+0.1501*P18 -> 8301.588072 | Q19: =P19/F19 -> 1.327974386 | R19: 0.0095
E21: RAB to EV | H21: =H19/$F$19 -> 1.012694725 | I21: =I19/$F$19 -> 1.464992893 | J21: =J19/$F$19 -> 1.521797074 | K21: =K19/$F$19 -> 1.63 | P21: RAB growth (nominal)
E22: RABa to EV | H22: =H19/$G$19 -> 0.9582614667 | I22: =I19/$G$19 -> 1.386248199 | J22: =J19/$G$19 -> 1.439999104 | K22: =K19/$G$19 -> 1.542386025 | P22: 2050 RAB | Q22: 2050 compared to Y1 | R22: CAGR (Y30)
P23: ='REV - SAPN'!AU158 -> 11990.84106 | Q23: =P23/F15 -> 2.785516018 | R23: =_xlfn.RRI(30,F15,P23) -> 0.0347375
P24: ='REV - Citi'!AU156 -> 5524.983904 | Q24: =P24/F16 -> 2.785516018 | R24: =_xlfn.RRI(30,F16,P24) -> 0.0347375
P25: ='REV - Powercor'!AU156 -> 12601.80593 | Q25: =P25/F17 -> 2.785516018 | R25: =_xlfn.RRI(30,F17,P25) -> 0.0347375
P26: ='REV - TransGrid'!AU162 -> 17691.55799 | Q26: =P26/F18 -> 2.785516018 | R26: =_xlfn.RRI(30,F18,P26) -> 0.0347375
P27: =0.49*P23+0.49*P24+0.49*P25+0.1501*P26 -> 17413.14199 | Q27: =P27/F19 -> 2.785516018 | R27: =_xlfn.RRI(30,F19,P27) -> 0.0347375

Sheet FinalGraphs
B3: Low
B5: Assuming RAB:EV of | C5: EV:RAB 1.47 | D5: EV:RAB 1.35
B7: Real RAB growth | C7: Excess Equity return AST | D7: Excess Equity return SKI
B8: 0 | C8: 0.03218551178 | D8: 0.0202995344
B9: 0.0025 | C9: 0.03091334054 | D9: 0.01924134621
B10: 0.005 | C10: 0.02963959932 | D10: 0.01818087537
B11: 0.0075 | C11: 0.02836476759 | D11: 0.01711850842
B12: 0.01 | C12: 0.02708931843 | D12: 0.01605457548
B13: 0.0125 | C13: 0.02581371805 | D13: 0.0149894079
B14: 0.015 | C14: 0.02453842538 | D14: 0.01392333746
B15: 0.0175 | C15: 0.02326389162 | D15: 0.0128566957
B16: 0.02 | C16: 0.02199055978 | D16: 0.01178981316
B17: 0.0225 | C17: 0.02071886431 | D17: 0.01072301868
B18: 0.025 | C18: 0.01944923063 | D18: 0.009656638699
B19: 0.0275 | C19: 0.01818207481 | D19: 0.0085909966
B20: 0.03 | C20: 0.01691780311 | D20: 0.0075264137
B22: Mid
B24: Assuming RAB:EV of | C24: EV:RAB 1.61 | D24: EV:RAB 1.44
B26: Real RAB growth | C26: Excess Equity return AST | D26: Excess Equity return SKI
B27: 0 | C27: 0.04406355594 | D27: 0.02875517186
B28: 0.0025 | C28: 0.04258116104 | D28: 0.02753395252
B29: 0.005 | C29: 0.04109827997 | D29: 0.02631152006
B30: 0.0075 | C30: 0.03961545522 | D30: 0.0250882614
B31: 0.01 | C31: 0.03813322082 | D31: 0.02386455567
B32: 0.0125 | C32: 0.03665210194 | D32: 0.02264078223
B33: 0.015 | C33: 0.03517261457 | D33: 0.02141731996
B34: 0.0175 | C34: 0.03369526513 | D34: 0.02019454644
B35: 0.02 | C35: 0.03222055012 | D35: 0.01897283722
B36: 0.0225 | C36: 0.03074895581 | D36: 0.01775256507
B37: 0.025 | C37: 0.02928095785 | D37: 0.01653409925
B38: 0.0275 | C38: 0.027817021 | D38: 0.01531779054
B39: 0.03 | C39: 0.02635759876 | D39: 0.01410404209
B41: High
B43: Assuming RAB:EV of | C43: EV:RAB 1.76 | D43: EV:RAB 1.53
B45: Real RAB growth | C45: Excess Equity return AST | D45: Excess Equity return SKI
B46: 0 | C46: 0.05538593768 | D46: 0.03654153966
B47: 0.0025 | C47: 0.05371333922 | D47: 0.035175457
B48: 0.005 | C48: 0.05204119334 | D48: 0.03380900594
B49: 0.0075 | C49: 0.05037008761 | D49: 0.03244265885
B50: 0.01 | C50: 0.04870059956 | D50: 0.03107683101
B51: 0.0125 | C51: 0.04703329638 | D51: 0.02971193736
B52: 0.015 | C52: 0.04536873468 | D52: 0.02834839162
B53: 0.0175 | C53: 0.04370746022 | D53: 0.02698660559
B54: 0.02 | C54: 0.04205000767 | D54: 0.02562698832
B55: 0.0225 | C55: 0.04039690034 | D55: 0.02426994543
B56: 0.025 | C56: 0.03874864996 | D56: 0.02291587834
B57: 0.0275 | C57: 0.03710575639 | D57: 0.02156518355
B58: 0.03 | C58: 0.03546870744 | D58: 0.02021825201

Sheet WACC
A1: WACC Derivation
O2: Constants | Q2: 2016-2017 | R2: 2017-18 | S2: 2018-19 | T2: 2019-20 | U2: 2020-21 | V2: 2021-22 | W2: 2022-23 | X2: 2023-24 | Y2: 2024-25 | Z2: 2025-26 | AA2: 2026-27 | AB2: 2027-28 | AC2: 2028-29 | AD2: 2029-30 | AE2: 2030-31 | AF2: 2031-32 | AG2: 2032-33 | AH2: 2033-34 | AI2: 2034-35 | AJ2: 2035-36 | AK2: 2036-37 | AL2: 2037-38 | AM2: 2038-39 | AN2: 2039-40 | AO2: 2040-41 | AP2: 2041-42 | AQ2: 2042-43 | AR2: 2043-44 | AS2: 2044-45 | AT2: 2045-46 | AU2: 2046-47 | AV2: 2047-48 | AW2: 2048-49 | AX2: 2049-50 | AY2: 2050-51 | AZ2: 2051-52
E3: Global assumptions | K3: Source
F5: Nominal forecast risk free rate | K5: consensus economics | U5: 0.01 | V5: 0.015 | W5: 0.018 | X5: 0.022 | Y5: 0.024 | Z5: 0.026 | AA5: 0.028 | AB5: 0.03 | AC5: 0.03 | AD5: 0.03 | AE5: 0.03 | AF5: 0.03 | AG5: 0.03 | AH5: 0.03 | AI5: 0.03 | AJ5: 0.03 | AK5: 0.03 | AL5: 0.03 | AM5: 0.03 | AN5: 0.03 | AO5: 0.03 | AP5: 0.03 | AQ5: 0.03 | AR5: 0.03 | AS5: 0.03 | AT5: 0.03 | AU5: 0.03 | AV5: 0.03 | AW5: 0.03 | AX5: 0.03 | AY5: 0.03 | AZ5: 0.03
F6: Real forecast risk free rate | U6: =((1+U5)/(1+U7))-1 -> 0.001984126984 | V6: =((1+V5)/(1+V7))-1 -> -0.009756097561 | W6: =((1+W5)/(1+W7))-1 -> -0.001960784314 | X6: 0.0009794319295 | Y6: 0.0009775171065 | Z6: 0.00293255132 | AA6: 0.00390625 | AB6: 0.005859375 | AC6: 0.006842619746 | AD6: 0.006842619746 | AE6: 0.006842619746 | AF6: 0.006842619746 | AG6: 0.006842619746 | AH6: 0.006842619746 | AI6: 0.006842619746 | AJ6: 0.006842619746 | AK6: 0.006842619746 | AL6: 0.006842619746 | AM6: 0.006842619746 | AN6: 0.006842619746 | AO6: 0.006842619746 | AP6: 0.006842619746 | AQ6: 0.006842619746 | AR6: 0.006842619746 | AS6: 0.006842619746 | AT6: 0.006842619746 | AU6: 0.006842619746 | AV6: 0.006842619746 | AW6: 0.006842619746 | AX6: 0.006842619746 | AY6: 0.006842619746 | AZ6: 0.006842619746
F7: forecast inflation | K7: consensus economics | U7: 0.008 | V7: 0.025 | W7: 0.02 | X7: 0.021 | Y7: 0.023 | Z7: 0.023 | AA7: 0.024 | AB7: 0.024 | AC7: 0.023 | AD7: 0.023 | AE7: 0.023 | AF7: 0.023 | AG7: 0.023 | AH7: 0.023 | AI7: 0.023 | AJ7: 0.023 | AK7: 0.023 | AL7: 0.023 | AM7: 0.023 | AN7: 0.023 | AO7: 0.023 | AP7: 0.023 | AQ7: 0.023 | AR7: 0.023 | AS7: 0.023 | AT7: 0.023 | AU7: 0.023 | AV7: 0.023 | AW7: 0.023 | AX7: 0.023 | AY7: 0.023 | AZ7: 0.023
F8: Nominal forecast risk free rate (inflation assumption) | V8: =((1+V6)*(1+$O$24))-1 -> 0.015 | W8: =((1+W6)*(1+$O$24))-1 -> 0.02299019608 | X8: 0.02600391773 | Y8: 0.02600195503 | Z8: 0.0280058651 | AA8: 0.02900390625 | AB8: 0.03100585938 | AC8: 0.03201368524 | AD8: 0.03201368524 | AE8: 0.03201368524 | AF8: 0.03201368524 | AG8: 0.03201368524 | AH8: 0.03201368524 | AI8: 0.03201368524 | AJ8: 0.03201368524 | AK8: 0.03201368524 | AL8: 0.03201368524 | AM8: 0.03201368524 | AN8: 0.03201368524 | AO8: 0.03201368524 | AP8: 0.03201368524 | AQ8: 0.03201368524 | AR8: 0.03201368524 | AS8: 0.03201368524 | AT8: 0.03201368524 | AU8: 0.03201368524 | AV8: 0.03201368524 | AW8: 0.03201368524 | AX8: 0.03201368524 | AY8: 0.03201368524 | AZ8: 0.03201368524
F9: Real on the day cost of debt | V9: =V6+$O$15 -> 0.008843902439 | W9: =W6+$O$15 -> 0.01663921569 | X9: =X6+$O$15 -> 0.01957943193 | Y9: 0.01957751711 | Z9: 0.02153255132 | AA9: 0.02250625 | AB9: 0.024459375 | AC9: 0.02544261975 | AD9: 0.02544261975 | AE9: 0.02544261975 | AF9: 0.02544261975 | AG9: 0.02544261975 | AH9: 0.02544261975 | AI9: 0.02544261975 | AJ9: 0.02544261975 | AK9: 0.02544261975 | AL9: 0.02544261975 | AM9: 0.02544261975 | AN9: 0.02544261975 | AO9: 0.02544261975 | AP9: 0.02544261975 | AQ9: 0.02544261975 | AR9: 0.02544261975 | AS9: 0.02544261975 | AT9: 0.02544261975 | AU9: 0.02544261975 | AV9: 0.02544261975 | AW9: 0.02544261975 | AX9: 0.02544261975 | AY9: 0.02544261975 | AZ9: 0.02544261975
F10: Nominal on the day cost of debt | V10: =((1+V9)*(1+$O$24))-1 -> 0.034065 | W10: =((1+W9)*(1+$O$24))-1 -> 0.04205519608 | X10: 0.04506891773 | Y10: 0.04506695503 | Z10: 0.0470708651 | AA10: 0.04806890625 | AB10: 0.05007085937 | AC10: 0.05107868524 | AD10: 0.05107868524 | AE10: 0.05107868524 | AF10: 0.05107868524 | AG10: 0.05107868524 | AH10: 0.05107868524 | AI10: 0.05107868524 | AJ10: 0.05107868524 | AK10: 0.05107868524 | AL10: 0.05107868524 | AM10: 0.05107868524 | AN10: 0.05107868524 | AO10: 0.05107868524 | AP10: 0.05107868524 | AQ10: 0.05107868524 | AR10: 0.05107868524 | AS10: 0.05107868524 | AT10: 0.05107868524 | AU10: 0.05107868524 | AV10: 0.05107868524 | AW10: 0.05107868524 | AX10: 0.05107868524 | AY10: 0.05107868524 | AZ10: 0.05107868524
F11: Cost of equity distribution | V11: =V8+$O$17*$O$16 -> 0.0516 | W11: =W8+$O$17*$O$16 -> 0.05959019608 | X11: 0.06260391773 | Y11: 0.06260195503 | Z11: 0.0646058651 | AA11: 0.06560390625 | AB11: 0.06760585937 | AC11: 0.06861368524 | AD11: 0.06861368524 | AE11: 0.06861368524 | AF11: 0.06861368524 | AG11: 0.06861368524 | AH11: 0.06861368524 | AI11: 0.06861368524 | AJ11: 0.06861368524 | AK11: 0.06861368524 | AL11: 0.06861368524 | AM11: 0.06861368524 | AN11: 0.06861368524 | AO11: 0.06861368524 | AP11: 0.06861368524 | AQ11: 0.06861368524 | AR11: 0.06861368524 | AS11: 0.06861368524 | AT11: 0.06861368524 | AU11: 0.06861368524 | AV11: 0.06861368524 | AW11: 0.06861368524 | AX11: 0.06861368524 | AY11: 0.06861368524 | AZ11: 0.06861368524
F12: Cost of equity transmission | V12: =V8+$O$18*$O$16 -> 0.0516 | W12: =W8+$O$18*$O$16 -> 0.05959019608 | X12: 0.06260391773 | Y12: 0.06260195503 | Z12: 0.0646058651 | AA12: 0.06560390625 | AB12: 0.06760585937 | AC12: 0.06861368524 | AD12: 0.06861368524 | AE12: 0.06861368524 | AF12: 0.06861368524 | AG12: 0.06861368524 | AH12: 0.06861368524 | AI12: 0.06861368524 | AJ12: 0.06861368524 | AK12: 0.06861368524 | AL12: 0.06861368524 | AM12: 0.06861368524 | AN12: 0.06861368524 | AO12: 0.06861368524 | AP12: 0.06861368524 | AQ12: 0.06861368524 | AR12: 0.06861368524 | AS12: 0.06861368524 | AT12: 0.06861368524 | AU12: 0.06861368524 | AV12: 0.06861368524 | AW12: 0.06861368524 | AX12: 0.06861368524 | AY12: 0.06861368524 | AZ12: 0.06861368524
F13: Cost of equity gas | V13: =V8+$O$19*$O$16 -> 0.0516 | W13: =W8+$O$19*$O$16 -> 0.05959019608 | X13: 0.06260391773 | Y13: 0.06260195503 | Z13: 0.0646058651 | AA13: 0.06560390625 | AB13: 0.06760585937 | AC13: 0.06861368524 | AD13: 0.06861368524 | AE13: 0.06861368524 | AF13: 0.06861368524 | AG13: 0.06861368524 | AH13: 0.06861368524 | AI13: 0.06861368524 | AJ13: 0.06861368524 | AK13: 0.06861368524 | AL13: 0.06861368524 | AM13: 0.06861368524 | AN13: 0.06861368524 | AO13: 0.06861368524 | AP13: 0.06861368524 | AQ13: 0.06861368524 | AR13: 0.06861368524 | AS13: 0.06861368524 | AT13: 0.06861368524 | AU13: 0.06861368524 | AV13: 0.06861368524 | AW13: 0.06861368524 | AX13: 0.06861368524 | AY13: 0.06861368524 | AZ13: 0.06861368524
F15: Debt premium | O15: 0.0186
F16: Market risk premium | K16: AusNet D Final decision 2021-26 | O16: 0.061
F17: Equity beta (distribution) | O17: 0.6
F18: Equity beta (transmission) | O18: 0.6
F19: Equity beta (gas) | O19: 0.6
F20: Equity beta (pre 2018) | O20: 0.7
F21: Debt financing | O21: 0.6
F22: Equity financing | O22: 0.4
F24: Cumulative inflation index | O24: =Controls!F50 -> 0.025
A26: AusNet Electricity Distribution
V27: 0 | W27: 1 | X27: 2 | Y27: 3 | Z27: 4 | AA27: 5 | AB27: 6 | AC27: 7 | AD27: 8 | AE27: 9 | AF27: 10 | AG27: 11 | AH27: 12 | AI27: 13 | AJ27: 14 | AK27: 15 | AL27: 16 | AM27: 17 | AN27: 18 | AO27: 19 | AP27: 20 | AQ27: 21 | AR27: 22 | AS27: 23 | AT27: 24 | AU27: 25 | AV27: 26 | AW27: 27 | AX27: 28 | AY27: 29 | AZ27: 30
V28: Y0 | W28: Period 1 | AA28: Period 2 | AF28: Period 3 | AK28: Period 4 | AP28: Period 5 | AU28: Period 6 | AZ28: Period 7
K29: Source | L29: Comments | N29: Units | O29: Constants | Q29: 2016-2017 | R29: 2017-18 | S29: 2018-19 | T29: 2019-20 | U29: 2020-21 | V29: 2021-22 | W29: 2022-23 | X29: 2023-24 | Y29: 2024-25 | Z29: 2025-26 | AA29: 2026-27 | AB29: 2027-28 | AC29: 2028-29 | AD29: 2029-30 | AE29: 2030-31 | AF29: 2031-32 | AG29: 2032-33 | AH29: 2033-34 | AI29: 2034-35 | AJ29: 2035-36 | AK29: 2036-37 | AL29: 2037-38 | AM29: 2038-39 | AN29: 2039-40 | AO29: 2040-41 | AP29: 2041-42 | AQ29: 2042-43 | AR29: 2043-44 | AS29: 2044-45 | AT29: 2045-46 | AU29: 2046-47 | AV29: 2047-48 | AW29: 2048-49 | AX29: 2049-50 | AY29: 2050-51 | AZ29: 2051-52
C31: Inputs
V33: 1 | W33: =V33*(1+$O$24) -> 1.025 | X33: 1.050625 | Y33: 1.076890625 | Z33: 1.103812891 | AA33: 1.131408213 | AB33: 1.159693418 | AC33: 1.188685754 | AD33: 1.218402898 | AE33: 1.24886297 | AF33: 1.280084544 | AG33: 1.312086658 | AH33: 1.344888824 | AI33: 1.378511045 | AJ33: 1.412973821 | AK33: 1.448298166 | AL33: 1.484505621 | AM33: 1.521618261 | AN33: 1.559658718 | AO33: 1.598650186 | AP33: 1.63861644 | AQ33: 1.679581851 | AR33: 1.721571398 | AS33: 1.764610683 | AT33: 1.80872595 | AU33: 1.853944098 | AV33: 1.900292701 | AW33: 1.947800018 | AX33: 1.996495019 | AY33: 2.046407394 | AZ33: 2.097567579
F36: Return on debt | K36: AusNet D PTRM 2021-26 / Ausnet 2020 debt update | Q36: 0.031 | R36: 0.0302 | S36: 0.0298 | T36: 0.0289 | U36: 0.0269 | V36: 0.0464 | W36: 0.04333117329 | X36: 0.04023460662 | Y36: 0.03713803996 | Z36: 0.0340414733 | AA36: 0.0340414733 | AB36: 0.0340414733 | AC36: 0.0340414733 | AD36: 0.0340414733 | AE36: 0.0340414733 | AF36: 0.0340414733 | AG36: 0.0340414733 | AH36: 0.0340414733 | AI36: 0.0340414733 | AJ36: 0.0340414733 | AK36: 0.0340414733 | AL36: 0.0340414733 | AM36: 0.0340414733 | AN36: 0.0340414733 | AO36: 0.0340414733 | AP36: 0.0340414733 | AQ36: 0.0340414733 | AR36: 0.0340414733 | AS36: 0.0340414733 | AT36: 0.0340414733 | AU36: 0.0340414733 | AV36: 0.0340414733 | AW36: 0.0340414733 | AX36: 0.0340414733 | AY36: 0.0340414733 | AZ36: 0.0340414733
F37: Return on equity | K37: AusNet D PTRM 2021-26 | W37: 0.05117958154 | X37: 0.05117958154 | Y37: 0.05117958154 | Z37: 0.05117958154 | AA37: 0.05117958154 | AB37: 0.05117958154 | AC37: 0.05117958154 | AD37: 0.05117958154 | AE37: 0.05117958154 | AF37: 0.05117958154 | AG37: 0.05117958154 | AH37: 0.05117958154 | AI37: 0.05117958154 | AJ37: 0.05117958154 | AK37: 0.05117958154 | AL37: 0.05117958154 | AM37: 0.05117958154 | AN37: 0.05117958154 | AO37: 0.05117958154 | AP37: 0.05117958154 | AQ37: 0.05117958154 | AR37: 0.05117958154 | AS37: 0.05117958154 | AT37: 0.05117958154 | AU37: 0.05117958154 | AV37: 0.05117958154 | AW37: 0.05117958154 | AX37: 0.05117958154 | AY37: 0.05117958154 | AZ37: 0.05117958154
F39: Debt financing | K39: AusNet D PTRM 2021-26 | O39: 0.6
F40: Equity financing | K40: AusNet D PTRM 2021-26 | O40: 0.4
F42: Corporate tax rate | K42: AusNet D PTRM 2021-26 | O42: 0.3
F43: Value of imputation credits | K43: AusNet D PTRM 2021-26 | O43: 0.585
F44: Imputation credit payout ratio | K44: AusNet D PTRM 2021-26 | O44: 0.9
F46: Return on debt real | K46: calculated | V46: =((((1+V36)/(1+$V$7))))-1 -> 0.02087804878 | W46: =0.9*V46+0.1*W$9 -> 0.02045416547 | X46: =0.8*V46+0.1*W$9+0.1*X$9 -> 0.02032430379 | Y46: =0.7*V46+0.1*W$9+0.1*X$9+0.1*Y$9 -> 0.02019425062 | Z46: =0.6*V46+0.1*W$9+0.1*X$9+0.1*Y$9+0.1*Z$9 -> 0.02025970087 | AA46: =0.5*V46+0.1*W$9+0.1*X$9+0.1*Y$9+0.1*Z$9+0.1*AA$9 -> 0.02042252099 | AB46: =0.4*V46+0.1*W$9+0.1*X$9+0.1*Y$9+0.1*Z$9+0.1*AA$9+0.1*AB$9 -> 0.02078065362 | AC46: =0.3*V46+0.1*W$9+0.1*X$9+0.1*Y$9+0.1*Z$9+0.1*AA$9+0.1*AB$9+0.1*AC$9 -> 0.02123711071 | AD46: =0.2*V46+0.1*W$9+0.1*X$9+0.1*Y$9+0.1*Z$9+0.1*AA$9+0.1*AB$9+0.1*AC$9+0.1*AD$9 -> 0.02169356781 | AE46: =0.1*V46+0.1*W$9+0.1*X$9+0.1*Y$9+0.1*Z$9+0.1*AA$9+0.1*AB$9+0.1*AC$9+0.1*AD$9+0.1*AE$9 -> 0.02215002491 | AF46: =0.1*W$9+0.1*X$9+0.1*Y$9+0.1*Z$9+0.1*AA$9+0.1*AB$9+0.1*AC$9+0.1*AD$9+0.1*AE$9+0.1*AF$9 -> 0.022606482 | AG46: =0.1*X$9+0.1*Y$9+0.1*Z$9+0.1*AA$9+0.1*AB$9+0.1*AC$9+0.1*AD$9+0.1*AE$9+0.1*AF$9+0.1*AG$9 -> 0.02348682241 | AH46: =0.1*Y$9+0.1*Z$9+0.1*AA$9+0.1*AB$9+0.1*AC$9+0.1*AD$9+0.1*AE$9+0.1*AF$9+0.1*AG$9+0.1*AH$9 -> 0.02407314119 | AI46: 0.02465965145 | AJ46: 0.0250506583 | AK46: 0.02534429527 | AL46: 0.02544261975 | AM46: 0.02544261975 | AN46: 0.02544261975 | AO46: 0.02544261975 | AP46: 0.02544261975 | AQ46: 0.02544261975 | AR46: 0.02544261975 | AS46: 0.02544261975 | AT46: 0.02544261975 | AU46: 0.02544261975 | AV46: 0.02544261975 | AW46: 0.02544261975 | AX46: 0.02544261975 | AY46: 0.02544261975 | AZ46: 0.02544261975
F47: Return on debt nominal | K47: calculated | V47: =((((1+V36)/(1+$V$7)))*(1+$O$24))-1 -> 0.0464 | W47: =0.9*V47+0.1*W$10 -> 0.04596551961 | X47: =0.8*V47+0.1*W$10+0.1*X$10 -> 0.04583241138 | Y47: =0.7*V47+0.1*W$10+0.1*X$10+0.1*Y$10 -> 0.04569910688 | Z47: =0.6*V47+0.1*W$10+0.1*X$10+0.1*Y$10+0.1*Z$10 -> 0.04576619339 | AA47: =0.5*V47+0.1*W$10+0.1*X$10+0.1*Y$10+0.1*Z$10+0.1*AA$10 -> 0.04593308402 | AB47: =0.4*V47+0.1*W$10+0.1*X$10+0.1*Y$10+0.1*Z$10+0.1*AA$10+0.1*AB$10 -> 0.04630016996 | AC47: =0.3*V47+0.1*W$10+0.1*X$10+0.1*Y$10+0.1*Z$10+0.1*AA$10+0.1*AB$10+0.1*AC$10 -> 0.04676803848 | AD47: =0.2*V47+0.1*W$10+0.1*X$10+0.1*Y$10+0.1*Z$10+0.1*AA$10+0.1*AB$10+0.1*AC$10+0.1*AD$10 -> 0.047235907 | AE47: =0.1*V47+0.1*W$10+0.1*X$10+0.1*Y$10+0.1*Z$10+0.1*AA$10+0.1*AB$10+0.1*AC$10+0.1*AD$10+0.1*AE$10 -> 0.04770377553 | AF47: =0.1*W$10+0.1*X$10+0.1*Y$10+0.1*Z$10+0.1*AA$10+0.1*AB$10+0.1*AC$10+0.1*AD$10+0.1*AE$10+0.1*AF$10 -> 0.04817164405 | AG47: =0.1*X$10+0.1*Y$10+0.1*Z$10+0.1*AA$10+0.1*AB$10+0.1*AC$10+0.1*AD$10+0.1*AE$10+0.1*AF$10+0.1*AG$10 -> 0.04907399297 | AH47: =0.1*Y$10+0.1*Z$10+0.1*AA$10+0.1*AB$10+0.1*AC$10+0.1*AD$10+0.1*AE$10+0.1*AF$10+0.1*AG$10+0.1*AH$10 -> 0.04967496972 | AI47: 0.05027614274 | AJ47: 0.05067692475 | AK47: 0.05097790265 | AL47: 0.05107868524 | AM47: 0.05107868524 | AN47: 0.05107868524 | AO47: 0.05107868524 | AP47: 0.05107868524 | AQ47: 0.05107868524 | AR47: 0.05107868524 | AS47: 0.05107868524 | AT47: 0.05107868524 | AU47: 0.05107868524 | AV47: 0.05107868524 | AW47: 0.05107868524 | AX47: 0.05107868524 | AY47: 0.05107868524 | AZ47: 0.05107868524
F48: Return on equity nominal | K48: calculated | W48: =W11 -> 0.05959019608 | X48: 0.06260391773 | Y48: 0.06260195503 | Z48: 0.0646058651 | AA48: =AA11 -> 0.06560390625 | AB48: =AB11 -> 0.06760585937 | AC48: 0.06861368524 | AD48: 0.06861368524 | AE48: 0.06861368524 | AF48: 0.06861368524 | AG48: 0.06861368524 | AH48: 0.06861368524 | AI48: 0.06861368524 | AJ48: 0.06861368524 | AK48: 0.06861368524 | AL48: 0.06861368524 | AM48: 0.06861368524 | AN48: 0.06861368524 | AO48: 0.06861368524 | AP48: 0.06861368524 | AQ48: 0.06861368524 | AR48: 0.06861368524 | AS48: 0.06861368524 | AT48: 0.06861368524 | AU48: 0.06861368524 | AV48: 0.06861368524 | AW48: 0.06861368524 | AX48: 0.06861368524 | AY48: 0.06861368524 | AZ48: 0.06861368524
F50: real return on debt | W50: =(1+W47)/(1+$O$24)-1 -> 0.02045416547 | X50: 0.02032430379 | Y50: 0.02019425062 | Z50: 0.02025970087 | AA50: 0.02042252099 | AB50: 0.02078065362 | AC50: 0.02123711071 | AD50: 0.02169356781 | AE50: 0.02215002491 | AF50: 0.022606482 | AG50: 0.02348682241 | AH50: 0.02407314119 | AI50: 0.02465965145 | AJ50: 0.0250506583 | AK50: 0.02534429527 | AL50: 0.02544261975 | AM50: 0.02544261975 | AN50: 0.02544261975 | AO50: 0.02544261975 | AP50: 0.02544261975 | AQ50: 0.02544261975 | AR50: 0.02544261975 | AS50: 0.02544261975 | AT50: 0.02544261975 | AU50: 0.02544261975 | AV50: 0.02544261975 | AW50: 0.02544261975 | AX50: 0.02544261975 | AY50: 0.02544261975 | AZ50: 0.02544261975
F51: real return on equity | W51: =(1+W48)/(1+$O$24)-1 -> 0.03374653276 | X51: 0.036686749 | Y51: 0.03668483418 | Z51: 0.03863986839 | AA51: 0.03961356707 | AB51: 0.04156669207 | AC51: 0.04254993682 | AD51: 0.04254993682 | AE51: 0.04254993682 | AF51: 0.04254993682 | AG51: 0.04254993682 | AH51: 0.04254993682 | AI51: 0.04254993682 | AJ51: 0.04254993682 | AK51: 0.04254993682 | AL51: 0.04254993682 | AM51: 0.04254993682 | AN51: 0.04254993682 | AO51: 0.04254993682 | AP51: 0.04254993682 | AQ51: 0.04254993682 | AR51: 0.04254993682 | AS51: 0.04254993682 | AT51: 0.04254993682 | AU51: 0.04254993682 | AV51: 0.04254993682 | AW51: 0.04254993682 | AX51: 0.04254993682 | AY51: 0.04254993682 | AZ51: 0.04254993682
F52: Adjusted nominal return on equity | K52: calculated | W52: =W48-Controls!$F$31 -> 0.02116060094 | X52: =X48-Controls!$F$31 -> 0.02417432259 | Y52: =Y48-Controls!$F$31 -> 0.0241723599 | Z52: =Z48-Controls!$F$31 -> 0.02617626997 | AA52: =AA48-Controls!$F$31 -> 0.02717431112 | AB52: =AB48-Controls!$F$31 -> 0.02917626424 | AC52: =AC48-Controls!$F$31 -> 0.03018409011 | AD52: =AD48-Controls!$F$31 -> 0.03018409011 | AE52: =AE48-Controls!$F$31 -> 0.03018409011 | AF52: =AF48-Controls!$F$31 -> 0.03018409011 | AG52: =AG48-Controls!$F$31 -> 0.03018409011 | AH52: =AH48-Controls!$F$31 -> 0.03018409011 | AI52: =AI48-Controls!$F$31 -> 0.03018409011 | AJ52: =AJ48-Controls!$F$31 -> 0.03018409011 | AK52: =AK48-Controls!$F$31 -> 0.03018409011 | AL52: =AL48-Controls!$F$31 -> 0.03018409011 | AM52: =AM48-Controls!$F$31 -> 0.03018409011 | AN52: =AN48-Controls!$F$31 -> 0.03018409011 | AO52: =AO48-Controls!$F$31 -> 0.03018409011 | AP52: =AP48-Controls!$F$31 -> 0.03018409011 | AQ52: =AQ48-Controls!$F$31 -> 0.03018409011 | AR52: =AR48-Controls!$F$31 -> 0.03018409011 | AS52: =AS48-Controls!$F$31 -> 0.03018409011 | AT52: =AT48-Controls!$F$31 -> 0.03018409011 | AU52: =AU48-Controls!$F$31 -> 0.03018409011 | AV52: =AV48-Controls!$F$31 -> 0.03018409011 | AW52: =AW48-Controls!$F$31 -> 0.03018409011 | AX52: =AX48-Controls!$F$31 -> 0.03018409011 | AY52: =AY48-Controls!$F$31 -> 0.03018409011 | AZ52: =AZ48-Controls!$F$31 -> 0.03018409011
F53: Adjusted nominal WACC | W53: =W47*$O$39+W52*$O$40 -> 0.03604355214 | X53: =X47*$O$39+X52*$O$40 -> 0.03716917587 | Y53: 0.03708840809 | Z53: 0.03793022402 | AA53: 0.03842957486 | AB53: 0.03945060767 | AC53: 0.04013445913 | AD53: 0.04041518025 | AE53: 0.04069590136 | AF53: 0.04097662247 | AG53: 0.04151803182 | AH53: 0.04187861787 | AI53: 0.04223932169 | AJ53: 0.04247979089 | AK53: 0.04266037763 | AL53: 0.04272084719 | AM53: 0.04272084719 | AN53: 0.04272084719 | AO53: 0.04272084719 | AP53: 0.04272084719 | AQ53: 0.04272084719 | AR53: 0.04272084719 | AS53: 0.04272084719 | AT53: 0.04272084719 | AU53: 0.04272084719 | AV53: 0.04272084719 | AW53: 0.04272084719 | AX53: 0.04272084719 | AY53: 0.04272084719 | AZ53: 0.04272084719
F57: Forecast nominal rate of return | W57: =$O$21*W47+$O$22*W48 -> 0.0514153902 | X57: 0.05254101392 | Y57: 0.05246024614 | Z57: 0.05330206208 | AA57: 0.05380141291 | AB57: 0.05482244572 | AC57: 0.05550629718 | AD57: 0.0557870183 | AE57: 0.05606773941 | AF57: 0.05634846053 | AG57: 0.05688986988 | AH57: 0.05725045593 | AI57: 0.05761115974 | AJ57: 0.05785162895 | AK57: 0.05803221569 | AL57: 0.05809268524 | AM57: 0.05809268524 | AN57: 0.05809268524 | AO57: 0.05809268524 | AP57: 0.05809268524 | AQ57: 0.05809268524 | AR57: 0.05809268524 | AS57: 0.05809268524 | AT57: 0.05809268524 | AU57: 0.05809268524 | AV57: 0.05809268524 | AW57: 0.05809268524 | AX57: 0.05809268524 | AY57: 0.05809268524 | AZ57: 0.05809268524
F58: Forecast real rate of return | W58: =(1+W57)/(1+$O$24)-1 -> 0.02577111239 | X58: 0.02686928187 | Y58: 0.02679048404 | Z58: 0.02761176788 | AA58: 0.02809893943 | AB58: 0.029095069 | AC58: 0.02976224116 | AD58: 0.03003611541 | AE58: 0.03030998967 | AF58: 0.03058386393 | AG58: 0.03111206817 | AH58: 0.03146385944 | AI58: 0.0318157656 | AJ58: 0.03205036971 | AK58: 0.03222655189 | AL58: 0.03228554658 | AM58: 0.03228554658 | AN58: 0.03228554658 | AO58: 0.03228554658 | AP58: 0.03228554658 | AQ58: 0.03228554658 | AR58: 0.03228554658 | AS58: 0.03228554658 | AT58: 0.03228554658 | AU58: 0.03228554658 | AV58: 0.03228554658 | AW58: 0.03228554658 | AX58: 0.03228554658 | AY58: 0.03228554658 | AZ58: 0.03228554658
F59: Forecast real rate of return - check
A61: AusNet Transmission
V62: 0 | W62: 1 | X62: 2 | Y62: 3 | Z62: 4 | AA62: 5 | AB62: 6 | AC62: 7 | AD62: 8 | AE62: 9 | AF62: 10 | AG62: 11 | AH62: 12 | AI62: 13 | AJ62: 14 | AK62: 15 | AL62: 16 | AM62: 17 | AN62: 18 | AO62: 19 | AP62: 20 | AQ62: 21 | AR62: 22 | AS62: 23 | AT62: 24 | AU62: 25 | AV62: 26 | AW62: 27 | AX62: 28 | AY62: 29 | AZ62: 30
V63: Y0 | W63: Period 2 | AB63: Period 3 | AG63: Period 4 | AL63: Period 5 | AQ63: Period 6 | AV63: Period 7
K64: Source | L64: Comments | N64: Units | O64: Constants | V64: 2021-22 | W64: 2022-23 | X64: 2023-24 | Y64: 2024-25 | Z64: 2025-26 | AA64: 2026-27 | AB64: 2027-28 | AC64: 2028-29 | AD64: 2029-30 | AE64: 2030-31 | AF64: 2031-32 | AG64: 2032-33 | AH64: 2033-34 | AI64: 2034-35 | AJ64: 2035-36 | AK64: 2036-37 | AL64: 2037-38 | AM64: 2038-39 | AN64: 2039-40 | AO64: 2040-41 | AP64: 2041-42 | AQ64: 2042-43 | AR64: 2043-44 | AS64: 2044-45 | AT64: 2045-46 | AU64: 2046-47 | AV64: 2047-48 | AW64: 2048-49 | AX64: 2049-50 | AY64: 2050-51 | AZ64: 2051-52
C66: Inputs
F68: Cumulative inflation index | K68: AusNet T PTRM 2022-27 | V68: 1 | W68: =V68*(1+$O$24) -> 1.025 | X68: 1.050625 | Y68: 1.076890625 | Z68: 1.103812891 | AA68: 1.131408213 | AB68: 1.159693418 | AC68: 1.188685754 | AD68: 1.218402898 | AE68: 1.24886297 | AF68: 1.280084544 | AG68: 1.312086658 | AH68: 1.344888824 | AI68: 1.378511045 | AJ68: 1.412973821 | AK68: 1.448298166 | AL68: 1.484505621 | AM68: 1.521618261 | AN68: 1.559658718 | AO68: 1.598650186 | AP68: 1.63861644 | AQ68: 1.679581851 | AR68: 1.721571398 | AS68: 1.764610683 | AT68: 1.80872595 | AU68: 1.853944098 | AV68: 1.900292701 | AW68: 1.947800018 | AX68: 1.996495019 | AY68: 2.046407394 | AZ68: 2.097567579
F70: Return on debt | K70: AusNet T PTRM 2022-27 | R70: 0.04936016301 | S70: 0.04946114119 | T70: 0.04928367143 | U70: 0.04783676093 | V70: 0.04565353339 | W70: 0.0436652045 | X70: 0.04167687561 | Y70: 0.03968854672 | Z70: 0.03770021783 | AA70: 0.03571188895 | AB70: 0.03571188895 | AC70: 0.03571188895 | AD70: 0.03571188895 | AE70: 0.03571188895 | AF70: 0.03571188895 | AG70: 0.03571188895 | AH70: 0.03571188895 | AI70: 0.03571188895 | AJ70: 0.03571188895 | AK70: 0.03571188895 | AL70: 0.03571188895 | AM70: 0.03571188895 | AN70: 0.03571188895 | AO70: 0.03571188895 | AP70: 0.03571188895 | AQ70: 0.03571188895 | AR70: 0.03571188895 | AS70: 0.03571188895 | AT70: 0.03571188895 | AU70: 0.03571188895 | AV70: 0.03571188895 | AW70: 0.03571188895 | AX70: 0.03571188895 | AY70: 0.03571188895 | AZ70: 0.03571188895
F71: Return on equity | K71: AusNet T PTRM 2022-27 | W71: 0.05252481243 | X71: 0.05252481243 | Y71: 0.05252481243 | Z71: 0.05252481243 | AA71: 0.05252481243 | AB71: 0.05252481243 | AC71: 0.05252481243 | AD71: 0.05252481243 | AE71: 0.05252481243 | AF71: 0.05252481243 | AG71: 0.05252481243 | AH71: 0.05252481243 | AI71: 0.05252481243 | AJ71: 0.05252481243 | AK71: 0.05252481243 | AL71: 0.05252481243 | AM71: 0.05252481243 | AN71: 0.05252481243 | AO71: 0.05252481243 | AP71: 0.05252481243 | AQ71: 0.05252481243 | AR71: 0.05252481243 | AS71: 0.05252481243 | AT71: 0.05252481243 | AU71: 0.05252481243 | AV71: 0.05252481243 | AW71: 0.05252481243 | AX71: 0.05252481243 | AY71: 0.05252481243 | AZ71: 0.05252481243
F73: Debt financing | K73: AusNet T PTRM 2022-27 | O73: 0.6
F74: Equity financing | K74: AusNet T PTRM 2022-27 | O74: 0.4
F76: Corporate tax rate | K76: AusNet T PTRM 2022-27 | O76: 0.3
F77: Value of imputation credits | K77: AusNet T PTRM 2022-27 | O77: 0.585
F78: Imputation credit payout ratio | K78: AusNet T PTRM 2022-27 | O78: 0.9
F80: Return on debt | V80: =((((1+V70)/(1+$V$7)))*(1+$O$24))-1 -> 0.04565353339 | W80: =0.9*V80+0.1*W$10 -> 0.04529369966 | X80: =0.8*V80+0.1*W$10+0.1*X$10 -> 0.04523523809 | Y80: =0.7*V80+0.1*W$10+0.1*X$10+0.1*Y$10 -> 0.04517658026 | Z80: =0.6*V80+0.1*W$10+0.1*X$10+0.1*Y$10+0.1*Z$10 -> 0.04531831343 | AA80: =0.5*V80+0.1*W$10+0.1*X$10+0.1*Y$10+0.1*Z$10+0.1*AA$10 -> 0.04555985071 | AB80: =0.4*V80+0.1*W$10+0.1*X$10+0.1*Y$10+0.1*Z$10+0.1*AA$10+0.1*AB$10 -> 0.04600158331 | AC80: =0.3*V80+0.1*W$10+0.1*X$10+0.1*Y$10+0.1*Z$10+0.1*AA$10+0.1*AB$10+0.1*AC$10 -> 0.0465440985 | AD80: =0.2*V80+0.1*W$10+0.1*X$10+0.1*Y$10+0.1*Z$10+0.1*AA$10+0.1*AB$10+0.1*AC$10+0.1*AD$10 -> 0.04708661368 | AE80: =0.1*V80+0.1*W$10+0.1*X$10+0.1*Y$10+0.1*Z$10+0.1*AA$10+0.1*AB$10+0.1*AC$10+0.1*AD$10+0.1*AE$10 -> 0.04762912887 | AF80: =0.1*W$10+0.1*X$10+0.1*Y$10+0.1*Z$10+0.1*AA$10+0.1*AB$10+0.1*AC$10+0.1*AD$10+0.1*AE$10+0.1*AF$10 -> 0.04817164405 | AG80: =0.1*X$10+0.1*Y$10+0.1*Z$10+0.1*AA$10+0.1*AB$10+0.1*AC$10+0.1*AD$10+0.1*AE$10+0.1*AF$10+0.1*AG$10 -> 0.04907399297 | AH80: =0.1*Y$10+0.1*Z$10+0.1*AA$10+0.1*AB$10+0.1*AC$10+0.1*AD$10+0.1*AE$10+0.1*AF$10+0.1*AG$10+0.1*AH$10 -> 0.04967496972 | AI80: =0.1*Z$10+0.1*AA$10+0.1*AB$10+0.1*AC$10+0.1*AD$10+0.1*AE$10+0.1*AF$10+0.1*AG$10+0.1*AH$10+0.1*AI$10 -> 0.05027614274 | AJ80: =0.1*AA$10+0.1*AB$10+0.1*AC$10+0.1*AD$10+0.1*AE$10+0.1*AF$10+0.1*AG$10+0.1*AH$10+0.1*AI$10+0.1*AJ$10 -> 0.05067692475 | AK80: =0.1*AB$10+0.1*AC$10+0.1*AD$10+0.1*AE$10+0.1*AF$10+0.1*AG$10+0.1*AH$10+0.1*AI$10+0.1*AJ$10+0.1*AK$10 -> 0.05097790265 | AL80: =0.1*AC$10+0.1*AD$10+0.1*AE$10+0.1*AF$10+0.1*AG$10+0.1*AH$10+0.1*AI$10+0.1*AJ$10+0.1*AK$10+0.1*AL$10 -> 0.05107868524 | AM80: =0.1*AD$10+0.1*AE$10+0.1*AF$10+0.1*AG$10+0.1*AH$10+0.1*AI$10+0.1*AJ$10+0.1*AK$10+0.1*AL$10+0.1*AM$10 -> 0.05107868524 | AN80: =0.1*AE$10+0.1*AF$10+0.1*AG$10+0.1*AH$10+0.1*AI$10+0.1*AJ$10+0.1*AK$10+0.1*AL$10+0.1*AM$10+0.1*AN$10 -> 0.05107868524 | AO80: =0.1*AF$10+0.1*AG$10+0.1*AH$10+0.1*AI$10+0.1*AJ$10+0.1*AK$10+0.1*AL$10+0.1*AM$10+0.1*AN$10+0.1*AO$10 -> 0.05107868524 | AP80: =0.1*AG$10+0.1*AH$10+0.1*AI$10+0.1*AJ$10+0.1*AK$10+0.1*AL$10+0.1*AM$10+0.1*AN$10+0.1*AO$10+0.1*AP$10 -> 0.05107868524 | AQ80: =0.1*AH$10+0.1*AI$10+0.1*AJ$10+0.1*AK$10+0.1*AL$10+0.1*AM$10+0.1*AN$10+0.1*AO$10+0.1*AP$10+0.1*AQ$10 -> 0.05107868524 | AR80: =0.1*AI$10+0.1*AJ$10+0.1*AK$10+0.1*AL$10+0.1*AM$10+0.1*AN$10+0.1*AO$10+0.1*AP$10+0.1*AQ$10+0.1*AR$10 -> 0.05107868524 | AS80: =0.1*AJ$10+0.1*AK$10+0.1*AL$10+0.1*AM$10+0.1*AN$10+0.1*AO$10+0.1*AP$10+0.1*AQ$10+0.1*AR$10+0.1*AS$10 -> 0.05107868524 | AT80: =0.1*AK$10+0.1*AL$10+0.1*AM$10+0.1*AN$10+0.1*AO$10+0.1*AP$10+0.1*AQ$10+0.1*AR$10+0.1*AS$10+0.1*AT$10 -> 0.05107868524 | AU80: =0.1*AL$10+0.1*AM$10+0.1*AN$10+0.1*AO$10+0.1*AP$10+0.1*AQ$10+0.1*AR$10+0.1*AS$10+0.1*AT$10+0.1*AU$10 -> 0.05107868524 | AV80: =0.1*AM$10+0.1*AN$10+0.1*AO$10+0.1*AP$10+0.1*AQ$10+0.1*AR$10+0.1*AS$10+0.1*AT$10+0.1*AU$10+0.1*AV$10 -> 0.05107868524 | AW80: =0.1*AN$10+0.1*AO$10+0.1*AP$10+0.1*AQ$10+0.1*AR$10+0.1*AS$10+0.1*AT$10+0.1*AU$10+0.1*AV$10+0.1*AW$10 -> 0.05107868524 | AX80: =0.1*AO$10+0.1*AP$10+0.1*AQ$10+0.1*AR$10+0.1*AS$10+0.1*AT$10+0.1*AU$10+0.1*AV$10+0.1*AW$10+0.1*AX$10 -> 0.05107868524 | AY80: =0.1*AP$10+0.1*AQ$10+0.1*AR$10+0.1*AS$10+0.1*AT$10+0.1*AU$10+0.1*AV$10+0.1*AW$10+0.1*AX$10+0.1*AY$10 -> 0.05107868524 | AZ80: =0.1*AQ$10+0.1*AR$10+0.1*AS$10+0.1*AT$10+0.1*AU$10+0.1*AV$10+0.1*AW$10+0.1*AX$10+0.1*AY$10+0.1*AZ$10 -> 0.05107868524
F81: Return on equity | W81: =W11 -> 0.05959019608 | X81: 0.06260391773 | Y81: 0.06260195503 | Z81: 0.0646058651 | AA81: 0.06560390625 | AB81: 0.06760585937 | AC81: 0.06861368524 | AD81: 0.06861368524 | AE81: 0.06861368524 | AF81: 0.06861368524 | AG81: 0.06861368524 | AH81: 0.06861368524 | AI81: 0.06861368524 | AJ81: 0.06861368524 | AK81: 0.06861368524 | AL81: 0.06861368524 | AM81: 0.06861368524 | AN81: 0.06861368524 | AO81: 0.06861368524 | AP81: 0.06861368524 | AQ81: 0.06861368524 | AR81: 0.06861368524 | AS81: 0.06861368524 | AT81: 0.06861368524 | AU81: 0.06861368524 | AV81: 0.06861368524 | AW81: 0.06861368524 | AX81: 0.06861368524 | AY81: 0.06861368524 | AZ81: 0.06861368524
F83: real return on debt | W83: =(1+W80)/(1+$O$24)-1 -> 0.01979873137 | X83: 0.0197416957 | Y83: 0.01968446854 | Z83: 0.01982274481 | AA83: 0.02005839094 | AB83: 0.02048934957 | AC83: 0.02101863268 | AD83: 0.02154791579 | AE83: 0.0220771989 | AF83: 0.022606482 | AG83: 0.02348682241 | AH83: 0.02407314119 | AI83: 0.02465965145 | AJ83: 0.0250506583 | AK83: 0.02534429527 | AL83: 0.02544261975 | AM83: 0.02544261975 | AN83: 0.02544261975 | AO83: 0.02544261975 | AP83: 0.02544261975 | AQ83: 0.02544261975 | AR83: 0.02544261975 | AS83: 0.02544261975 | AT83: 0.02544261975 | AU83: 0.02544261975 | AV83: 0.02544261975 | AW83: 0.02544261975 | AX83: 0.02544261975 | AY83: 0.02544261975 | AZ83: 0.02544261975
F84: real return on equity | W84: =(1+W81)/(1+$O$24)-1 -> 0.03374653276 | X84: =(1+X81)/(1+$O$24)-1 -> 0.036686749 | Y84: 0.03668483418 | Z84: 0.03863986839 | AA84: 0.03961356707 | AB84: 0.04156669207 | AC84: 0.04254993682 | AD84: 0.04254993682 | AE84: 0.04254993682 | AF84: 0.04254993682 | AG84: 0.04254993682 | AH84: 0.04254993682 | AI84: 0.04254993682 | AJ84: 0.04254993682 | AK84: 0.04254993682 | AL84: 0.04254993682 | AM84: 0.04254993682 | AN84: 0.04254993682 | AO84: 0.04254993682 | AP84: 0.04254993682 | AQ84: 0.04254993682 | AR84: 0.04254993682 | AS84: 0.04254993682 | AT84: 0.04254993682 | AU84: 0.04254993682 | AV84: 0.04254993682 | AW84: 0.04254993682 | AX84: 0.04254993682 | AY84: 0.04254993682 | AZ84: 0.04254993682
F85: Adjusted nominal return on equity | W85: =W81-Controls!$F$31 -> 0.02116060094 | X85: =X81-Controls!$F$31 -> 0.02417432259 | Y85: =Y81-Controls!$F$31 -> 0.0241723599 | Z85: =Z81-Controls!$F$31 -> 0.02617626997 | AA85: =AA81-Controls!$F$31 -> 0.02717431112 | AB85: =AB81-Controls!$F$31 -> 0.02917626424 | AC85: =AC81-Controls!$F$31 -> 0.03018409011 | AD85: =AD81-Controls!$F$31 -> 0.03018409011 | AE85: =AE81-Controls!$F$31 -> 0.03018409011 | AF85: =AF81-Controls!$F$31 -> 0.03018409011 | AG85: =AG81-Controls!$F$31 -> 0.03018409011 | AH85: =AH81-Controls!$F$31 -> 0.03018409011 | AI85: =AI81-Controls!$F$31 -> 0.03018409011 | AJ85: =AJ81-Controls!$F$31 -> 0.03018409011 | AK85: =AK81-Controls!$F$31 -> 0.03018409011 | AL85: =AL81-Controls!$F$31 -> 0.03018409011 | AM85: =AM81-Controls!$F$31 -> 0.03018409011 | AN85: =AN81-Controls!$F$31 -> 0.03018409011 | AO85: =AO81-Controls!$F$31 -> 0.03018409011 | AP85: =AP81-Controls!$F$31 -> 0.03018409011 | AQ85: =AQ81-Controls!$F$31 -> 0.03018409011 | AR85: =AR81-Controls!$F$31 -> 0.03018409011 | AS85: =AS81-Controls!$F$31 -> 0.03018409011 | AT85: =AT81-Controls!$F$31 -> 0.03018409011 | AU85: =AU81-Controls!$F$31 -> 0.03018409011 | AV85: =AV81-Controls!$F$31 -> 0.03018409011 | AW85: =AW81-Controls!$F$31 -> 0.03018409011 | AX85: =AX81-Controls!$F$31 -> 0.03018409011 | AY85: =AY81-Controls!$F$31 -> 0.03018409011 | AZ85: =AZ81-Controls!$F$31 -> 0.03018409011
F86: Adjusted nominal WACC | W86: =W80*$O$39+W85*$O$40 -> 0.03564046017 | X86: =X80*$O$39+X85*$O$40 -> 0.03681087189 | Y86: 0.03677489211 | Z86: 0.03766149604 | AA86: 0.03820563487 | AB86: 0.03927145568 | AC86: 0.04000009514 | AD86: 0.04032560425 | AE86: 0.04065111336 | AF86: 0.04097662247 | AG86: 0.04151803182 | AH86: 0.04187861787 | AI86: 0.04223932169 | AJ86: 0.04247979089 | AK86: 0.04266037763 | AL86: 0.04272084719 | AM86: 0.04272084719 | AN86: 0.04272084719 | AO86: 0.04272084719 | AP86: 0.04272084719 | AQ86: 0.04272084719 | AR86: 0.04272084719 | AS86: 0.04272084719 | AT86: 0.04272084719 | AU86: 0.04272084719 | AV86: 0.04272084719 | AW86: 0.04272084719 | AX86: 0.04272084719 | AY86: 0.04272084719 | AZ86: 0.04272084719
F88: Nominal rate of return | W88: =W80*$O$21+W81*$O$22 -> 0.05101229823 | X88: =X80*$O$21+X81*$O$22 -> 0.05218270995 | Y88: 0.05214673017 | Z88: 0.0530333341 | AA88: 0.05357747293 | AB88: 0.05464329374 | AC88: 0.05537193319 | AD88: 0.05569744231 | AE88: 0.05602295142 | AF88: 0.05634846053 | AG88: 0.05688986988 | AH88: 0.05725045593 | AI88: 0.05761115974 | AJ88: 0.05785162895 | AK88: 0.05803221569 | AL88: 0.05809268524 | AM88: 0.05809268524 | AN88: 0.05809268524 | AO88: 0.05809268524 | AP88: 0.05809268524 | AQ88: 0.05809268524 | AR88: 0.05809268524 | AS88: 0.05809268524 | AT88: 0.05809268524 | AU88: 0.05809268524 | AV88: 0.05809268524 | AW88: 0.05809268524 | AX88: 0.05809268524 | AY88: 0.05809268524 | AZ88: 0.05809268524
F89: Real rate of return | W89: =(1+W88)/(1+$O$24)-1 -> 0.02537785193 | X89: =(1+X88)/(1+$O$24)-1 -> 0.02651971702 | Y89: 0.0264846148 | Z89: 0.02734959424 | AA89: 0.02788046139 | AB89: 0.02892028657 | AC89: 0.02963115434 | AD89: 0.0299487242 | AE89: 0.03026629406 | AF89: 0.03058386393 | AG89: 0.03111206817 | AH89: 0.03146385944 | AI89: 0.0318157656 | AJ89: 0.03205036971 | AK89: 0.03222655189 | AL89: 0.03228554658 | AM89: 0.03228554658 | AN89: 0.03228554658 | AO89: 0.03228554658 | AP89: 0.03228554658 | AQ89: 0.03228554658 | AR89: 0.03228554658 | AS89: 0.03228554658 | AT89: 0.03228554658 | AU89: 0.03228554658 | AV89: 0.03228554658 | AW89: 0.03228554658 | AX89: 0.03228554658 | AY89: 0.03228554658 | AZ89: 0.03228554658
A95: AusNet Gas Distribution
V96: 0 | W96: 1 | X96: 2 | Y96: 3 | Z96: 4 | AA96: 5 | AB96: 6 | AC96: 7 | AD96: 8 | AE96: 9 | AF96: 10 | AG96: 11 | AH96: 12 | AI96: 13 | AJ96: 14 | AK96: 15 | AL96: 16 | AM96: 17 | AN96: 18 | AO96: 19 | AP96: 20 | AQ96: 21 | AR96: 22 | AS96: 23 | AT96: 24 | AU96: 25 | AV96: 26 | AW96: 27 | AX96: 28 | AY96: 29 | AZ96: 30
V97: Y0 | W97: Period 1 | X97: Period 3 | AC97: Period 4 | AH97: Period 5 | AM97: Period 6 | AR97: Period 7 | AW97: Period 8
K98: Source | L98: Comments | N98: Units | O98: Constants | V98: 2021-22 | W98: 2022-23 | X98: 2023-24 | Y98: 2024-25 | Z98: 2025-26 | AA98: 2026-27 | AB98: 2027-28 | AC98: 2028-29 | AD98: 2029-30 | AE98: 2030-31 | AF98: 2031-32 | AG98: 2032-33 | AH98: 2033-34 | AI98: 2034-35 | AJ98: 2035-36 | AK98: 2036-37 | AL98: 2037-38 | AM98: 2038-39 | AN98: 2039-40 | AO98: 2040-41 | AP98: 2041-42 | AQ98: 2042-43 | AR98: 2043-44 | AS98: 2044-45 | AT98: 2045-46 | AU98: 2046-47 | AV98: 2047-48 | AW98: 2048-49 | AX98: 2049-50 | AY98: 2050-51 | AZ98: 2051-52
C100: Inputs
F102: Cumulative inflation index | K102: AusNet G PTRM 2018-22 | V102: 1 | W102: =V102*(1+$O$16) -> 1.061 | X102: =W102*(1+$O$16) -> 1.125721 | Y102: =X102*(1+$O$16) -> 1.194389981 | Z102: 1.26724777 | AA102: 1.344549884 | AB102: 1.426567427 | AC102: 1.51358804 | AD102: 1.60591691 | AE102: 1.703877842 | AF102: 1.80781439 | AG102: 1.918091068 | AH102: 2.035094623 | AI102: 2.159235395 | AJ102: 2.290948754 | AK102: 2.430696628 | AL102: 2.578969122 | AM102: 2.736286239 | AN102: =AM102*(1+$O$16) -> 2.903199699 | AO102: =AN102*(1+$O$16) -> 3.080294881 | AP102: 3.268192869 | AQ102: 3.467552634 | AR102: 3.679073344 | AS102: 3.903496818 | AT102: 4.141610124 | AU102: 4.394248342 | AV102: 4.662297491 | AW102: 4.946697638 | AX102: 5.248446194 | AY102: 5.568601412 | AZ102: 5.908286098
F104: Return on debt | K104: AusNet G PTRM 2018-22 | S104: 0.05036994481 | T104: 0.05036994481 | U104: 0.05036994481 | V104: 0.05036994481 | W104: 0.0504 | X104: 0.0504 | Y104: 0.0504 | Z104: 0.0504 | AA104: 0.0504 | AB104: 0.0504 | AC104: 0.0504 | AD104: 0.0504 | AE104: 0.0504 | AF104: 0.0504 | AG104: 0.0504 | AH104: 0.0504 | AI104: 0.0504 | AJ104: 0.0504 | AK104: 0.0504 | AL104: 0.0504 | AM104: 0.0504 | AN104: 0.0504 | AO104: 0.0504 | AP104: 0.0504 | AQ104: 0.0504 | AR104: 0.0504 | AS104: 0.0504 | AT104: 0.0504 | AU104: 0.0504 | AV104: 0.0504 | AW104: 0.0504 | AX104: 0.0504 | AY104: 0.0504 | AZ104: 0.0504
F105: Return on equity | K105: AusNet G PTRM 2018-22 | W105: 0.05942196688 | X105: 0.05942196688 | Y105: 0.05942196688 | Z105: 0.05942196688 | AA105: 0.05942196688 | AB105: 0.05942196688 | AC105: 0.05942196688 | AD105: 0.05942196688 | AE105: 0.05942196688 | AF105: 0.05942196688 | AG105: 0.05942196688 | AH105: 0.05942196688 | AI105: 0.05942196688 | AJ105: 0.05942196688 | AK105: 0.05942196688 | AL105: 0.05942196688 | AM105: 0.05942196688 | AN105: 0.05942196688 | AO105: 0.05942196688 | AP105: 0.05942196688 | AQ105: 0.05942196688 | AR105: 0.05942196688 | AS105: 0.05942196688 | AT105: 0.05942196688 | AU105: 0.05942196688 | AV105: 0.05942196688 | AW105: 0.05942196688 | AX105: 0.05942196688 | AY105: 0.05942196688 | AZ105: 0.05942196688
F107: Debt financing | K107: AusNet G PTRM 2018-22 | O107: 0.6
F108: Equity financing | K108: AusNet G PTRM 2018-22 | O108: 0.4
F110: Corporate tax rate | K110: AusNet G PTRM 2018-22 | O110: 0.3
F111: Value of imputation credits | K111: AusNet G PTRM 2018-22 | O111: 0.585
F112: Imputation credit payout ratio | K112: AusNet G PTRM 2018-22 | O112: 0.9
F114: Return on debt | V114: =((((1+V104)/(1+$V$7)))*(1+$O$24))-1 -> 0.05036994481 | W114: =0.9*V114+0.1*W$10 -> 0.04953846993 | X114: =0.8*V114+0.1*W$10+0.1*X$10 -> 0.04900836723 | Y114: =0.7*V114+0.1*W$10+0.1*X$10+0.1*Y$10 -> 0.04847806825 | Z114: =0.6*V114+0.1*W$10+0.1*X$10+0.1*Y$10+0.1*Z$10 -> 0.04814816028 | AA114: =0.5*V114+0.1*W$10+0.1*X$10+0.1*Y$10+0.1*Z$10+0.1*AA$10 -> 0.04791805642 | AB114: =0.4*V114+0.1*W$10+0.1*X$10+0.1*Y$10+0.1*Z$10+0.1*AA$10+0.1*AB$10 -> 0.04788814788 | AC114: =0.3*V114+0.1*W$10+0.1*X$10+0.1*Y$10+0.1*Z$10+0.1*AA$10+0.1*AB$10+0.1*AC$10 -> 0.04795902192 | AD114: =0.2*V114+0.1*W$10+0.1*X$10+0.1*Y$10+0.1*Z$10+0.1*AA$10+0.1*AB$10+0.1*AC$10+0.1*AD$10 -> 0.04802989597 | AE114: =0.1*V114+0.1*W$10+0.1*X$10+0.1*Y$10+0.1*Z$10+0.1*AA$10+0.1*AB$10+0.1*AC$10+0.1*AD$10+0.1*AE$10 -> 0.04810077001 | AF114: =0.1*W$10+0.1*X$10+0.1*Y$10+0.1*Z$10+0.1*AA$10+0.1*AB$10+0.1*AC$10+0.1*AD$10+0.1*AE$10+0.1*AF$10 -> 0.04817164405 | AG114: =0.1*X$10+0.1*Y$10+0.1*Z$10+0.1*AA$10+0.1*AB$10+0.1*AC$10+0.1*AD$10+0.1*AE$10+0.1*AF$10+0.1*AG$10 -> 0.04907399297 | AH114: =0.1*Y$10+0.1*Z$10+0.1*AA$10+0.1*AB$10+0.1*AC$10+0.1*AD$10+0.1*AE$10+0.1*AF$10+0.1*AG$10+0.1*AH$10 -> 0.04967496972 | AI114: =0.1*Z$10+0.1*AA$10+0.1*AB$10+0.1*AC$10+0.1*AD$10+0.1*AE$10+0.1*AF$10+0.1*AG$10+0.1*AH$10+0.1*AI$10 -> 0.05027614274 | AJ114: =0.1*AA$10+0.1*AB$10+0.1*AC$10+0.1*AD$10+0.1*AE$10+0.1*AF$10+0.1*AG$10+0.1*AH$10+0.1*AI$10+0.1*AJ$10 -> 0.05067692475 | AK114: =0.1*AB$10+0.1*AC$10+0.1*AD$10+0.1*AE$10+0.1*AF$10+0.1*AG$10+0.1*AH$10+0.1*AI$10+0.1*AJ$10+0.1*AK$10 -> 0.05097790265 | AL114: =0.1*AC$10+0.1*AD$10+0.1*AE$10+0.1*AF$10+0.1*AG$10+0.1*AH$10+0.1*AI$10+0.1*AJ$10+0.1*AK$10+0.1*AL$10 -> 0.05107868524 | AM114: =0.1*AD$10+0.1*AE$10+0.1*AF$10+0.1*AG$10+0.1*AH$10+0.1*AI$10+0.1*AJ$10+0.1*AK$10+0.1*AL$10+0.1*AM$10 -> 0.05107868524 | AN114: =0.1*AE$10+0.1*AF$10+0.1*AG$10+0.1*AH$10+0.1*AI$10+0.1*AJ$10+0.1*AK$10+0.1*AL$10+0.1*AM$10+0.1*AN$10 -> 0.05107868524 | AO114: =0.1*AF$10+0.1*AG$10+0.1*AH$10+0.1*AI$10+0.1*AJ$10+0.1*AK$10+0.1*AL$10+0.1*AM$10+0.1*AN$10+0.1*AO$10 -> 0.05107868524 | AP114: =0.1*AG$10+0.1*AH$10+0.1*AI$10+0.1*AJ$10+0.1*AK$10+0.1*AL$10+0.1*AM$10+0.1*AN$10+0.1*AO$10+0.1*AP$10 -> 0.05107868524 | AQ114: =0.1*AH$10+0.1*AI$10+0.1*AJ$10+0.1*AK$10+0.1*AL$10+0.1*AM$10+0.1*AN$10+0.1*AO$10+0.1*AP$10+0.1*AQ$10 -> 0.05107868524 | AR114: =0.1*AI$10+0.1*AJ$10+0.1*AK$10+0.1*AL$10+0.1*AM$10+0.1*AN$10+0.1*AO$10+0.1*AP$10+0.1*AQ$10+0.1*AR$10 -> 0.05107868524 | AS114: =0.1*AJ$10+0.1*AK$10+0.1*AL$10+0.1*AM$10+0.1*AN$10+0.1*AO$10+0.1*AP$10+0.1*AQ$10+0.1*AR$10+0.1*AS$10 -> 0.05107868524 | AT114: =0.1*AK$10+0.1*AL$10+0.1*AM$10+0.1*AN$10+0.1*AO$10+0.1*AP$10+0.1*AQ$10+0.1*AR$10+0.1*AS$10+0.1*AT$10 -> 0.05107868524 | AU114: =0.1*AL$10+0.1*AM$10+0.1*AN$10+0.1*AO$10+0.1*AP$10+0.1*AQ$10+0.1*AR$10+0.1*AS$10+0.1*AT$10+0.1*AU$10 -> 0.05107868524 | AV114: =0.1*AM$10+0.1*AN$10+0.1*AO$10+0.1*AP$10+0.1*AQ$10+0.1*AR$10+0.1*AS$10+0.1*AT$10+0.1*AU$10+0.1*AV$10 -> 0.05107868524 | AW114: =0.1*AN$10+0.1*AO$10+0.1*AP$10+0.1*AQ$10+0.1*AR$10+0.1*AS$10+0.1*AT$10+0.1*AU$10+0.1*AV$10+0.1*AW$10 -> 0.05107868524 | AX114: =0.1*AO$10+0.1*AP$10+0.1*AQ$10+0.1*AR$10+0.1*AS$10+0.1*AT$10+0.1*AU$10+0.1*AV$10+0.1*AW$10+0.1*AX$10 -> 0.05107868524 | AY114: =0.1*AP$10+0.1*AQ$10+0.1*AR$10+0.1*AS$10+0.1*AT$10+0.1*AU$10+0.1*AV$10+0.1*AW$10+0.1*AX$10+0.1*AY$10 -> 0.05107868524 | AZ114: =0.1*AQ$10+0.1*AR$10+0.1*AS$10+0.1*AT$10+0.1*AU$10+0.1*AV$10+0.1*AW$10+0.1*AX$10+0.1*AY$10+0.1*AZ$10 -> 0.05107868524
F115: Return on equity | W115: =W8+$O$20*$O$16 -> 0.06569019608 | X115: =X13 -> 0.06260391773 | Y115: 0.06260195503 | Z115: 0.0646058651 | AA115: =AA13 -> 0.06560390625 | AB115: 0.06760585937 | AC115: 0.06861368524 | AD115: 0.06861368524 | AE115: 0.06861368524 | AF115: 0.06861368524 | AG115: 0.06861368524 | AH115: 0.06861368524 | AI115: 0.06861368524 | AJ115: 0.06861368524 | AK115: 0.06861368524 | AL115: 0.06861368524 | AM115: 0.06861368524 | AN115: 0.06861368524 | AO115: 0.06861368524 | AP115: 0.06861368524 | AQ115: 0.06861368524 | AR115: 0.06861368524 | AS115: 0.06861368524 | AT115: 0.06861368524 | AU115: 0.06861368524 | AV115: 0.06861368524 | AW115: 0.06861368524 | AX115: 0.06861368524 | AY115: 0.06861368524 | AZ115: 0.06861368524
F117: real return on debt | W117: =(1+W114)/(1+$O$24)-1 -> 0.02393997067 | X117: 0.02342279729 | Y117: 0.02290543244 | Z117: 0.022583571 | AA117: 0.02235907944 | AB117: 0.02232990037 | AC117: 0.02239904578 | AD117: 0.02246819119 | AE117: 0.02253733659 | AF117: 0.022606482 | AG117: 0.02348682241 | AH117: 0.02407314119 | AI117: 0.02465965145 | AJ117: 0.0250506583 | AK117: 0.02534429527 | AL117: 0.02544261975 | AM117: 0.02544261975 | AN117: 0.02544261975 | AO117: 0.02544261975 | AP117: 0.02544261975 | AQ117: 0.02544261975 | AR117: 0.02544261975 | AS117: 0.02544261975 | AT117: 0.02544261975 | AU117: 0.02544261975 | AV117: 0.02544261975 | AW117: 0.02544261975 | AX117: 0.02544261975 | AY117: 0.02544261975 | AZ117: 0.02544261975
F118: real return on equity | W118: =(1+W115)/(1+$O$24)-1 -> 0.03969775227 | X118: 0.036686749 | Y118: 0.03668483418 | Z118: 0.03863986839 | AA118: 0.03961356707 | AB118: 0.04156669207 | AC118: 0.04254993682 | AD118: 0.04254993682 | AE118: 0.04254993682 | AF118: 0.04254993682 | AG118: 0.04254993682 | AH118: 0.04254993682 | AI118: 0.04254993682 | AJ118: 0.04254993682 | AK118: 0.04254993682 | AL118: 0.04254993682 | AM118: 0.04254993682 | AN118: 0.04254993682 | AO118: 0.04254993682 | AP118: 0.04254993682 | AQ118: 0.04254993682 | AR118: 0.04254993682 | AS118: 0.04254993682 | AT118: 0.04254993682 | AU118: 0.04254993682 | AV118: 0.04254993682 | AW118: 0.04254993682 | AX118: 0.04254993682 | AY118: 0.04254993682 | AZ118: 0.04254993682
F119: Adjusted nominal return on equity | W119: =W115-Controls!$F$31 -> 0.02726060094 | X119: =X115-Controls!$F$31 -> 0.02417432259 | Y119: =Y115-Controls!$F$31 -> 0.0241723599 | Z119: =Z115-Controls!$F$31 -> 0.02617626997 | AA119: =AA115-Controls!$F$31 -> 0.02717431112 | AB119: =AB115-Controls!$F$31 -> 0.02917626424 | AC119: =AC115-Controls!$F$31 -> 0.03018409011 | AD119: =AD115-Controls!$F$31 -> 0.03018409011 | AE119: =AE115-Controls!$F$31 -> 0.03018409011 | AF119: =AF115-Controls!$F$31 -> 0.03018409011 | AG119: =AG115-Controls!$F$31 -> 0.03018409011 | AH119: =AH115-Controls!$F$31 -> 0.03018409011 | AI119: =AI115-Controls!$F$31 -> 0.03018409011 | AJ119: =AJ115-Controls!$F$31 -> 0.03018409011 | AK119: =AK115-Controls!$F$31 -> 0.03018409011 | AL119: =AL115-Controls!$F$31 -> 0.03018409011 | AM119: =AM115-Controls!$F$31 -> 0.03018409011 | AN119: =AN115-Controls!$F$31 -> 0.03018409011 | AO119: =AO115-Controls!$F$31 -> 0.03018409011 | AP119: =AP115-Controls!$F$31 -> 0.03018409011 | AQ119: =AQ115-Controls!$F$31 -> 0.03018409011 | AR119: =AR115-Controls!$F$31 -> 0.03018409011 | AS119: =AS115-Controls!$F$31 -> 0.03018409011 | AT119: =AT115-Controls!$F$31 -> 0.03018409011 | AU119: =AU115-Controls!$F$31 -> 0.03018409011 | AV119: =AV115-Controls!$F$31 -> 0.03018409011 | AW119: =AW115-Controls!$F$31 -> 0.03018409011 | AX119: =AX115-Controls!$F$31 -> 0.03018409011 | AY119: =AY115-Controls!$F$31 -> 0.03018409011 | AZ119: =AZ115-Controls!$F$31 -> 0.03018409011
F120: Adjusted nominal WACC | W120: =W114*$O$39+W119*$O$40 -> 0.04062732234 | X120: =X114*$O$39+X119*$O$40 -> 0.03907474937 | Y120: 0.03875578491 | Z120: 0.03935940415 | AA120: 0.0396205583 | AB120: 0.04040339442 | AC120: 0.0408490492 | AD120: 0.04089157362 | AE120: 0.04093409805 | AF120: 0.04097662247 | AG120: 0.04151803182 | AH120: 0.04187861787 | AI120: 0.04223932169 | AJ120: 0.04247979089 | AK120: 0.04266037763 | AL120: 0.04272084719 | AM120: 0.04272084719 | AN120: 0.04272084719 | AO120: 0.04272084719 | AP120: 0.04272084719 | AQ120: 0.04272084719 | AR120: 0.04272084719 | AS120: 0.04272084719 | AT120: 0.04272084719 | AU120: 0.04272084719 | AV120: 0.04272084719 | AW120: 0.04272084719 | AX120: 0.04272084719 | AY120: 0.04272084719 | AZ120: 0.04272084719
F123: Nominal rate of return | W123: =W114*$O$21+W115*$O$22 -> 0.05599916039 | X123: =X114*$O$21+X115*$O$22 -> 0.05444658743 | Y123: 0.05412762296 | Z123: 0.05473124221 | AA123: 0.05499239635 | AB123: 0.05577523248 | AC123: 0.05622088725 | AD123: 0.05626341168 | AE123: 0.0563059361 | AF123: 0.05634846053 | AG123: 0.05688986988 | AH123: 0.05725045593 | AI123: 0.05761115974 | AJ123: 0.05785162895 | AK123: 0.05803221569 | AL123: 0.05809268524 | AM123: 0.05809268524 | AN123: 0.05809268524 | AO123: 0.05809268524 | AP123: 0.05809268524 | AQ123: 0.05809268524 | AR123: 0.05809268524 | AS123: 0.05809268524 | AT123: 0.05809268524 | AU123: 0.05809268524 | AV123: 0.05809268524 | AW123: 0.05809268524 | AX123: 0.05809268524 | AY123: 0.05809268524 | AZ123: 0.05809268524
F124: Real rate of return | W124: =(1+W123)/(1+$O$24)-1 -> 0.03024308331 | X124: 0.02872837798 | Y124: 0.02841719313 | Z124: 0.02900608996 | AA124: 0.02926087449 | AB124: 0.03002461705 | AC124: 0.03045940219 | AD124: 0.03050088944 | AE124: 0.03054237668 | AF124: 0.03058386393 | AG124: 0.03111206817 | AH124: 0.03146385944 | AI124: 0.0318157656 | AJ124: 0.03205036971 | AK124: 0.03222655189 | AL124: 0.03228554658 | AM124: 0.03228554658 | AN124: 0.03228554658 | AO124: 0.03228554658 | AP124: 0.03228554658 | AQ124: 0.03228554658 | AR124: 0.03228554658 | AS124: 0.03228554658 | AT124: 0.03228554658 | AU124: 0.03228554658 | AV124: 0.03228554658 | AW124: 0.03228554658 | AX124: 0.03228554658 | AY124: 0.03228554658 | AZ124: 0.03228554658
A126: SAPN
U128: Y0 | V128: Period 1 | Z128: Period 2 | AE128: Period 3 | AJ128: Period 4 | AO128: Period 5 | AT128: Period 6 | AY128: Period 7
K129: Source | L129: Comments | N129: Units | O129: Constants | U129: 2020-21 | V129: 2021-22 | W129: 2022-23 | X129: 2023-24 | Y129: 2024-25 | Z129: 2025-26 | AA129: 2026-27 | AB129: 2027-28 | AC129: 2028-29 | AD129: 2029-30 | AE129: 2030-31 | AF129: 2031-32 | AG129: 2032-33 | AH129: 2033-34 | AI129: 2034-35 | AJ129: 2035-36 | AK129: 2036-37 | AL129: 2037-38 | AM129: 2038-39 | AN129: 2039-40 | AO129: 2040-41 | AP129: 2041-42 | AQ129: 2042-43 | AR129: 2043-44 | AS129: 2044-45 | AT129: 2045-46 | AU129: 2046-47 | AV129: 2047-48 | AW129: 2048-49 | AX129: 2049-50 | AY129: 2050-51 | AZ129: 2051-52
C131: Inputs
F133: Cumulative inflation index | K133: SAPN PTRM 2020-25 March 2021 update | U133: 1 | V133: =U133*(1+$O$12) -> 1 | W133: =V133*(1+$O$12) -> 1 | X133: =W133*(1+$O$12) -> 1 | Y133: 1 | Z133: 1 | AA133: 1 | AB133: 1 | AC133: 1 | AD133: 1 | AE133: 1 | AF133: 1 | AG133: 1 | AH133: 1 | AI133: 1 | AJ133: 1 | AK133: 1 | AL133: 1 | AM133: =AL133*(1+$O$12) -> 1 | AN133: =AM133*(1+$O$12) -> 1 | AO133: 1 | AP133: 1 | AQ133: 1 | AR133: 1 | AS133: 1 | AT133: 1 | AU133: 1 | AV133: 1 | AW133: 1 | AX133: 1 | AY133: 1 | AZ133: 1
F135: Return on debt | K135: SAPN PTRM 2020-25 March 2021 update | Q135: 0.0531 | R135: 0.0529 | S135: 0.0522 | T135: 0.0514 | U135: 0.0487 | V135: 0.0456931109 | W135: 0.04322848362 | X135: 0.04049532107 | Y135: 0.03776215851 | Z135: 0.03776215851 | AA135: 0.03776215851 | AB135: 0.03776215851 | AC135: 0.03776215851 | AD135: 0.03776215851 | AE135: 0.03776215851 | AF135: 0.03776215851 | AG135: 0.03776215851 | AH135: 0.03776215851 | AI135: 0.03776215851 | AJ135: 0.03776215851 | AK135: 0.03776215851 | AL135: 0.03776215851 | AM135: 0.03776215851 | AN135: 0.03776215851 | AO135: 0.03776215851 | AP135: 0.03776215851 | AQ135: 0.03776215851 | AR135: 0.03776215851 | AS135: 0.03776215851 | AT135: 0.03776215851 | AU135: 0.03776215851 | AV135: 0.03776215851 | AW135: 0.03776215851 | AX135: 0.03776215851 | AY135: 0.03776215851 | AZ135: 0.03776215851
F136: Return on equity | K136: SAPN PTRM 2020-25 March 2021 update | V136: 0.04559668654 | W136: 0.04559668654 | X136: 0.04559668654 | Y136: 0.04559668654 | Z136: 0.04559668654 | AA136: 0.04559668654 | AB136: 0.04559668654 | AC136: 0.04559668654 | AD136: 0.04559668654 | AE136: 0.04559668654 | AF136: 0.04559668654 | AG136: 0.04559668654 | AH136: 0.04559668654 | AI136: 0.04559668654 | AJ136: 0.04559668654 | AK136: 0.04559668654 | AL136: 0.04559668654 | AM136: 0.04559668654 | AN136: 0.04559668654 | AO136: 0.04559668654 | AP136: 0.04559668654 | AQ136: 0.04559668654 | AR136: 0.04559668654 | AS136: 0.04559668654 | AT136: 0.04559668654 | AU136: 0.04559668654 | AV136: 0.04559668654 | AW136: 0.04559668654 | AX136: 0.04559668654 | AY136: 0.04559668654 | AZ136: 0.04559668654
F138: Debt financing | K138: SAPN PTRM 2020-25 March 2021 update | O138: 0.6
F139: Equity financing | K139: SAPN PTRM 2020-25 March 2021 update | O139: 0.4
F141: Corporate tax rate | K141: SAPN PTRM 2020-25 March 2021 update | O141: 0.3
F142: Value of imputation credits | K142: SAPN PTRM 2020-25 March 2021 update | O142: 0.585
F143: Imputation credit payout ratio | K143: SAPN PTRM 2020-25 March 2021 update | O143: 0.9
F145: Return on debt | Q145: =Q135 -> 0.0531 | R145: 0.0529 | S145: 0.0522 | T145: 0.0514 | U145: =U135 -> 0.0487 | V145: =((((1+V135)/(1+$V$7)))*(1+$O$24))-1 -> 0.0456931109 | W145: =0.9*V145+0.1*W$10 -> 0.04532931941 | X145: =0.8*V145+0.1*W$10+0.1*X$10 -> 0.0452669001 | Y145: =0.7*V145+0.1*W$10+0.1*X$10+0.1*Y$10 -> 0.04520428451 | Z145: =0.6*V145+0.1*W$10+0.1*X$10+0.1*Y$10+0.1*Z$10 -> 0.04534205993 | AA145: =0.5*V145+0.1*W$10+0.1*X$10+0.1*Y$10+0.1*Z$10+0.1*AA$10 -> 0.04557963947 | AB145: =0.4*V145+0.1*W$10+0.1*X$10+0.1*Y$10+0.1*Z$10+0.1*AA$10+0.1*AB$10 -> 0.04601741431 | AC145: =0.3*V145+0.1*W$10+0.1*X$10+0.1*Y$10+0.1*Z$10+0.1*AA$10+0.1*AB$10+0.1*AC$10 -> 0.04655597175 | AD145: =0.2*V145+0.1*W$10+0.1*X$10+0.1*Y$10+0.1*Z$10+0.1*AA$10+0.1*AB$10+0.1*AC$10+0.1*AD$10 -> 0.04709452918 | AE145: =0.1*V145+0.1*W$10+0.1*X$10+0.1*Y$10+0.1*Z$10+0.1*AA$10+0.1*AB$10+0.1*AC$10+0.1*AD$10+0.1*AE$10 -> 0.04763308662 | AF145: =0.1*W$10+0.1*X$10+0.1*Y$10+0.1*Z$10+0.1*AA$10+0.1*AB$10+0.1*AC$10+0.1*AD$10+0.1*AE$10+0.1*AF$10 -> 0.04817164405 | AG145: =0.1*X$10+0.1*Y$10+0.1*Z$10+0.1*AA$10+0.1*AB$10+0.1*AC$10+0.1*AD$10+0.1*AE$10+0.1*AF$10+0.1*AG$10 -> 0.04907399297 | AH145: =0.1*Y$10+0.1*Z$10+0.1*AA$10+0.1*AB$10+0.1*AC$10+0.1*AD$10+0.1*AE$10+0.1*AF$10+0.1*AG$10+0.1*AH$10 -> 0.04967496972 | AI145: =0.1*Z$10+0.1*AA$10+0.1*AB$10+0.1*AC$10+0.1*AD$10+0.1*AE$10+0.1*AF$10+0.1*AG$10+0.1*AH$10+0.1*AI$10 -> 0.05027614274 | AJ145: =0.1*AA$10+0.1*AB$10+0.1*AC$10+0.1*AD$10+0.1*AE$10+0.1*AF$10+0.1*AG$10+0.1*AH$10+0.1*AI$10+0.1*AJ$10 -> 0.05067692475 | AK145: =0.1*AB$10+0.1*AC$10+0.1*AD$10+0.1*AE$10+0.1*AF$10+0.1*AG$10+0.1*AH$10+0.1*AI$10+0.1*AJ$10+0.1*AK$10 -> 0.05097790265 | AL145: =0.1*AC$10+0.1*AD$10+0.1*AE$10+0.1*AF$10+0.1*AG$10+0.1*AH$10+0.1*AI$10+0.1*AJ$10+0.1*AK$10+0.1*AL$10 -> 0.05107868524 | AM145: =0.1*AD$10+0.1*AE$10+0.1*AF$10+0.1*AG$10+0.1*AH$10+0.1*AI$10+0.1*AJ$10+0.1*AK$10+0.1*AL$10+0.1*AM$10 -> 0.05107868524 | AN145: =0.1*AE$10+0.1*AF$10+0.1*AG$10+0.1*AH$10+0.1*AI$10+0.1*AJ$10+0.1*AK$10+0.1*AL$10+0.1*AM$10+0.1*AN$10 -> 0.05107868524 | AO145: =0.1*AF$10+0.1*AG$10+0.1*AH$10+0.1*AI$10+0.1*AJ$10+0.1*AK$10+0.1*AL$10+0.1*AM$10+0.1*AN$10+0.1*AO$10 -> 0.05107868524 | AP145: =0.1*AG$10+0.1*AH$10+0.1*AI$10+0.1*AJ$10+0.1*AK$10+0.1*AL$10+0.1*AM$10+0.1*AN$10+0.1*AO$10+0.1*AP$10 -> 0.05107868524 | AQ145: =0.1*AH$10+0.1*AI$10+0.1*AJ$10+0.1*AK$10+0.1*AL$10+0.1*AM$10+0.1*AN$10+0.1*AO$10+0.1*AP$10+0.1*AQ$10 -> 0.05107868524 | AR145: =0.1*AI$10+0.1*AJ$10+0.1*AK$10+0.1*AL$10+0.1*AM$10+0.1*AN$10+0.1*AO$10+0.1*AP$10+0.1*AQ$10+0.1*AR$10 -> 0.05107868524 | AS145: =0.1*AJ$10+0.1*AK$10+0.1*AL$10+0.1*AM$10+0.1*AN$10+0.1*AO$10+0.1*AP$10+0.1*AQ$10+0.1*AR$10+0.1*AS$10 -> 0.05107868524 | AT145: =0.1*AK$10+0.1*AL$10+0.1*AM$10+0.1*AN$10+0.1*AO$10+0.1*AP$10+0.1*AQ$10+0.1*AR$10+0.1*AS$10+0.1*AT$10 -> 0.05107868524 | AU145: =0.1*AL$10+0.1*AM$10+0.1*AN$10+0.1*AO$10+0.1*AP$10+0.1*AQ$10+0.1*AR$10+0.1*AS$10+0.1*AT$10+0.1*AU$10 -> 0.05107868524 | AV145: =0.1*AM$10+0.1*AN$10+0.1*AO$10+0.1*AP$10+0.1*AQ$10+0.1*AR$10+0.1*AS$10+0.1*AT$10+0.1*AU$10+0.1*AV$10 -> 0.05107868524 | AW145: =0.1*AN$10+0.1*AO$10+0.1*AP$10+0.1*AQ$10+0.1*AR$10+0.1*AS$10+0.1*AT$10+0.1*AU$10+0.1*AV$10+0.1*AW$10 -> 0.05107868524 | AX145: =0.1*AO$10+0.1*AP$10+0.1*AQ$10+0.1*AR$10+0.1*AS$10+0.1*AT$10+0.1*AU$10+0.1*AV$10+0.1*AW$10+0.1*AX$10 -> 0.05107868524 | AY145: =0.1*AP$10+0.1*AQ$10+0.1*AR$10+0.1*AS$10+0.1*AT$10+0.1*AU$10+0.1*AV$10+0.1*AW$10+0.1*AX$10+0.1*AY$10 -> 0.05107868524 | AZ145: =0.1*AQ$10+0.1*AR$10+0.1*AS$10+0.1*AT$10+0.1*AU$10+0.1*AV$10+0.1*AW$10+0.1*AX$10+0.1*AY$10+0.1*AZ$10 -> 0.05107868524
F146: Return on equity | V146: =V11 -> 0.0516 | W146: 0.05959019608 | X146: 0.06260391773 | Y146: 0.06260195503 | Z146: =Z11 -> 0.0646058651 | AA146: 0.06560390625 | AB146: 0.06760585937 | AC146: 0.06861368524 | AD146: 0.06861368524 | AE146: 0.06861368524 | AF146: 0.06861368524 | AG146: 0.06861368524 | AH146: 0.06861368524 | AI146: 0.06861368524 | AJ146: 0.06861368524 | AK146: 0.06861368524 | AL146: 0.06861368524 | AM146: 0.06861368524 | AN146: 0.06861368524 | AO146: 0.06861368524 | AP146: 0.06861368524 | AQ146: 0.06861368524 | AR146: 0.06861368524 | AS146: 0.06861368524 | AT146: 0.06861368524 | AU146: 0.06861368524 | AV146: 0.06861368524 | AW146: 0.06861368524 | AX146: 0.06861368524 | AY146: 0.06861368524 | AZ146: 0.06861368524
F148: real return on debt | V148: =(1+V145)/(1+$O$24)-1 -> 0.02018840087 | W148: 0.01983348235 | X148: 0.01977258546 | Y148: 0.01971149708 | Z148: 0.01984591213 | AA148: 0.02007769704 | AB148: 0.02050479445 | AC148: 0.02103021634 | AD148: 0.02155563823 | AE148: 0.02208106012 | AF148: 0.022606482 | AG148: 0.02348682241 | AH148: 0.02407314119 | AI148: 0.02465965145 | AJ148: 0.0250506583 | AK148: 0.02534429527 | AL148: 0.02544261975 | AM148: 0.02544261975 | AN148: 0.02544261975 | AO148: 0.02544261975 | AP148: 0.02544261975 | AQ148: 0.02544261975 | AR148: 0.02544261975 | AS148: 0.02544261975 | AT148: 0.02544261975 | AU148: 0.02544261975 | AV148: 0.02544261975 | AW148: 0.02544261975 | AX148: 0.02544261975 | AY148: 0.02544261975 | AZ148: 0.02544261975
F149: real return on equity | V149: =(1+V146)/(1+$O$24)-1 -> 0.02595121951 | W149: 0.03374653276 | X149: 0.036686749 | Y149: 0.03668483418 | Z149: 0.03863986839 | AA149: 0.03961356707 | AB149: 0.04156669207 | AC149: 0.04254993682 | AD149: 0.04254993682 | AE149: 0.04254993682 | AF149: 0.04254993682 | AG149: 0.04254993682 | AH149: 0.04254993682 | AI149: 0.04254993682 | AJ149: 0.04254993682 | AK149: 0.04254993682 | AL149: 0.04254993682 | AM149: 0.04254993682 | AN149: 0.04254993682 | AO149: 0.04254993682 | AP149: 0.04254993682 | AQ149: 0.04254993682 | AR149: 0.04254993682 | AS149: 0.04254993682 | AT149: 0.04254993682 | AU149: 0.04254993682 | AV149: 0.04254993682 | AW149: 0.04254993682 | AX149: 0.04254993682 | AY149: 0.04254993682 | AZ149: 0.04254993682
F150: Adjusted nominal return on equity | V150: =V146-Controls!$G$31 -> 0.02749076082 | W150: =W146-Controls!$G$31 -> 0.0354809569 | X150: =X146-Controls!$G$31 -> 0.03849467855 | Y150: =Y146-Controls!$G$31 -> 0.03849271586 | Z150: =Z146-Controls!$G$31 -> 0.04049662593 | AA150: =AA146-Controls!$G$31 -> 0.04149466707 | AB150: =AB146-Controls!$G$31 -> 0.0434966202 | AC150: =AC146-Controls!$G$31 -> 0.04450444606 | AD150: =AD146-Controls!$G$31 -> 0.04450444606 | AE150: =AE146-Controls!$G$31 -> 0.04450444606 | AF150: =AF146-Controls!$G$31 -> 0.04450444606 | AG150: =AG146-Controls!$G$31 -> 0.04450444606 | AH150: =AH146-Controls!$G$31 -> 0.04450444606 | AI150: =AI146-Controls!$G$31 -> 0.04450444606 | AJ150: =AJ146-Controls!$G$31 -> 0.04450444606 | AK150: =AK146-Controls!$G$31 -> 0.04450444606 | AL150: =AL146-Controls!$G$31 -> 0.04450444606 | AM150: =AM146-Controls!$G$31 -> 0.04450444606 | AN150: =AN146-Controls!$G$31 -> 0.04450444606 | AO150: =AO146-Controls!$G$31 -> 0.04450444606 | AP150: =AP146-Controls!$G$31 -> 0.04450444606 | AQ150: =AQ146-Controls!$G$31 -> 0.04450444606 | AR150: =AR146-Controls!$G$31 -> 0.04450444606 | AS150: =AS146-Controls!$G$31 -> 0.04450444606 | AT150: =AT146-Controls!$G$31 -> 0.04450444606 | AU150: =AU146-Controls!$G$31 -> 0.04450444606 | AV150: =AV146-Controls!$G$31 -> 0.04450444606 | AW150: =AW146-Controls!$G$31 -> 0.04450444606 | AX150: =AX146-Controls!$G$31 -> 0.04450444606 | AY150: =AY146-Controls!$G$31 -> 0.04450444606 | AZ150: =AZ146-Controls!$G$31 -> 0.04450444606
F151: Adjusted nominal WACC | V151: =V145*$O$39+V150*$O$40 -> 0.03841217087 | W151: =W145*$O$39+W150*$O$40 -> 0.04138997441 | X151: 0.04255801148 | Y151: 0.04251965705 | Z151: 0.04340388633 | AA151: 0.04394565051 | AB151: 0.04500909667 | AC151: 0.04573536147 | AD151: 0.04605849594 | AE151: 0.0463816304 | AF151: 0.04670476486 | AG151: 0.04724617421 | AH151: 0.04760676026 | AI151: 0.04796746407 | AJ151: 0.04820793328 | AK151: 0.04838852002 | AL151: 0.04844898957 | AM151: 0.04844898957 | AN151: 0.04844898957 | AO151: 0.04844898957 | AP151: 0.04844898957 | AQ151: 0.04844898957 | AR151: 0.04844898957 | AS151: 0.04844898957 | AT151: 0.04844898957 | AU151: 0.04844898957 | AV151: 0.04844898957 | AW151: 0.04844898957 | AX151: 0.04844898957 | AY151: 0.04844898957 | AZ151: 0.04844898957
F153: Nominal rate of return | V153: =V145*$O$21+V146*$O$22 -> 0.04805586654 | W153: =W145*$O$21+W146*$O$22 -> 0.05103367008 | X153: 0.05220170715 | Y153: 0.05216335272 | Z153: 0.053047582 | AA153: 0.05358934618 | AB153: 0.05465279234 | AC153: 0.05537905715 | AD153: 0.05570219161 | AE153: 0.05602532607 | AF153: 0.05634846053 | AG153: 0.05688986988 | AH153: 0.05725045593 | AI153: 0.05761115974 | AJ153: 0.05785162895 | AK153: 0.05803221569 | AL153: 0.05809268524 | AM153: 0.05809268524 | AN153: 0.05809268524 | AO153: 0.05809268524 | AP153: 0.05809268524 | AQ153: 0.05809268524 | AR153: 0.05809268524 | AS153: 0.05809268524 | AT153: 0.05809268524 | AU153: 0.05809268524 | AV153: 0.05809268524 | AW153: 0.05809268524 | AX153: 0.05809268524 | AY153: 0.05809268524 | AZ153: 0.05809268524
F154: Real rate of return | V154: =(1+V153)/(1+$O$24)-1 -> 0.02249352833 | W154: 0.02539870252 | X154: 0.02653825088 | Y154: 0.02650083192 | Z154: 0.02736349463 | AA154: 0.02789204505 | AB154: 0.0289295535 | AC154: 0.02963810453 | AD154: 0.02995335766 | AE154: 0.0302686108 | AF154: 0.03058386393 | AG154: 0.03111206817 | AH154: 0.03146385944 | AI154: 0.0318157656 | AJ154: 0.03205036971 | AK154: 0.03222655189 | AL154: 0.03228554658 | AM154: 0.03228554658 | AN154: 0.03228554658 | AO154: 0.03228554658 | AP154: 0.03228554658 | AQ154: 0.03228554658 | AR154: 0.03228554658 | AS154: 0.03228554658 | AT154: 0.03228554658 | AU154: 0.03228554658 | AV154: 0.03228554658 | AW154: 0.03228554658 | AX154: 0.03228554658 | AY154: 0.03228554658 | AZ154: 0.03228554658
A157: Citpower
U159: Y0 | V159: Period 1 | AA159: Period 3 | AF159: Period 4 | AK159: Period 5 | AP159: Period 6 | AU159: Period 7 | AZ159: Period 8
J160: Source | K160: Comments | M160: Units | N160: Constants | U160: 2020-21 | V160: 2021-22 | W160: 2022-23 | X160: 2023-24 | Y160: 2024-25 | Z160: 2025-26 | AA160: 2026-27 | AB160: 2027-28 | AC160: 2028-29 | AD160: 2029-30 | AE160: 2030-31 | AF160: 2031-32 | AG160: 2032-33 | AH160: 2033-34 | AI160: 2034-35 | AJ160: 2035-36 | AK160: 2036-37 | AL160: 2037-38 | AM160: 2038-39 | AN160: 2039-40 | AO160: 2040-41 | AP160: 2041-42 | AQ160: 2042-43 | AR160: 2043-44 | AS160: 2044-45 | AT160: 2045-46 | AU160: 2046-47 | AV160: 2047-48 | AW160: 2048-49 | AX160: 2049-50 | AY160: 2050-51 | AZ160: 2051-52
B162: Inputs
E164: Cumulative inflation index | J164: CitiPower PTRM 2021-26 | N164: 0 | U164: 1 | V164: =U164*(1+$O$12) -> 1 | W164: =V164*(1+$O$12) -> 1 | X164: =W164*(1+$O$12) -> 1 | Y164: 1 | Z164: 1 | AA164: 1 | AB164: 1 | AC164: 1 | AD164: 1 | AE164: 1 | AF164: 1 | AG164: 1 | AH164: 1 | AI164: 1 | AJ164: 1 | AK164: 1 | AL164: 1 | AM164: =AL164*(1+$O$12) -> 1 | AN164: =AM164*(1+$O$12) -> 1 | AO164: 1 | AP164: 1 | AQ164: 1 | AR164: 1 | AS164: 1 | AT164: 1 | AU164: 1 | AV164: 1 | AW164: 1 | AX164: 1 | AY164: 1 | AZ164: 1
E166: Return on debt | J166: CitiPower PTRM 2021-26 / PTRM 2015-20 (2019 update) | U166: 0.0498 | V166: 0.04518178131 | W166: 0.04206220022 | X166: 0.03894261914 | Y166: 0.03582303805 | Z166: 0.03270345696 | AA166: 0.03270345696 | AB166: 0.03270345696 | AC166: 0.03270345696 | AD166: 0.03270345696 | AE166: 0.03270345696 | AF166: 0.03270345696 | AG166: 0.03270345696 | AH166: 0.03270345696 | AI166: 0.03270345696 | AJ166: 0.03270345696 | AK166: 0.03270345696 | AL166: 0.03270345696 | AM166: 0.03270345696 | AN166: 0.03270345696 | AO166: 0.03270345696 | AP166: 0.03270345696 | AQ166: 0.03270345696 | AR166: 0.03270345696 | AS166: 0.03270345696 | AT166: 0.03270345696 | AU166: 0.03270345696 | AV166: 0.03270345696 | AW166: 0.03270345696 | AX166: 0.03270345696 | AY166: 0.03270345696 | AZ166: 0.03270345696
E167: Return on equity | J167: CitiPower PTRM 2021-26 | V167: 0.0503951974 | W167: 0.0503951974 | X167: 0.0503951974 | Y167: 0.0503951974 | Z167: 0.0503951974 | AA167: 0.0503951974 | AB167: 0.0503951974 | AC167: 0.0503951974 | AD167: 0.0503951974 | AE167: 0.0503951974 | AF167: 0.0503951974 | AG167: 0.0503951974 | AH167: 0.0503951974 | AI167: 0.0503951974 | AJ167: 0.0503951974 | AK167: 0.0503951974 | AL167: 0.0503951974 | AM167: 0.0503951974 | AN167: 0.0503951974 | AO167: 0.0503951974 | AP167: 0.0503951974 | AQ167: 0.0503951974 | AR167: 0.0503951974 | AS167: 0.0503951974 | AT167: 0.0503951974 | AU167: 0.0503951974 | AV167: 0.0503951974 | AW167: 0.0503951974 | AX167: 0.0503951974 | AY167: 0.0503951974 | AZ167: 0.0503951974
E169: Debt financing | J169: CitiPower PTRM 2021-26 | N169: 0.6
E170: Equity financing | J170: CitiPower PTRM 2021-26 | N170: 0.4
E172: Corporate tax rate | J172: CitiPower PTRM 2021-26 | N172: 0.3
E173: Value of imputation credits | J173: CitiPower PTRM 2021-26 | N173: 0.585
E174: Imputation credit payout ratio | J174: CitiPower PTRM 2021-26 | N174: 0.9
E176: Return on debt | V176: =((((1+V166)/(1+$V$7)))*(1+$O$24))-1 -> 0.04518178131 | W176: =0.9*V176+0.1*W$10 -> 0.04486912279 | X176: =0.8*V176+0.1*W$10+0.1*X$10 -> 0.04485783643 | Y176: =0.7*V176+0.1*W$10+0.1*X$10+0.1*Y$10 -> 0.0448463538 | Z176: =0.6*V176+0.1*W$10+0.1*X$10+0.1*Y$10+0.1*Z$10 -> 0.04503526218 | AA176: =0.5*V176+0.1*W$10+0.1*X$10+0.1*Y$10+0.1*Z$10+0.1*AA$10 -> 0.04532397468 | AB176: =0.4*V176+0.1*W$10+0.1*X$10+0.1*Y$10+0.1*Z$10+0.1*AA$10+0.1*AB$10 -> 0.04581288248 | AC176: =0.3*V176+0.1*W$10+0.1*X$10+0.1*Y$10+0.1*Z$10+0.1*AA$10+0.1*AB$10+0.1*AC$10 -> 0.04640257287 | AD176: =0.2*V176+0.1*W$10+0.1*X$10+0.1*Y$10+0.1*Z$10+0.1*AA$10+0.1*AB$10+0.1*AC$10+0.1*AD$10 -> 0.04699226327 | AE176: =0.1*V176+0.1*W$10+0.1*X$10+0.1*Y$10+0.1*Z$10+0.1*AA$10+0.1*AB$10+0.1*AC$10+0.1*AD$10+0.1*AE$10 -> 0.04758195366 | AF176: =0.1*W$10+0.1*X$10+0.1*Y$10+0.1*Z$10+0.1*AA$10+0.1*AB$10+0.1*AC$10+0.1*AD$10+0.1*AE$10+0.1*AF$10 -> 0.04817164405 | AG176: =0.1*X$10+0.1*Y$10+0.1*Z$10+0.1*AA$10+0.1*AB$10+0.1*AC$10+0.1*AD$10+0.1*AE$10+0.1*AF$10+0.1*AG$10 -> 0.04907399297 | AH176: =0.1*Y$10+0.1*Z$10+0.1*AA$10+0.1*AB$10+0.1*AC$10+0.1*AD$10+0.1*AE$10+0.1*AF$10+0.1*AG$10+0.1*AH$10 -> 0.04967496972 | AI176: =0.1*Z$10+0.1*AA$10+0.1*AB$10+0.1*AC$10+0.1*AD$10+0.1*AE$10+0.1*AF$10+0.1*AG$10+0.1*AH$10+0.1*AI$10 -> 0.05027614274 | AJ176: =0.1*AA$10+0.1*AB$10+0.1*AC$10+0.1*AD$10+0.1*AE$10+0.1*AF$10+0.1*AG$10+0.1*AH$10+0.1*AI$10+0.1*AJ$10 -> 0.05067692475 | AK176: =0.1*AB$10+0.1*AC$10+0.1*AD$10+0.1*AE$10+0.1*AF$10+0.1*AG$10+0.1*AH$10+0.1*AI$10+0.1*AJ$10+0.1*AK$10 -> 0.05097790265 | AL176: =0.1*AC$10+0.1*AD$10+0.1*AE$10+0.1*AF$10+0.1*AG$10+0.1*AH$10+0.1*AI$10+0.1*AJ$10+0.1*AK$10+0.1*AL$10 -> 0.05107868524 | AM176: =0.1*AD$10+0.1*AE$10+0.1*AF$10+0.1*AG$10+0.1*AH$10+0.1*AI$10+0.1*AJ$10+0.1*AK$10+0.1*AL$10+0.1*AM$10 -> 0.05107868524 | AN176: =0.1*AE$10+0.1*AF$10+0.1*AG$10+0.1*AH$10+0.1*AI$10+0.1*AJ$10+0.1*AK$10+0.1*AL$10+0.1*AM$10+0.1*AN$10 -> 0.05107868524 | AO176: =0.1*AF$10+0.1*AG$10+0.1*AH$10+0.1*AI$10+0.1*AJ$10+0.1*AK$10+0.1*AL$10+0.1*AM$10+0.1*AN$10+0.1*AO$10 -> 0.05107868524 | AP176: =0.1*AG$10+0.1*AH$10+0.1*AI$10+0.1*AJ$10+0.1*AK$10+0.1*AL$10+0.1*AM$10+0.1*AN$10+0.1*AO$10+0.1*AP$10 -> 0.05107868524 | AQ176: =0.1*AH$10+0.1*AI$10+0.1*AJ$10+0.1*AK$10+0.1*AL$10+0.1*AM$10+0.1*AN$10+0.1*AO$10+0.1*AP$10+0.1*AQ$10 -> 0.05107868524 | AR176: =0.1*AI$10+0.1*AJ$10+0.1*AK$10+0.1*AL$10+0.1*AM$10+0.1*AN$10+0.1*AO$10+0.1*AP$10+0.1*AQ$10+0.1*AR$10 -> 0.05107868524 | AS176: =0.1*AJ$10+0.1*AK$10+0.1*AL$10+0.1*AM$10+0.1*AN$10+0.1*AO$10+0.1*AP$10+0.1*AQ$10+0.1*AR$10+0.1*AS$10 -> 0.05107868524 | AT176: =0.1*AK$10+0.1*AL$10+0.1*AM$10+0.1*AN$10+0.1*AO$10+0.1*AP$10+0.1*AQ$10+0.1*AR$10+0.1*AS$10+0.1*AT$10 -> 0.05107868524 | AU176: =0.1*AL$10+0.1*AM$10+0.1*AN$10+0.1*AO$10+0.1*AP$10+0.1*AQ$10+0.1*AR$10+0.1*AS$10+0.1*AT$10+0.1*AU$10 -> 0.05107868524 | AV176: =0.1*AM$10+0.1*AN$10+0.1*AO$10+0.1*AP$10+0.1*AQ$10+0.1*AR$10+0.1*AS$10+0.1*AT$10+0.1*AU$10+0.1*AV$10 -> 0.05107868524 | AW176: =0.1*AN$10+0.1*AO$10+0.1*AP$10+0.1*AQ$10+0.1*AR$10+0.1*AS$10+0.1*AT$10+0.1*AU$10+0.1*AV$10+0.1*AW$10 -> 0.05107868524 | AX176: =0.1*AO$10+0.1*AP$10+0.1*AQ$10+0.1*AR$10+0.1*AS$10+0.1*AT$10+0.1*AU$10+0.1*AV$10+0.1*AW$10+0.1*AX$10 -> 0.05107868524 | AY176: =0.1*AP$10+0.1*AQ$10+0.1*AR$10+0.1*AS$10+0.1*AT$10+0.1*AU$10+0.1*AV$10+0.1*AW$10+0.1*AX$10+0.1*AY$10 -> 0.05107868524 | AZ176: =0.1*AQ$10+0.1*AR$10+0.1*AS$10+0.1*AT$10+0.1*AU$10+0.1*AV$10+0.1*AW$10+0.1*AX$10+0.1*AY$10+0.1*AZ$10 -> 0.05107868524
E177: Return on equity | V177: =V11 -> 0.0516 | W177: 0.05959019608 | X177: 0.06260391773 | Y177: 0.06260195503 | Z177: 0.0646058651 | AA177: 0.06560390625 | AB177: 0.06760585937 | AC177: 0.06861368524 | AD177: 0.06861368524 | AE177: 0.06861368524 | AF177: 0.06861368524 | AG177: 0.06861368524 | AH177: 0.06861368524 | AI177: 0.06861368524 | AJ177: 0.06861368524 | AK177: 0.06861368524 | AL177: 0.06861368524 | AM177: 0.06861368524 | AN177: 0.06861368524 | AO177: 0.06861368524 | AP177: 0.06861368524 | AQ177: 0.06861368524 | AR177: 0.06861368524 | AS177: 0.06861368524 | AT177: 0.06861368524 | AU177: 0.06861368524 | AV177: 0.06861368524 | AW177: 0.06861368524 | AX177: 0.06861368524 | AY177: 0.06861368524 | AZ177: 0.06861368524
E179: real return on debt | V179: =(1+V176)/(1+$O$24)-1 -> 0.01968954274 | W179: 0.01938451004 | X179: 0.01937349896 | Y179: 0.01936229639 | Z179: 0.01954659725 | AA179: 0.01982826798 | AB179: 0.0203052512 | AC179: 0.0208805589 | AD179: 0.0214558666 | AE179: 0.0220311743 | AF179: 0.022606482 | AG179: 0.02348682241 | AH179: 0.02407314119 | AI179: 0.02465965145 | AJ179: 0.0250506583 | AK179: 0.02534429527 | AL179: 0.02544261975 | AM179: 0.02544261975 | AN179: 0.02544261975 | AO179: 0.02544261975 | AP179: 0.02544261975 | AQ179: 0.02544261975 | AR179: 0.02544261975 | AS179: 0.02544261975 | AT179: 0.02544261975 | AU179: 0.02544261975 | AV179: 0.02544261975 | AW179: 0.02544261975 | AX179: 0.02544261975 | AY179: 0.02544261975 | AZ179: 0.02544261975
E180: real return on equity | V180: =(1+V177)/(1+$O$24)-1 -> 0.02595121951 | W180: 0.03374653276 | X180: 0.036686749 | Y180: 0.03668483418 | Z180: 0.03863986839 | AA180: 0.03961356707 | AB180: 0.04156669207 | AC180: 0.04254993682 | AD180: 0.04254993682 | AE180: 0.04254993682 | AF180: 0.04254993682 | AG180: 0.04254993682 | AH180: 0.04254993682 | AI180: 0.04254993682 | AJ180: 0.04254993682 | AK180: 0.04254993682 | AL180: 0.04254993682 | AM180: 0.04254993682 | AN180: 0.04254993682 | AO180: 0.04254993682 | AP180: 0.04254993682 | AQ180: 0.04254993682 | AR180: 0.04254993682 | AS180: 0.04254993682 | AT180: 0.04254993682 | AU180: 0.04254993682 | AV180: 0.04254993682 | AW180: 0.04254993682 | AX180: 0.04254993682 | AY180: 0.04254993682 | AZ180: 0.04254993682
E181: Adjusted nominal return on equity | V181: =V177-Controls!$G$31 -> 0.02749076082 | W181: =W177-Controls!$G$31 -> 0.0354809569 | X181: =X177-Controls!$G$31 -> 0.03849467855 | Y181: =Y177-Controls!$G$31 -> 0.03849271586 | Z181: =Z177-Controls!$G$31 -> 0.04049662593 | AA181: =AA177-Controls!$G$31 -> 0.04149466707 | AB181: =AB177-Controls!$G$31 -> 0.0434966202 | AC181: =AC177-Controls!$G$31 -> 0.04450444606 | AD181: =AD177-Controls!$G$31 -> 0.04450444606 | AE181: =AE177-Controls!$G$31 -> 0.04450444606 | AF181: =AF177-Controls!$G$31 -> 0.04450444606 | AG181: =AG177-Controls!$G$31 -> 0.04450444606 | AH181: =AH177-Controls!$G$31 -> 0.04450444606 | AI181: =AI177-Controls!$G$31 -> 0.04450444606 | AJ181: =AJ177-Controls!$G$31 -> 0.04450444606 | AK181: =AK177-Controls!$G$31 -> 0.04450444606 | AL181: =AL177-Controls!$G$31 -> 0.04450444606 | AM181: =AM177-Controls!$G$31 -> 0.04450444606 | AN181: =AN177-Controls!$G$31 -> 0.04450444606 | AO181: =AO177-Controls!$G$31 -> 0.04450444606 | AP181: =AP177-Controls!$G$31 -> 0.04450444606 | AQ181: =AQ177-Controls!$G$31 -> 0.04450444606 | AR181: =AR177-Controls!$G$31 -> 0.04450444606 | AS181: =AS177-Controls!$G$31 -> 0.04450444606 | AT181: =AT177-Controls!$G$31 -> 0.04450444606 | AU181: =AU177-Controls!$G$31 -> 0.04450444606 | AV181: =AV177-Controls!$G$31 -> 0.04450444606 | AW181: =AW177-Controls!$G$31 -> 0.04450444606 | AX181: =AX177-Controls!$G$31 -> 0.04450444606 | AY181: =AY177-Controls!$G$31 -> 0.04450444606 | AZ181: =AZ177-Controls!$G$31 -> 0.04450444606
E182: Adjusted nominal WACC | V182: =V176*$O$39+V181*$O$40 -> 0.03810537312 | W182: =W176*$O$39+W181*$O$40 -> 0.04111385643 | X182: 0.04231257328 | Y182: 0.04230489862 | Z182: 0.04321980768 | AA182: 0.04379225163 | AB182: 0.04488637757 | AC182: 0.04564332215 | AD182: 0.04599713639 | AE182: 0.04635095062 | AF182: 0.04670476486 | AG182: 0.04724617421 | AH182: 0.04760676026 | AI182: 0.04796746407 | AJ182: 0.04820793328 | AK182: 0.04838852002 | AL182: 0.04844898957 | AM182: 0.04844898957 | AN182: 0.04844898957 | AO182: 0.04844898957 | AP182: 0.04844898957 | AQ182: 0.04844898957 | AR182: 0.04844898957 | AS182: 0.04844898957 | AT182: 0.04844898957 | AU182: 0.04844898957 | AV182: 0.04844898957 | AW182: 0.04844898957 | AX182: 0.04844898957 | AY182: 0.04844898957 | AZ182: 0.04844898957
E184: Nominal rate of return | V184: =V176*$O$21+V177*$O$22 -> 0.04774906879 | W184: =W176*$O$21+W177*$O$22 -> 0.0507575521 | X184: 0.05195626895 | Y184: 0.0519485943 | Z184: 0.05286350335 | AA184: 0.05343594731 | AB184: 0.05453007324 | AC184: 0.05528701782 | AD184: 0.05564083206 | AE184: 0.05599464629 | AF184: 0.05634846053 | AG184: 0.05688986988 | AH184: 0.05725045593 | AI184: 0.05761115974 | AJ184: 0.05785162895 | AK184: 0.05803221569 | AL184: 0.05809268524 | AM184: 0.05809268524 | AN184: 0.05809268524 | AO184: 0.05809268524 | AP184: 0.05809268524 | AQ184: 0.05809268524 | AR184: 0.05809268524 | AS184: 0.05809268524 | AT184: 0.05809268524 | AU184: 0.05809268524 | AV184: 0.05809268524 | AW184: 0.05809268524 | AX184: 0.05809268524 | AY184: 0.05809268524 | AZ184: 0.05809268524
E185: Real rate of return | V185: =(1+V184)/(1+$O$24)-1 -> 0.02219421345 | W185: 0.02512931913 | X185: 0.02629879898 | Y185: 0.02629131151 | Z185: 0.02718390571 | AA185: 0.02774238761 | AB185: 0.02880982755 | AC185: 0.02954831007 | AD185: 0.02989349469 | AE185: 0.03023867931 | AF185: 0.03058386393 | AG185: 0.03111206817 | AH185: 0.03146385944 | AI185: 0.0318157656 | AJ185: 0.03205036971 | AK185: 0.03222655189 | AL185: 0.03228554658 | AM185: 0.03228554658 | AN185: 0.03228554658 | AO185: 0.03228554658 | AP185: 0.03228554658 | AQ185: 0.03228554658 | AR185: 0.03228554658 | AS185: 0.03228554658 | AT185: 0.03228554658 | AU185: 0.03228554658 | AV185: 0.03228554658 | AW185: 0.03228554658 | AX185: 0.03228554658 | AY185: 0.03228554658 | AZ185: 0.03228554658
A192: Powercor
U193: 0 | V193: 1 | W193: 2 | X193: 3 | Y193: 4 | Z193: 5 | AA193: 6 | AB193: 7 | AC193: 8 | AD193: 9 | AE193: 10 | AF193: 11 | AG193: 12 | AH193: 13 | AI193: 14 | AJ193: 15 | AK193: 16 | AL193: 17 | AM193: 18 | AN193: 19 | AO193: 20 | AP193: 21 | AQ193: 22 | AR193: 23 | AS193: 24 | AT193: 25 | AU193: 26 | AV193: 27 | AW193: 28 | AX193: 29 | AY193: 30 | AZ193: 31
U194: Y0 | V194: Period 1 | AA194: Period 3 | AF194: Period 4 | AK194: Period 5 | AP194: Period 6 | AU194: Period 7 | AZ194: Period 8
J195: Source | K195: Comments | M195: Units | N195: Constants | U195: 2020-21 | V195: 2021-22 | W195: 2022-23 | X195: 2023-24 | Y195: 2024-25 | Z195: 2025-26 | AA195: 2026-27 | AB195: 2027-28 | AC195: 2028-29 | AD195: 2029-30 | AE195: 2030-31 | AF195: 2031-32 | AG195: 2032-33 | AH195: 2033-34 | AI195: 2034-35 | AJ195: 2035-36 | AK195: 2036-37 | AL195: 2037-38 | AM195: 2038-39 | AN195: 2039-40 | AO195: 2040-41 | AP195: 2041-42 | AQ195: 2042-43 | AR195: 2043-44 | AS195: 2044-45 | AT195: 2045-46 | AU195: 2046-47 | AV195: 2047-48 | AW195: 2048-49 | AX195: 2049-50 | AY195: 2050-51 | AZ195: 2051-52
B197: Inputs
E199: Cumulative inflation index | J199: Powercor PTRM 2021-26 | N199: 0 | U199: 1 | V199: =U199*(1+$O$12) -> 1 | W199: =V199*(1+$O$12) -> 1 | X199: =W199*(1+$O$12) -> 1 | Y199: 1 | Z199: 1 | AA199: 1 | AB199: 1 | AC199: 1 | AD199: 1 | AE199: 1 | AF199: 1 | AG199: 1 | AH199: 1 | AI199: 1 | AJ199: 1 | AK199: 1 | AL199: 1 | AM199: =AL199*(1+$O$12) -> 1 | AN199: =AM199*(1+$O$12) -> 1 | AO199: 1 | AP199: 1 | AQ199: 1 | AR199: 1 | AS199: 1 | AT199: 1 | AU199: 1 | AV199: 1 | AW199: 1 | AX199: 1 | AY199: 1 | AZ199: 1
E201: Return on debt | J201: Powercor PTRM 2021-26 | V201: 0.04518178131 | W201: 0.04206220022 | X201: 0.03894261914 | Y201: 0.03582303805 | Z201: 0.03270345696 | AA201: 0.03270345696 | AB201: 0.03270345696 | AC201: 0.03270345696 | AD201: 0.03270345696 | AE201: 0.03270345696 | AF201: 0.03270345696 | AG201: 0.03270345696 | AH201: 0.03270345696 | AI201: 0.03270345696 | AJ201: 0.03270345696 | AK201: 0.03270345696 | AL201: 0.03270345696 | AM201: 0.03270345696 | AN201: 0.03270345696 | AO201: 0.03270345696 | AP201: 0.03270345696 | AQ201: 0.03270345696 | AR201: 0.03270345696 | AS201: 0.03270345696 | AT201: 0.03270345696 | AU201: 0.03270345696 | AV201: 0.03270345696 | AW201: 0.03270345696 | AX201: 0.03270345696 | AY201: 0.03270345696 | AZ201: 0.03270345696
E202: Return on equity | J202: Powercor PTRM 2021-26 | V202: 0.0503951974 | W202: 0.0503951974 | X202: 0.0503951974 | Y202: 0.0503951974 | Z202: 0.0503951974 | AA202: 0.0503951974 | AB202: 0.0503951974 | AC202: 0.0503951974 | AD202: 0.0503951974 | AE202: 0.0503951974 | AF202: 0.0503951974 | AG202: 0.0503951974 | AH202: 0.0503951974 | AI202: 0.0503951974 | AJ202: 0.0503951974 | AK202: 0.0503951974 | AL202: 0.0503951974 | AM202: 0.0503951974 | AN202: 0.0503951974 | AO202: 0.0503951974 | AP202: 0.0503951974 | AQ202: 0.0503951974 | AR202: 0.0503951974 | AS202: 0.0503951974 | AT202: 0.0503951974 | AU202: 0.0503951974 | AV202: 0.0503951974 | AW202: 0.0503951974 | AX202: 0.0503951974 | AY202: 0.0503951974 | AZ202: 0.0503951974
E204: Debt financing | J204: Powercor PTRM 2021-26 | N204: 0.6
E205: Equity financing | J205: Powercor PTRM 2021-26 | N205: 0.4
E207: Corporate tax rate | J207: Powercor PTRM 2021-26 | N207: 0.3
E208: Value of imputation credits | J208: Powercor PTRM 2021-26 | N208: 0.585
E209: Imputation credit payout ratio | J209: Powercor PTRM 2021-26 | N209: 0.9
E211: Return on debt | V211: =((((1+V201)/(1+$V$7)))*(1+$O$24))-1 -> 0.04518178131 | W211: =0.9*V211+0.1*W$10 -> 0.04486912279 | X211: =0.8*V211+0.1*W$10+0.1*X$10 -> 0.04485783643 | Y211: =0.7*V211+0.1*W$10+0.1*X$10+0.1*Y$10 -> 0.0448463538 | Z211: =0.6*V211+0.1*W$10+0.1*X$10+0.1*Y$10+0.1*Z$10 -> 0.04503526218 | AA211: =0.5*V211+0.1*W$10+0.1*X$10+0.1*Y$10+0.1*Z$10+0.1*AA$10 -> 0.04532397468 | AB211: =0.4*V211+0.1*W$10+0.1*X$10+0.1*Y$10+0.1*Z$10+0.1*AA$10+0.1*AB$10 -> 0.04581288248 | AC211: =0.3*V211+0.1*W$10+0.1*X$10+0.1*Y$10+0.1*Z$10+0.1*AA$10+0.1*AB$10+0.1*AC$10 -> 0.04640257287 | AD211: =0.2*V211+0.1*W$10+0.1*X$10+0.1*Y$10+0.1*Z$10+0.1*AA$10+0.1*AB$10+0.1*AC$10+0.1*AD$10 -> 0.04699226327 | AE211: =0.1*V211+0.1*W$10+0.1*X$10+0.1*Y$10+0.1*Z$10+0.1*AA$10+0.1*AB$10+0.1*AC$10+0.1*AD$10+0.1*AE$10 -> 0.04758195366 | AF211: =0.1*W$10+0.1*X$10+0.1*Y$10+0.1*Z$10+0.1*AA$10+0.1*AB$10+0.1*AC$10+0.1*AD$10+0.1*AE$10+0.1*AF$10 -> 0.04817164405 | AG211: =0.1*X$10+0.1*Y$10+0.1*Z$10+0.1*AA$10+0.1*AB$10+0.1*AC$10+0.1*AD$10+0.1*AE$10+0.1*AF$10+0.1*AG$10 -> 0.04907399297 | AH211: =0.1*Y$10+0.1*Z$10+0.1*AA$10+0.1*AB$10+0.1*AC$10+0.1*AD$10+0.1*AE$10+0.1*AF$10+0.1*AG$10+0.1*AH$10 -> 0.04967496972 | AI211: =0.1*Z$10+0.1*AA$10+0.1*AB$10+0.1*AC$10+0.1*AD$10+0.1*AE$10+0.1*AF$10+0.1*AG$10+0.1*AH$10+0.1*AI$10 -> 0.05027614274 | AJ211: =0.1*AA$10+0.1*AB$10+0.1*AC$10+0.1*AD$10+0.1*AE$10+0.1*AF$10+0.1*AG$10+0.1*AH$10+0.1*AI$10+0.1*AJ$10 -> 0.05067692475 | AK211: =0.1*AB$10+0.1*AC$10+0.1*AD$10+0.1*AE$10+0.1*AF$10+0.1*AG$10+0.1*AH$10+0.1*AI$10+0.1*AJ$10+0.1*AK$10 -> 0.05097790265 | AL211: =0.1*AC$10+0.1*AD$10+0.1*AE$10+0.1*AF$10+0.1*AG$10+0.1*AH$10+0.1*AI$10+0.1*AJ$10+0.1*AK$10+0.1*AL$10 -> 0.05107868524 | AM211: =0.1*AD$10+0.1*AE$10+0.1*AF$10+0.1*AG$10+0.1*AH$10+0.1*AI$10+0.1*AJ$10+0.1*AK$10+0.1*AL$10+0.1*AM$10 -> 0.05107868524 | AN211: =0.1*AE$10+0.1*AF$10+0.1*AG$10+0.1*AH$10+0.1*AI$10+0.1*AJ$10+0.1*AK$10+0.1*AL$10+0.1*AM$10+0.1*AN$10 -> 0.05107868524 | AO211: =0.1*AF$10+0.1*AG$10+0.1*AH$10+0.1*AI$10+0.1*AJ$10+0.1*AK$10+0.1*AL$10+0.1*AM$10+0.1*AN$10+0.1*AO$10 -> 0.05107868524 | AP211: =0.1*AG$10+0.1*AH$10+0.1*AI$10+0.1*AJ$10+0.1*AK$10+0.1*AL$10+0.1*AM$10+0.1*AN$10+0.1*AO$10+0.1*AP$10 -> 0.05107868524 | AQ211: =0.1*AH$10+0.1*AI$10+0.1*AJ$10+0.1*AK$10+0.1*AL$10+0.1*AM$10+0.1*AN$10+0.1*AO$10+0.1*AP$10+0.1*AQ$10 -> 0.05107868524 | AR211: =0.1*AI$10+0.1*AJ$10+0.1*AK$10+0.1*AL$10+0.1*AM$10+0.1*AN$10+0.1*AO$10+0.1*AP$10+0.1*AQ$10+0.1*AR$10 -> 0.05107868524 | AS211: =0.1*AJ$10+0.1*AK$10+0.1*AL$10+0.1*AM$10+0.1*AN$10+0.1*AO$10+0.1*AP$10+0.1*AQ$10+0.1*AR$10+0.1*AS$10 -> 0.05107868524 | AT211: =0.1*AK$10+0.1*AL$10+0.1*AM$10+0.1*AN$10+0.1*AO$10+0.1*AP$10+0.1*AQ$10+0.1*AR$10+0.1*AS$10+0.1*AT$10 -> 0.05107868524 | AU211: =0.1*AL$10+0.1*AM$10+0.1*AN$10+0.1*AO$10+0.1*AP$10+0.1*AQ$10+0.1*AR$10+0.1*AS$10+0.1*AT$10+0.1*AU$10 -> 0.05107868524 | AV211: =0.1*AM$10+0.1*AN$10+0.1*AO$10+0.1*AP$10+0.1*AQ$10+0.1*AR$10+0.1*AS$10+0.1*AT$10+0.1*AU$10+0.1*AV$10 -> 0.05107868524 | AW211: =0.1*AN$10+0.1*AO$10+0.1*AP$10+0.1*AQ$10+0.1*AR$10+0.1*AS$10+0.1*AT$10+0.1*AU$10+0.1*AV$10+0.1*AW$10 -> 0.05107868524 | AX211: =0.1*AO$10+0.1*AP$10+0.1*AQ$10+0.1*AR$10+0.1*AS$10+0.1*AT$10+0.1*AU$10+0.1*AV$10+0.1*AW$10+0.1*AX$10 -> 0.05107868524 | AY211: =0.1*AP$10+0.1*AQ$10+0.1*AR$10+0.1*AS$10+0.1*AT$10+0.1*AU$10+0.1*AV$10+0.1*AW$10+0.1*AX$10+0.1*AY$10 -> 0.05107868524 | AZ211: =0.1*AQ$10+0.1*AR$10+0.1*AS$10+0.1*AT$10+0.1*AU$10+0.1*AV$10+0.1*AW$10+0.1*AX$10+0.1*AY$10+0.1*AZ$10 -> 0.05107868524
E212: Return on equity | V212: =V11 -> 0.0516 | W212: 0.05959019608 | X212: 0.06260391773 | Y212: 0.06260195503 | Z212: 0.0646058651 | AA212: =AA11 -> 0.06560390625 | AB212: 0.06760585937 | AC212: 0.06861368524 | AD212: 0.06861368524 | AE212: 0.06861368524 | AF212: 0.06861368524 | AG212: 0.06861368524 | AH212: 0.06861368524 | AI212: 0.06861368524 | AJ212: 0.06861368524 | AK212: 0.06861368524 | AL212: 0.06861368524 | AM212: 0.06861368524 | AN212: 0.06861368524 | AO212: 0.06861368524 | AP212: 0.06861368524 | AQ212: 0.06861368524 | AR212: 0.06861368524 | AS212: 0.06861368524 | AT212: 0.06861368524 | AU212: 0.06861368524 | AV212: 0.06861368524 | AW212: 0.06861368524 | AX212: 0.06861368524 | AY212: 0.06861368524 | AZ212: 0.06861368524
E214: real return on debt | V214: =(1+V211)/(1+$O$24)-1 -> 0.01968954274 | W214: 0.01938451004 | X214: 0.01937349896 | Y214: 0.01936229639 | Z214: 0.01954659725 | AA214: 0.01982826798 | AB214: 0.0203052512 | AC214: 0.0208805589 | AD214: 0.0214558666 | AE214: 0.0220311743 | AF214: 0.022606482 | AG214: 0.02348682241 | AH214: 0.02407314119 | AI214: 0.02465965145 | AJ214: 0.0250506583 | AK214: 0.02534429527 | AL214: 0.02544261975 | AM214: 0.02544261975 | AN214: 0.02544261975 | AO214: 0.02544261975 | AP214: 0.02544261975 | AQ214: 0.02544261975 | AR214: 0.02544261975 | AS214: 0.02544261975 | AT214: 0.02544261975 | AU214: 0.02544261975 | AV214: 0.02544261975 | AW214: 0.02544261975 | AX214: 0.02544261975 | AY214: 0.02544261975 | AZ214: 0.02544261975
E215: real return on equity | V215: =(1+V212)/(1+$O$24)-1 -> 0.02595121951 | W215: 0.03374653276 | X215: 0.036686749 | Y215: 0.03668483418 | Z215: 0.03863986839 | AA215: 0.03961356707 | AB215: 0.04156669207 | AC215: 0.04254993682 | AD215: 0.04254993682 | AE215: 0.04254993682 | AF215: 0.04254993682 | AG215: 0.04254993682 | AH215: 0.04254993682 | AI215: 0.04254993682 | AJ215: 0.04254993682 | AK215: 0.04254993682 | AL215: 0.04254993682 | AM215: 0.04254993682 | AN215: 0.04254993682 | AO215: 0.04254993682 | AP215: 0.04254993682 | AQ215: 0.04254993682 | AR215: 0.04254993682 | AS215: 0.04254993682 | AT215: 0.04254993682 | AU215: 0.04254993682 | AV215: 0.04254993682 | AW215: 0.04254993682 | AX215: 0.04254993682 | AY215: 0.04254993682 | AZ215: 0.04254993682
E216: Adjusted nominal return on equity | V216: =V212-Controls!$G$31 -> 0.02749076082 | W216: =W212-Controls!$G$31 -> 0.0354809569 | X216: =X212-Controls!$G$31 -> 0.03849467855 | Y216: =Y212-Controls!$G$31 -> 0.03849271586 | Z216: =Z212-Controls!$G$31 -> 0.04049662593 | AA216: =AA212-Controls!$G$31 -> 0.04149466707 | AB216: =AB212-Controls!$G$31 -> 0.0434966202 | AC216: =AC212-Controls!$G$31 -> 0.04450444606 | AD216: =AD212-Controls!$G$31 -> 0.04450444606 | AE216: =AE212-Controls!$G$31 -> 0.04450444606 | AF216: =AF212-Controls!$G$31 -> 0.04450444606 | AG216: =AG212-Controls!$G$31 -> 0.04450444606 | AH216: =AH212-Controls!$G$31 -> 0.04450444606 | AI216: =AI212-Controls!$G$31 -> 0.04450444606 | AJ216: =AJ212-Controls!$G$31 -> 0.04450444606 | AK216: =AK212-Controls!$G$31 -> 0.04450444606 | AL216: =AL212-Controls!$G$31 -> 0.04450444606 | AM216: =AM212-Controls!$G$31 -> 0.04450444606 | AN216: =AN212-Controls!$G$31 -> 0.04450444606 | AO216: =AO212-Controls!$G$31 -> 0.04450444606 | AP216: =AP212-Controls!$G$31 -> 0.04450444606 | AQ216: =AQ212-Controls!$G$31 -> 0.04450444606 | AR216: =AR212-Controls!$G$31 -> 0.04450444606 | AS216: =AS212-Controls!$G$31 -> 0.04450444606 | AT216: =AT212-Controls!$G$31 -> 0.04450444606 | AU216: =AU212-Controls!$G$31 -> 0.04450444606 | AV216: =AV212-Controls!$G$31 -> 0.04450444606 | AW216: =AW212-Controls!$G$31 -> 0.04450444606 | AX216: =AX212-Controls!$G$31 -> 0.04450444606 | AY216: =AY212-Controls!$G$31 -> 0.04450444606 | AZ216: =AZ212-Controls!$G$31 -> 0.04450444606
E217: Adjusted nominal WACC | V217: =V211*$O$39+V216*$O$40 -> 0.03810537312 | W217: =W211*$O$39+W216*$O$40 -> 0.04111385643 | X217: 0.04231257328 | Y217: 0.04230489862 | Z217: 0.04321980768 | AA217: 0.04379225163 | AB217: 0.04488637757 | AC217: 0.04564332215 | AD217: 0.04599713639 | AE217: 0.04635095062 | AF217: 0.04670476486 | AG217: 0.04724617421 | AH217: 0.04760676026 | AI217: 0.04796746407 | AJ217: 0.04820793328 | AK217: 0.04838852002 | AL217: 0.04844898957 | AM217: 0.04844898957 | AN217: 0.04844898957 | AO217: 0.04844898957 | AP217: 0.04844898957 | AQ217: 0.04844898957 | AR217: 0.04844898957 | AS217: 0.04844898957 | AT217: 0.04844898957 | AU217: 0.04844898957 | AV217: 0.04844898957 | AW217: 0.04844898957 | AX217: 0.04844898957 | AY217: 0.04844898957 | AZ217: 0.04844898957
E219: Nominal rate of return | V219: =V211*$O$21+V212*$O$22 -> 0.04774906879 | W219: =W211*$O$21+W212*$O$22 -> 0.0507575521 | X219: 0.05195626895 | Y219: 0.0519485943 | Z219: 0.05286350335 | AA219: 0.05343594731 | AB219: 0.05453007324 | AC219: 0.05528701782 | AD219: 0.05564083206 | AE219: 0.05599464629 | AF219: 0.05634846053 | AG219: 0.05688986988 | AH219: 0.05725045593 | AI219: 0.05761115974 | AJ219: 0.05785162895 | AK219: 0.05803221569 | AL219: 0.05809268524 | AM219: 0.05809268524 | AN219: 0.05809268524 | AO219: 0.05809268524 | AP219: 0.05809268524 | AQ219: 0.05809268524 | AR219: 0.05809268524 | AS219: 0.05809268524 | AT219: 0.05809268524 | AU219: 0.05809268524 | AV219: 0.05809268524 | AW219: 0.05809268524 | AX219: 0.05809268524 | AY219: 0.05809268524 | AZ219: 0.05809268524
E220: Real rate of return | V220: =(1+V219)/(1+$O$24)-1 -> 0.02219421345 | W220: 0.02512931913 | X220: 0.02629879898 | Y220: 0.02629131151 | Z220: 0.02718390571 | AA220: 0.02774238761 | AB220: 0.02880982755 | AC220: 0.02954831007 | AD220: 0.02989349469 | AE220: 0.03023867931 | AF220: 0.03058386393 | AG220: 0.03111206817 | AH220: 0.03146385944 | AI220: 0.0318157656 | AJ220: 0.03205036971 | AK220: 0.03222655189 | AL220: 0.03228554658 | AM220: 0.03228554658 | AN220: 0.03228554658 | AO220: 0.03228554658 | AP220: 0.03228554658 | AQ220: 0.03228554658 | AR220: 0.03228554658 | AS220: 0.03228554658 | AT220: 0.03228554658 | AU220: 0.03228554658 | AV220: 0.03228554658 | AW220: 0.03228554658 | AX220: 0.03228554658 | AY220: 0.03228554658 | AZ220: 0.03228554658
A228: Revenue - TransGrid
U229: 0 | V229: 1 | W229: 2 | X229: 3 | Y229: 4 | Z229: 5 | AA229: 6 | AB229: 7 | AC229: 8 | AD229: 9 | AE229: 10 | AF229: 11 | AG229: 12 | AH229: 13 | AI229: 14 | AJ229: 15 | AK229: 16 | AL229: 17 | AM229: 18 | AN229: 19 | AO229: 20 | AP229: 21 | AQ229: 22 | AR229: 23 | AS229: 24 | AT229: 25 | AU229: 26 | AV229: 27 | AW229: 28 | AX229: 29 | AY229: 30 | AZ229: 31
U230: Y0 | V230: Period 1 | X230: Period 2 | AC230: Period 3 | AH230: Period 4 | AM230: Period 5 | AR230: Period 6 | AW230: Period 7
J231: Source | K231: Comments | M231: Units | N231: Constants | U231: 2020-21 | V231: 2021-22 | W231: 2022-23 | X231: 2023-24 | Y231: 2024-25 | Z231: 2025-26 | AA231: 2026-27 | AB231: 2027-28 | AC231: 2028-29 | AD231: 2029-30 | AE231: 2030-31 | AF231: 2031-32 | AG231: 2032-33 | AH231: 2033-34 | AI231: 2034-35 | AJ231: 2035-36 | AK231: 2036-37 | AL231: 2037-38 | AM231: 2038-39 | AN231: 2039-40 | AO231: 2040-41 | AP231: 2041-42 | AQ231: 2042-43 | AR231: 2043-44 | AS231: 2044-45 | AT231: 2045-46 | AU231: 2046-47 | AV231: 2047-48 | AW231: 2048-49 | AX231: 2049-50 | AY231: 2050-51 | AZ231: 2051-52
B233: Inputs
E235: Cumulative inflation index | J235: TransGrid PTRM 2018-23 | N235: 0 | U235: 1 | V235: =U235*(1+$O$12) -> 1 | W235: =V235*(1+$O$12) -> 1 | X235: =W235*(1+$O$12) -> 1 | Y235: 1 | Z235: 1 | AA235: 1 | AB235: 1 | AC235: 1 | AD235: 1 | AE235: 1 | AF235: 1 | AG235: 1 | AH235: 1 | AI235: 1 | AJ235: 1 | AK235: 1 | AL235: 1 | AM235: =AL235*(1+$O$12) -> 1 | AN235: =AM235*(1+$O$12) -> 1 | AO235: 1 | AP235: 1 | AQ235: 1 | AR235: 1 | AS235: 1 | AT235: 1 | AU235: 1 | AV235: 1 | AW235: 1 | AX235: 1 | AY235: 1 | AZ235: 1
E237: Return on debt | J237: TransGrid PTRM 2018-23, may 21 update | V237: 0.0495971381 | W237: 0.0495971381 | X237: 0.0495971381 | Y237: 0.0495971381 | Z237: 0.0495971381 | AA237: 0.0495971381 | AB237: 0.0495971381 | AC237: 0.0495971381 | AD237: 0.0495971381 | AE237: 0.0495971381 | AF237: 0.0495971381 | AG237: 0.0495971381 | AH237: 0.0495971381 | AI237: 0.0495971381 | AJ237: 0.0495971381 | AK237: 0.0495971381 | AL237: 0.0495971381 | AM237: 0.0495971381 | AN237: 0.0495971381 | AO237: 0.0495971381 | AP237: 0.0495971381 | AQ237: 0.0495971381 | AR237: 0.0495971381 | AS237: 0.0495971381 | AT237: 0.0495971381 | AU237: 0.0495971381 | AV237: 0.0495971381 | AW237: 0.0495971381 | AX237: 0.0495971381 | AY237: 0.0495971381 | AZ237: 0.0495971381
E238: Return on equity | J238: TransGrid PTRM 2018-23, may 21 update | V238: 0.074 | W238: 0.074 | X238: 0.074 | Y238: 0.074 | Z238: 0.074 | AA238: 0.074 | AB238: 0.074 | AC238: 0.074 | AD238: 0.074 | AE238: 0.074 | AF238: 0.074 | AG238: 0.074 | AH238: 0.074 | AI238: 0.074 | AJ238: 0.074 | AK238: 0.074 | AL238: 0.074 | AM238: 0.074 | AN238: 0.074 | AO238: 0.074 | AP238: 0.074 | AQ238: 0.074 | AR238: 0.074 | AS238: 0.074 | AT238: 0.074 | AU238: 0.074 | AV238: 0.074 | AW238: 0.074 | AX238: 0.074 | AY238: 0.074 | AZ238: 0.074
E240: Debt financing | J240: TransGrid PTRM 2018-23, may 21 update | N240: 0.6
E241: Equity financing | J241: TransGrid PTRM 2018-23, may 21 update | N241: 0.4
E243: Corporate tax rate | J243: TransGrid PTRM 2018-23, may 21 update | N243: 0.3
E244: Value of imputation credits | J244: TransGrid PTRM 2018-23, may 21 update | N244: 0.585
E245: Imputation credit payout ratio | J245: TransGrid PTRM 2018-23, may 21 update | N245: 0.9
E247: Return on debt | V247: =((((1+V237)/(1+$V$7)))*(1+$O$24))-1 -> 0.0495971381 | W247: =0.9*V247+0.1*W$10 -> 0.0488429439 | X247: =0.8*V247+0.1*W$10+0.1*X$10 -> 0.04839012186 | Y247: =0.7*V247+0.1*W$10+0.1*X$10+0.1*Y$10 -> 0.04793710355 | Z247: =0.6*V247+0.1*W$10+0.1*X$10+0.1*Y$10+0.1*Z$10 -> 0.04768447625 | AA247: =0.5*V247+0.1*W$10+0.1*X$10+0.1*Y$10+0.1*Z$10+0.1*AA$10 -> 0.04753165307 | AB247: =0.4*V247+0.1*W$10+0.1*X$10+0.1*Y$10+0.1*Z$10+0.1*AA$10+0.1*AB$10 -> 0.0475790252 | AC247: =0.3*V247+0.1*W$10+0.1*X$10+0.1*Y$10+0.1*Z$10+0.1*AA$10+0.1*AB$10+0.1*AC$10 -> 0.04772717991 | AD247: =0.2*V247+0.1*W$10+0.1*X$10+0.1*Y$10+0.1*Z$10+0.1*AA$10+0.1*AB$10+0.1*AC$10+0.1*AD$10 -> 0.04787533462 | AE247: =0.1*V247+0.1*W$10+0.1*X$10+0.1*Y$10+0.1*Z$10+0.1*AA$10+0.1*AB$10+0.1*AC$10+0.1*AD$10+0.1*AE$10 -> 0.04802348934 | AF247: =0.1*W$10+0.1*X$10+0.1*Y$10+0.1*Z$10+0.1*AA$10+0.1*AB$10+0.1*AC$10+0.1*AD$10+0.1*AE$10+0.1*AF$10 -> 0.04817164405 | AG247: =0.1*X$10+0.1*Y$10+0.1*Z$10+0.1*AA$10+0.1*AB$10+0.1*AC$10+0.1*AD$10+0.1*AE$10+0.1*AF$10+0.1*AG$10 -> 0.04907399297 | AH247: =0.1*Y$10+0.1*Z$10+0.1*AA$10+0.1*AB$10+0.1*AC$10+0.1*AD$10+0.1*AE$10+0.1*AF$10+0.1*AG$10+0.1*AH$10 -> 0.04967496972 | AI247: =0.1*Z$10+0.1*AA$10+0.1*AB$10+0.1*AC$10+0.1*AD$10+0.1*AE$10+0.1*AF$10+0.1*AG$10+0.1*AH$10+0.1*AI$10 -> 0.05027614274 | AJ247: =0.1*AA$10+0.1*AB$10+0.1*AC$10+0.1*AD$10+0.1*AE$10+0.1*AF$10+0.1*AG$10+0.1*AH$10+0.1*AI$10+0.1*AJ$10 -> 0.05067692475 | AK247: =0.1*AB$10+0.1*AC$10+0.1*AD$10+0.1*AE$10+0.1*AF$10+0.1*AG$10+0.1*AH$10+0.1*AI$10+0.1*AJ$10+0.1*AK$10 -> 0.05097790265 | AL247: =0.1*AC$10+0.1*AD$10+0.1*AE$10+0.1*AF$10+0.1*AG$10+0.1*AH$10+0.1*AI$10+0.1*AJ$10+0.1*AK$10+0.1*AL$10 -> 0.05107868524 | AM247: =0.1*AD$10+0.1*AE$10+0.1*AF$10+0.1*AG$10+0.1*AH$10+0.1*AI$10+0.1*AJ$10+0.1*AK$10+0.1*AL$10+0.1*AM$10 -> 0.05107868524 | AN247: =0.1*AE$10+0.1*AF$10+0.1*AG$10+0.1*AH$10+0.1*AI$10+0.1*AJ$10+0.1*AK$10+0.1*AL$10+0.1*AM$10+0.1*AN$10 -> 0.05107868524 | AO247: =0.1*AF$10+0.1*AG$10+0.1*AH$10+0.1*AI$10+0.1*AJ$10+0.1*AK$10+0.1*AL$10+0.1*AM$10+0.1*AN$10+0.1*AO$10 -> 0.05107868524 | AP247: =0.1*AG$10+0.1*AH$10+0.1*AI$10+0.1*AJ$10+0.1*AK$10+0.1*AL$10+0.1*AM$10+0.1*AN$10+0.1*AO$10+0.1*AP$10 -> 0.05107868524 | AQ247: =0.1*AH$10+0.1*AI$10+0.1*AJ$10+0.1*AK$10+0.1*AL$10+0.1*AM$10+0.1*AN$10+0.1*AO$10+0.1*AP$10+0.1*AQ$10 -> 0.05107868524 | AR247: =0.1*AI$10+0.1*AJ$10+0.1*AK$10+0.1*AL$10+0.1*AM$10+0.1*AN$10+0.1*AO$10+0.1*AP$10+0.1*AQ$10+0.1*AR$10 -> 0.05107868524 | AS247: =0.1*AJ$10+0.1*AK$10+0.1*AL$10+0.1*AM$10+0.1*AN$10+0.1*AO$10+0.1*AP$10+0.1*AQ$10+0.1*AR$10+0.1*AS$10 -> 0.05107868524 | AT247: =0.1*AK$10+0.1*AL$10+0.1*AM$10+0.1*AN$10+0.1*AO$10+0.1*AP$10+0.1*AQ$10+0.1*AR$10+0.1*AS$10+0.1*AT$10 -> 0.05107868524 | AU247: =0.1*AL$10+0.1*AM$10+0.1*AN$10+0.1*AO$10+0.1*AP$10+0.1*AQ$10+0.1*AR$10+0.1*AS$10+0.1*AT$10+0.1*AU$10 -> 0.05107868524 | AV247: =0.1*AM$10+0.1*AN$10+0.1*AO$10+0.1*AP$10+0.1*AQ$10+0.1*AR$10+0.1*AS$10+0.1*AT$10+0.1*AU$10+0.1*AV$10 -> 0.05107868524 | AW247: =0.1*AN$10+0.1*AO$10+0.1*AP$10+0.1*AQ$10+0.1*AR$10+0.1*AS$10+0.1*AT$10+0.1*AU$10+0.1*AV$10+0.1*AW$10 -> 0.05107868524 | AX247: =0.1*AO$10+0.1*AP$10+0.1*AQ$10+0.1*AR$10+0.1*AS$10+0.1*AT$10+0.1*AU$10+0.1*AV$10+0.1*AW$10+0.1*AX$10 -> 0.05107868524 | AY247: =0.1*AP$10+0.1*AQ$10+0.1*AR$10+0.1*AS$10+0.1*AT$10+0.1*AU$10+0.1*AV$10+0.1*AW$10+0.1*AX$10+0.1*AY$10 -> 0.05107868524 | AZ247: =0.1*AQ$10+0.1*AR$10+0.1*AS$10+0.1*AT$10+0.1*AU$10+0.1*AV$10+0.1*AW$10+0.1*AX$10+0.1*AY$10+0.1*AZ$10 -> 0.05107868524
E248: Return on equity | V248: =V8+$O$20*$O$16 -> 0.0577 | W248: =W8+$O$20*$O$16 -> 0.06569019608 | X248: =X12 -> 0.06260391773 | Y248: 0.06260195503 | Z248: 0.0646058651 | AA248: 0.06560390625 | AB248: 0.06760585937 | AC248: 0.06861368524 | AD248: 0.06861368524 | AE248: 0.06861368524 | AF248: 0.06861368524 | AG248: 0.06861368524 | AH248: 0.06861368524 | AI248: 0.06861368524 | AJ248: 0.06861368524 | AK248: 0.06861368524 | AL248: 0.06861368524 | AM248: 0.06861368524 | AN248: 0.06861368524 | AO248: 0.06861368524 | AP248: 0.06861368524 | AQ248: 0.06861368524 | AR248: 0.06861368524 | AS248: 0.06861368524 | AT248: 0.06861368524 | AU248: 0.06861368524 | AV248: 0.06861368524 | AW248: 0.06861368524 | AX248: 0.06861368524 | AY248: 0.06861368524 | AZ248: 0.06861368524
E250: real return on debt | V250: =(1+V247)/(1+$O$24)-1 -> 0.0239972079 | W250: 0.02326140868 | X250: 0.02281963108 | Y250: 0.022377662 | Z250: 0.02213119634 | AA250: 0.02198210055 | AB250: 0.02202831726 | AC250: 0.02217285845 | AD250: 0.02231739963 | AE250: 0.02246194082 | AF250: 0.022606482 | AG250: 0.02348682241 | AH250: 0.02407314119 | AI250: 0.02465965145 | AJ250: 0.0250506583 | AK250: 0.02534429527 | AL250: 0.02544261975 | AM250: 0.02544261975 | AN250: 0.02544261975 | AO250: 0.02544261975 | AP250: 0.02544261975 | AQ250: 0.02544261975 | AR250: 0.02544261975 | AS250: 0.02544261975 | AT250: 0.02544261975 | AU250: 0.02544261975 | AV250: 0.02544261975 | AW250: 0.02544261975 | AX250: 0.02544261975 | AY250: 0.02544261975 | AZ250: 0.02544261975
E251: real return on equity | V251: =(1+V248)/(1+$O$24)-1 -> 0.03190243902 | W251: 0.03969775227 | X251: 0.036686749 | Y251: 0.03668483418 | Z251: 0.03863986839 | AA251: 0.03961356707 | AB251: 0.04156669207 | AC251: 0.04254993682 | AD251: 0.04254993682 | AE251: 0.04254993682 | AF251: 0.04254993682 | AG251: 0.04254993682 | AH251: 0.04254993682 | AI251: 0.04254993682 | AJ251: 0.04254993682 | AK251: 0.04254993682 | AL251: 0.04254993682 | AM251: 0.04254993682 | AN251: 0.04254993682 | AO251: 0.04254993682 | AP251: 0.04254993682 | AQ251: 0.04254993682 | AR251: 0.04254993682 | AS251: 0.04254993682 | AT251: 0.04254993682 | AU251: 0.04254993682 | AV251: 0.04254993682 | AW251: 0.04254993682 | AX251: 0.04254993682 | AY251: 0.04254993682 | AZ251: 0.04254993682
E252: Adjusted nominal return on equity | V252: =V248-Controls!$G$31 -> 0.03359076082 | W252: =W248-Controls!$G$31 -> 0.0415809569 | X252: =X248-Controls!$G$31 -> 0.03849467855 | Y252: =Y248-Controls!$G$31 -> 0.03849271586 | Z252: =Z248-Controls!$G$31 -> 0.04049662593 | AA252: =AA248-Controls!$G$31 -> 0.04149466707 | AB252: =AB248-Controls!$G$31 -> 0.0434966202 | AC252: =AC248-Controls!$G$31 -> 0.04450444606 | AD252: =AD248-Controls!$G$31 -> 0.04450444606 | AE252: =AE248-Controls!$G$31 -> 0.04450444606 | AF252: =AF248-Controls!$G$31 -> 0.04450444606 | AG252: =AG248-Controls!$G$31 -> 0.04450444606 | AH252: =AH248-Controls!$G$31 -> 0.04450444606 | AI252: =AI248-Controls!$G$31 -> 0.04450444606 | AJ252: =AJ248-Controls!$G$31 -> 0.04450444606 | AK252: =AK248-Controls!$G$31 -> 0.04450444606 | AL252: =AL248-Controls!$G$31 -> 0.04450444606 | AM252: =AM248-Controls!$G$31 -> 0.04450444606 | AN252: =AN248-Controls!$G$31 -> 0.04450444606 | AO252: =AO248-Controls!$G$31 -> 0.04450444606 | AP252: =AP248-Controls!$G$31 -> 0.04450444606 | AQ252: =AQ248-Controls!$G$31 -> 0.04450444606 | AR252: =AR248-Controls!$G$31 -> 0.04450444606 | AS252: =AS248-Controls!$G$31 -> 0.04450444606 | AT252: =AT248-Controls!$G$31 -> 0.04450444606 | AU252: =AU248-Controls!$G$31 -> 0.04450444606 | AV252: =AV248-Controls!$G$31 -> 0.04450444606 | AW252: =AW248-Controls!$G$31 -> 0.04450444606 | AX252: =AX248-Controls!$G$31 -> 0.04450444606 | AY252: =AY248-Controls!$G$31 -> 0.04450444606 | AZ252: =AZ248-Controls!$G$31 -> 0.04450444606
E253: Adjusted nominal WACC | V253: =V247*$O$39+V252*$O$40 -> 0.04319458719 | W253: =W247*$O$39+W252*$O$40 -> 0.0459381491 | X253: 0.04443194454 | Y253: 0.04415934847 | Z253: 0.04480933612 | AA253: 0.04511685867 | AB253: 0.0459460632 | AC253: 0.04643808637 | AD253: 0.0465269792 | AE253: 0.04661587203 | AF253: 0.04670476486 | AG253: 0.04724617421 | AH253: 0.04760676026 | AI253: 0.04796746407 | AJ253: 0.04820793328 | AK253: 0.04838852002 | AL253: 0.04844898957 | AM253: 0.04844898957 | AN253: 0.04844898957 | AO253: 0.04844898957 | AP253: 0.04844898957 | AQ253: 0.04844898957 | AR253: 0.04844898957 | AS253: 0.04844898957 | AT253: 0.04844898957 | AU253: 0.04844898957 | AV253: 0.04844898957 | AW253: 0.04844898957 | AX253: 0.04844898957 | AY253: 0.04844898957 | AZ253: 0.04844898957
E255: Nominal rate of return | V255: =V247*$O$21+V248*$O$22 -> 0.05283828286 | W255: =W247*$O$21+W248*$O$22 -> 0.05558184477 | X255: 0.05407564021 | Y255: 0.05380304414 | Z255: 0.05445303179 | AA255: 0.05476055434 | AB255: 0.05558975887 | AC255: 0.05608178204 | AD255: 0.05617067487 | AE255: 0.0562595677 | AF255: 0.05634846053 | AG255: 0.05688986988 | AH255: 0.05725045593 | AI255: 0.05761115974 | AJ255: 0.05785162895 | AK255: 0.05803221569 | AL255: 0.05809268524 | AM255: 0.05809268524 | AN255: 0.05809268524 | AO255: 0.05809268524 | AP255: 0.05809268524 | AQ255: 0.05809268524 | AR255: 0.05809268524 | AS255: 0.05809268524 | AT255: 0.05809268524 | AU255: 0.05809268524 | AV255: 0.05809268524 | AW255: 0.05809268524 | AX255: 0.05809268524 | AY255: 0.05809268524 | AZ255: 0.05809268524
E256: Real rate of return | V256: =(1+V255)/(1+$O$24)-1 -> 0.02715930035 | W256: 0.02983594612 | X256: 0.02836647825 | Y256: 0.02810053087 | Z256: 0.02873466516 | AA256: 0.02903468716 | AB256: 0.02984366719 | AC256: 0.0303236898 | AD256: 0.03041041451 | AE256: 0.03049713922 | AF256: 0.03058386393 | AG256: 0.03111206817 | AH256: 0.03146385944 | AI256: 0.0318157656 | AJ256: 0.03205036971 | AK256: 0.03222655189 | AL256: 0.03228554658 | AM256: 0.03228554658 | AN256: 0.03228554658 | AO256: 0.03228554658 | AP256: 0.03228554658 | AQ256: 0.03228554658 | AR256: 0.03228554658 | AS256: 0.03228554658 | AT256: 0.03228554658 | AU256: 0.03228554658 | AV256: 0.03228554658 | AW256: 0.03228554658 | AX256: 0.03228554658 | AY256: 0.03228554658 | AZ256: 0.03228554658

Sheet REV - AED
A1: Revenue - AusNet Electricity Distribution
A2: This sheet provides a cash-flow projections for AusNet Electricity Distribution. | Q2: 0 | R2: 1 | S2: 2 | T2: 3 | U2: 4 | V2: 5 | W2: 6 | X2: 7 | Y2: 8 | Z2: 9 | AA2: 10 | AB2: 11 | AC2: 12 | AD2: 13 | AE2: 14 | AF2: 15 | AG2: 16 | AH2: 17 | AI2: 18 | AJ2: 19 | AK2: 20 | AL2: 21 | AM2: 22 | AN2: 23 | AO2: 24 | AP2: 25 | AQ2: 26 | AR2: 27 | AS2: 28 | AT2: 29
Q3: Y0 | R3: Period 1 | V3: Period 2 | AA3: Period 3 | AF3: Period 4 | AK3: Period 5 | AP3: Period 6
K4: Source | L4: Comments | N4: Units | O4: Constants | Q4: 2021-22 | R4: 2022-23 | S4: 2023-24 | T4: 2024-25 | U4: 2025-26 | V4: 2026-27 | W4: 2027-28 | X4: 2028-29 | Y4: 2029-30 | Z4: 2030-31 | AA4: 2031-32 | AB4: 2032-33 | AC4: 2033-34 | AD4: 2034-35 | AE4: 2035-36 | AF4: 2036-37 | AG4: 2037-38 | AH4: 2038-39 | AI4: 2039-40 | AJ4: 2040-41 | AK4: 2041-42 | AL4: 2042-43 | AM4: 2043-44 | AN4: 2044-45 | AO4: 2045-46 | AP4: 2046-47 | AQ4: 2047-48 | AR4: 2048-49 | AS4: 2049-50 | AT4: 2050-51
C6: Inputs
F8: Cumulative inflation index | K8: AusNet D PTRM 2021-26 | O8: =Controls!F50 -> 0.025 | Q8: 1 | R8: =Q8*(1+$O$8) -> 1.025 | S8: =R8*(1+$O$8) -> 1.050625 | T8: 1.076890625 | U8: 1.103812891 | V8: 1.131408213 | W8: 1.159693418 | X8: 1.188685754 | Y8: 1.218402898 | Z8: 1.24886297 | AA8: 1.280084544 | AB8: 1.312086658 | AC8: 1.344888824 | AD8: 1.378511045 | AE8: 1.412973821 | AF8: 1.448298166 | AG8: 1.484505621 | AH8: 1.521618261 | AI8: 1.559658718 | AJ8: 1.598650186 | AK8: 1.63861644 | AL8: 1.679581851 | AM8: 1.721571398 | AN8: 1.764610683 | AO8: 1.80872595 | AP8: 1.853944098 | AQ8: 1.900292701 | AR8: 1.947800018 | AS8: 1.996495019 | AT8: 2.046407394
F10: Return on debt | K10: AusNet D PTRM 2021-26 | R10: =WACC!W47 -> 0.04596551961 | S10: =WACC!X47 -> 0.04583241138 | T10: =WACC!Y47 -> 0.04569910688 | U10: =WACC!Z47 -> 0.04576619339 | V10: =WACC!AA47 -> 0.04593308402 | W10: =WACC!AB47 -> 0.04630016996 | X10: =WACC!AC47 -> 0.04676803848 | Y10: =WACC!AD47 -> 0.047235907 | Z10: =WACC!AE47 -> 0.04770377553 | AA10: =WACC!AF47 -> 0.04817164405 | AB10: =WACC!AG47 -> 0.04907399297 | AC10: =WACC!AH47 -> 0.04967496972 | AD10: =WACC!AI47 -> 0.05027614274 | AE10: =WACC!AJ47 -> 0.05067692475 | AF10: =WACC!AK47 -> 0.05097790265 | AG10: =WACC!AL47 -> 0.05107868524 | AH10: =WACC!AM47 -> 0.05107868524 | AI10: =WACC!AN47 -> 0.05107868524 | AJ10: =WACC!AO47 -> 0.05107868524 | AK10: =WACC!AP47 -> 0.05107868524 | AL10: =WACC!AQ47 -> 0.05107868524 | AM10: =WACC!AR47 -> 0.05107868524 | AN10: =WACC!AS47 -> 0.05107868524 | AO10: =WACC!AT47 -> 0.05107868524 | AP10: =WACC!AU47 -> 0.05107868524 | AQ10: =WACC!AV47 -> 0.05107868524 | AR10: =WACC!AW47 -> 0.05107868524 | AS10: =WACC!AX47 -> 0.05107868524 | AT10: =WACC!AY47 -> 0.05107868524
F11: Return on equity | K11: AusNet D PTRM 2021-26 | R11: 0.05117958154 | S11: 0.05117958154 | T11: 0.05117958154 | U11: 0.05117958154 | V11: 0.05117958154 | W11: 0.05117958154 | X11: 0.05117958154 | Y11: 0.05117958154 | Z11: 0.05117958154 | AA11: 0.05117958154 | AB11: 0.05117958154 | AC11: 0.05117958154 | AD11: 0.05117958154 | AE11: 0.05117958154 | AF11: 0.05117958154 | AG11: 0.05117958154 | AH11: 0.05117958154 | AI11: 0.05117958154 | AJ11: 0.05117958154 | AK11: 0.05117958154 | AL11: 0.05117958154 | AM11: 0.05117958154 | AN11: 0.05117958154 | AO11: 0.05117958154 | AP11: 0.05117958154 | AQ11: 0.05117958154 | AR11: 0.05117958154 | AS11: 0.05117958154 | AT11: 0.05117958154
F13: Debt financing | K13: AusNet D PTRM 2021-26 | O13: 0.6
F14: Equity financing | K14: AusNet D PTRM 2021-26 | O14: 0.4
F16: Corporate tax rate | K16: AusNet D PTRM 2021-26 | O16: 0.3
F17: Value of imputation credits | K17: AusNet D PTRM 2021-26 | O17: 0.585
F18: Imputation credit payout ratio | K18: AusNet D PTRM 2021-26 | O18: 0.9
F20: Nominal rate of return | R20: =WACC!W57 -> 0.0514153902 | S20: =WACC!X57 -> 0.05254101392 | T20: =WACC!Y57 -> 0.05246024614 | U20: =WACC!Z57 -> 0.05330206208 | V20: =WACC!AA57 -> 0.05380141291 | W20: =WACC!AB57 -> 0.05482244572 | X20: =WACC!AC57 -> 0.05550629718 | Y20: =WACC!AD57 -> 0.0557870183 | Z20: =WACC!AE57 -> 0.05606773941 | AA20: =WACC!AF57 -> 0.05634846053 | AB20: =WACC!AG57 -> 0.05688986988 | AC20: =WACC!AH57 -> 0.05725045593 | AD20: =WACC!AI57 -> 0.05761115974 | AE20: =WACC!AJ57 -> 0.05785162895 | AF20: =WACC!AK57 -> 0.05803221569 | AG20: =WACC!AL57 -> 0.05809268524 | AH20: =WACC!AM57 -> 0.05809268524 | AI20: =WACC!AN57 -> 0.05809268524 | AJ20: =WACC!AO57 -> 0.05809268524 | AK20: =WACC!AP57 -> 0.05809268524 | AL20: =WACC!AQ57 -> 0.05809268524 | AM20: =WACC!AR57 -> 0.05809268524 | AN20: =WACC!AS57 -> 0.05809268524 | AO20: =WACC!AT57 -> 0.05809268524 | AP20: =WACC!AU57 -> 0.05809268524 | AQ20: =WACC!AV57 -> 0.05809268524 | AR20: =WACC!AW57 -> 0.05809268524 | AS20: =WACC!AX57 -> 0.05809268524 | AT20: =WACC!AY57 -> 0.05809268524
F21: Real rate of return | R21: =WACC!W58 -> 0.02577111239 | S21: =WACC!X58 -> 0.02686928187 | T21: =WACC!Y58 -> 0.02679048404 | U21: =WACC!Z58 -> 0.02761176788 | V21: =WACC!AA58 -> 0.02809893943 | W21: =WACC!AB58 -> 0.029095069 | X21: =WACC!AC58 -> 0.02976224116 | Y21: =WACC!AD58 -> 0.03003611541 | Z21: =WACC!AE58 -> 0.03030998967 | AA21: =WACC!AF58 -> 0.03058386393 | AB21: =WACC!AG58 -> 0.03111206817 | AC21: =WACC!AH58 -> 0.03146385944 | AD21: =WACC!AI58 -> 0.0318157656 | AE21: =WACC!AJ58 -> 0.03205036971 | AF21: =WACC!AK58 -> 0.03222655189 | AG21: =WACC!AL58 -> 0.03228554658 | AH21: =WACC!AM58 -> 0.03228554658 | AI21: =WACC!AN58 -> 0.03228554658 | AJ21: =WACC!AO58 -> 0.03228554658 | AK21: =WACC!AP58 -> 0.03228554658 | AL21: =WACC!AQ58 -> 0.03228554658 | AM21: =WACC!AR58 -> 0.03228554658 | AN21: =WACC!AS58 -> 0.03228554658 | AO21: =WACC!AT58 -> 0.03228554658 | AP21: =WACC!AU58 -> 0.03228554658 | AQ21: =WACC!AV58 -> 0.03228554658 | AR21: =WACC!AW58 -> 0.03228554658 | AS21: =WACC!AX58 -> 0.03228554658 | AT21: =WACC!AY58 -> 0.03228554658
F23: Discount index | Q23: 1 | R23: =Q23*(1+R20) -> 1.05141539 | S23: =R23*(1+S20) -> 1.106657821 | T23: 1.164713363 | U23: 1.226794986 | V23: 1.29279829 | W23: 1.363672654 | X23: 1.439365074 | Y23: 1.51966296 | Z23: 1.604867026 | AA23: 1.695298813 | AB23: 1.791744141 | AC23: 1.89432231 | AD23: 2.003456416 | AE23: 2.119359633 | AF23: 2.242350768 | AG23: 2.372614946 | AH23: 2.510446519 | AI23: 2.656285098 | AJ23: 2.810595832 | AK23: 2.973870891 | AL23: 3.146631037 | AM23: 3.329427283 | AN23: 3.522842655 | AO23: 3.727494044 | AP23: 3.944034182 | AQ23: 4.173153719 | AR23: 4.415583424 | AS23: 4.672096522 | AT23: 4.943511155
F24: Discount factor | Q24: =1/Q23 -> 1 | R24: =1/R23 -> 0.95109888 | S24: =1/S23 -> 0.9036216807 | T24: 0.8585803445 | U24: 0.8151321215 | V24: 0.7735158746 | W24: 0.7333138176 | X24: 0.6947507746 | Y24: 0.6580406489 | Z24: 0.6231045835 | AA24: 0.5898665135 | AB24: 0.558115401 | AC24: 0.5278932706 | AD24: 0.4991373869 | AE24: 0.4718406374 | AF24: 0.4459605581 | AG24: 0.4214758918 | AH24: 0.3983355122 | AI24: =1/AI23 -> 0.3764656138 | AJ24: =1/AJ23 -> 0.3557964431 | AK24: 0.3362620761 | AL24: 0.3178002086 | AM24: 0.3003519569 | AN24: 0.2838616703 | AO24: 0.2682767533 | AP24: 0.2535474983 | AQ24: 0.2396269266 | AR24: 0.2264706391 | AS24: 0.214036674 | AT24: 0.2022853734
F26: Lifetime of new capex | L26: For depreciation | N26: Years | O26: 40
F27: Diminishing value | L27: For tax depreciation | O27: =2/O26 -> 0.05
F29: Capex program
F31: Net capex | K31: AusNet D PTRM | L31: Real | M31: $m | R31: 320.0077769 | S31: 265.5310239 | T31: 234.0895524 | U31: 229.9212583 | V31: =U149*Controls!$F$11 -> 250.44593 | W31: =V149*Controls!$F$11 -> 250.7272081 | X31: =W149*Controls!$F$11 -> 251.4003398 | Y31: =X149*Controls!$F$11 -> 252.4066495 | Z31: =Y149*Controls!$F$11 -> 254.0797094 | AA31: =Z149*Controls!$F$11 -> 256.3131205 | AB31: =AA149*Controls!$F$11 -> 258.9726631 | AC31: =AB149*Controls!$F$11 -> 261.6237011 | AD31: =AC149*Controls!$F$11 -> 264.207488 | AE31: =AD149*Controls!$F$11 -> 266.6516906 | AF31: =AE149*Controls!$F$11 -> 268.9408373 | AG31: =AF149*Controls!$F$11 -> 271.0487173 | AH31: =AG149*Controls!$F$11 -> 272.9176387 | AI31: =AH149*Controls!$F$11 -> 274.5234363 | AJ31: =AI149*Controls!$F$11 -> 278.0011118 | AK31: =AJ149*Controls!$F$11 -> 282.9337854 | AL31: =AK149*Controls!$F$11 -> 287.7866475 | AM31: =AL149*Controls!$F$11 -> 292.5171652 | AN31: =AM149*Controls!$F$11 -> 297.1163835 | AO31: =AN149*Controls!$F$11 -> 301.5978382 | AP31: =AO149*Controls!$F$11 -> 305.9506287 | AQ31: =AP149*Controls!$F$11 -> 310.1440402 | AR31: =AQ149*Controls!$F$11 -> 314.1627939 | AS31: =AR149*Controls!$F$11 -> 317.9929933 | AT31: =AS149*Controls!$F$11 -> 321.6202712
F32: Lifetime of new capex | R32: =$O$26 -> 40 | S32: =$O$26 -> 40 | T32: 40 | U32: 40 | V32: 40 | W32: 40 | X32: 40 | Y32: 40 | Z32: 40 | AA32: 40 | AB32: 40 | AC32: 40 | AD32: 40 | AE32: 40 | AF32: 40 | AG32: 40 | AH32: 40 | AI32: 40 | AJ32: 40 | AK32: 40 | AL32: 40 | AM32: 40 | AN32: 40 | AO32: 40 | AP32: 40 | AQ32: 40 | AR32: 40 | AS32: 40 | AT32: 40
F33: Dimishing value for new capex | L33: For tax | R33: =$O$27 -> 0.05 | S33: =$O$27 -> 0.05 | T33: 0.05 | U33: 0.05 | V33: 0.05 | W33: 0.05 | X33: 0.05 | Y33: 0.05 | Z33: 0.05 | AA33: 0.05 | AB33: 0.05 | AC33: 0.05 | AD33: 0.05 | AE33: 0.05 | AF33: 0.05 | AG33: 0.05 | AH33: 0.05 | AI33: 0.05 | AJ33: 0.05 | AK33: 0.05 | AL33: 0.05 | AM33: 0.05 | AN33: 0.05 | AO33: 0.05 | AP33: 0.05 | AQ33: 0.05 | AR33: 0.05 | AS33: 0.05 | AT33: 0.05
F34: Net capex | L34: Nominal | V34: =V154 -> 287.3100124 | W34: =W154 -> 294.9663036 | X34: 303.2504122 | Y34: =Y154 -> 312.1173717 | Z34: 322.0836862 | AA34: 333.081998 | AB34: 345.039946 | AC34: 357.3472775 | AD34: 369.961432 | AE34: 382.7620782 | AF34: 395.732981 | AG34: 408.8171685 | AH34: 421.9269246 | AI34: 435.0197022 | AJ34: 451.5438157 | AK34: 471.0446128 | AL34: 491.1020382 | AM34: 511.6539343 | AN34: 532.6910837 | AO34: 554.2438936 | AP34: 576.2990559 | AQ34: 598.8028568 | AR34: 621.7260143 | AS34: 645.0386012 | AT34: 668.7063289
C37: RAB (Real)
F39: Opening RAB | R39: =Q149 -> 4941.453797 | S39: =R149 -> 5016.063674 | T39: =S149 -> 5037.488112 | U39: 5024.557302 | V39: =U149 -> 5008.745122 | W39: =V149 -> 5014.370489 | X39: =W149 -> 5027.832657 | Y39: 5047.958152 | Z39: =Y149 -> 5081.418193 | AA39: 5126.084867 | AB39: 5179.273878 | AC39: 5232.2928 | AD39: 5283.966749 | AE39: 5332.849108 | AF39: 5378.630456 | AG39: 5420.786596 | AH39: 5458.163729 | AI39: 5490.278569 | AJ39: 5559.829671 | AK39: =AJ149 -> 5658.479726 | AL39: =AK149 -> 5755.533606 | AM39: =AL149 -> 5850.140683 | AN39: =AM149 -> 5942.121863 | AO39: =AN149 -> 6031.747853 | AP39: =AO149 -> 6118.800649 | AQ39: =AP149 -> 6202.665974 | AR39: =AQ149 -> 6283.038265 | AS39: =AR149 -> 6359.639598 | AT39: =AS149 -> 6432.182645
F40: Net capex | K40: AusNet D PTRM 2021-26 | R40: =R31*(1+R21)^0.5 -> 324.1050254 | S40: 269.0746917 | T40: 237.2045137 | U40: 233.0739101 | V40: =V31*(1+V21)^0.5 -> 253.9401863 | W40: =W31*(1+W21)^0.5 -> 254.3485191 | X40: 255.1140293 | Y40: 256.1692625 | Z40: 257.9015424 | AA40: 260.2031244 | AB40: 262.9703945 | AC40: 265.7076712 | AD40: 268.377561 | AE40: 270.8911322 | AF40: 273.2399931 | AG40: 275.389438 | AH40: 277.2882893 | AI40: 278.919803 | AJ40: 282.4531719 | AK40: 287.46484 | AL40: 292.3954184 | AM40: 297.2016932 | AN40: 301.8745658 | AO40: 306.427789 | AP40: 310.8502875 | AQ40: 315.1108545 | AR40: 319.1939667 | AS40: 323.0855049 | AT40: 326.7708721
F41: Straight-line depreciation (opening RAB) | K41: AusNet D PTRM 2021-26 | R41: 249.4951491 | S41: 247.6502538 | T41: 250.1353228 | U41: 248.886091 | V41: 242.0536705 | W41: 228.3570227 | X41: 216.1741973 | Y41: 197.5847184 | Z41: 181.7583726 | AA41: 169.1297896 | AB41: 165.5928317 | AC41: 163.1344892 | AD41: 161.9907817 | AE41: 160.9390722 | AF41: 160.1896191 | AG41: 160.3418535 | AH41: 160.6800576 | AI41: 118.0122225 | AJ41: 85.49661046 | AK41: 85.03110985 | AL41: 85.2138246 | AM41: 85.33306661 | AN41: 84.9332207 | AO41: 84.51969129 | AP41: 84.48089536 | AQ41: 84.48089536 | AR41: 84.48089536 | AS41: 84.48089536 | AT41: 84.48089536
F43: Future capex calculations
F44: Starting RAB (future capex) | L44: RAB | O44: 5 | R44: =IF($O44=R$2,R$40,IF(R$2>$O44,Q44-Q45,0)) -> 0 | S44: =IF($O44=S$2,S$40,IF(S$2>$O44,R44-R45,0)) -> 0 | T44: =IF($O44=T$2,T$40,IF(T$2>$O44,S44-S45,0)) -> 0 | U44: =IF($O44=U$2,U$40,IF(U$2>$O44,T44-T45,0)) -> 0 | V44: =IF($O44=V$2,V$40,IF(V$2>$O44,U44-U45,0)) -> 253.9401863 | W44: =IF($O44=W$2,W$40,IF(W$2>$O44,V44-V45,0)) -> 247.6790381 | X44: =IF($O44=X$2,X$40,IF(X$2>$O44,W44-W45,0)) -> 241.4178898 | Y44: =IF($O44=Y$2,Y$40,IF(Y$2>$O44,X44-X45,0)) -> 235.1567416 | Z44: =IF($O44=Z$2,Z$40,IF(Z$2>$O44,Y44-Y45,0)) -> 228.8955933 | AA44: =IF($O44=AA$2,AA$40,IF(AA$2>$O44,Z44-Z45,0)) -> 222.6344451 | AB44: =IF($O44=AB$2,AB$40,IF(AB$2>$O44,AA44-AA45,0)) -> 216.3732968 | AC44: =IF($O44=AC$2,AC$40,IF(AC$2>$O44,AB44-AB45,0)) -> 210.1121486 | AD44: =IF($O44=AD$2,AD$40,IF(AD$2>$O44,AC44-AC45,0)) -> 203.8510003 | AE44: =IF($O44=AE$2,AE$40,IF(AE$2>$O44,AD44-AD45,0)) -> 197.5898521 | AF44: =IF($O44=AF$2,AF$40,IF(AF$2>$O44,AE44-AE45,0)) -> 191.3287038 | AG44: =IF($O44=AG$2,AG$40,IF(AG$2>$O44,AF44-AF45,0)) -> 185.0675556 | AH44: =IF($O44=AH$2,AH$40,IF(AH$2>$O44,AG44-AG45,0)) -> 178.8064073 | AI44: =IF($O44=AI$2,AI$40,IF(AI$2>$O44,AH44-AH45,0)) -> 172.5452591 | AJ44: =IF($O44=AJ$2,AJ$40,IF(AJ$2>$O44,AI44-AI45,0)) -> 166.2841108 | AK44: =IF($O44=AK$2,AK$40,IF(AK$2>$O44,AJ44-AJ45,0)) -> 160.0229626 | AL44: =IF($O44=AL$2,AL$40,IF(AL$2>$O44,AK44-AK45,0)) -> 153.7618143 | AM44: =IF($O44=AM$2,AM$40,IF(AM$2>$O44,AL44-AL45,0)) -> 147.5006661 | AN44: =IF($O44=AN$2,AN$40,IF(AN$2>$O44,AM44-AM45,0)) -> 141.2395178 | AO44: =IF($O44=AO$2,AO$40,IF(AO$2>$O44,AN44-AN45,0)) -> 134.9783696 | AP44: =IF($O44=AP$2,AP$40,IF(AP$2>$O44,AO44-AO45,0)) -> 128.7172213 | AQ44: =IF($O44=AQ$2,AQ$40,IF(AQ$2>$O44,AP44-AP45,0)) -> 122.4560731 | AR44: =IF($O44=AR$2,AR$40,IF(AR$2>$O44,AQ44-AQ45,0)) -> 116.1949248 | AS44: =IF($O44=AS$2,AS$40,IF(AS$2>$O44,AR44-AR45,0)) -> 109.9337766 | AT44: =IF($O44=AT$2,AT$40,IF(AT$2>$O44,AS44-AS45,0)) -> 103.6726283
F45: Straight-line depreciation (future capex) | L45: DEP | O45: 5 | R45: =IF(R$2>=$O45,IF(R44-HLOOKUP($O45,$R$2:$AT$33,30,FALSE)/HLOOKUP($O45,$R$2:$AT$33,31,FALSE)<=0,R44,HLOOKUP($O45,$R$2:$AT$33,30,FALSE)/HLOOKUP($O45,$R$2:$AT$33,31,FALSE)),0) -> 0 | S45: 0 | T45: 0 | U45: 0 | V45: 6.26114825 | W45: 6.26114825 | X45: 6.26114825 | Y45: 6.26114825 | Z45: 6.26114825 | AA45: 6.26114825 | AB45: 6.26114825 | AC45: 6.26114825 | AD45: 6.26114825 | AE45: 6.26114825 | AF45: 6.26114825 | AG45: 6.26114825 | AH45: 6.26114825 | AI45: 6.26114825 | AJ45: 6.26114825 | AK45: 6.26114825 | AL45: 6.26114825 | AM45: 6.26114825 | AN45: 6.26114825 | AO45: 6.26114825 | AP45: 6.26114825 | AQ45: 6.26114825 | AR45: 6.26114825 | AS45: 6.26114825 | AT45: 6.26114825
F46: Starting RAB (future capex) | L46: RAB | O46: 6 | R46: =IF($O46=R$2,R$40,IF(R$2>$O46,Q46-Q47,0)) -> 0 | S46: =IF($O46=S$2,S$40,IF(S$2>$O46,R46-R47,0)) -> 0 | T46: =IF($O46=T$2,T$40,IF(T$2>$O46,S46-S47,0)) -> 0 | U46: 0 | V46: 0 | W46: 254.3485191 | X46: 248.0803389 | Y46: 241.8121587 | Z46: 235.5439785 | AA46: 229.2757983 | AB46: 223.0076181 | AC46: 216.7394379 | AD46: 210.4712577 | AE46: 204.2030775 | AF46: 197.9348973 | AG46: 191.6667171 | AH46: 185.3985369 | AI46: 179.1303567 | AJ46: 172.8621765 | AK46: 166.5939963 | AL46: 160.3258161 | AM46: 154.0576359 | AN46: 147.7894557 | AO46: 141.5212755 | AP46: 135.2530953 | AQ46: 128.9849151 | AR46: 122.7167349 | AS46: 116.4485547 | AT46: 110.1803745
F47: Straight-line depreciation (future capex) | L47: DEP | O47: 6 | R47: =IF(R$2>=$O47,IF(R46-HLOOKUP($O47,$R$2:$AT$33,30,FALSE)/HLOOKUP($O47,$R$2:$AT$33,31,FALSE)<=0,R46,HLOOKUP($O47,$R$2:$AT$33,30,FALSE)/HLOOKUP($O47,$R$2:$AT$33,31,FALSE)),0) -> 0 | S47: 0 | T47: 0 | U47: 0 | V47: 0 | W47: 6.268180203 | X47: 6.268180203 | Y47: 6.268180203 | Z47: 6.268180203 | AA47: 6.268180203 | AB47: 6.268180203 | AC47: 6.268180203 | AD47: 6.268180203 | AE47: 6.268180203 | AF47: 6.268180203 | AG47: 6.268180203 | AH47: 6.268180203 | AI47: 6.268180203 | AJ47: 6.268180203 | AK47: 6.268180203 | AL47: 6.268180203 | AM47: 6.268180203 | AN47: 6.268180203 | AO47: 6.268180203 | AP47: 6.268180203 | AQ47: 6.268180203 | AR47: 6.268180203 | AS47: 6.268180203 | AT47: 6.268180203
F48: Starting RAB (future capex) | L48: RAB | O48: 7 | R48: =IF($O48=R$2,R$40,IF(R$2>$O48,Q48-Q49,0)) -> 0 | S48: 0 | T48: 0 | U48: 0 | V48: 0 | W48: 0 | X48: 255.1140293 | Y48: 248.8290208 | Z48: 242.5440123 | AA48: 236.2590038 | AB48: 229.9739953 | AC48: 223.6889868 | AD48: 217.4039783 | AE48: 211.1189698 | AF48: 204.8339613 | AG48: 198.5489528 | AH48: 192.2639443 | AI48: 185.9789358 | AJ48: 179.6939273 | AK48: 173.4089188 | AL48: 167.1239103 | AM48: 160.8389018 | AN48: 154.5538933 | AO48: 148.2688848 | AP48: 141.9838763 | AQ48: 135.6988679 | AR48: 129.4138594 | AS48: 123.1288509 | AT48: 116.8438424
F49: Straight-line depreciation (future capex) | L49: DEP | O49: 7 | R49: =IF(R$2>=$O49,IF(R48-HLOOKUP($O49,$R$2:$AT$33,30,FALSE)/HLOOKUP($O49,$R$2:$AT$33,31,FALSE)<=0,R48,HLOOKUP($O49,$R$2:$AT$33,30,FALSE)/HLOOKUP($O49,$R$2:$AT$33,31,FALSE)),0) -> 0 | S49: 0 | T49: 0 | U49: 0 | V49: 0 | W49: 0 | X49: 6.285008496 | Y49: 6.285008496 | Z49: 6.285008496 | AA49: 6.285008496 | AB49: 6.285008496 | AC49: 6.285008496 | AD49: 6.285008496 | AE49: 6.285008496 | AF49: 6.285008496 | AG49: 6.285008496 | AH49: 6.285008496 | AI49: 6.285008496 | AJ49: 6.285008496 | AK49: 6.285008496 | AL49: 6.285008496 | AM49: 6.285008496 | AN49: 6.285008496 | AO49: 6.285008496 | AP49: 6.285008496 | AQ49: 6.285008496 | AR49: 6.285008496 | AS49: 6.285008496 | AT49: 6.285008496
F50: Starting RAB (future capex) | L50: RAB | O50: 8 | R50: =IF($O50=R$2,R$40,IF(R$2>$O50,Q50-Q51,0)) -> 0 | S50: 0 | T50: 0 | U50: 0 | V50: 0 | W50: 0 | X50: 0 | Y50: 256.1692625 | Z50: 249.8590963 | AA50: 243.5489301 | AB50: 237.2387638 | AC50: 230.9285976 | AD50: 224.6184314 | AE50: 218.3082651 | AF50: 211.9980989 | AG50: 205.6879326 | AH50: 199.3777664 | AI50: 193.0676002 | AJ50: 186.7574339 | AK50: 180.4472677 | AL50: 174.1371015 | AM50: 167.8269352 | AN50: 161.516769 | AO50: 155.2066028 | AP50: 148.8964365 | AQ50: 142.5862703 | AR50: 136.276104 | AS50: 129.9659378 | AT50: 123.6557716
F51: Straight-line depreciation (future capex) | L51: DEP | O51: 8 | R51: =IF(R$2>=$O51,IF(R50-HLOOKUP($O51,$R$2:$AT$33,30,FALSE)/HLOOKUP($O51,$R$2:$AT$33,31,FALSE)<=0,R50,HLOOKUP($O51,$R$2:$AT$33,30,FALSE)/HLOOKUP($O51,$R$2:$AT$33,31,FALSE)),0) -> 0 | S51: 0 | T51: 0 | U51: 0 | V51: 0 | W51: 0 | X51: 0 | Y51: 6.310166236 | Z51: 6.310166236 | AA51: 6.310166236 | AB51: 6.310166236 | AC51: 6.310166236 | AD51: 6.310166236 | AE51: 6.310166236 | AF51: 6.310166236 | AG51: 6.310166236 | AH51: 6.310166236 | AI51: 6.310166236 | AJ51: 6.310166236 | AK51: 6.310166236 | AL51: 6.310166236 | AM51: 6.310166236 | AN51: 6.310166236 | AO51: 6.310166236 | AP51: 6.310166236 | AQ51: 6.310166236 | AR51: 6.310166236 | AS51: 6.310166236 | AT51: 6.310166236
F52: Starting RAB (future capex) | L52: RAB | O52: 9 | R52: =IF($O52=R$2,R$40,IF(R$2>$O52,Q52-Q53,0)) -> 0 | S52: 0 | T52: 0 | U52: 0 | V52: 0 | W52: 0 | X52: 0 | Y52: 0 | Z52: 257.9015424 | AA52: 251.5495496 | AB52: 245.1975569 | AC52: 238.8455642 | AD52: 232.4935714 | AE52: 226.1415787 | AF52: 219.789586 | AG52: 213.4375932 | AH52: 207.0856005 | AI52: 200.7336078 | AJ52: 194.381615 | AK52: 188.0296223 | AL52: 181.6776295 | AM52: 175.3256368 | AN52: 168.9736441 | AO52: 162.6216513 | AP52: 156.2696586 | AQ52: 149.9176659 | AR52: 143.5656731 | AS52: 137.2136804 | AT52: 130.8616877
F53: Straight-line depreciation (future capex) | L53: DEP | O53: 9 | R53: =IF(R$2>=$O53,IF(R52-HLOOKUP($O53,$R$2:$AT$33,30,FALSE)/HLOOKUP($O53,$R$2:$AT$33,31,FALSE)<=0,R52,HLOOKUP($O53,$R$2:$AT$33,30,FALSE)/HLOOKUP($O53,$R$2:$AT$33,31,FALSE)),0) -> 0 | S53: 0 | T53: 0 | U53: 0 | V53: 0 | W53: 0 | X53: 0 | Y53: 0 | Z53: 6.351992736 | AA53: 6.351992736 | AB53: 6.351992736 | AC53: 6.351992736 | AD53: 6.351992736 | AE53: 6.351992736 | AF53: 6.351992736 | AG53: 6.351992736 | AH53: 6.351992736 | AI53: 6.351992736 | AJ53: 6.351992736 | AK53: 6.351992736 | AL53: 6.351992736 | AM53: 6.351992736 | AN53: 6.351992736 | AO53: 6.351992736 | AP53: 6.351992736 | AQ53: 6.351992736 | AR53: 6.351992736 | AS53: 6.351992736 | AT53: 6.351992736
F54: Starting RAB (future capex) | L54: RAB | O54: 10 | R54: =IF($O54=R$2,R$40,IF(R$2>$O54,Q54-Q55,0)) -> 0 | S54: 0 | T54: 0 | U54: 0 | V54: 0 | W54: 0 | X54: 0 | Y54: 0 | Z54: 0 | AA54: 260.2031244 | AB54: 253.7952964 | AC54: 247.3874684 | AD54: 240.9796404 | AE54: 234.5718124 | AF54: 228.1639844 | AG54: 221.7561564 | AH54: 215.3483284 | AI54: 208.9405004 | AJ54: 202.5326723 | AK54: 196.1248443 | AL54: 189.7170163 | AM54: 183.3091883 | AN54: 176.9013603 | AO54: 170.4935323 | AP54: 164.0857043 | AQ54: 157.6778763 | AR54: 151.2700482 | AS54: 144.8622202 | AT54: 138.4543922
F55: Straight-line depreciation (future capex) | L55: DEP | O55: 10 | R55: =IF(R$2>=$O55,IF(R54-HLOOKUP($O55,$R$2:$AT$33,30,FALSE)/HLOOKUP($O55,$R$2:$AT$33,31,FALSE)<=0,R54,HLOOKUP($O55,$R$2:$AT$33,30,FALSE)/HLOOKUP($O55,$R$2:$AT$33,31,FALSE)),0) -> 0 | S55: 0 | T55: 0 | U55: 0 | V55: 0 | W55: 0 | X55: 0 | Y55: 0 | Z55: 0 | AA55: 6.407828012 | AB55: 6.407828012 | AC55: 6.407828012 | AD55: 6.407828012 | AE55: 6.407828012 | AF55: 6.407828012 | AG55: 6.407828012 | AH55: 6.407828012 | AI55: 6.407828012 | AJ55: 6.407828012 | AK55: 6.407828012 | AL55: 6.407828012 | AM55: 6.407828012 | AN55: 6.407828012 | AO55: 6.407828012 | AP55: 6.407828012 | AQ55: 6.407828012 | AR55: 6.407828012 | AS55: 6.407828012 | AT55: 6.407828012
F56: Starting RAB (future capex) | L56: RAB | O56: 11 | R56: =IF($O56=R$2,R$40,IF(R$2>$O56,Q56-Q57,0)) -> 0 | S56: 0 | T56: 0 | U56: 0 | V56: 0 | W56: 0 | X56: 0 | Y56: 0 | Z56: 0 | AA56: 0 | AB56: 262.9703945 | AC56: 256.4960779 | AD56: 250.0217613 | AE56: 243.5474447 | AF56: 237.0731281 | AG56: 230.5988116 | AH56: 224.124495 | AI56: 217.6501784 | AJ56: 211.1758618 | AK56: 204.7015453 | AL56: 198.2272287 | AM56: 191.7529121 | AN56: 185.2785955 | AO56: 178.8042789 | AP56: 172.3299624 | AQ56: 165.8556458 | AR56: 159.3813292 | AS56: 152.9070126 | AT56: 146.432696
F57: Straight-line depreciation (future capex) | L57: DEP | O57: 11 | R57: =IF(R$2>=$O57,IF(R56-HLOOKUP($O57,$R$2:$AT$33,30,FALSE)/HLOOKUP($O57,$R$2:$AT$33,31,FALSE)<=0,R56,HLOOKUP($O57,$R$2:$AT$33,30,FALSE)/HLOOKUP($O57,$R$2:$AT$33,31,FALSE)),0) -> 0 | S57: 0 | T57: 0 | U57: 0 | V57: 0 | W57: 0 | X57: 0 | Y57: 0 | Z57: 0 | AA57: 0 | AB57: 6.474316579 | AC57: 6.474316579 | AD57: 6.474316579 | AE57: 6.474316579 | AF57: 6.474316579 | AG57: 6.474316579 | AH57: 6.474316579 | AI57: 6.474316579 | AJ57: 6.474316579 | AK57: 6.474316579 | AL57: 6.474316579 | AM57: 6.474316579 | AN57: 6.474316579 | AO57: 6.474316579 | AP57: 6.474316579 | AQ57: 6.474316579 | AR57: 6.474316579 | AS57: 6.474316579 | AT57: 6.474316579
F58: Starting RAB (future capex) | L58: RAB | O58: 12 | R58: =IF($O58=R$2,R$40,IF(R$2>$O58,Q58-Q59,0)) -> 0 | S58: 0 | T58: 0 | U58: 0 | V58: 0 | W58: 0 | X58: 0 | Y58: 0 | Z58: 0 | AA58: 0 | AB58: 0 | AC58: 265.7076712 | AD58: 259.1670786 | AE58: 252.6264861 | AF58: 246.0858936 | AG58: 239.5453011 | AH58: 233.0047085 | AI58: 226.464116 | AJ58: 219.9235235 | AK58: 213.382931 | AL58: 206.8423384 | AM58: 200.3017459 | AN58: 193.7611534 | AO58: 187.2205609 | AP58: 180.6799683 | AQ58: 174.1393758 | AR58: 167.5987833 | AS58: 161.0581907 | AT58: 154.5175982
F59: Straight-line depreciation (future capex) | L59: DEP | O59: 12 | R59: =IF(R$2>=$O59,IF(R58-HLOOKUP($O59,$R$2:$AT$33,30,FALSE)/HLOOKUP($O59,$R$2:$AT$33,31,FALSE)<=0,R58,HLOOKUP($O59,$R$2:$AT$33,30,FALSE)/HLOOKUP($O59,$R$2:$AT$33,31,FALSE)),0) -> 0 | S59: 0 | T59: 0 | U59: 0 | V59: 0 | W59: 0 | X59: 0 | Y59: 0 | Z59: 0 | AA59: 0 | AB59: 0 | AC59: 6.540592527 | AD59: 6.540592527 | AE59: 6.540592527 | AF59: 6.540592527 | AG59: 6.540592527 | AH59: 6.540592527 | AI59: 6.540592527 | AJ59: 6.540592527 | AK59: 6.540592527 | AL59: 6.540592527 | AM59: 6.540592527 | AN59: 6.540592527 | AO59: 6.540592527 | AP59: 6.540592527 | AQ59: 6.540592527 | AR59: 6.540592527 | AS59: 6.540592527 | AT59: 6.540592527
F60: Starting RAB (future capex) | L60: RAB | O60: 13 | R60: =IF($O60=R$2,R$40,IF(R$2>$O60,Q60-Q61,0)) -> 0 | S60: 0 | T60: 0 | U60: 0 | V60: 0 | W60: 0 | X60: 0 | Y60: 0 | Z60: 0 | AA60: 0 | AB60: 0 | AC60: 0 | AD60: 268.377561 | AE60: 261.7723738 | AF60: 255.1671865 | AG60: 248.5619993 | AH60: 241.9568121 | AI60: 235.3516249 | AJ60: 228.7464377 | AK60: 222.1412505 | AL60: 215.5360633 | AM60: 208.9308761 | AN60: 202.3256889 | AO60: 195.7205017 | AP60: 189.1153145 | AQ60: 182.5101273 | AR60: 175.9049401 | AS60: 169.2997529 | AT60: 162.6945657
F61: Straight-line depreciation (future capex) | L61: DEP | O61: 13 | R61: =IF(R$2>=$O61,IF(R60-HLOOKUP($O61,$R$2:$AT$33,30,FALSE)/HLOOKUP($O61,$R$2:$AT$33,31,FALSE)<=0,R60,HLOOKUP($O61,$R$2:$AT$33,30,FALSE)/HLOOKUP($O61,$R$2:$AT$33,31,FALSE)),0) -> 0 | S61: 0 | T61: 0 | U61: 0 | V61: 0 | W61: 0 | X61: 0 | Y61: 0 | Z61: 0 | AA61: 0 | AB61: 0 | AC61: 0 | AD61: 6.6051872 | AE61: 6.6051872 | AF61: 6.6051872 | AG61: 6.6051872 | AH61: 6.6051872 | AI61: 6.6051872 | AJ61: 6.6051872 | AK61: 6.6051872 | AL61: 6.6051872 | AM61: 6.6051872 | AN61: 6.6051872 | AO61: 6.6051872 | AP61: 6.6051872 | AQ61: 6.6051872 | AR61: 6.6051872 | AS61: 6.6051872 | AT61: 6.6051872
F62: Starting RAB (future capex) | L62: RAB | O62: 14 | R62: =IF($O62=R$2,R$40,IF(R$2>$O62,Q62-Q63,0)) -> 0 | S62: 0 | T62: 0 | U62: 0 | V62: 0 | W62: 0 | X62: 0 | Y62: 0 | Z62: 0 | AA62: 0 | AB62: 0 | AC62: 0 | AD62: 0 | AE62: 270.8911322 | AF62: 264.22484 | AG62: 257.5585477 | AH62: 250.8922554 | AI62: 244.2259632 | AJ62: 237.5596709 | AK62: 230.8933786 | AL62: 224.2270864 | AM62: 217.5607941 | AN62: 210.8945018 | AO62: 204.2282096 | AP62: 197.5619173 | AQ62: 190.895625 | AR62: 184.2293328 | AS62: 177.5630405 | AT62: 170.8967483
F63: Straight-line depreciation (future capex) | L63: DEP | O63: 14 | R63: =IF(R$2>=$O63,IF(R62-HLOOKUP($O63,$R$2:$AT$33,30,FALSE)/HLOOKUP($O63,$R$2:$AT$33,31,FALSE)<=0,R62,HLOOKUP($O63,$R$2:$AT$33,30,FALSE)/HLOOKUP($O63,$R$2:$AT$33,31,FALSE)),0) -> 0 | S63: 0 | T63: 0 | U63: 0 | V63: 0 | W63: 0 | X63: 0 | Y63: 0 | Z63: 0 | AA63: 0 | AB63: 0 | AC63: 0 | AD63: 0 | AE63: 6.666292265 | AF63: 6.666292265 | AG63: 6.666292265 | AH63: 6.666292265 | AI63: 6.666292265 | AJ63: 6.666292265 | AK63: 6.666292265 | AL63: 6.666292265 | AM63: 6.666292265 | AN63: 6.666292265 | AO63: 6.666292265 | AP63: 6.666292265 | AQ63: 6.666292265 | AR63: 6.666292265 | AS63: 6.666292265 | AT63: 6.666292265
F64: Starting RAB (future capex) | L64: RAB | O64: 15 | R64: =IF($O64=R$2,R$40,IF(R$2>$O64,Q64-Q65,0)) -> 0 | S64: 0 | T64: 0 | U64: 0 | V64: 0 | W64: 0 | X64: 0 | Y64: 0 | Z64: 0 | AA64: 0 | AB64: 0 | AC64: 0 | AD64: 0 | AE64: 0 | AF64: 273.2399931 | AG64: 266.5164722 | AH64: 259.7929512 | AI64: 253.0694303 | AJ64: 246.3459094 | AK64: 239.6223884 | AL64: 232.8988675 | AM64: 226.1753466 | AN64: 219.4518256 | AO64: 212.7283047 | AP64: 206.0047838 | AQ64: 199.2812628 | AR64: 192.5577419 | AS64: 185.834221 | AT64: 179.1107001
F65: Straight-line depreciation (future capex) | L65: DEP | O65: 15 | R65: =IF(R$2>=$O65,IF(R64-HLOOKUP($O65,$R$2:$AT$33,30,FALSE)/HLOOKUP($O65,$R$2:$AT$33,31,FALSE)<=0,R64,HLOOKUP($O65,$R$2:$AT$33,30,FALSE)/HLOOKUP($O65,$R$2:$AT$33,31,FALSE)),0) -> 0 | S65: 0 | T65: 0 | U65: 0 | V65: 0 | W65: 0 | X65: 0 | Y65: 0 | Z65: 0 | AA65: 0 | AB65: 0 | AC65: 0 | AD65: 0 | AE65: 0 | AF65: 6.723520932 | AG65: 6.723520932 | AH65: 6.723520932 | AI65: 6.723520932 | AJ65: 6.723520932 | AK65: 6.723520932 | AL65: 6.723520932 | AM65: 6.723520932 | AN65: 6.723520932 | AO65: 6.723520932 | AP65: 6.723520932 | AQ65: 6.723520932 | AR65: 6.723520932 | AS65: 6.723520932 | AT65: 6.723520932
F66: Starting RAB (future capex) | L66: RAB | O66: 16 | R66: =IF($O66=R$2,R$40,IF(R$2>$O66,Q66-Q67,0)) -> 0 | S66: 0 | T66: 0 | U66: 0 | V66: 0 | W66: 0 | X66: 0 | Y66: 0 | Z66: 0 | AA66: 0 | AB66: 0 | AC66: 0 | AD66: 0 | AE66: 0 | AF66: 0 | AG66: 275.389438 | AH66: 268.61322 | AI66: 261.8370021 | AJ66: 255.0607842 | AK66: 248.2845662 | AL66: 241.5083483 | AM66: 234.7321304 | AN66: 227.9559124 | AO66: 221.1796945 | AP66: 214.4034766 | AQ66: 207.6272586 | AR66: 200.8510407 | AS66: 194.0748228 | AT66: 187.2986048
F67: Straight-line depreciation (future capex) | L67: DEP | O67: 16 | R67: =IF(R$2>=$O67,IF(R66-HLOOKUP($O67,$R$2:$AT$33,30,FALSE)/HLOOKUP($O67,$R$2:$AT$33,31,FALSE)<=0,R66,HLOOKUP($O67,$R$2:$AT$33,30,FALSE)/HLOOKUP($O67,$R$2:$AT$33,31,FALSE)),0) -> 0 | S67: 0 | T67: 0 | U67: 0 | V67: 0 | W67: 0 | X67: 0 | Y67: 0 | Z67: 0 | AA67: 0 | AB67: 0 | AC67: 0 | AD67: 0 | AE67: 0 | AF67: 0 | AG67: 6.776217933 | AH67: 6.776217933 | AI67: 6.776217933 | AJ67: 6.776217933 | AK67: 6.776217933 | AL67: 6.776217933 | AM67: 6.776217933 | AN67: 6.776217933 | AO67: 6.776217933 | AP67: 6.776217933 | AQ67: 6.776217933 | AR67: 6.776217933 | AS67: 6.776217933 | AT67: 6.776217933
F68: Starting RAB (future capex) | L68: RAB | O68: 17 | R68: =IF($O68=R$2,R$40,IF(R$2>$O68,Q68-Q69,0)) -> 0 | S68: 0 | T68: 0 | U68: 0 | V68: 0 | W68: 0 | X68: 0 | Y68: 0 | Z68: 0 | AA68: 0 | AB68: 0 | AC68: 0 | AD68: 0 | AE68: 0 | AF68: 0 | AG68: 0 | AH68: 277.2882893 | AI68: 270.4653483 | AJ68: 263.6424073 | AK68: 256.8194664 | AL68: 249.9965254 | AM68: 243.1735844 | AN68: 236.3506435 | AO68: 229.5277025 | AP68: 222.7047615 | AQ68: 215.8818206 | AR68: 209.0588796 | AS68: 202.2359386 | AT68: 195.4129977
F69: Straight-line depreciation (future capex) | L69: DEP | O69: 17 | R69: =IF(R$2>=$O69,IF(R68-HLOOKUP($O69,$R$2:$AT$33,30,FALSE)/HLOOKUP($O69,$R$2:$AT$33,31,FALSE)<=0,R68,HLOOKUP($O69,$R$2:$AT$33,30,FALSE)/HLOOKUP($O69,$R$2:$AT$33,31,FALSE)),0) -> 0 | S69: 0 | T69: 0 | U69: 0 | V69: 0 | W69: 0 | X69: 0 | Y69: 0 | Z69: 0 | AA69: 0 | AB69: 0 | AC69: 0 | AD69: 0 | AE69: 0 | AF69: 0 | AG69: 0 | AH69: 6.822940967 | AI69: 6.822940967 | AJ69: 6.822940967 | AK69: 6.822940967 | AL69: 6.822940967 | AM69: 6.822940967 | AN69: 6.822940967 | AO69: 6.822940967 | AP69: 6.822940967 | AQ69: 6.822940967 | AR69: 6.822940967 | AS69: 6.822940967 | AT69: 6.822940967
F70: Starting RAB (future capex) | L70: RAB | O70: 18 | R70: =IF($O70=R$2,R$40,IF(R$2>$O70,Q70-Q71,0)) -> 0 | S70: 0 | T70: 0 | U70: 0 | V70: 0 | W70: 0 | X70: 0 | Y70: 0 | Z70: 0 | AA70: 0 | AB70: 0 | AC70: 0 | AD70: 0 | AE70: 0 | AF70: 0 | AG70: 0 | AH70: 0 | AI70: 278.919803 | AJ70: 272.0567171 | AK70: 265.1936312 | AL70: 258.3305452 | AM70: 251.4674593 | AN70: 244.6043734 | AO70: 237.7412875 | AP70: 230.8782016 | AQ70: 224.0151157 | AR70: 217.1520298 | AS70: 210.2889439 | AT70: 203.425858
F71: Straight-line depreciation (future capex) | L71: DEP | O71: 18 | R71: =IF(R$2>=$O71,IF(R70-HLOOKUP($O71,$R$2:$AT$33,30,FALSE)/HLOOKUP($O71,$R$2:$AT$33,31,FALSE)<=0,R70,HLOOKUP($O71,$R$2:$AT$33,30,FALSE)/HLOOKUP($O71,$R$2:$AT$33,31,FALSE)),0) -> 0 | S71: 0 | T71: 0 | U71: 0 | V71: 0 | W71: 0 | X71: 0 | Y71: 0 | Z71: 0 | AA71: 0 | AB71: 0 | AC71: 0 | AD71: 0 | AE71: 0 | AF71: 0 | AG71: 0 | AH71: 0 | AI71: 6.863085907 | AJ71: 6.863085907 | AK71: 6.863085907 | AL71: 6.863085907 | AM71: 6.863085907 | AN71: 6.863085907 | AO71: 6.863085907 | AP71: 6.863085907 | AQ71: 6.863085907 | AR71: 6.863085907 | AS71: 6.863085907 | AT71: 6.863085907
F72: Starting RAB (future capex) | L72: RAB | O72: 19 | R72: =IF($O72=R$2,R$40,IF(R$2>$O72,Q72-Q73,0)) -> 0 | S72: 0 | T72: 0 | U72: 0 | V72: 0 | W72: 0 | X72: 0 | Y72: 0 | Z72: 0 | AA72: 0 | AB72: 0 | AC72: 0 | AD72: 0 | AE72: 0 | AF72: 0 | AG72: 0 | AH72: 0 | AI72: 0 | AJ72: 282.4531719 | AK72: 275.5031441 | AL72: 268.5531163 | AM72: 261.6030885 | AN72: 254.6530607 | AO72: 247.7030329 | AP72: 240.7530051 | AQ72: 233.8029773 | AR72: 226.8529495 | AS72: 219.9029217 | AT72: 212.9528939
F73: Straight-line depreciation (future capex) | L73: DEP | O73: 19 | R73: =IF(R$2>=$O73,IF(R72-HLOOKUP($O73,$R$2:$AT$33,30,FALSE)/HLOOKUP($O73,$R$2:$AT$33,31,FALSE)<=0,R72,HLOOKUP($O73,$R$2:$AT$33,30,FALSE)/HLOOKUP($O73,$R$2:$AT$33,31,FALSE)),0) -> 0 | S73: 0 | T73: 0 | U73: 0 | V73: 0 | W73: 0 | X73: 0 | Y73: 0 | Z73: 0 | AA73: 0 | AB73: 0 | AC73: 0 | AD73: 0 | AE73: 0 | AF73: 0 | AG73: 0 | AH73: 0 | AI73: 0 | AJ73: 6.950027796 | AK73: 6.950027796 | AL73: 6.950027796 | AM73: 6.950027796 | AN73: 6.950027796 | AO73: 6.950027796 | AP73: 6.950027796 | AQ73: 6.950027796 | AR73: 6.950027796 | AS73: 6.950027796 | AT73: 6.950027796
F74: Starting RAB (future capex) | L74: RAB | O74: 20 | R74: =IF($O74=R$2,R$40,IF(R$2>$O74,Q74-Q75,0)) -> 0 | S74: 0 | T74: 0 | U74: 0 | V74: 0 | W74: 0 | X74: 0 | Y74: 0 | Z74: 0 | AA74: 0 | AB74: 0 | AC74: 0 | AD74: 0 | AE74: 0 | AF74: 0 | AG74: 0 | AH74: 0 | AI74: 0 | AJ74: 0 | AK74: 287.46484 | AL74: 280.3914954 | AM74: 273.3181507 | AN74: 266.2448061 | AO74: 259.1714615 | AP74: 252.0981168 | AQ74: 245.0247722 | AR74: 237.9514276 | AS74: 230.8780829 | AT74: 223.8047383
F75: Straight-line depreciation (future capex) | L75: DEP | O75: 20 | R75: =IF(R$2>=$O75,IF(R74-HLOOKUP($O75,$R$2:$AT$33,30,FALSE)/HLOOKUP($O75,$R$2:$AT$33,31,FALSE)<=0,R74,HLOOKUP($O75,$R$2:$AT$33,30,FALSE)/HLOOKUP($O75,$R$2:$AT$33,31,FALSE)),0) -> 0 | S75: 0 | T75: 0 | U75: 0 | V75: 0 | W75: 0 | X75: 0 | Y75: 0 | Z75: 0 | AA75: 0 | AB75: 0 | AC75: 0 | AD75: 0 | AE75: 0 | AF75: 0 | AG75: 0 | AH75: 0 | AI75: 0 | AJ75: 0 | AK75: 7.073344636 | AL75: 7.073344636 | AM75: 7.073344636 | AN75: 7.073344636 | AO75: 7.073344636 | AP75: 7.073344636 | AQ75: 7.073344636 | AR75: 7.073344636 | AS75: 7.073344636 | AT75: 7.073344636
F76: Starting RAB (future capex) | L76: RAB | O76: 21 | R76: =IF($O76=R$2,R$40,IF(R$2>$O76,Q76-Q77,0)) -> 0 | S76: 0 | T76: 0 | U76: 0 | V76: 0 | W76: 0 | X76: 0 | Y76: 0 | Z76: 0 | AA76: 0 | AB76: 0 | AC76: 0 | AD76: 0 | AE76: 0 | AF76: 0 | AG76: 0 | AH76: 0 | AI76: 0 | AJ76: 0 | AK76: 0 | AL76: 292.3954184 | AM76: 285.2007522 | AN76: 278.006086 | AO76: 270.8114199 | AP76: 263.6167537 | AQ76: 256.4220875 | AR76: 249.2274213 | AS76: 242.0327551 | AT76: 234.8380889
F77: Straight-line depreciation (future capex) | L77: DEP | O77: 21 | R77: =IF(R$2>=$O77,IF(R76-HLOOKUP($O77,$R$2:$AT$33,30,FALSE)/HLOOKUP($O77,$R$2:$AT$33,31,FALSE)<=0,R76,HLOOKUP($O77,$R$2:$AT$33,30,FALSE)/HLOOKUP($O77,$R$2:$AT$33,31,FALSE)),0) -> 0 | S77: 0 | T77: 0 | U77: 0 | V77: 0 | W77: 0 | X77: 0 | Y77: 0 | Z77: 0 | AA77: 0 | AB77: 0 | AC77: 0 | AD77: 0 | AE77: 0 | AF77: 0 | AG77: 0 | AH77: 0 | AI77: 0 | AJ77: 0 | AK77: 0 | AL77: 7.194666187 | AM77: 7.194666187 | AN77: 7.194666187 | AO77: 7.194666187 | AP77: 7.194666187 | AQ77: 7.194666187 | AR77: 7.194666187 | AS77: 7.194666187 | AT77: 7.194666187
F78: Starting RAB (future capex) | L78: RAB | O78: 22 | R78: =IF($O78=R$2,R$40,IF(R$2>$O78,Q78-Q79,0)) -> 0 | S78: 0 | T78: 0 | U78: 0 | V78: 0 | W78: 0 | X78: 0 | Y78: 0 | Z78: 0 | AA78: 0 | AB78: 0 | AC78: 0 | AD78: 0 | AE78: 0 | AF78: 0 | AG78: 0 | AH78: 0 | AI78: 0 | AJ78: 0 | AK78: 0 | AL78: 0 | AM78: 297.2016932 | AN78: 289.888764 | AO78: 282.5758349 | AP78: 275.2629058 | AQ78: 267.9499766 | AR78: 260.6370475 | AS78: 253.3241184 | AT78: 246.0111893
F79: Straight-line depreciation (future capex) | L79: DEP | O79: 22 | R79: =IF(R$2>=$O79,IF(R78-HLOOKUP($O79,$R$2:$AT$33,30,FALSE)/HLOOKUP($O79,$R$2:$AT$33,31,FALSE)<=0,R78,HLOOKUP($O79,$R$2:$AT$33,30,FALSE)/HLOOKUP($O79,$R$2:$AT$33,31,FALSE)),0) -> 0 | S79: 0 | T79: 0 | U79: 0 | V79: 0 | W79: 0 | X79: 0 | Y79: 0 | Z79: 0 | AA79: 0 | AB79: 0 | AC79: 0 | AD79: 0 | AE79: 0 | AF79: 0 | AG79: 0 | AH79: 0 | AI79: 0 | AJ79: 0 | AK79: 0 | AL79: 0 | AM79: 7.312929129 | AN79: 7.312929129 | AO79: 7.312929129 | AP79: 7.312929129 | AQ79: 7.312929129 | AR79: 7.312929129 | AS79: 7.312929129 | AT79: 7.312929129
F80: Starting RAB (future capex) | L80: RAB | O80: 23 | R80: =IF($O80=R$2,R$40,IF(R$2>$O80,Q80-Q81,0)) -> 0 | S80: 0 | T80: 0 | U80: 0 | V80: 0 | W80: 0 | X80: 0 | Y80: 0 | Z80: 0 | AA80: 0 | AB80: 0 | AC80: 0 | AD80: 0 | AE80: 0 | AF80: 0 | AG80: 0 | AH80: 0 | AI80: 0 | AJ80: 0 | AK80: 0 | AL80: 0 | AM80: 0 | AN80: 301.8745658 | AO80: 294.4466563 | AP80: 287.0187467 | AQ80: 279.5908371 | AR80: 272.1629275 | AS80: 264.7350179 | AT80: 257.3071083
F81: Straight-line depreciation (future capex) | L81: DEP | O81: 23 | R81: =IF(R$2>=$O81,IF(R80-HLOOKUP($O81,$R$2:$AT$33,30,FALSE)/HLOOKUP($O81,$R$2:$AT$33,31,FALSE)<=0,R80,HLOOKUP($O81,$R$2:$AT$33,30,FALSE)/HLOOKUP($O81,$R$2:$AT$33,31,FALSE)),0) -> 0 | S81: 0 | T81: 0 | U81: 0 | V81: 0 | W81: 0 | X81: 0 | Y81: 0 | Z81: 0 | AA81: 0 | AB81: 0 | AC81: 0 | AD81: 0 | AE81: 0 | AF81: 0 | AG81: 0 | AH81: 0 | AI81: 0 | AJ81: 0 | AK81: 0 | AL81: 0 | AM81: 0 | AN81: 7.427909587 | AO81: 7.427909587 | AP81: 7.427909587 | AQ81: 7.427909587 | AR81: 7.427909587 | AS81: 7.427909587 | AT81: 7.427909587
F82: Starting RAB (future capex) | L82: RAB | O82: 24 | R82: =IF($O82=R$2,R$40,IF(R$2>$O82,Q82-Q83,0)) -> 0 | S82: 0 | T82: 0 | U82: 0 | V82: 0 | W82: 0 | X82: 0 | Y82: 0 | Z82: 0 | AA82: 0 | AB82: 0 | AC82: 0 | AD82: 0 | AE82: 0 | AF82: 0 | AG82: 0 | AH82: 0 | AI82: 0 | AJ82: 0 | AK82: 0 | AL82: 0 | AM82: 0 | AN82: 0 | AO82: 306.427789 | AP82: 298.887843 | AQ82: 291.3478971 | AR82: 283.8079511 | AS82: 276.2680052 | AT82: 268.7280592
F83: Straight-line depreciation (future capex) | L83: DEP | O83: 24 | R83: =IF(R$2>=$O83,IF(R82-HLOOKUP($O83,$R$2:$AT$33,30,FALSE)/HLOOKUP($O83,$R$2:$AT$33,31,FALSE)<=0,R82,HLOOKUP($O83,$R$2:$AT$33,30,FALSE)/HLOOKUP($O83,$R$2:$AT$33,31,FALSE)),0) -> 0 | S83: 0 | T83: 0 | U83: 0 | V83: 0 | W83: 0 | X83: 0 | Y83: 0 | Z83: 0 | AA83: 0 | AB83: 0 | AC83: 0 | AD83: 0 | AE83: 0 | AF83: 0 | AG83: 0 | AH83: 0 | AI83: 0 | AJ83: 0 | AK83: 0 | AL83: 0 | AM83: 0 | AN83: 0 | AO83: 7.539945954 | AP83: 7.539945954 | AQ83: 7.539945954 | AR83: 7.539945954 | AS83: 7.539945954 | AT83: 7.539945954
F84: Starting RAB (future capex) | L84: RAB | O84: 25 | R84: =IF($O84=R$2,R$40,IF(R$2>$O84,Q84-Q85,0)) -> 0 | S84: 0 | T84: 0 | U84: 0 | V84: 0 | W84: 0 | X84: 0 | Y84: 0 | Z84: 0 | AA84: 0 | AB84: 0 | AC84: 0 | AD84: 0 | AE84: 0 | AF84: 0 | AG84: 0 | AH84: 0 | AI84: 0 | AJ84: 0 | AK84: 0 | AL84: 0 | AM84: 0 | AN84: 0 | AO84: 0 | AP84: 310.8502875 | AQ84: 303.2015218 | AR84: 295.552756 | AS84: 287.9039903 | AT84: 280.2552246
F85: Straight-line depreciation (future capex) | L85: DEP | O85: 25 | R85: =IF(R$2>=$O85,IF(R84-HLOOKUP($O85,$R$2:$AT$33,30,FALSE)/HLOOKUP($O85,$R$2:$AT$33,31,FALSE)<=0,R84,HLOOKUP($O85,$R$2:$AT$33,30,FALSE)/HLOOKUP($O85,$R$2:$AT$33,31,FALSE)),0) -> 0 | S85: 0 | T85: 0 | U85: 0 | V85: 0 | W85: 0 | X85: 0 | Y85: 0 | Z85: 0 | AA85: 0 | AB85: 0 | AC85: 0 | AD85: 0 | AE85: 0 | AF85: 0 | AG85: 0 | AH85: 0 | AI85: 0 | AJ85: 0 | AK85: 0 | AL85: 0 | AM85: 0 | AN85: 0 | AO85: 0 | AP85: 7.648765718 | AQ85: 7.648765718 | AR85: 7.648765718 | AS85: 7.648765718 | AT85: 7.648765718
F86: Starting RAB (future capex) | L86: RAB | O86: 26 | R86: =IF($O86=R$2,R$40,IF(R$2>$O86,Q86-Q87,0)) -> 0 | S86: 0 | T86: 0 | U86: 0 | V86: 0 | W86: 0 | X86: 0 | Y86: 0 | Z86: 0 | AA86: 0 | AB86: 0 | AC86: 0 | AD86: 0 | AE86: 0 | AF86: 0 | AG86: 0 | AH86: 0 | AI86: 0 | AJ86: 0 | AK86: 0 | AL86: 0 | AM86: 0 | AN86: 0 | AO86: 0 | AP86: 0 | AQ86: 315.1108545 | AR86: 307.3572535 | AS86: 299.6036525 | AT86: 291.8500515
F87: Straight-line depreciation (future capex) | L87: DEP | O87: 26 | R87: =IF(R$2>=$O87,IF(R86-HLOOKUP($O87,$R$2:$AT$33,30,FALSE)/HLOOKUP($O87,$R$2:$AT$33,31,FALSE)<=0,R86,HLOOKUP($O87,$R$2:$AT$33,30,FALSE)/HLOOKUP($O87,$R$2:$AT$33,31,FALSE)),0) -> 0 | S87: 0 | T87: 0 | U87: 0 | V87: 0 | W87: 0 | X87: 0 | Y87: 0 | Z87: 0 | AA87: 0 | AB87: 0 | AC87: 0 | AD87: 0 | AE87: 0 | AF87: 0 | AG87: 0 | AH87: 0 | AI87: 0 | AJ87: 0 | AK87: 0 | AL87: 0 | AM87: 0 | AN87: 0 | AO87: 0 | AP87: 0 | AQ87: 7.753601005 | AR87: 7.753601005 | AS87: 7.753601005 | AT87: 7.753601005
F88: Starting RAB (future capex) | L88: RAB | O88: 27 | R88: =IF($O88=R$2,R$40,IF(R$2>$O88,Q88-Q89,0)) -> 0 | S88: 0 | T88: 0 | U88: 0 | V88: 0 | W88: 0 | X88: 0 | Y88: 0 | Z88: 0 | AA88: 0 | AB88: 0 | AC88: 0 | AD88: 0 | AE88: 0 | AF88: 0 | AG88: 0 | AH88: 0 | AI88: 0 | AJ88: 0 | AK88: 0 | AL88: 0 | AM88: 0 | AN88: 0 | AO88: 0 | AP88: 0 | AQ88: 0 | AR88: 319.1939667 | AS88: 311.3398969 | AT88: 303.485827
F89: Straight-line depreciation (future capex) | L89: DEP | O89: 27 | R89: =IF(R$2>=$O89,IF(R88-HLOOKUP($O89,$R$2:$AT$33,30,FALSE)/HLOOKUP($O89,$R$2:$AT$33,31,FALSE)<=0,R88,HLOOKUP($O89,$R$2:$AT$33,30,FALSE)/HLOOKUP($O89,$R$2:$AT$33,31,FALSE)),0) -> 0 | S89: 0 | T89: 0 | U89: 0 | V89: 0 | W89: 0 | X89: 0 | Y89: 0 | Z89: 0 | AA89: 0 | AB89: 0 | AC89: 0 | AD89: 0 | AE89: 0 | AF89: 0 | AG89: 0 | AH89: 0 | AI89: 0 | AJ89: 0 | AK89: 0 | AL89: 0 | AM89: 0 | AN89: 0 | AO89: 0 | AP89: 0 | AQ89: 0 | AR89: 7.854069849 | AS89: 7.854069849 | AT89: 7.854069849
F90: Starting RAB (future capex) | L90: RAB | O90: 28 | R90: =IF($O90=R$2,R$40,IF(R$2>$O90,Q90-Q91,0)) -> 0 | S90: 0 | T90: 0 | U90: 0 | V90: 0 | W90: 0 | X90: 0 | Y90: 0 | Z90: 0 | AA90: 0 | AB90: 0 | AC90: 0 | AD90: 0 | AE90: 0 | AF90: 0 | AG90: 0 | AH90: 0 | AI90: 0 | AJ90: 0 | AK90: 0 | AL90: 0 | AM90: 0 | AN90: 0 | AO90: 0 | AP90: 0 | AQ90: 0 | AR90: 0 | AS90: 323.0855049 | AT90: 315.1356801
F91: Straight-line depreciation (future capex) | L91: DEP | O91: 28 | R91: =IF(R$2>=$O91,IF(R90-HLOOKUP($O91,$R$2:$AT$33,30,FALSE)/HLOOKUP($O91,$R$2:$AT$33,31,FALSE)<=0,R90,HLOOKUP($O91,$R$2:$AT$33,30,FALSE)/HLOOKUP($O91,$R$2:$AT$33,31,FALSE)),0) -> 0 | S91: 0 | T91: 0 | U91: 0 | V91: 0 | W91: 0 | X91: 0 | Y91: 0 | Z91: 0 | AA91: 0 | AB91: 0 | AC91: 0 | AD91: 0 | AE91: 0 | AF91: 0 | AG91: 0 | AH91: 0 | AI91: 0 | AJ91: 0 | AK91: 0 | AL91: 0 | AM91: 0 | AN91: 0 | AO91: 0 | AP91: 0 | AQ91: 0 | AR91: 0 | AS91: 7.949824832 | AT91: 7.949824832
F92: Starting RAB (future capex) | L92: RAB | O92: 29 | R92: =IF($O92=R$2,R$40,IF(R$2>$O92,Q92-Q93,0)) -> 0 | S92: 0 | T92: 0 | U92: 0 | V92: 0 | W92: 0 | X92: 0 | Y92: 0 | Z92: 0 | AA92: 0 | AB92: 0 | AC92: 0 | AD92: 0 | AE92: 0 | AF92: 0 | AG92: 0 | AH92: 0 | AI92: 0 | AJ92: 0 | AK92: 0 | AL92: 0 | AM92: 0 | AN92: 0 | AO92: 0 | AP92: 0 | AQ92: 0 | AR92: 0 | AS92: 0 | AT92: 326.7708721
F93: Straight-line depreciation (future capex) | L93: DEP | O93: 29 | R93: =IF(R$2>=$O93,IF(R92-HLOOKUP($O93,$R$2:$AT$33,30,FALSE)/HLOOKUP($O93,$R$2:$AT$33,31,FALSE)<=0,R92,HLOOKUP($O93,$R$2:$AT$33,30,FALSE)/HLOOKUP($O93,$R$2:$AT$33,31,FALSE)),0) -> 0 | S93: 0 | T93: 0 | U93: 0 | V93: 0 | W93: 0 | X93: 0 | Y93: 0 | Z93: 0 | AA93: 0 | AB93: 0 | AC93: 0 | AD93: 0 | AE93: 0 | AF93: 0 | AG93: 0 | AH93: 0 | AI93: 0 | AJ93: 0 | AK93: 0 | AL93: 0 | AM93: 0 | AN93: 0 | AO93: 0 | AP93: 0 | AQ93: 0 | AR93: 0 | AS93: 0 | AT93: 8.040506781
F94: Starting RAB (future capex) | L94: RAB | O94: 30 | R94: =IF($O94=R$2,R$40,IF(R$2>$O94,Q94-Q95,0)) -> 0 | S94: 0 | T94: 0 | U94: 0 | V94: 0 | W94: 0 | X94: 0 | Y94: 0 | Z94: 0 | AA94: 0 | AB94: 0 | AC94: 0 | AD94: 0 | AE94: 0 | AF94: 0 | AG94: 0 | AH94: 0 | AI94: 0 | AJ94: 0 | AK94: 0 | AL94: 0 | AM94: 0 | AN94: 0 | AO94: 0 | AP94: 0 | AQ94: 0 | AR94: 0 | AS94: 0 | AT94: 0
F95: Straight-line depreciation (future capex) | L95: DEP | O95: 30 | R95: =IF(R$2>=$O95,IF(R94-HLOOKUP($O95,$R$2:$AT$33,30,FALSE)/HLOOKUP($O95,$R$2:$AT$33,31,FALSE)<=0,R94,HLOOKUP($O95,$R$2:$AT$33,30,FALSE)/HLOOKUP($O95,$R$2:$AT$33,31,FALSE)),0) -> 0 | S95: 0 | T95: 0 | U95: 0 | V95: 0 | W95: 0 | X95: 0 | Y95: 0 | Z95: 0 | AA95: 0 | AB95: 0 | AC95: 0 | AD95: 0 | AE95: 0 | AF95: 0 | AG95: 0 | AH95: 0 | AI95: 0 | AJ95: 0 | AK95: 0 | AL95: 0 | AM95: 0 | AN95: 0 | AO95: 0 | AP95: 0 | AQ95: 0 | AR95: 0 | AS95: 0 | AT95: 0
F96: Starting RAB (future capex) | L96: RAB | O96: 31 | R96: =IF($O96=R$2,R$40,IF(R$2>$O96,Q96-Q97,0)) -> 0 | S96: 0 | T96: 0 | U96: 0 | V96: 0 | W96: 0 | X96: 0 | Y96: 0 | Z96: 0 | AA96: 0 | AB96: 0 | AC96: 0 | AD96: 0 | AE96: 0 | AF96: 0 | AG96: 0 | AH96: 0 | AI96: 0 | AJ96: 0 | AK96: 0 | AL96: 0 | AM96: 0 | AN96: 0 | AO96: 0 | AP96: 0 | AQ96: 0 | AR96: 0 | AS96: 0 | AT96: 0
F97: Straight-line depreciation (future capex) | L97: DEP | O97: 31 | R97: =IF(R$2>=$O97,IF(R96-HLOOKUP($O97,$R$2:$AT$33,30,FALSE)/HLOOKUP($O97,$R$2:$AT$33,31,FALSE)<=0,R96,HLOOKUP($O97,$R$2:$AT$33,30,FALSE)/HLOOKUP($O97,$R$2:$AT$33,31,FALSE)),0) -> 0 | S97: 0 | T97: 0 | U97: 0 | V97: 0 | W97: 0 | X97: 0 | Y97: 0 | Z97: 0 | AA97: 0 | AB97: 0 | AC97: 0 | AD97: 0 | AE97: 0 | AF97: 0 | AG97: 0 | AH97: 0 | AI97: 0 | AJ97: 0 | AK97: 0 | AL97: 0 | AM97: 0 | AN97: 0 | AO97: 0 | AP97: 0 | AQ97: 0 | AR97: 0 | AS97: 0 | AT97: 0
F98: Starting RAB (future capex) | L98: RAB | O98: 32 | R98: =IF($O98=R$2,R$40,IF(R$2>$O98,Q98-Q99,0)) -> 0 | S98: 0 | T98: 0 | U98: 0 | V98: 0 | W98: 0 | X98: 0 | Y98: 0 | Z98: 0 | AA98: 0 | AB98: 0 | AC98: 0 | AD98: 0 | AE98: 0 | AF98: 0 | AG98: 0 | AH98: 0 | AI98: 0 | AJ98: 0 | AK98: 0 | AL98: 0 | AM98: 0 | AN98: 0 | AO98: 0 | AP98: 0 | AQ98: 0 | AR98: 0 | AS98: 0 | AT98: 0
F99: Straight-line depreciation (future capex) | L99: DEP | O99: 32 | R99: =IF(R$2>=$O99,IF(R98-HLOOKUP($O99,$R$2:$AT$33,30,FALSE)/HLOOKUP($O99,$R$2:$AT$33,31,FALSE)<=0,R98,HLOOKUP($O99,$R$2:$AT$33,30,FALSE)/HLOOKUP($O99,$R$2:$AT$33,31,FALSE)),0) -> 0 | S99: 0 | T99: 0 | U99: 0 | V99: 0 | W99: 0 | X99: 0 | Y99: 0 | Z99: 0 | AA99: 0 | AB99: 0 | AC99: 0 | AD99: 0 | AE99: 0 | AF99: 0 | AG99: 0 | AH99: 0 | AI99: 0 | AJ99: 0 | AK99: 0 | AL99: 0 | AM99: 0 | AN99: 0 | AO99: 0 | AP99: 0 | AQ99: 0 | AR99: 0 | AS99: 0 | AT99: 0
F100: Starting RAB (future capex) | L100: RAB | O100: 33 | R100: =IF($O100=R$2,R$40,IF(R$2>$O100,Q100-Q101,0)) -> 0 | S100: 0 | T100: 0 | U100: 0 | V100: 0 | W100: 0 | X100: 0 | Y100: 0 | Z100: 0 | AA100: 0 | AB100: 0 | AC100: 0 | AD100: 0 | AE100: 0 | AF100: 0 | AG100: 0 | AH100: 0 | AI100: 0 | AJ100: 0 | AK100: 0 | AL100: 0 | AM100: 0 | AN100: 0 | AO100: 0 | AP100: 0 | AQ100: 0 | AR100: 0 | AS100: 0 | AT100: 0
F101: Straight-line depreciation (future capex) | L101: DEP | O101: 33 | R101: =IF(R$2>=$O101,IF(R100-HLOOKUP($O101,$R$2:$AT$33,30,FALSE)/HLOOKUP($O101,$R$2:$AT$33,31,FALSE)<=0,R100,HLOOKUP($O101,$R$2:$AT$33,30,FALSE)/HLOOKUP($O101,$R$2:$AT$33,31,FALSE)),0) -> 0 | S101: 0 | T101: 0 | U101: 0 | V101: 0 | W101: 0 | X101: 0 | Y101: 0 | Z101: 0 | AA101: 0 | AB101: 0 | AC101: 0 | AD101: 0 | AE101: 0 | AF101: 0 | AG101: 0 | AH101: 0 | AI101: 0 | AJ101: 0 | AK101: 0 | AL101: 0 | AM101: 0 | AN101: 0 | AO101: 0 | AP101: 0 | AQ101: 0 | AR101: 0 | AS101: 0 | AT101: 0
F102: Starting RAB (future capex) | L102: RAB | O102: 34 | R102: =IF($O102=R$2,R$40,IF(R$2>$O102,Q102-Q103,0)) -> 0 | S102: 0 | T102: 0 | U102: 0 | V102: 0 | W102: 0 | X102: 0 | Y102: 0 | Z102: 0 | AA102: 0 | AB102: 0 | AC102: 0 | AD102: 0 | AE102: 0 | AF102: 0 | AG102: 0 | AH102: 0 | AI102: 0 | AJ102: 0 | AK102: 0 | AL102: 0 | AM102: 0 | AN102: 0 | AO102: 0 | AP102: 0 | AQ102: 0 | AR102: 0 | AS102: 0 | AT102: 0
F103: Straight-line depreciation (future capex) | L103: DEP | O103: 34 | R103: =IF(R$2>=$O103,IF(R102-HLOOKUP($O103,$R$2:$AT$33,30,FALSE)/HLOOKUP($O103,$R$2:$AT$33,31,FALSE)<=0,R102,HLOOKUP($O103,$R$2:$AT$33,30,FALSE)/HLOOKUP($O103,$R$2:$AT$33,31,FALSE)),0) -> 0 | S103: 0 | T103: 0 | U103: 0 | V103: 0 | W103: 0 | X103: 0 | Y103: 0 | Z103: 0 | AA103: 0 | AB103: 0 | AC103: 0 | AD103: 0 | AE103: 0 | AF103: 0 | AG103: 0 | AH103: 0 | AI103: 0 | AJ103: 0 | AK103: 0 | AL103: 0 | AM103: 0 | AN103: 0 | AO103: 0 | AP103: 0 | AQ103: 0 | AR103: 0 | AS103: 0 | AT103: 0
F104: Starting RAB (future capex) | L104: RAB | O104: 35 | R104: =IF($O104=R$2,R$40,IF(R$2>$O104,Q104-Q105,0)) -> 0 | S104: 0 | T104: 0 | U104: 0 | V104: 0 | W104: 0 | X104: 0 | Y104: 0 | Z104: 0 | AA104: 0 | AB104: 0 | AC104: 0 | AD104: 0 | AE104: 0 | AF104: 0 | AG104: 0 | AH104: 0 | AI104: 0 | AJ104: 0 | AK104: 0 | AL104: 0 | AM104: 0 | AN104: 0 | AO104: 0 | AP104: 0 | AQ104: 0 | AR104: 0 | AS104: 0 | AT104: 0
F105: Straight-line depreciation (future capex) | L105: DEP | O105: 35 | R105: =IF(R$2>=$O105,IF(R104-HLOOKUP($O105,$R$2:$AT$33,30,FALSE)/HLOOKUP($O105,$R$2:$AT$33,31,FALSE)<=0,R104,HLOOKUP($O105,$R$2:$AT$33,30,FALSE)/HLOOKUP($O105,$R$2:$AT$33,31,FALSE)),0) -> 0 | S105: 0 | T105: 0 | U105: 0 | V105: 0 | W105: 0 | X105: 0 | Y105: 0 | Z105: 0 | AA105: 0 | AB105: 0 | AC105: 0 | AD105: 0 | AE105: 0 | AF105: 0 | AG105: 0 | AH105: 0 | AI105: 0 | AJ105: 0 | AK105: 0 | AL105: 0 | AM105: 0 | AN105: 0 | AO105: 0 | AP105: 0 | AQ105: 0 | AR105: 0 | AS105: 0 | AT105: 0
F106: Starting RAB (future capex) | L106: RAB | O106: 36 | R106: =IF($O106=R$2,R$40,IF(R$2>$O106,Q106-Q107,0)) -> 0 | S106: 0 | T106: 0 | U106: 0 | V106: 0 | W106: 0 | X106: 0 | Y106: 0 | Z106: 0 | AA106: 0 | AB106: 0 | AC106: 0 | AD106: 0 | AE106: 0 | AF106: 0 | AG106: 0 | AH106: 0 | AI106: 0 | AJ106: 0 | AK106: 0 | AL106: 0 | AM106: 0 | AN106: 0 | AO106: 0 | AP106: 0 | AQ106: 0 | AR106: 0 | AS106: 0 | AT106: 0
F107: Straight-line depreciation (future capex) | L107: DEP | O107: 36 | R107: =IF(R$2>=$O107,IF(R106-HLOOKUP($O107,$R$2:$AT$33,30,FALSE)/HLOOKUP($O107,$R$2:$AT$33,31,FALSE)<=0,R106,HLOOKUP($O107,$R$2:$AT$33,30,FALSE)/HLOOKUP($O107,$R$2:$AT$33,31,FALSE)),0) -> 0 | S107: 0 | T107: 0 | U107: 0 | V107: 0 | W107: 0 | X107: 0 | Y107: 0 | Z107: 0 | AA107: 0 | AB107: 0 | AC107: 0 | AD107: 0 | AE107: 0 | AF107: 0 | AG107: 0 | AH107: 0 | AI107: 0 | AJ107: 0 | AK107: 0 | AL107: 0 | AM107: 0 | AN107: 0 | AO107: 0 | AP107: 0 | AQ107: 0 | AR107: 0 | AS107: 0 | AT107: 0
F108: Starting RAB (future capex) | L108: RAB | O108: 37 | R108: =IF($O108=R$2,R$40,IF(R$2>$O108,Q108-Q109,0)) -> 0 | S108: 0 | T108: 0 | U108: 0 | V108: 0 | W108: 0 | X108: 0 | Y108: 0 | Z108: 0 | AA108: 0 | AB108: 0 | AC108: 0 | AD108: 0 | AE108: 0 | AF108: 0 | AG108: 0 | AH108: 0 | AI108: 0 | AJ108: 0 | AK108: 0 | AL108: 0 | AM108: 0 | AN108: 0 | AO108: 0 | AP108: 0 | AQ108: 0 | AR108: 0 | AS108: 0 | AT108: 0
F109: Straight-line depreciation (future capex) | L109: DEP | O109: 37 | R109: =IF(R$2>=$O109,IF(R108-HLOOKUP($O109,$R$2:$AT$33,30,FALSE)/HLOOKUP($O109,$R$2:$AT$33,31,FALSE)<=0,R108,HLOOKUP($O109,$R$2:$AT$33,30,FALSE)/HLOOKUP($O109,$R$2:$AT$33,31,FALSE)),0) -> 0 | S109: 0 | T109: 0 | U109: 0 | V109: 0 | W109: 0 | X109: 0 | Y109: 0 | Z109: 0 | AA109: 0 | AB109: 0 | AC109: 0 | AD109: 0 | AE109: 0 | AF109: 0 | AG109: 0 | AH109: 0 | AI109: 0 | AJ109: 0 | AK109: 0 | AL109: 0 | AM109: 0 | AN109: 0 | AO109: 0 | AP109: 0 | AQ109: 0 | AR109: 0 | AS109: 0 | AT109: 0
F110: Starting RAB (future capex) | L110: RAB | O110: 38 | R110: =IF($O110=R$2,R$40,IF(R$2>$O110,Q110-Q111,0)) -> 0 | S110: 0 | T110: 0 | U110: 0 | V110: 0 | W110: 0 | X110: 0 | Y110: 0 | Z110: 0 | AA110: 0 | AB110: 0 | AC110: 0 | AD110: 0 | AE110: 0 | AF110: 0 | AG110: 0 | AH110: 0 | AI110: 0 | AJ110: 0 | AK110: 0 | AL110: 0 | AM110: 0 | AN110: 0 | AO110: 0 | AP110: 0 | AQ110: 0 | AR110: 0 | AS110: 0 | AT110: 0
F111: Straight-line depreciation (future capex) | L111: DEP | O111: 38 | R111: =IF(R$2>=$O111,IF(R110-HLOOKUP($O111,$R$2:$AT$33,30,FALSE)/HLOOKUP($O111,$R$2:$AT$33,31,FALSE)<=0,R110,HLOOKUP($O111,$R$2:$AT$33,30,FALSE)/HLOOKUP($O111,$R$2:$AT$33,31,FALSE)),0) -> 0 | S111: 0 | T111: 0 | U111: 0 | V111: 0 | W111: 0 | X111: 0 | Y111: 0 | Z111: 0 | AA111: 0 | AB111: 0 | AC111: 0 | AD111: 0 | AE111: 0 | AF111: 0 | AG111: 0 | AH111: 0 | AI111: 0 | AJ111: 0 | AK111: 0 | AL111: 0 | AM111: 0 | AN111: 0 | AO111: 0 | AP111: 0 | AQ111: 0 | AR111: 0 | AS111: 0 | AT111: 0
F112: Starting RAB (future capex) | L112: RAB | O112: 39 | R112: =IF($O112=R$2,R$40,IF(R$2>$O112,Q112-Q113,0)) -> 0 | S112: 0 | T112: 0 | U112: 0 | V112: 0 | W112: 0 | X112: 0 | Y112: 0 | Z112: 0 | AA112: 0 | AB112: 0 | AC112: 0 | AD112: 0 | AE112: 0 | AF112: 0 | AG112: 0 | AH112: 0 | AI112: 0 | AJ112: 0 | AK112: 0 | AL112: 0 | AM112: 0 | AN112: 0 | AO112: 0 | AP112: 0 | AQ112: 0 | AR112: 0 | AS112: 0 | AT112: 0
F113: Straight-line depreciation (future capex) | L113: DEP | O113: 39 | R113: =IF(R$2>=$O113,IF(R112-HLOOKUP($O113,$R$2:$AT$33,30,FALSE)/HLOOKUP($O113,$R$2:$AT$33,31,FALSE)<=0,R112,HLOOKUP($O113,$R$2:$AT$33,30,FALSE)/HLOOKUP($O113,$R$2:$AT$33,31,FALSE)),0) -> 0 | S113: 0 | T113: 0 | U113: 0 | V113: 0 | W113: 0 | X113: 0 | Y113: 0 | Z113: 0 | AA113: 0 | AB113: 0 | AC113: 0 | AD113: 0 | AE113: 0 | AF113: 0 | AG113: 0 | AH113: 0 | AI113: 0 | AJ113: 0 | AK113: 0 | AL113: 0 | AM113: 0 | AN113: 0 | AO113: 0 | AP113: 0 | AQ113: 0 | AR113: 0 | AS113: 0 | AT113: 0
F114: Starting RAB (future capex) | L114: RAB | O114: 40 | R114: =IF($O114=R$2,R$40,IF(R$2>$O114,Q114-Q115,0)) -> 0 | S114: 0 | T114: 0 | U114: 0 | V114: 0 | W114: 0 | X114: 0 | Y114: 0 | Z114: 0 | AA114: 0 | AB114: 0 | AC114: 0 | AD114: 0 | AE114: 0 | AF114: 0 | AG114: 0 | AH114: 0 | AI114: 0 | AJ114: 0 | AK114: 0 | AL114: 0 | AM114: 0 | AN114: 0 | AO114: 0 | AP114: 0 | AQ114: 0 | AR114: 0 | AS114: 0 | AT114: 0
F115: Straight-line depreciation (future capex) | L115: DEP | O115: 40 | R115: =IF(R$2>=$O115,IF(R114-HLOOKUP($O115,$R$2:$AT$33,30,FALSE)/HLOOKUP($O115,$R$2:$AT$33,31,FALSE)<=0,R114,HLOOKUP($O115,$R$2:$AT$33,30,FALSE)/HLOOKUP($O115,$R$2:$AT$33,31,FALSE)),0) -> 0 | S115: 0 | T115: 0 | U115: 0 | V115: 0 | W115: 0 | X115: 0 | Y115: 0 | Z115: 0 | AA115: 0 | AB115: 0 | AC115: 0 | AD115: 0 | AE115: 0 | AF115: 0 | AG115: 0 | AH115: 0 | AI115: 0 | AJ115: 0 | AK115: 0 | AL115: 0 | AM115: 0 | AN115: 0 | AO115: 0 | AP115: 0 | AQ115: 0 | AR115: 0 | AS115: 0 | AT115: 0
F116: Starting RAB (future capex) | L116: RAB | O116: 41 | R116: =IF($O116=R$2,R$40,IF(R$2>$O116,Q116-Q117,0)) -> 0 | S116: 0 | T116: 0 | U116: 0 | V116: 0 | W116: 0 | X116: 0 | Y116: 0 | Z116: 0 | AA116: 0 | AB116: 0 | AC116: 0 | AD116: 0 | AE116: 0 | AF116: 0 | AG116: 0 | AH116: 0 | AI116: 0 | AJ116: 0 | AK116: 0 | AL116: 0 | AM116: 0 | AN116: 0 | AO116: 0 | AP116: 0 | AQ116: 0 | AR116: 0 | AS116: 0 | AT116: 0
F117: Straight-line depreciation (future capex) | L117: DEP | O117: 41 | R117: =IF(R$2>=$O117,IF(R116-HLOOKUP($O117,$R$2:$AT$33,30,FALSE)/HLOOKUP($O117,$R$2:$AT$33,31,FALSE)<=0,R116,HLOOKUP($O117,$R$2:$AT$33,30,FALSE)/HLOOKUP($O117,$R$2:$AT$33,31,FALSE)),0) -> 0 | S117: 0 | T117: 0 | U117: 0 | V117: 0 | W117: 0 | X117: 0 | Y117: 0 | Z117: 0 | AA117: 0 | AB117: 0 | AC117: 0 | AD117: 0 | AE117: 0 | AF117: 0 | AG117: 0 | AH117: 0 | AI117: 0 | AJ117: 0 | AK117: 0 | AL117: 0 | AM117: 0 | AN117: 0 | AO117: 0 | AP117: 0 | AQ117: 0 | AR117: 0 | AS117: 0 | AT117: 0
F118: Starting RAB (future capex) | L118: RAB | O118: 42 | R118: =IF($O118=R$2,R$40,IF(R$2>$O118,Q118-Q119,0)) -> 0 | S118: 0 | T118: 0 | U118: 0 | V118: 0 | W118: 0 | X118: 0 | Y118: 0 | Z118: 0 | AA118: 0 | AB118: 0 | AC118: 0 | AD118: 0 | AE118: 0 | AF118: 0 | AG118: 0 | AH118: 0 | AI118: 0 | AJ118: 0 | AK118: 0 | AL118: 0 | AM118: 0 | AN118: 0 | AO118: 0 | AP118: 0 | AQ118: 0 | AR118: 0 | AS118: 0 | AT118: 0
F119: Straight-line depreciation (future capex) | L119: DEP | O119: 42 | R119: =IF(R$2>=$O119,IF(R118-HLOOKUP($O119,$R$2:$AT$33,30,FALSE)/HLOOKUP($O119,$R$2:$AT$33,31,FALSE)<=0,R118,HLOOKUP($O119,$R$2:$AT$33,30,FALSE)/HLOOKUP($O119,$R$2:$AT$33,31,FALSE)),0) -> 0 | S119: 0 | T119: 0 | U119: 0 | V119: 0 | W119: 0 | X119: 0 | Y119: 0 | Z119: 0 | AA119: 0 | AB119: 0 | AC119: 0 | AD119: 0 | AE119: 0 | AF119: 0 | AG119: 0 | AH119: 0 | AI119: 0 | AJ119: 0 | AK119: 0 | AL119: 0 | AM119: 0 | AN119: 0 | AO119: 0 | AP119: 0 | AQ119: 0 | AR119: 0 | AS119: 0 | AT119: 0
F120: Starting RAB (future capex) | L120: RAB | O120: 43 | R120: =IF($O120=R$2,R$40,IF(R$2>$O120,Q120-Q121,0)) -> 0 | S120: 0 | T120: 0 | U120: 0 | V120: 0 | W120: 0 | X120: 0 | Y120: 0 | Z120: 0 | AA120: 0 | AB120: 0 | AC120: 0 | AD120: 0 | AE120: 0 | AF120: 0 | AG120: 0 | AH120: 0 | AI120: 0 | AJ120: 0 | AK120: 0 | AL120: 0 | AM120: 0 | AN120: 0 | AO120: 0 | AP120: 0 | AQ120: 0 | AR120: 0 | AS120: 0 | AT120: 0
F121: Straight-line depreciation (future capex) | L121: DEP | O121: 43 | R121: =IF(R$2>=$O121,IF(R120-HLOOKUP($O121,$R$2:$AT$33,30,FALSE)/HLOOKUP($O121,$R$2:$AT$33,31,FALSE)<=0,R120,HLOOKUP($O121,$R$2:$AT$33,30,FALSE)/HLOOKUP($O121,$R$2:$AT$33,31,FALSE)),0) -> 0 | S121: 0 | T121: 0 | U121: 0 | V121: 0 | W121: 0 | X121: 0 | Y121: 0 | Z121: 0 | AA121: 0 | AB121: 0 | AC121: 0 | AD121: 0 | AE121: 0 | AF121: 0 | AG121: 0 | AH121: 0 | AI121: 0 | AJ121: 0 | AK121: 0 | AL121: 0 | AM121: 0 | AN121: 0 | AO121: 0 | AP121: 0 | AQ121: 0 | AR121: 0 | AS121: 0 | AT121: 0
F122: Starting RAB (future capex) | L122: RAB | O122: 44 | R122: =IF($O122=R$2,R$40,IF(R$2>$O122,Q122-Q123,0)) -> 0 | S122: 0 | T122: 0 | U122: 0 | V122: 0 | W122: 0 | X122: 0 | Y122: 0 | Z122: 0 | AA122: 0 | AB122: 0 | AC122: 0 | AD122: 0 | AE122: 0 | AF122: 0 | AG122: 0 | AH122: 0 | AI122: 0 | AJ122: 0 | AK122: 0 | AL122: 0 | AM122: 0 | AN122: 0 | AO122: 0 | AP122: 0 | AQ122: 0 | AR122: 0 | AS122: 0 | AT122: 0
F123: Straight-line depreciation (future capex) | L123: DEP | O123: 44 | R123: =IF(R$2>=$O123,IF(R122-HLOOKUP($O123,$R$2:$AT$33,30,FALSE)/HLOOKUP($O123,$R$2:$AT$33,31,FALSE)<=0,R122,HLOOKUP($O123,$R$2:$AT$33,30,FALSE)/HLOOKUP($O123,$R$2:$AT$33,31,FALSE)),0) -> 0 | S123: 0 | T123: 0 | U123: 0 | V123: 0 | W123: 0 | X123: 0 | Y123: 0 | Z123: 0 | AA123: 0 | AB123: 0 | AC123: 0 | AD123: 0 | AE123: 0 | AF123: 0 | AG123: 0 | AH123: 0 | AI123: 0 | AJ123: 0 | AK123: 0 | AL123: 0 | AM123: 0 | AN123: 0 | AO123: 0 | AP123: 0 | AQ123: 0 | AR123: 0 | AS123: 0 | AT123: 0
F124: Starting RAB (future capex) | L124: RAB | O124: 45 | R124: =IF($O124=R$2,R$40,IF(R$2>$O124,Q124-Q125,0)) -> 0 | S124: 0 | T124: 0 | U124: 0 | V124: 0 | W124: 0 | X124: 0 | Y124: 0 | Z124: 0 | AA124: 0 | AB124: 0 | AC124: 0 | AD124: 0 | AE124: 0 | AF124: 0 | AG124: 0 | AH124: 0 | AI124: 0 | AJ124: 0 | AK124: 0 | AL124: 0 | AM124: 0 | AN124: 0 | AO124: 0 | AP124: 0 | AQ124: 0 | AR124: 0 | AS124: 0 | AT124: 0
F125: Straight-line depreciation (future capex) | L125: DEP | O125: 45 | R125: =IF(R$2>=$O125,IF(R124-HLOOKUP($O125,$R$2:$AT$33,30,FALSE)/HLOOKUP($O125,$R$2:$AT$33,31,FALSE)<=0,R124,HLOOKUP($O125,$R$2:$AT$33,30,FALSE)/HLOOKUP($O125,$R$2:$AT$33,31,FALSE)),0) -> 0 | S125: 0 | T125: 0 | U125: 0 | V125: 0 | W125: 0 | X125: 0 | Y125: 0 | Z125: 0 | AA125: 0 | AB125: 0 | AC125: 0 | AD125: 0 | AE125: 0 | AF125: 0 | AG125: 0 | AH125: 0 | AI125: 0 | AJ125: 0 | AK125: 0 | AL125: 0 | AM125: 0 | AN125: 0 | AO125: 0 | AP125: 0 | AQ125: 0 | AR125: 0 | AS125: 0 | AT125: 0
F126: Starting RAB (future capex) | L126: RAB | O126: 46 | R126: =IF($O126=R$2,R$40,IF(R$2>$O126,Q126-Q127,0)) -> 0 | S126: 0 | T126: 0 | U126: 0 | V126: 0 | W126: 0 | X126: 0 | Y126: 0 | Z126: 0 | AA126: 0 | AB126: 0 | AC126: 0 | AD126: 0 | AE126: 0 | AF126: 0 | AG126: 0 | AH126: 0 | AI126: 0 | AJ126: 0 | AK126: 0 | AL126: 0 | AM126: 0 | AN126: 0 | AO126: 0 | AP126: 0 | AQ126: 0 | AR126: 0 | AS126: 0 | AT126: 0
F127: Straight-line depreciation (future capex) | L127: DEP | O127: 46 | R127: =IF(R$2>=$O127,IF(R126-HLOOKUP($O127,$R$2:$AT$33,30,FALSE)/HLOOKUP($O127,$R$2:$AT$33,31,FALSE)<=0,R126,HLOOKUP($O127,$R$2:$AT$33,30,FALSE)/HLOOKUP($O127,$R$2:$AT$33,31,FALSE)),0) -> 0 | S127: 0 | T127: 0 | U127: 0 | V127: 0 | W127: 0 | X127: 0 | Y127: 0 | Z127: 0 | AA127: 0 | AB127: 0 | AC127: 0 | AD127: 0 | AE127: 0 | AF127: 0 | AG127: 0 | AH127: 0 | AI127: 0 | AJ127: 0 | AK127: 0 | AL127: 0 | AM127: 0 | AN127: 0 | AO127: 0 | AP127: 0 | AQ127: 0 | AR127: 0 | AS127: 0 | AT127: 0
F128: Starting RAB (future capex) | L128: RAB | O128: 47 | R128: =IF($O128=R$2,R$40,IF(R$2>$O128,Q128-Q129,0)) -> 0 | S128: 0 | T128: 0 | U128: 0 | V128: 0 | W128: 0 | X128: 0 | Y128: 0 | Z128: 0 | AA128: 0 | AB128: 0 | AC128: 0 | AD128: 0 | AE128: 0 | AF128: 0 | AG128: 0 | AH128: 0 | AI128: 0 | AJ128: 0 | AK128: 0 | AL128: 0 | AM128: 0 | AN128: 0 | AO128: 0 | AP128: 0 | AQ128: 0 | AR128: 0 | AS128: 0 | AT128: 0
F129: Straight-line depreciation (future capex) | L129: DEP | O129: 47 | R129: =IF(R$2>=$O129,IF(R128-HLOOKUP($O129,$R$2:$AT$33,30,FALSE)/HLOOKUP($O129,$R$2:$AT$33,31,FALSE)<=0,R128,HLOOKUP($O129,$R$2:$AT$33,30,FALSE)/HLOOKUP($O129,$R$2:$AT$33,31,FALSE)),0) -> 0 | S129: 0 | T129: 0 | U129: 0 | V129: 0 | W129: 0 | X129: 0 | Y129: 0 | Z129: 0 | AA129: 0 | AB129: 0 | AC129: 0 | AD129: 0 | AE129: 0 | AF129: 0 | AG129: 0 | AH129: 0 | AI129: 0 | AJ129: 0 | AK129: 0 | AL129: 0 | AM129: 0 | AN129: 0 | AO129: 0 | AP129: 0 | AQ129: 0 | AR129: 0 | AS129: 0 | AT129: 0
F130: Starting RAB (future capex) | L130: RAB | O130: 48 | R130: =IF($O130=R$2,R$40,IF(R$2>$O130,Q130-Q131,0)) -> 0 | S130: 0 | T130: 0 | U130: 0 | V130: 0 | W130: 0 | X130: 0 | Y130: 0 | Z130: 0 | AA130: 0 | AB130: 0 | AC130: 0 | AD130: 0 | AE130: 0 | AF130: 0 | AG130: 0 | AH130: 0 | AI130: 0 | AJ130: 0 | AK130: 0 | AL130: 0 | AM130: 0 | AN130: 0 | AO130: 0 | AP130: 0 | AQ130: 0 | AR130: 0 | AS130: 0 | AT130: 0
F131: Straight-line depreciation (future capex) | L131: DEP | O131: 48 | R131: =IF(R$2>=$O131,IF(R130-HLOOKUP($O131,$R$2:$AT$33,30,FALSE)/HLOOKUP($O131,$R$2:$AT$33,31,FALSE)<=0,R130,HLOOKUP($O131,$R$2:$AT$33,30,FALSE)/HLOOKUP($O131,$R$2:$AT$33,31,FALSE)),0) -> 0 | S131: 0 | T131: 0 | U131: 0 | V131: 0 | W131: 0 | X131: 0 | Y131: 0 | Z131: 0 | AA131: 0 | AB131: 0 | AC131: 0 | AD131: 0 | AE131: 0 | AF131: 0 | AG131: 0 | AH131: 0 | AI131: 0 | AJ131: 0 | AK131: 0 | AL131: 0 | AM131: 0 | AN131: 0 | AO131: 0 | AP131: 0 | AQ131: 0 | AR131: 0 | AS131: 0 | AT131: 0
F132: Starting RAB (future capex) | L132: RAB | O132: 49 | R132: =IF($O132=R$2,R$40,IF(R$2>$O132,Q132-Q133,0)) -> 0 | S132: 0 | T132: 0 | U132: 0 | V132: 0 | W132: 0 | X132: 0 | Y132: 0 | Z132: 0 | AA132: 0 | AB132: 0 | AC132: 0 | AD132: 0 | AE132: 0 | AF132: 0 | AG132: 0 | AH132: 0 | AI132: 0 | AJ132: 0 | AK132: 0 | AL132: 0 | AM132: 0 | AN132: 0 | AO132: 0 | AP132: 0 | AQ132: 0 | AR132: 0 | AS132: 0 | AT132: 0
F133: Straight-line depreciation (future capex) | L133: DEP | O133: 49 | R133: =IF(R$2>=$O133,IF(R132-HLOOKUP($O133,$R$2:$AT$33,30,FALSE)/HLOOKUP($O133,$R$2:$AT$33,31,FALSE)<=0,R132,HLOOKUP($O133,$R$2:$AT$33,30,FALSE)/HLOOKUP($O133,$R$2:$AT$33,31,FALSE)),0) -> 0 | S133: 0 | T133: 0 | U133: 0 | V133: 0 | W133: 0 | X133: 0 | Y133: 0 | Z133: 0 | AA133: 0 | AB133: 0 | AC133: 0 | AD133: 0 | AE133: 0 | AF133: 0 | AG133: 0 | AH133: 0 | AI133: 0 | AJ133: 0 | AK133: 0 | AL133: 0 | AM133: 0 | AN133: 0 | AO133: 0 | AP133: 0 | AQ133: 0 | AR133: 0 | AS133: 0 | AT133: 0
F134: Starting RAB (future capex) | L134: RAB | O134: 50 | R134: =IF($O134=R$2,R$40,IF(R$2>$O134,Q134-Q135,0)) -> 0 | S134: 0 | T134: 0 | U134: 0 | V134: 0 | W134: 0 | X134: 0 | Y134: 0 | Z134: 0 | AA134: 0 | AB134: 0 | AC134: 0 | AD134: 0 | AE134: 0 | AF134: 0 | AG134: 0 | AH134: 0 | AI134: 0 | AJ134: 0 | AK134: 0 | AL134: 0 | AM134: 0 | AN134: 0 | AO134: 0 | AP134: 0 | AQ134: 0 | AR134: 0 | AS134: 0 | AT134: 0
F135: Straight-line depreciation (future capex) | L135: DEP | O135: 50 | R135: =IF(R$2>=$O135,IF(R134-HLOOKUP($O135,$R$2:$AT$33,30,FALSE)/HLOOKUP($O135,$R$2:$AT$33,31,FALSE)<=0,R134,HLOOKUP($O135,$R$2:$AT$33,30,FALSE)/HLOOKUP($O135,$R$2:$AT$33,31,FALSE)),0) -> 0 | S135: 0 | T135: 0 | U135: 0 | V135: 0 | W135: 0 | X135: 0 | Y135: 0 | Z135: 0 | AA135: 0 | AB135: 0 | AC135: 0 | AD135: 0 | AE135: 0 | AF135: 0 | AG135: 0 | AH135: 0 | AI135: 0 | AJ135: 0 | AK135: 0 | AL135: 0 | AM135: 0 | AN135: 0 | AO135: 0 | AP135: 0 | AQ135: 0 | AR135: 0 | AS135: 0 | AT135: 0
F136: Starting RAB (future capex) | L136: RAB | O136: 51 | R136: =IF($O136=R$2,R$40,IF(R$2>$O136,Q136-Q137,0)) -> 0 | S136: 0 | T136: 0 | U136: 0 | V136: 0 | W136: 0 | X136: 0 | Y136: 0 | Z136: 0 | AA136: 0 | AB136: 0 | AC136: 0 | AD136: 0 | AE136: 0 | AF136: 0 | AG136: 0 | AH136: 0 | AI136: 0 | AJ136: 0 | AK136: 0 | AL136: 0 | AM136: 0 | AN136: 0 | AO136: 0 | AP136: 0 | AQ136: 0 | AR136: 0 | AS136: 0 | AT136: 0
F137: Straight-line depreciation (future capex) | L137: DEP | O137: 51 | R137: =IF(R$2>=$O137,IF(R136-HLOOKUP($O137,$R$2:$AT$33,30,FALSE)/HLOOKUP($O137,$R$2:$AT$33,31,FALSE)<=0,R136,HLOOKUP($O137,$R$2:$AT$33,30,FALSE)/HLOOKUP($O137,$R$2:$AT$33,31,FALSE)),0) -> 0 | S137: 0 | T137: 0 | U137: 0 | V137: 0 | W137: 0 | X137: 0 | Y137: 0 | Z137: 0 | AA137: 0 | AB137: 0 | AC137: 0 | AD137: 0 | AE137: 0 | AF137: 0 | AG137: 0 | AH137: 0 | AI137: 0 | AJ137: 0 | AK137: 0 | AL137: 0 | AM137: 0 | AN137: 0 | AO137: 0 | AP137: 0 | AQ137: 0 | AR137: 0 | AS137: 0 | AT137: 0
F138: Starting RAB (future capex) | L138: RAB | O138: 52 | R138: =IF($O138=R$2,R$40,IF(R$2>$O138,Q138-Q139,0)) -> 0 | S138: 0 | T138: 0 | U138: 0 | V138: 0 | W138: 0 | X138: 0 | Y138: 0 | Z138: 0 | AA138: 0 | AB138: 0 | AC138: 0 | AD138: 0 | AE138: 0 | AF138: 0 | AG138: 0 | AH138: 0 | AI138: 0 | AJ138: 0 | AK138: 0 | AL138: 0 | AM138: 0 | AN138: 0 | AO138: 0 | AP138: 0 | AQ138: 0 | AR138: 0 | AS138: 0 | AT138: 0
F139: Straight-line depreciation (future capex) | L139: DEP | O139: 52 | R139: =IF(R$2>=$O139,IF(R138-HLOOKUP($O139,$R$2:$AT$33,30,FALSE)/HLOOKUP($O139,$R$2:$AT$33,31,FALSE)<=0,R138,HLOOKUP($O139,$R$2:$AT$33,30,FALSE)/HLOOKUP($O139,$R$2:$AT$33,31,FALSE)),0) -> 0 | S139: 0 | T139: 0 | U139: 0 | V139: 0 | W139: 0 | X139: 0 | Y139: 0 | Z139: 0 | AA139: 0 | AB139: 0 | AC139: 0 | AD139: 0 | AE139: 0 | AF139: 0 | AG139: 0 | AH139: 0 | AI139: 0 | AJ139: 0 | AK139: 0 | AL139: 0 | AM139: 0 | AN139: 0 | AO139: 0 | AP139: 0 | AQ139: 0 | AR139: 0 | AS139: 0 | AT139: 0
F140: Starting RAB (future capex) | L140: RAB | O140: 53 | R140: =IF($O140=R$2,R$40,IF(R$2>$O140,Q140-Q141,0)) -> 0 | S140: 0 | T140: 0 | U140: 0 | V140: 0 | W140: 0 | X140: 0 | Y140: 0 | Z140: 0 | AA140: 0 | AB140: 0 | AC140: 0 | AD140: 0 | AE140: 0 | AF140: 0 | AG140: 0 | AH140: 0 | AI140: 0 | AJ140: 0 | AK140: 0 | AL140: 0 | AM140: 0 | AN140: 0 | AO140: 0 | AP140: 0 | AQ140: 0 | AR140: 0 | AS140: 0 | AT140: 0
F141: Straight-line depreciation (future capex) | L141: DEP | O141: 53 | R141: =IF(R$2>=$O141,IF(R140-HLOOKUP($O141,$R$2:$AT$33,30,FALSE)/HLOOKUP($O141,$R$2:$AT$33,31,FALSE)<=0,R140,HLOOKUP($O141,$R$2:$AT$33,30,FALSE)/HLOOKUP($O141,$R$2:$AT$33,31,FALSE)),0) -> 0 | S141: 0 | T141: 0 | U141: 0 | V141: 0 | W141: 0 | X141: 0 | Y141: 0 | Z141: 0 | AA141: 0 | AB141: 0 | AC141: 0 | AD141: 0 | AE141: 0 | AF141: 0 | AG141: 0 | AH141: 0 | AI141: 0 | AJ141: 0 | AK141: 0 | AL141: 0 | AM141: 0 | AN141: 0 | AO141: 0 | AP141: 0 | AQ141: 0 | AR141: 0 | AS141: 0 | AT141: 0
F142: Starting RAB (future capex) | L142: RAB | O142: 54 | R142: =IF($O142=R$2,R$40,IF(R$2>$O142,Q142-Q143,0)) -> 0 | S142: 0 | T142: 0 | U142: 0 | V142: 0 | W142: 0 | X142: 0 | Y142: 0 | Z142: 0 | AA142: 0 | AB142: 0 | AC142: 0 | AD142: 0 | AE142: 0 | AF142: 0 | AG142: 0 | AH142: 0 | AI142: 0 | AJ142: 0 | AK142: 0 | AL142: 0 | AM142: 0 | AN142: 0 | AO142: 0 | AP142: 0 | AQ142: 0 | AR142: 0 | AS142: 0 | AT142: 0
F143: Straight-line depreciation (future capex) | L143: DEP | O143: 54 | R143: =IF(R$2>=$O143,IF(R142-HLOOKUP($O143,$R$2:$AT$33,30,FALSE)/HLOOKUP($O143,$R$2:$AT$33,31,FALSE)<=0,R142,HLOOKUP($O143,$R$2:$AT$33,30,FALSE)/HLOOKUP($O143,$R$2:$AT$33,31,FALSE)),0) -> 0 | S143: 0 | T143: 0 | U143: 0 | V143: 0 | W143: 0 | X143: 0 | Y143: 0 | Z143: 0 | AA143: 0 | AB143: 0 | AC143: 0 | AD143: 0 | AE143: 0 | AF143: 0 | AG143: 0 | AH143: 0 | AI143: 0 | AJ143: 0 | AK143: 0 | AL143: 0 | AM143: 0 | AN143: 0 | AO143: 0 | AP143: 0 | AQ143: 0 | AR143: 0 | AS143: 0 | AT143: 0
F144: Starting RAB (future capex) | L144: RAB | O144: 55 | R144: =IF($O144=R$2,R$40,IF(R$2>$O144,Q144-Q145,0)) -> 0 | S144: 0 | T144: 0 | U144: 0 | V144: 0 | W144: 0 | X144: 0 | Y144: 0 | Z144: 0 | AA144: 0 | AB144: 0 | AC144: 0 | AD144: 0 | AE144: 0 | AF144: 0 | AG144: 0 | AH144: 0 | AI144: 0 | AJ144: 0 | AK144: 0 | AL144: 0 | AM144: 0 | AN144: 0 | AO144: 0 | AP144: 0 | AQ144: 0 | AR144: 0 | AS144: 0 | AT144: 0
F145: Straight-line depreciation (future capex) | L145: DEP | O145: 55 | R145: =IF(R$2>=$O145,IF(R144-HLOOKUP($O145,$R$2:$AT$33,30,FALSE)/HLOOKUP($O145,$R$2:$AT$33,31,FALSE)<=0,R144,HLOOKUP($O145,$R$2:$AT$33,30,FALSE)/HLOOKUP($O145,$R$2:$AT$33,31,FALSE)),0) -> 0 | S145: 0 | T145: 0 | U145: 0 | V145: 0 | W145: 0 | X145: 0 | Y145: 0 | Z145: 0 | AA145: 0 | AB145: 0 | AC145: 0 | AD145: 0 | AE145: 0 | AF145: 0 | AG145: 0 | AH145: 0 | AI145: 0 | AJ145: 0 | AK145: 0 | AL145: 0 | AM145: 0 | AN145: 0 | AO145: 0 | AP145: 0 | AQ145: 0 | AR145: 0 | AS145: 0 | AT145: 0
F147: Total straight-line depreciation (future capex) | L147: DEP | R147: =SUMIF($L$43:$L$145,$L$147,R43:R145) -> 0 | S147: =SUMIF($L$43:$L$145,$L$147,S43:S145) -> 0 | T147: =SUMIF($L$43:$L$145,$L$147,T43:T145) -> 0 | U147: 0 | V147: 6.26114825 | W147: 12.52932845 | X147: 18.81433695 | Y147: 25.12450319 | Z147: 31.47649592 | AA147: 37.88432393 | AB147: 44.35864051 | AC147: 50.89923304 | AD147: 57.50442024 | AE147: 64.17071251 | AF147: 70.89423344 | AG147: 77.67045137 | AH147: 84.49339234 | AI147: 91.35647824 | AJ147: 98.30650604 | AK147: 105.3798507 | AL147: 112.5745169 | AM147: 119.887446 | AN147: 127.3153556 | AO147: 134.8553015 | AP147: 142.5040673 | AQ147: 150.2576683 | AR147: 158.1117381 | AS147: 166.0615629 | AT147: 174.1020697
F148: Total starting RAB (future capex) | L148: RAB | R148: =SUMIF($L$43:$L$145,$L$148,R43:R145) -> 0 | S148: =SUMIF($L$43:$L$145,$L$148,S43:S145) -> 0 | T148: =SUMIF($L$43:$L$145,$L$148,T43:T145) -> 0 | U148: 0 | V148: 253.9401863 | W148: 502.0275572 | X148: 744.612258 | Y148: 981.9671836 | Z148: 1214.744223 | AA148: 1443.470851 | AB148: 1668.556922 | AC148: 1889.905953 | AD148: 2107.38428 | AE148: 2320.770992 | AF148: 2529.840273 | AG148: 2734.335478 | AH148: 2933.953315 | AI148: 3128.379726 | AJ148: 3319.47642 | AK148: 3508.634754 | AL148: 3695.650321 | AM148: 3880.277498 | AN148: 4062.264618 | AO148: 4241.377051 | AP148: 4417.372037 | AQ148: 4589.978824 | AR148: 4758.915123 | AS148: 4923.88889 | AT148: 5084.598199
F149: Closing RAB | K149: CEPA historical model | L149: On 30/6/2022 | Q149: 4941.453797 | R149: =R39+R40-R41-R147 -> 5016.063674 | S149: =S39+S40-S41-S147 -> 5037.488112 | T149: =T39+T40-T41-T147 -> 5024.557302 | U149: =U39+U40-U41-U147 -> 5008.745122 | V149: =V39+V40-V41-V147 -> 5014.370489 | W149: =W39+W40-W41-W147 -> 5027.832657 | X149: 5047.958152 | Y149: 5081.418193 | Z149: 5126.084867 | AA149: 5179.273878 | AB149: 5232.2928 | AC149: 5283.966749 | AD149: 5332.849108 | AE149: 5378.630456 | AF149: =AF39+AF40-AF41-AF147 -> 5420.786596 | AG149: 5458.163729 | AH149: 5490.278569 | AI149: 5559.829671 | AJ149: 5658.479726 | AK149: 5755.533606 | AL149: =AL39+AL40-AL41-AL147 -> 5850.140683 | AM149: 5942.121863 | AN149: 6031.747853 | AO149: 6118.800649 | AP149: 6202.665974 | AQ149: 6283.038265 | AR149: 6359.639598 | AS149: 6432.182645 | AT149: =AT39+AT40-AT41-AT147 -> 6500.370552
C151: RAB (Nominal)
F153: Opening RAB | R153: =R39*R8 -> 5064.990142 | S153: =S39*S8 -> 5270.001897 | T153: =T39*T8 -> 5424.823721 | U153: 5546.17112 | V153: 5666.935367 | W153: 5815.132453 | X153: 5976.513051 | Y153: 6150.446839 | Z153: 6345.995016 | AA153: 6561.82201 | AB153: 6795.656152 | AC153: 7036.852112 | AD153: 7284.006524 | AE153: 7535.176181 | AF153: 7789.860627 | AG153: 8047.18817 | AH153: 8305.241603 | AI153: 8562.960832 | AJ153: 8888.222736 | AK153: 9272.077907 | AL153: 9666.889789 | AM153: 10071.43487 | AN153: 10485.53172 | AO153: 10909.77886 | AP153: 11343.91435 | AQ153: 11786.88088 | AR153: 12238.10205 | AS153: 12696.98878 | AT153: 13162.86613
F154: Net Capex | R154: =R40*R8 -> 332.207651 | S154: =S40*S8 -> 282.6965979 | T154: 255.443317 | U154: 257.2699864 | V154: 287.3100124 | W154: 294.9663036 | X154: 303.2504122 | Y154: 312.1173717 | Z154: 322.0836862 | AA154: 333.081998 | AB154: 345.039946 | AC154: 357.3472775 | AD154: 369.961432 | AE154: 382.7620782 | AF154: 395.732981 | AG154: 408.8171685 | AH154: 421.9269246 | AI154: 435.0197022 | AJ154: 451.5438157 | AK154: 471.0446128 | AL154: 491.1020382 | AM154: 511.6539343 | AN154: 532.6910837 | AO154: 554.2438936 | AP154: 576.2990559 | AQ154: 598.8028568 | AR154: 621.7260143 | AS154: 645.0386012 | AT154: 668.7063289
F155: Indexation of opening RAB | R155: =Q158*$O$8 -> 123.5363449 | S155: =R158*$O$8 -> 128.5366316 | T155: 132.3127737 | U155: 135.2724663 | V155: 138.2179358 | W155: 141.8324988 | X155: 145.768611 | Y155: 150.0108985 | Z155: 154.7803662 | AA155: 160.0444393 | AB155: 165.747711 | AC155: 171.6305393 | AD155: 177.6586957 | AE155: 183.7847849 | AF155: 189.9966007 | AG155: 196.2728822 | AH155: 202.5668684 | AI155: 208.8527032 | AJ155: 216.7859204 | AK155: 226.1482416 | AL155: 235.7777997 | AM155: 245.644753 | AN155: 255.744676 | AO155: 266.0921674 | AP155: 276.6808379 | AQ155: 287.4848994 | AR155: 298.4902938 | AS155: 309.6826531 | AT155: 321.0455152
F156: Straight-line depreciation | R156: =(R41*R8)+(R147*R8) -> 255.7325278 | S156: =(S41*S8)+(S147*S8) -> 260.1875479 | T156: =(T41*T8)+(T147*T8) -> 269.3683841 | U156: 274.7236755 | V156: 280.9454253 | W156: 279.3543159 | X156: 279.3275229 | Y156: 271.3495609 | Z156: 266.3011312 | AA156: 264.9955671 | AB156: 275.4745255 | AC156: 287.851561 | AD156: 302.5765601 | AE156: 318.0742327 | AF156: 334.6783199 | AG156: 353.3306043 | AH156: 373.0603986 | AI156: 326.5437193 | AJ156: 293.8368863 | AK156: 312.0105303 | AL156: 332.2017087 | AM156: 353.3017647 | AN156: 374.5361051 | AO156: 396.7892422 | AP156: 420.8174318 | AQ156: 446.071979 | AR156: 472.5219359 | AS156: 500.20677 | AT156: 529.1660917
F157: Nominal regulatory depreciation | R157: =R156-R155 -> 132.1961829 | S157: =S156-S155 -> 131.6509162 | T157: 137.0556105 | U157: 139.4512092 | V157: 142.7274896 | W157: 137.5218171 | X157: 133.5589119 | Y157: 121.3386624 | Z157: 111.5207649 | AA157: =AA156-AA155 -> 104.9511278 | AB157: 109.7268145 | AC157: 116.2210217 | AD157: 124.9178644 | AE157: 134.2894478 | AF157: 144.6817193 | AG157: 157.0577221 | AH157: 170.4935303 | AI157: 117.6910161 | AJ157: 77.05096594 | AK157: 85.86228871 | AL157: 96.42390898 | AM157: 107.6570117 | AN157: 118.791429 | AO157: 130.6970748 | AP157: 144.136594 | AQ157: 158.5870796 | AR157: 174.0316421 | AS157: 190.5241168 | AT157: 208.1205765
F158: Closing RAB | Q158: =Q149*Q8 -> 4941.453797 | R158: =R149*R8 -> 5141.465266 | S158: =S149*S8 -> 5292.510947 | T158: 5410.898654 | U158: 5528.717431 | V158: 5673.299954 | W158: 5830.74444 | X158: 6000.435941 | Y158: 6191.21465 | Z158: 6401.777571 | AA158: 6629.908441 | AB158: 6865.221573 | AC158: 7106.347829 | AD158: 7351.391396 | AE158: 7599.864026 | AF158: 7850.915288 | AG158: 8102.674735 | AH158: 8354.108129 | AI158: 8671.436815 | AJ158: 9045.929665 | AK158: 9431.111989 | AL158: 9825.790118 | AM158: 10229.78704 | AN158: 10643.6867 | AO158: 11067.23351 | AP158: 11499.39598 | AQ158: 11939.61175 | AR158: 12387.30613 | AS158: 12841.82061 | AT158: 13302.40636
C160: Revenue (Nominal)
F162: Debt | R162: =Q158*$O$13 -> 2964.872278 | S162: =R158*$O$13 -> 3084.879159 | T162: =S158*$O$13 -> 3175.506568 | U162: 3246.539192 | V162: 3317.230459 | W162: 3403.979972 | X162: 3498.446664 | Y162: 3600.261564 | Z162: 3714.72879 | AA162: 3841.066543 | AB162: 3977.945065 | AC162: 4119.132944 | AD162: 4263.808697 | AE162: 4410.834838 | AF162: 4559.918416 | AG162: 4710.549173 | AH162: 4861.604841 | AI162: 5012.464877 | AJ162: 5202.862089 | AK162: 5427.557799 | AL162: 5658.667193 | AM162: 5895.474071 | AN162: 6137.872224 | AO162: 6386.212017 | AP162: 6640.340108 | AQ162: 6899.637586 | AR162: 7163.767052 | AS162: 7432.383675 | AT162: 7705.092366
F163: Equity | R163: =Q158*$O$14 -> 1976.581519 | S163: =R158*$O$14 -> 2056.586106 | T163: =S158*$O$14 -> 2117.004379 | U163: 2164.359462 | V163: 2211.486972 | W163: 2269.319982 | X163: 2332.297776 | Y163: 2400.174376 | Z163: 2476.48586 | AA163: 2560.711028 | AB163: 2651.963377 | AC163: 2746.088629 | AD163: 2842.539131 | AE163: 2940.556558 | AF163: 3039.945611 | AG163: 3140.366115 | AH163: 3241.069894 | AI163: 3341.643252 | AJ163: 3468.574726 | AK163: 3618.371866 | AL163: 3772.444796 | AM163: 3930.316047 | AN163: 4091.914816 | AO163: 4257.474678 | AP163: 4426.893406 | AQ163: 4599.75839 | AR163: 4775.844701 | AS163: 4954.92245 | AT163: 5136.728244
F165: Return on debt | R165: =R162*WACC!W47 -> 136.2818948 | S165: =S162*WACC!X47 -> 141.3874507 | T165: =T162*WACC!Y47 -> 145.1178141 | U165: =U162*WACC!Z47 -> 148.5817405 | V165: =V162*WACC!AA47 -> 152.3706254 | W165: =W162*WACC!AB47 -> 157.6048512 | X165: =X162*WACC!AC47 -> 163.6154882 | Y165: =Y162*WACC!AD47 -> 170.0616204 | Z165: =Z162*WACC!AE47 -> 177.2065883 | AA165: =AA162*WACC!AF47 -> 185.0304903 | AB165: =AB162*WACC!AG47 -> 195.2136481 | AC165: =AC162*WACC!AH47 -> 204.6178042 | AD165: =AD162*WACC!AI47 -> 214.3678547 | AE165: =AE162*WACC!AJ47 -> 223.5275452 | AF165: =AF162*WACC!AK47 -> 232.4550771 | AG165: =AG162*WACC!AL47 -> 240.6086585 | AH165: =AH162*WACC!AM47 -> 248.3243834 | AI165: =AI162*WACC!AN47 -> 256.0301157 | AJ165: =AJ162*WACC!AO47 -> 265.755355 | AK165: =AK162*WACC!AP47 -> 277.2325164 | AL165: =AL162*WACC!AQ47 -> 289.0372804 | AM165: =AM162*WACC!AR47 -> 301.1330644 | AN165: =AN162*WACC!AS47 -> 313.5144434 | AO165: =AO162*WACC!AT47 -> 326.1993135 | AP165: =AP162*WACC!AU47 -> 339.1798423 | AQ165: =AQ162*WACC!AV47 -> 352.4244165 | AR165: =AR162*WACC!AW47 -> 365.9158024 | AS165: =AS162*WACC!AX47 -> 379.6363863 | AT165: =AT162*WACC!AY47 -> 393.5659877
F166: Return on equity | R166: =R163*WACC!W48 -> 117.7848803 | S166: =S163*WACC!X48 -> 128.7503474 | T166: =T163*WACC!Y48 -> 132.5286129 | U166: =U163*WACC!Z48 -> 139.8303154 | V166: =V163*WACC!AA48 -> 145.082184 | W166: =W163*WACC!AB48 -> 153.4193275 | X166: =X163*WACC!AC48 -> 160.0275455 | Y166: =Y163*WACC!AD48 -> 164.6848092 | Z166: =Z163*WACC!AE48 -> 169.9208213 | AA166: =AA163*WACC!AF48 -> 175.6998205 | AB166: =AB163*WACC!AG48 -> 181.9609804 | AC166: =AC163*WACC!AH48 -> 188.4192608 | AD166: =AD163*WACC!AI48 -> 195.0370852 | AE166: =AE163*WACC!AJ48 -> 201.7624221 | AF166: =AF163*WACC!AK48 -> 208.5818713 | AG166: =AG163*WACC!AL48 -> 215.4720922 | AH166: =AH163*WACC!AM48 -> 222.3817495 | AI166: =AI163*WACC!AN48 -> 229.2824582 | AJ166: =AJ163*WACC!AO48 -> 237.9916945 | AK166: =AK163*WACC!AP48 -> 248.2698283 | AL166: =AL163*WACC!AQ48 -> 258.8413398 | AM166: =AM163*WACC!AR48 -> 269.6734682 | AN166: =AN163*WACC!AS48 -> 280.7613552 | AO166: =AO163*WACC!AT48 -> 292.1210275 | AP166: =AP163*WACC!AU48 -> 303.7454707 | AQ166: =AQ163*WACC!AV48 -> 315.6063744 | AR166: =AR163*WACC!AW48 -> 327.6883051 | AS166: =AS163*WACC!AX48 -> 339.9754894 | AT166: =AT163*WACC!AY48 -> 352.4498549
F168: Opex | R168: 253.2345501 | S168: 262.2127067 | T168: 272.1145869 | U168: 283.3604337 | V168: =U168*(1+$O$8) -> 290.4444446 | W168: =V168*(1+$O$8) -> 297.7055557 | X168: 305.1481946 | Y168: 312.7768994 | Z168: 320.5963219 | AA168: 328.61123 | AB168: 336.8265107 | AC168: 345.2471735 | AD168: 353.8783528 | AE168: 362.7253116 | AF168: 371.7934444 | AG168: 381.0882805 | AH168: 390.6154875 | AI168: 400.3808747 | AJ168: 410.3903966 | AK168: 420.6501565 | AL168: 431.1664104 | AM168: 441.9455707 | AN168: 452.99421 | AO168: 464.3190652 | AP168: 475.9270418 | AQ168: 487.8252179 | AR168: 500.0208483 | AS168: 512.5213695 | AT168: 525.3344038
F169: Nominal regulatory depreciation | R169: =R157 -> 132.1961829 | S169: =S157 -> 131.6509162 | T169: =T157 -> 137.0556105 | U169: 139.4512092 | V169: 142.7274896 | W169: 137.5218171 | X169: 133.5589119 | Y169: 121.3386624 | Z169: 111.5207649 | AA169: 104.9511278 | AB169: 109.7268145 | AC169: 116.2210217 | AD169: 124.9178644 | AE169: 134.2894478 | AF169: 144.6817193 | AG169: 157.0577221 | AH169: 170.4935303 | AI169: 117.6910161 | AJ169: 77.05096594 | AK169: 85.86228871 | AL169: 96.42390898 | AM169: 107.6570117 | AN169: 118.791429 | AO169: 130.6970748 | AP169: 144.136594 | AQ169: 158.5870796 | AR169: 174.0316421 | AS169: 190.5241168 | AT169: 208.1205765
F171: Tax payable | R171: =R309 -> 0 | S171: =S309 -> 0 | T171: 0 | U171: 0 | V171: 0 | W171: 0 | X171: 0 | Y171: 0 | Z171: =Z309 -> 26.07649271 | AA171: 29.46832131 | AB171: 29.35182256 | AC171: 29.97505671 | AD171: 31.36203292 | AE171: 32.68873135 | AF171: 34.31862182 | AG171: 36.66242166 | AH171: 39.34481841 | AI171: 19.31804868 | AJ171: =AJ309 -> 4.011413892 | AK171: =AK309 -> 6.072585114 | AL171: 8.715341408 | AM171: 11.55621184 | AN171: 14.32733652 | AO171: 17.27428936 | AP171: 20.82426697 | AQ171: 24.61143348 | AR171: 28.68439712 | AS171: 33.05602452 | AT171: 37.7397588
F172: Value of imputation credits | R172: =R171*$O$17 -> 0 | S172: =S171*$O$17 -> 0 | T172: 0 | U172: 0 | V172: 0 | W172: 0 | X172: 0 | Y172: 0 | Z172: 15.25474823 | AA172: 17.23896796 | AB172: 17.1708162 | AC172: 17.53540817 | AD172: 18.34678926 | AE172: 19.12290784 | AF172: 20.07639376 | AG172: 21.44751667 | AH172: 23.01671877 | AI172: 11.30105848 | AJ172: 2.346677127 | AK172: 3.552462291 | AL172: 5.098474724 | AM172: 6.760383929 | AN172: 8.381491862 | AO172: 10.10545928 | AP172: 12.18219618 | AQ172: 14.39768859 | AR172: 16.78037232 | AS172: 19.33777434 | AT172: 22.0777589
F174: Revenue for tax assessment | R174: =R165+R166+R168+R169+R171-R172+R320 -> 691.3152476 | S174: =S165+S166+S168+S169+S171-S172+S320 -> 694.8630476 | T174: 698.2592898 | U174: 720.4820302 | V174: 730.6247435 | W174: 746.2515515 | X174: 762.3501402 | Y174: 768.8619914 | Z174: =Z165+Z166+Z168+Z169+Z171-Z172+Z320 -> 790.066241 | AA174: 806.5220219 | AB174: 835.9089601 | AC174: 866.9449088 | AD174: 901.2164008 | AE174: 935.8705502 | AF174: 971.7543401 | AG174: 1009.441658 | AH174: 1048.14325 | AI174: 1011.401455 | AJ174: 992.8531488 | AK174: 1034.534913 | AL174: 1079.085806 | AM174: 1125.204943 | AN174: 1172.007282 | AO174: 1220.505311 | AP174: 1271.63102 | AQ174: 1324.656833 | AR174: 1379.560623 | AS174: 1436.375612 | AT174: 1495.132823
C176: Tax
F178: Tax depreciation
F180: Opening TAB (initial assets) | R180: =Q185 -> 3843.44 | S180: =R185 -> 3823.088857 | T180: 3736.771466 | U180: 3663.934439 | V180: 3601.87553 | W180: 3420.009937 | X180: 3255.444833 | Y180: 3103.009178 | Z180: 2969.649031 | AA180: 2849.34726 | AB180: 2736.860379 | AC180: 2626.140382 | AD180: 2517.388597 | AE180: 2410.447311 | AF180: 2304.344516 | AG180: 2198.845591 | AH180: 2093.980715 | AI180: 1989.66126 | AJ180: 1885.863078 | AK180: 1782.5631 | AL180: 1679.739278 | AM180: 1577.370547 | AN180: 1475.436776 | AO180: 1373.918729 | AP180: 1272.636609 | AQ180: 1171.909306 | AR180: 1071.54384 | AS180: 971.5242654 | AT180: 871.8353413
F181: Tax depreciation (initial assets) | K181: AusNet D PTRM 2021-26 | L181: TaxDep | R181: 376.3145867 | S181: 392.0115645 | T181: 351.0689722 | U181: 341.5309914 | V181: 181.865593 | W181: 164.5651037 | X181: 152.4356555 | Y181: 133.3601464 | Z181: 120.3017714 | AA181: 112.4868811 | AB181: 110.7199966 | AC181: 108.7517853 | AD181: 106.9412863 | AE181: 106.1027943 | AF181: 105.4989252 | AG181: 104.8648757 | AH181: 104.3194557 | AI181: 103.7981813 | AJ181: 103.2999785 | AK181: 102.8238217 | AL181: 102.3687312 | AM181: 101.933771 | AN181: 101.5180472 | AO181: 101.2821195 | AP181: 100.7273036 | AQ181: 100.3654662 | AR181: 100.0195741 | AS181: 99.68892419 | AT181: 99.37284424
F183: Additions to TAB (initial assets) | K183: AusNet D PTRM 2021-26 | R183: 355.9634437 | S183: 305.6941735 | T183: 278.2319447 | U183: 279.4720828
F185: Closing TAB (initial assets) | K185: CEPA calculated | Q185: 3843.44 | R185: =R180-R181+R183 -> 3823.088857 | S185: =S180-S181+S183 -> 3736.771466 | T185: 3663.934439 | U185: 3601.87553 | V185: 3420.009937 | W185: 3255.444833 | X185: 3103.009178 | Y185: 2969.649031 | Z185: 2849.34726 | AA185: 2736.860379 | AB185: 2626.140382 | AC185: 2517.388597 | AD185: 2410.447311 | AE185: 2304.344516 | AF185: 2198.845591 | AG185: 2093.980715 | AH185: 1989.66126 | AI185: 1885.863078 | AJ185: 1782.5631 | AK185: 1679.739278 | AL185: 1577.370547 | AM185: 1475.436776 | AN185: 1373.918729 | AO185: 1272.636609 | AP185: 1171.909306 | AQ185: 1071.54384 | AR185: 971.5242654 | AS185: 871.8353413 | AT185: 772.462497
F187: Additions to TAB (New assets) | V187: =V40*V8 -> 287.3100124 | W187: =W40*W8 -> 294.9663036 | X187: 303.2504122 | Y187: 312.1173717 | Z187: 322.0836862 | AA187: 333.081998 | AB187: 345.039946 | AC187: 357.3472775 | AD187: 369.961432 | AE187: 382.7620782 | AF187: 395.732981 | AG187: 408.8171685 | AH187: 421.9269246 | AI187: 435.0197022 | AJ187: 451.5438157 | AK187: 471.0446128 | AL187: 491.1020382 | AM187: 511.6539343 | AN187: 532.6910837 | AO187: 554.2438936 | AP187: 576.2990559 | AQ187: 598.8028568 | AR187: 621.7260143 | AS187: 645.0386012 | AT187: 668.7063289
F189: Future TAB calculations
F190: Starting TAB (new assets) | L190: TAB | O190: 5 | R190: =IF($O190=R$2,R$187,IF(R$2>$O190,Q190-Q191,0)) -> 0 | S190: =IF($O190=S$2,S$187,IF(S$2>$O190,R190-R191,0)) -> 0 | T190: =IF($O190=T$2,T$187,IF(T$2>$O190,S190-S191,0)) -> 0 | U190: =IF($O190=U$2,U$187,IF(U$2>$O190,T190-T191,0)) -> 0 | V190: =IF($O190=V$2,V$187,IF(V$2>$O190,U190-U191,0)) -> 287.3100124 | W190: =IF($O190=W$2,W$187,IF(W$2>$O190,V190-V191,0)) -> 272.9445118 | X190: =IF($O190=X$2,X$187,IF(X$2>$O190,W190-W191,0)) -> 259.2972862 | Y190: =IF($O190=Y$2,Y$187,IF(Y$2>$O190,X190-X191,0)) -> 246.3324219 | Z190: =IF($O190=Z$2,Z$187,IF(Z$2>$O190,Y190-Y191,0)) -> 234.0158008 | AA190: =IF($O190=AA$2,AA$187,IF(AA$2>$O190,Z190-Z191,0)) -> 222.3150108 | AB190: =IF($O190=AB$2,AB$187,IF(AB$2>$O190,AA190-AA191,0)) -> 211.1992602 | AC190: =IF($O190=AC$2,AC$187,IF(AC$2>$O190,AB190-AB191,0)) -> 200.6392972 | AD190: =IF($O190=AD$2,AD$187,IF(AD$2>$O190,AC190-AC191,0)) -> 190.6073324 | AE190: =IF($O190=AE$2,AE$187,IF(AE$2>$O190,AD190-AD191,0)) -> 181.0769657 | AF190: =IF($O190=AF$2,AF$187,IF(AF$2>$O190,AE190-AE191,0)) -> 172.0231174 | AG190: =IF($O190=AG$2,AG$187,IF(AG$2>$O190,AF190-AF191,0)) -> 163.4219616 | AH190: =IF($O190=AH$2,AH$187,IF(AH$2>$O190,AG190-AG191,0)) -> 155.2508635 | AI190: =IF($O190=AI$2,AI$187,IF(AI$2>$O190,AH190-AH191,0)) -> 147.4883203 | AJ190: =IF($O190=AJ$2,AJ$187,IF(AJ$2>$O190,AI190-AI191,0)) -> 140.1139043 | AK190: =IF($O190=AK$2,AK$187,IF(AK$2>$O190,AJ190-AJ191,0)) -> 133.1082091 | AL190: =IF($O190=AL$2,AL$187,IF(AL$2>$O190,AK190-AK191,0)) -> 126.4527986 | AM190: =IF($O190=AM$2,AM$187,IF(AM$2>$O190,AL190-AL191,0)) -> 120.1301587 | AN190: =IF($O190=AN$2,AN$187,IF(AN$2>$O190,AM190-AM191,0)) -> 114.1236508 | AO190: =IF($O190=AO$2,AO$187,IF(AO$2>$O190,AN190-AN191,0)) -> 108.4174682 | AP190: =IF($O190=AP$2,AP$187,IF(AP$2>$O190,AO190-AO191,0)) -> 102.9965948 | AQ190: =IF($O190=AQ$2,AQ$187,IF(AQ$2>$O190,AP190-AP191,0)) -> 97.84676508 | AR190: =IF($O190=AR$2,AR$187,IF(AR$2>$O190,AQ190-AQ191,0)) -> 92.95442682 | AS190: =IF($O190=AS$2,AS$187,IF(AS$2>$O190,AR190-AR191,0)) -> 88.30670548 | AT190: =IF($O190=AT$2,AT$187,IF(AT$2>$O190,AS190-AS191,0)) -> 83.89137021
F191: Tax depreciation (New assets) | L191: TaxDep | O191: 5 | R191: =IF(R$2>=$O191,IF(R190-(R190*HLOOKUP($O191,$R$2:$AT$34,32,FALSE))<=0,R190,R190*HLOOKUP($O191,$R$2:$AT$34,32,FALSE)),0) -> 0 | S191: 0 | T191: 0 | U191: 0 | V191: 14.36550062 | W191: 13.64722559 | X191: 12.96486431 | Y191: 12.31662109 | Z191: 11.70079004 | AA191: 11.11575054 | AB191: 10.55996301 | AC191: 10.03196486 | AD191: 9.530366618 | AE191: 9.053848287 | AF191: 8.601155872 | AG191: 8.171098079 | AH191: 7.762543175 | AI191: 7.374416016 | AJ191: 7.005695215 | AK191: 6.655410454 | AL191: 6.322639932 | AM191: 6.006507935 | AN191: 5.706182538 | AO191: 5.420873411 | AP191: 5.149829741 | AQ191: 4.892338254 | AR191: 4.647721341 | AS191: 4.415335274 | AT191: 4.19456851
F192: Starting TAB (new assets) | L192: TAB | O192: 6 | R192: =IF($O192=R$2,R$187,IF(R$2>$O192,Q192-Q193,0)) -> 0 | S192: 0 | T192: 0 | U192: 0 | V192: 0 | W192: 294.9663036 | X192: 280.2179884 | Y192: 266.207089 | Z192: 252.8967345 | AA192: 240.2518978 | AB192: 228.2393029 | AC192: 216.8273378 | AD192: 205.9859709 | AE192: 195.6866723 | AF192: 185.9023387 | AG192: 176.6072218 | AH192: 167.7768607 | AI192: 159.3880177 | AJ192: 151.4186168 | AK192: 143.8476859 | AL192: 136.6553016 | AM192: 129.8225366 | AN192: 123.3314097 | AO192: 117.1648392 | AP192: 111.3065973 | AQ192: 105.7412674 | AR192: 100.454204 | AS192: 95.43149384 | AT192: 90.65991915
F193: Tax depreciation (New assets) | L193: TaxDep | O193: 6 | R193: =IF(R$2>=$O193,IF(R192-(R192*HLOOKUP($O193,$R$2:$AT$34,32,FALSE))<=0,R192,R192*HLOOKUP($O193,$R$2:$AT$34,32,FALSE)),0) -> 0 | S193: 0 | T193: 0 | U193: 0 | V193: 0 | W193: 14.74831518 | X193: 14.01089942 | Y193: 13.31035445 | Z193: 12.64483673 | AA193: 12.01259489 | AB193: 11.41196515 | AC193: 10.84136689 | AD193: 10.29929854 | AE193: 9.784333616 | AF193: 9.295116935 | AG193: 8.830361089 | AH193: 8.388843034 | AI193: 7.969400883 | AJ193: 7.570930838 | AK193: 7.192384297 | AL193: 6.832765082 | AM193: 6.491126828 | AN193: 6.166570486 | AO193: 5.858241962 | AP193: 5.565329864 | AQ193: 5.287063371 | AR193: 5.022710202 | AS193: 4.771574692 | AT193: 4.532995957
F194: Starting TAB (new assets) | L194: TAB | O194: 7 | R194: =IF($O194=R$2,R$187,IF(R$2>$O194,Q194-Q195,0)) -> 0 | S194: 0 | T194: 0 | U194: 0 | V194: 0 | W194: 0 | X194: 303.2504122 | Y194: 288.0878916 | Z194: 273.683497 | AA194: 259.9993221 | AB194: 246.999356 | AC194: 234.6493882 | AD194: 222.9169188 | AE194: 211.7710729 | AF194: 201.1825192 | AG194: 191.1233933 | AH194: 181.5672236 | AI194: 172.4888624 | AJ194: 163.8644193 | AK194: 155.6711983 | AL194: 147.8876384 | AM194: 140.4932565 | AN194: 133.4685937 | AO194: 126.795164 | AP194: 120.4554058 | AQ194: 114.4326355 | AR194: 108.7110037 | AS194: 103.2754535 | AT194: 98.11168086
F195: Tax depreciation (New assets) | L195: TaxDep | O195: 7 | R195: =IF(R$2>=$O195,IF(R194-(R194*HLOOKUP($O195,$R$2:$AT$34,32,FALSE))<=0,R194,R194*HLOOKUP($O195,$R$2:$AT$34,32,FALSE)),0) -> 0 | S195: 0 | T195: 0 | U195: 0 | V195: 0 | W195: 0 | X195: 15.16252061 | Y195: 14.40439458 | Z195: 13.68417485 | AA195: 12.99996611 | AB195: 12.3499678 | AC195: 11.73246941 | AD195: 11.14584594 | AE195: 10.58855364 | AF195: 10.05912596 | AG195: 9.556169663 | AH195: 9.07836118 | AI195: 8.624443121 | AJ195: 8.193220965 | AK195: 7.783559917 | AL195: 7.394381921 | AM195: 7.024662825 | AN195: 6.673429684 | AO195: 6.3397582 | AP195: 6.02277029 | AQ195: 5.721631775 | AR195: 5.435550186 | AS195: 5.163772677 | AT195: 4.905584043
F196: Starting TAB (new assets) | L196: TAB | O196: 8 | R196: =IF($O196=R$2,R$187,IF(R$2>$O196,Q196-Q197,0)) -> 0 | S196: 0 | T196: 0 | U196: 0 | V196: 0 | W196: 0 | X196: 0 | Y196: 312.1173717 | Z196: 296.5115031 | AA196: 281.685928 | AB196: 267.6016316 | AC196: 254.22155 | AD196: 241.5104725 | AE196: 229.4349489 | AF196: 217.9632014 | AG196: 207.0650414 | AH196: 196.7117893 | AI196: 186.8761998 | AJ196: 177.5323898 | AK196: 168.6557703 | AL196: 160.2229818 | AM196: 152.2118327 | AN196: 144.6012411 | AO196: 137.371179 | AP196: 130.5026201 | AQ196: 123.9774891 | AR196: 117.7786146 | AS196: 111.8896839 | AT196: 106.2951997
F197: Tax depreciation (New assets) | L197: TaxDep | O197: 8 | R197: =IF(R$2>=$O197,IF(R196-(R196*HLOOKUP($O197,$R$2:$AT$34,32,FALSE))<=0,R196,R196*HLOOKUP($O197,$R$2:$AT$34,32,FALSE)),0) -> 0 | S197: 0 | T197: 0 | U197: 0 | V197: 0 | W197: 0 | X197: 0 | Y197: 15.60586859 | Z197: 14.82557516 | AA197: 14.0842964 | AB197: 13.38008158 | AC197: 12.7110775 | AD197: 12.07552363 | AE197: 11.47174744 | AF197: 10.89816007 | AG197: 10.35325207 | AH197: 9.835589465 | AI197: 9.343809992 | AJ197: 8.876619492 | AK197: 8.432788517 | AL197: 8.011149092 | AM197: 7.610591637 | AN197: 7.230062055 | AO197: 6.868558952 | AP197: 6.525131005 | AQ197: 6.198874454 | AR197: 5.888930732 | AS197: 5.594484195 | AT197: 5.314759985
F198: Starting TAB (new assets) | L198: TAB | O198: 9 | R198: =IF($O198=R$2,R$187,IF(R$2>$O198,Q198-Q199,0)) -> 0 | S198: 0 | T198: 0 | U198: 0 | V198: 0 | W198: 0 | X198: 0 | Y198: 0 | Z198: 322.0836862 | AA198: 305.9795019 | AB198: 290.6805268 | AC198: 276.1465004 | AD198: 262.3391754 | AE198: 249.2222166 | AF198: 236.7611058 | AG198: 224.9230505 | AH198: 213.676898 | AI198: 202.9930531 | AJ198: 192.8434004 | AK198: 183.2012304 | AL198: 174.0411689 | AM198: 165.3391104 | AN198: 157.0721549 | AO198: 149.2185472 | AP198: 141.7576198 | AQ198: 134.6697388 | AR198: 127.9362519 | AS198: 121.5394393 | AT198: 115.4624673
F199: Tax depreciation (New assets) | L199: TaxDep | O199: 9 | R199: =IF(R$2>=$O199,IF(R198-(R198*HLOOKUP($O199,$R$2:$AT$34,32,FALSE))<=0,R198,R198*HLOOKUP($O199,$R$2:$AT$34,32,FALSE)),0) -> 0 | S199: 0 | T199: 0 | U199: 0 | V199: 0 | W199: 0 | X199: 0 | Y199: 0 | Z199: 16.10418431 | AA199: 15.29897509 | AB199: 14.53402634 | AC199: 13.80732502 | AD199: 13.11695877 | AE199: 12.46111083 | AF199: 11.83805529 | AG199: 11.24615253 | AH199: 10.6838449 | AI199: 10.14965265 | AJ199: 9.642170022 | AK199: 9.160061521 | AL199: 8.702058445 | AM199: 8.266955522 | AN199: 7.853607746 | AO199: 7.460927359 | AP199: 7.087880991 | AQ199: 6.733486941 | AR199: 6.396812594 | AS199: 6.076971965 | AT199: 5.773123366
F200: Starting TAB (new assets) | L200: TAB | O200: 10 | R200: =IF($O200=R$2,R$187,IF(R$2>$O200,Q200-Q201,0)) -> 0 | S200: 0 | T200: 0 | U200: 0 | V200: 0 | W200: 0 | X200: 0 | Y200: 0 | Z200: 0 | AA200: 333.081998 | AB200: 316.4278981 | AC200: 300.6065032 | AD200: 285.576178 | AE200: 271.2973691 | AF200: 257.7325006 | AG200: 244.8458756 | AH200: 232.6035818 | AI200: 220.9734027 | AJ200: 209.9247326 | AK200: 199.428496 | AL200: 189.4570712 | AM200: 179.9842176 | AN200: 170.9850067 | AO200: 162.4357564 | AP200: 154.3139686 | AQ200: 146.5982701 | AR200: 139.2683566 | AS200: 132.3049388 | AT200: 125.6896919
F201: Tax depreciation (New assets) | L201: TaxDep | O201: 10 | R201: =IF(R$2>=$O201,IF(R200-(R200*HLOOKUP($O201,$R$2:$AT$34,32,FALSE))<=0,R200,R200*HLOOKUP($O201,$R$2:$AT$34,32,FALSE)),0) -> 0 | S201: 0 | T201: 0 | U201: 0 | V201: 0 | W201: 0 | X201: 0 | Y201: 0 | Z201: 0 | AA201: 16.6540999 | AB201: 15.8213949 | AC201: 15.03032516 | AD201: 14.2788089 | AE201: 13.56486846 | AF201: 12.88662503 | AG201: 12.24229378 | AH201: 11.63017909 | AI201: 11.04867014 | AJ201: 10.49623663 | AK201: 9.971424799 | AL201: 9.472853559 | AM201: 8.999210881 | AN201: 8.549250337 | AO201: 8.12178782 | AP201: 7.715698429 | AQ201: 7.329913507 | AR201: 6.963417832 | AS201: 6.615246941 | AT201: 6.284484593
F202: Starting TAB (new assets) | L202: TAB | O202: 11 | R202: =IF($O202=R$2,R$187,IF(R$2>$O202,Q202-Q203,0)) -> 0 | S202: 0 | T202: 0 | U202: 0 | V202: 0 | W202: 0 | X202: 0 | Y202: 0 | Z202: 0 | AA202: 0 | AB202: 345.039946 | AC202: 327.7879487 | AD202: 311.3985512 | AE202: 295.8286237 | AF202: 281.0371925 | AG202: 266.9853329 | AH202: 253.6360662 | AI202: 240.9542629 | AJ202: 228.9065498 | AK202: 217.4612223 | AL202: 206.5881612 | AM202: 196.2587531 | AN202: 186.4458155 | AO202: 177.1235247 | AP202: 168.2673484 | AQ202: 159.853981 | AR202: 151.861282 | AS202: 144.2682179 | AT202: 137.054807
F203: Tax depreciation (New assets) | L203: TaxDep | O203: 11 | R203: =IF(R$2>=$O203,IF(R202-(R202*HLOOKUP($O203,$R$2:$AT$34,32,FALSE))<=0,R202,R202*HLOOKUP($O203,$R$2:$AT$34,32,FALSE)),0) -> 0 | S203: 0 | T203: 0 | U203: 0 | V203: 0 | W203: 0 | X203: 0 | Y203: 0 | Z203: 0 | AA203: 0 | AB203: 17.2519973 | AC203: 16.38939743 | AD203: 15.56992756 | AE203: 14.79143118 | AF203: 14.05185962 | AG203: 13.34926664 | AH203: 12.68180331 | AI203: 12.04771315 | AJ203: 11.44532749 | AK203: 10.87306111 | AL203: 10.32940806 | AM203: 9.812937655 | AN203: 9.322290773 | AO203: 8.856176234 | AP203: 8.413367422 | AQ203: 7.992699051 | AR203: 7.593064099 | AS203: 7.213410894 | AT203: 6.852740349
F204: Starting TAB (new assets) | L204: TAB | O204: 12 | R204: =IF($O204=R$2,R$187,IF(R$2>$O204,Q204-Q205,0)) -> 0 | S204: 0 | T204: 0 | U204: 0 | V204: 0 | W204: 0 | X204: 0 | Y204: 0 | Z204: 0 | AA204: 0 | AB204: 0 | AC204: 357.3472775 | AD204: 339.4799136 | AE204: 322.5059179 | AF204: 306.380622 | AG204: 291.0615909 | AH204: 276.5085114 | AI204: 262.6830858 | AJ204: 249.5489315 | AK204: 237.0714849 | AL204: 225.2179107 | AM204: 213.9570152 | AN204: 203.2591644 | AO204: 193.0962062 | AP204: 183.4413959 | AQ204: 174.2693261 | AR204: 165.5558598 | AS204: 157.2780668 | AT204: 149.4141635
F205: Tax depreciation (New assets) | L205: TaxDep | O205: 12 | R205: =IF(R$2>=$O205,IF(R204-(R204*HLOOKUP($O205,$R$2:$AT$34,32,FALSE))<=0,R204,R204*HLOOKUP($O205,$R$2:$AT$34,32,FALSE)),0) -> 0 | S205: 0 | T205: 0 | U205: 0 | V205: 0 | W205: 0 | X205: 0 | Y205: 0 | Z205: 0 | AA205: 0 | AB205: 0 | AC205: 17.86736387 | AD205: 16.97399568 | AE205: 16.1252959 | AF205: 15.3190311 | AG205: 14.55307955 | AH205: 13.82542557 | AI205: 13.13415429 | AJ205: 12.47744658 | AK205: 11.85357425 | AL205: 11.26089553 | AM205: 10.69785076 | AN205: 10.16295822 | AO205: 9.654810309 | AP205: 9.172069794 | AQ205: 8.713466304 | AR205: 8.277792989 | AS205: 7.863903339 | AT205: 7.470708173
F206: Starting TAB (new assets) | L206: TAB | O206: 13 | R206: =IF($O206=R$2,R$187,IF(R$2>$O206,Q206-Q207,0)) -> 0 | S206: 0 | T206: 0 | U206: 0 | V206: 0 | W206: 0 | X206: 0 | Y206: 0 | Z206: 0 | AA206: 0 | AB206: 0 | AC206: 0 | AD206: 369.961432 | AE206: 351.4633604 | AF206: 333.8901923 | AG206: 317.1956827 | AH206: 301.3358986 | AI206: 286.2691037 | AJ206: 271.9556485 | AK206: 258.3578661 | AL206: 245.4399728 | AM206: 233.1679741 | AN206: 221.5095754 | AO206: 210.4340966 | AP206: 199.9123918 | AQ206: 189.9167722 | AR206: 180.4209336 | AS206: 171.3998869 | AT206: 162.8298926
F207: Tax depreciation (New assets) | L207: TaxDep | O207: 13 | R207: =IF(R$2>=$O207,IF(R206-(R206*HLOOKUP($O207,$R$2:$AT$34,32,FALSE))<=0,R206,R206*HLOOKUP($O207,$R$2:$AT$34,32,FALSE)),0) -> 0 | S207: 0 | T207: 0 | U207: 0 | V207: 0 | W207: 0 | X207: 0 | Y207: 0 | Z207: 0 | AA207: 0 | AB207: 0 | AC207: 0 | AD207: 18.4980716 | AE207: 17.57316802 | AF207: 16.69450962 | AG207: 15.85978414 | AH207: 15.06679493 | AI207: 14.31345518 | AJ207: 13.59778242 | AK207: 12.9178933 | AL207: 12.27199864 | AM207: 11.65839871 | AN207: 11.07547877 | AO207: 10.52170483 | AP207: 9.99561959 | AQ207: 9.495838611 | AR207: 9.02104668 | AS207: 8.569994346 | AT207: 8.141494629
F208: Starting TAB (new assets) | L208: TAB | O208: 14 | R208: =IF($O208=R$2,R$187,IF(R$2>$O208,Q208-Q209,0)) -> 0 | S208: 0 | T208: 0 | U208: 0 | V208: 0 | W208: 0 | X208: 0 | Y208: 0 | Z208: 0 | AA208: 0 | AB208: 0 | AC208: 0 | AD208: 0 | AE208: 382.7620782 | AF208: 363.6239743 | AG208: 345.4427756 | AH208: 328.1706368 | AI208: 311.7621049 | AJ208: 296.1739997 | AK208: 281.3652997 | AL208: 267.2970347 | AM208: 253.932183 | AN208: 241.2355738 | AO208: 229.1737951 | AP208: 217.7151054 | AQ208: 206.8293501 | AR208: 196.4878826 | AS208: 186.6634885 | AT208: 177.3303141
F209: Tax depreciation (New assets) | L209: TaxDep | O209: 14 | R209: =IF(R$2>=$O209,IF(R208-(R208*HLOOKUP($O209,$R$2:$AT$34,32,FALSE))<=0,R208,R208*HLOOKUP($O209,$R$2:$AT$34,32,FALSE)),0) -> 0 | S209: 0 | T209: 0 | U209: 0 | V209: 0 | W209: 0 | X209: 0 | Y209: 0 | Z209: 0 | AA209: 0 | AB209: 0 | AC209: 0 | AD209: 0 | AE209: 19.13810391 | AF209: 18.18119871 | AG209: 17.27213878 | AH209: 16.40853184 | AI209: 15.58810525 | AJ209: 14.80869998 | AK209: 14.06826499 | AL209: 13.36485174 | AM209: 12.69660915 | AN209: 12.06177869 | AO209: 11.45868976 | AP209: 10.88575527 | AQ209: 10.34146751 | AR209: 9.824394131 | AS209: 9.333174424 | AT209: 8.866515703
F210: Starting TAB (new assets) | L210: TAB | O210: 15 | R210: =IF($O210=R$2,R$187,IF(R$2>$O210,Q210-Q211,0)) -> 0 | S210: 0 | T210: 0 | U210: 0 | V210: 0 | W210: 0 | X210: 0 | Y210: 0 | Z210: 0 | AA210: 0 | AB210: 0 | AC210: 0 | AD210: 0 | AE210: 0 | AF210: 395.732981 | AG210: 375.946332 | AH210: 357.1490154 | AI210: 339.2915646 | AJ210: 322.3269864 | AK210: 306.2106371 | AL210: 290.9001052 | AM210: 276.3550999 | AN210: 262.5373449 | AO210: 249.4104777 | AP210: 236.9399538 | AQ210: 225.0929561 | AR210: 213.8383083 | AS210: 203.1463929 | AT210: 192.9890733
F211: Tax depreciation (New assets) | L211: TaxDep | O211: 15 | R211: =IF(R$2>=$O211,IF(R210-(R210*HLOOKUP($O211,$R$2:$AT$34,32,FALSE))<=0,R210,R210*HLOOKUP($O211,$R$2:$AT$34,32,FALSE)),0) -> 0 | S211: 0 | T211: 0 | U211: 0 | V211: 0 | W211: 0 | X211: 0 | Y211: 0 | Z211: 0 | AA211: 0 | AB211: 0 | AC211: 0 | AD211: 0 | AE211: 0 | AF211: 19.78664905 | AG211: 18.7973166 | AH211: 17.85745077 | AI211: 16.96457823 | AJ211: 16.11634932 | AK211: 15.31053185 | AL211: 14.54500526 | AM211: 13.817755 | AN211: 13.12686725 | AO211: 12.47052388 | AP211: 11.84699769 | AQ211: 11.25464781 | AR211: 10.69191542 | AS211: 10.15731964 | AT211: 9.649453663
F212: Starting TAB (new assets) | L212: TAB | O212: 16 | R212: =IF($O212=R$2,R$187,IF(R$2>$O212,Q212-Q213,0)) -> 0 | S212: 0 | T212: 0 | U212: 0 | V212: 0 | W212: 0 | X212: 0 | Y212: 0 | Z212: 0 | AA212: 0 | AB212: 0 | AC212: 0 | AD212: 0 | AE212: 0 | AF212: 0 | AG212: 408.8171685 | AH212: 388.3763101 | AI212: 368.9574946 | AJ212: 350.5096199 | AK212: 332.9841389 | AL212: 316.3349319 | AM212: 300.5181853 | AN212: 285.4922761 | AO212: 271.2176623 | AP212: 257.6567792 | AQ212: 244.7739402 | AR212: 232.5352432 | AS212: 220.908481 | AT212: 209.863057
F213: Tax depreciation (New assets) | L213: TaxDep | O213: 16 | R213: =IF(R$2>=$O213,IF(R212-(R212*HLOOKUP($O213,$R$2:$AT$34,32,FALSE))<=0,R212,R212*HLOOKUP($O213,$R$2:$AT$34,32,FALSE)),0) -> 0 | S213: 0 | T213: 0 | U213: 0 | V213: 0 | W213: 0 | X213: 0 | Y213: 0 | Z213: 0 | AA213: 0 | AB213: 0 | AC213: 0 | AD213: 0 | AE213: 0 | AF213: 0 | AG213: 20.44085843 | AH213: 19.41881551 | AI213: 18.44787473 | AJ213: 17.52548099 | AK213: 16.64920694 | AL213: 15.8167466 | AM213: 15.02590927 | AN213: 14.2746138 | AO213: 13.56088311 | AP213: 12.88283896 | AQ213: 12.23869701 | AR213: 11.62676216 | AS213: 11.04542405 | AT213: 10.49315285
F214: Starting TAB (new assets) | L214: TAB | O214: 17 | R214: =IF($O214=R$2,R$187,IF(R$2>$O214,Q214-Q215,0)) -> 0 | S214: 0 | T214: 0 | U214: 0 | V214: 0 | W214: 0 | X214: 0 | Y214: 0 | Z214: 0 | AA214: 0 | AB214: 0 | AC214: 0 | AD214: 0 | AE214: 0 | AF214: 0 | AG214: 0 | AH214: 421.9269246 | AI214: 400.8305783 | AJ214: 380.7890494 | AK214: 361.749597 | AL214: 343.6621171 | AM214: 326.4790113 | AN214: 310.1550607 | AO214: 294.6473077 | AP214: 279.9149423 | AQ214: 265.9191952 | AR214: 252.6232354 | AS214: 239.9920736 | AT214: 227.9924699
F215: Tax depreciation (New assets) | L215: TaxDep | O215: 17 | R215: =IF(R$2>=$O215,IF(R214-(R214*HLOOKUP($O215,$R$2:$AT$34,32,FALSE))<=0,R214,R214*HLOOKUP($O215,$R$2:$AT$34,32,FALSE)),0) -> 0 | S215: 0 | T215: 0 | U215: 0 | V215: 0 | W215: 0 | X215: 0 | Y215: 0 | Z215: 0 | AA215: 0 | AB215: 0 | AC215: 0 | AD215: 0 | AE215: 0 | AF215: 0 | AG215: 0 | AH215: 21.09634623 | AI215: 20.04152892 | AJ215: 19.03945247 | AK215: 18.08747985 | AL215: 17.18310586 | AM215: 16.32395056 | AN215: 15.50775303 | AO215: 14.73236538 | AP215: 13.99574711 | AQ215: 13.29595976 | AR215: 12.63116177 | AS215: 11.99960368 | AT215: 11.3996235
F216: Starting TAB (new assets) | L216: TAB | O216: 18 | R216: =IF($O216=R$2,R$187,IF(R$2>$O216,Q216-Q217,0)) -> 0 | S216: 0 | T216: 0 | U216: 0 | V216: 0 | W216: 0 | X216: 0 | Y216: 0 | Z216: 0 | AA216: 0 | AB216: 0 | AC216: 0 | AD216: 0 | AE216: 0 | AF216: 0 | AG216: 0 | AH216: 0 | AI216: 435.0197022 | AJ216: 413.2687171 | AK216: 392.6052813 | AL216: 372.9750172 | AM216: 354.3262663 | AN216: 336.609953 | AO216: 319.7794554 | AP216: 303.7904826 | AQ216: 288.6009585 | AR216: 274.1709106 | AS216: 260.462365 | AT216: 247.4392468
F217: Tax depreciation (New assets) | L217: TaxDep | O217: 18 | R217: =IF(R$2>=$O217,IF(R216-(R216*HLOOKUP($O217,$R$2:$AT$34,32,FALSE))<=0,R216,R216*HLOOKUP($O217,$R$2:$AT$34,32,FALSE)),0) -> 0 | S217: 0 | T217: 0 | U217: 0 | V217: 0 | W217: 0 | X217: 0 | Y217: 0 | Z217: 0 | AA217: 0 | AB217: 0 | AC217: 0 | AD217: 0 | AE217: 0 | AF217: 0 | AG217: 0 | AH217: 0 | AI217: 21.75098511 | AJ217: 20.66343586 | AK217: 19.63026406 | AL217: 18.64875086 | AM217: 17.71631332 | AN217: 16.83049765 | AO217: 15.98897277 | AP217: 15.18952413 | AQ217: 14.43004792 | AR217: 13.70854553 | AS217: 13.02311825 | AT217: 12.37196234
F218: Starting TAB (new assets) | L218: TAB | O218: 19 | R218: =IF($O218=R$2,R$187,IF(R$2>$O218,Q218-Q219,0)) -> 0 | S218: 0 | T218: 0 | U218: 0 | V218: 0 | W218: 0 | X218: 0 | Y218: 0 | Z218: 0 | AA218: 0 | AB218: 0 | AC218: 0 | AD218: 0 | AE218: 0 | AF218: 0 | AG218: 0 | AH218: 0 | AI218: 0 | AJ218: 451.5438157 | AK218: 428.9666249 | AL218: 407.5182937 | AM218: 387.142379 | AN218: 367.78526 | AO218: 349.395997 | AP218: 331.9261972 | AQ218: 315.3298873 | AR218: 299.563393 | AS218: 284.5852233 | AT218: 270.3559621
F219: Tax depreciation (New assets) | L219: TaxDep | O219: 19 | R219: =IF(R$2>=$O219,IF(R218-(R218*HLOOKUP($O219,$R$2:$AT$34,32,FALSE))<=0,R218,R218*HLOOKUP($O219,$R$2:$AT$34,32,FALSE)),0) -> 0 | S219: 0 | T219: 0 | U219: 0 | V219: 0 | W219: 0 | X219: 0 | Y219: 0 | Z219: 0 | AA219: 0 | AB219: 0 | AC219: 0 | AD219: 0 | AE219: 0 | AF219: 0 | AG219: 0 | AH219: 0 | AI219: 0 | AJ219: 22.57719078 | AK219: 21.44833125 | AL219: 20.37591468 | AM219: 19.35711895 | AN219: 18.389263 | AO219: 17.46979985 | AP219: 16.59630986 | AQ219: 15.76649437 | AR219: 14.97816965 | AS219: 14.22926117 | AT219: 13.51779811
F220: Starting TAB (new assets) | L220: TAB | O220: 20 | R220: =IF($O220=R$2,R$187,IF(R$2>$O220,Q220-Q221,0)) -> 0 | S220: 0 | T220: 0 | U220: 0 | V220: 0 | W220: 0 | X220: 0 | Y220: 0 | Z220: 0 | AA220: 0 | AB220: 0 | AC220: 0 | AD220: 0 | AE220: 0 | AF220: 0 | AG220: 0 | AH220: 0 | AI220: 0 | AJ220: 0 | AK220: 471.0446128 | AL220: 447.4923822 | AM220: 425.1177631 | AN220: 403.8618749 | AO220: 383.6687812 | AP220: 364.4853421 | AQ220: 346.261075 | AR220: 328.9480213 | AS220: 312.5006202 | AT220: 296.8755892
F221: Tax depreciation (New assets) | L221: TaxDep | O221: 20 | R221: =IF(R$2>=$O221,IF(R220-(R220*HLOOKUP($O221,$R$2:$AT$34,32,FALSE))<=0,R220,R220*HLOOKUP($O221,$R$2:$AT$34,32,FALSE)),0) -> 0 | S221: 0 | T221: 0 | U221: 0 | V221: 0 | W221: 0 | X221: 0 | Y221: 0 | Z221: 0 | AA221: 0 | AB221: 0 | AC221: 0 | AD221: 0 | AE221: 0 | AF221: 0 | AG221: 0 | AH221: 0 | AI221: 0 | AJ221: 0 | AK221: 23.55223064 | AL221: 22.37461911 | AM221: 21.25588815 | AN221: 20.19309375 | AO221: 19.18343906 | AP221: 18.22426711 | AQ221: 17.31305375 | AR221: 16.44740106 | AS221: 15.62503101 | AT221: 14.84377946
F222: Starting TAB (new assets) | L222: TAB | O222: 21 | R222: =IF($O222=R$2,R$187,IF(R$2>$O222,Q222-Q223,0)) -> 0 | S222: 0 | T222: 0 | U222: 0 | V222: 0 | W222: 0 | X222: 0 | Y222: 0 | Z222: 0 | AA222: 0 | AB222: 0 | AC222: 0 | AD222: 0 | AE222: 0 | AF222: 0 | AG222: 0 | AH222: 0 | AI222: 0 | AJ222: 0 | AK222: 0 | AL222: 491.1020382 | AM222: 466.5469363 | AN222: 443.2195894 | AO222: 421.05861 | AP222: 400.0056795 | AQ222: 380.0053955 | AR222: 361.0051257 | AS222: 342.9548694 | AT222: 325.807126
F223: Tax depreciation (New assets) | L223: TaxDep | O223: 21 | R223: =IF(R$2>=$O223,IF(R222-(R222*HLOOKUP($O223,$R$2:$AT$34,32,FALSE))<=0,R222,R222*HLOOKUP($O223,$R$2:$AT$34,32,FALSE)),0) -> 0 | S223: 0 | T223: 0 | U223: 0 | V223: 0 | W223: 0 | X223: 0 | Y223: 0 | Z223: 0 | AA223: 0 | AB223: 0 | AC223: 0 | AD223: 0 | AE223: 0 | AF223: 0 | AG223: 0 | AH223: 0 | AI223: 0 | AJ223: 0 | AK223: 0 | AL223: 24.55510191 | AM223: 23.32734681 | AN223: 22.16097947 | AO223: 21.0529305 | AP223: 20.00028397 | AQ223: 19.00026978 | AR223: 18.05025629 | AS223: 17.14774347 | AT223: 16.2903563
F224: Starting TAB (new assets) | L224: TAB | O224: 22 | R224: =IF($O224=R$2,R$187,IF(R$2>$O224,Q224-Q225,0)) -> 0 | S224: 0 | T224: 0 | U224: 0 | V224: 0 | W224: 0 | X224: 0 | Y224: 0 | Z224: 0 | AA224: 0 | AB224: 0 | AC224: 0 | AD224: 0 | AE224: 0 | AF224: 0 | AG224: 0 | AH224: 0 | AI224: 0 | AJ224: 0 | AK224: 0 | AL224: 0 | AM224: 511.6539343 | AN224: 486.0712375 | AO224: 461.7676757 | AP224: 438.6792919 | AQ224: 416.7453273 | AR224: 395.9080609 | AS224: 376.1126579 | AT224: 357.307025
F225: Tax depreciation (New assets) | L225: TaxDep | O225: 22 | R225: =IF(R$2>=$O225,IF(R224-(R224*HLOOKUP($O225,$R$2:$AT$34,32,FALSE))<=0,R224,R224*HLOOKUP($O225,$R$2:$AT$34,32,FALSE)),0) -> 0 | S225: 0 | T225: 0 | U225: 0 | V225: 0 | W225: 0 | X225: 0 | Y225: 0 | Z225: 0 | AA225: 0 | AB225: 0 | AC225: 0 | AD225: 0 | AE225: 0 | AF225: 0 | AG225: 0 | AH225: 0 | AI225: 0 | AJ225: 0 | AK225: 0 | AL225: 0 | AM225: 25.58269671 | AN225: 24.30356188 | AO225: 23.08838378 | AP225: 21.93396459 | AQ225: 20.83726636 | AR225: 19.79540305 | AS225: 18.80563289 | AT225: 17.86535125
F226: Starting TAB (new assets) | L226: TAB | O226: 23 | R226: =IF($O226=R$2,R$187,IF(R$2>$O226,Q226-Q227,0)) -> 0 | S226: 0 | T226: 0 | U226: 0 | V226: 0 | W226: 0 | X226: 0 | Y226: 0 | Z226: 0 | AA226: 0 | AB226: 0 | AC226: 0 | AD226: 0 | AE226: 0 | AF226: 0 | AG226: 0 | AH226: 0 | AI226: 0 | AJ226: 0 | AK226: 0 | AL226: 0 | AM226: 0 | AN226: 532.6910837 | AO226: 506.0565295 | AP226: 480.753703 | AQ226: 456.7160179 | AR226: 433.880217 | AS226: 412.1862061 | AT226: 391.5768958
F227: Tax depreciation (New assets) | L227: TaxDep | O227: 23 | R227: =IF(R$2>=$O227,IF(R226-(R226*HLOOKUP($O227,$R$2:$AT$34,32,FALSE))<=0,R226,R226*HLOOKUP($O227,$R$2:$AT$34,32,FALSE)),0) -> 0 | S227: 0 | T227: 0 | U227: 0 | V227: 0 | W227: 0 | X227: 0 | Y227: 0 | Z227: 0 | AA227: 0 | AB227: 0 | AC227: 0 | AD227: 0 | AE227: 0 | AF227: 0 | AG227: 0 | AH227: 0 | AI227: 0 | AJ227: 0 | AK227: 0 | AL227: 0 | AM227: 0 | AN227: 26.63455418 | AO227: 25.30282647 | AP227: 24.03768515 | AQ227: 22.83580089 | AR227: 21.69401085 | AS227: 20.60931031 | AT227: 19.57884479
F228: Starting TAB (new assets) | L228: TAB | O228: 24 | R228: =IF($O228=R$2,R$187,IF(R$2>$O228,Q228-Q229,0)) -> 0 | S228: 0 | T228: 0 | U228: 0 | V228: 0 | W228: 0 | X228: 0 | Y228: 0 | Z228: 0 | AA228: 0 | AB228: 0 | AC228: 0 | AD228: 0 | AE228: 0 | AF228: 0 | AG228: 0 | AH228: 0 | AI228: 0 | AJ228: 0 | AK228: 0 | AL228: 0 | AM228: 0 | AN228: 0 | AO228: 554.2438936 | AP228: 526.5316989 | AQ228: 500.205114 | AR228: 475.1948583 | AS228: 451.4351154 | AT228: 428.8633596
F229: Tax depreciation (New assets) | L229: TaxDep | O229: 24 | R229: =IF(R$2>=$O229,IF(R228-(R228*HLOOKUP($O229,$R$2:$AT$34,32,FALSE))<=0,R228,R228*HLOOKUP($O229,$R$2:$AT$34,32,FALSE)),0) -> 0 | S229: 0 | T229: 0 | U229: 0 | V229: 0 | W229: 0 | X229: 0 | Y229: 0 | Z229: 0 | AA229: 0 | AB229: 0 | AC229: 0 | AD229: 0 | AE229: 0 | AF229: 0 | AG229: 0 | AH229: 0 | AI229: 0 | AJ229: 0 | AK229: 0 | AL229: 0 | AM229: 0 | AN229: 0 | AO229: 27.71219468 | AP229: 26.32658495 | AQ229: 25.0102557 | AR229: 23.75974291 | AS229: 22.57175577 | AT229: 21.44316798
F230: Starting TAB (new assets) | L230: TAB | O230: 25 | R230: =IF($O230=R$2,R$187,IF(R$2>$O230,Q230-Q231,0)) -> 0 | S230: 0 | T230: 0 | U230: 0 | V230: 0 | W230: 0 | X230: 0 | Y230: 0 | Z230: 0 | AA230: 0 | AB230: 0 | AC230: 0 | AD230: 0 | AE230: 0 | AF230: 0 | AG230: 0 | AH230: 0 | AI230: 0 | AJ230: 0 | AK230: 0 | AL230: 0 | AM230: 0 | AN230: 0 | AO230: 0 | AP230: 576.2990559 | AQ230: 547.4841031 | AR230: 520.109898 | AS230: 494.1044031 | AT230: 469.3991829
... 191 more rows

Sheet REV - ANT
A1: Revenue - AusNet Transmission
A2: This sheet provides a cash-flow projections for AusNet Transmission | Q2: 0 | R2: 1 | S2: 2 | T2: 3 | U2: 4 | V2: 5 | W2: 6 | X2: 7 | Y2: 8 | Z2: 9 | AA2: 10 | AB2: 11 | AC2: 12 | AD2: 13 | AE2: 14 | AF2: 15 | AG2: 16 | AH2: 17 | AI2: 18 | AJ2: 19 | AK2: 20 | AL2: 21 | AM2: 22 | AN2: 23 | AO2: 24 | AP2: 25 | AQ2: 26 | AR2: 27 | AS2: 28 | AT2: 29
Q3: Y0 | R3: Period 2 | W3: Period 3 | AB3: Period 4 | AG3: Period 5 | AL3: Period 6 | AQ3: Period 7
K4: Source | L4: Comments | N4: Units | O4: Constants | Q4: 2021-22 | R4: 2022-23 | S4: 2023-24 | T4: 2024-25 | U4: 2025-26 | V4: 2026-27 | W4: 2027-28 | X4: 2028-29 | Y4: 2029-30 | Z4: 2030-31 | AA4: 2031-32 | AB4: 2032-33 | AC4: 2033-34 | AD4: 2034-35 | AE4: 2035-36 | AF4: 2036-37 | AG4: 2037-38 | AH4: 2038-39 | AI4: 2039-40 | AJ4: 2040-41 | AK4: 2041-42 | AL4: 2042-43 | AM4: 2043-44 | AN4: 2044-45 | AO4: 2045-46 | AP4: 2046-47 | AQ4: 2047-48 | AR4: 2048-49 | AS4: 2049-50 | AT4: 2050-51
C6: Inputs
F8: Cumulative inflation index | K8: AusNet T PTRM 2022-27 | O8: =Controls!F50 -> 0.025 | Q8: 1 | R8: =Q8*(1+$O$8) -> 1.025 | S8: =R8*(1+$O$8) -> 1.050625 | T8: =S8*(1+$O$8) -> 1.076890625 | U8: 1.103812891 | V8: 1.131408213 | W8: 1.159693418 | X8: 1.188685754 | Y8: 1.218402898 | Z8: 1.24886297 | AA8: 1.280084544 | AB8: 1.312086658 | AC8: 1.344888824 | AD8: 1.378511045 | AE8: 1.412973821 | AF8: 1.448298166 | AG8: 1.484505621 | AH8: 1.521618261 | AI8: =AH8*(1+$O$8) -> 1.559658718 | AJ8: =AI8*(1+$O$8) -> 1.598650186 | AK8: 1.63861644 | AL8: 1.679581851 | AM8: 1.721571398 | AN8: 1.764610683 | AO8: 1.80872595 | AP8: 1.853944098 | AQ8: 1.900292701 | AR8: 1.947800018 | AS8: 1.996495019 | AT8: 2.046407394
F10: Return on debt | K10: AusNet T PTRM 2022-27 | R10: 0.0436652045 | S10: 0.04167687561 | T10: 0.03968854672 | U10: 0.03770021783 | V10: 0.03571188895 | W10: 0.03571188895 | X10: 0.03571188895 | Y10: 0.03571188895 | Z10: 0.03571188895 | AA10: 0.03571188895 | AB10: 0.03571188895 | AC10: 0.03571188895 | AD10: 0.03571188895 | AE10: 0.03571188895 | AF10: 0.03571188895 | AG10: 0.03571188895 | AH10: 0.03571188895 | AI10: 0.03571188895 | AJ10: 0.03571188895 | AK10: 0.03571188895 | AL10: 0.03571188895 | AM10: 0.03571188895 | AN10: 0.03571188895 | AO10: 0.03571188895 | AP10: 0.03571188895 | AQ10: 0.03571188895 | AR10: 0.03571188895 | AS10: 0.03571188895 | AT10: 0.03571188895
F11: Return on equity | K11: AusNet T PTRM 2022-27 | R11: 0.05252481243 | S11: 0.05252481243 | T11: 0.05252481243 | U11: 0.05252481243 | V11: 0.05252481243 | W11: 0.05252481243 | X11: 0.05252481243 | Y11: 0.05252481243 | Z11: 0.05252481243 | AA11: 0.05252481243 | AB11: 0.05252481243 | AC11: 0.05252481243 | AD11: 0.05252481243 | AE11: 0.05252481243 | AF11: 0.05252481243 | AG11: 0.05252481243 | AH11: 0.05252481243 | AI11: 0.05252481243 | AJ11: 0.05252481243 | AK11: 0.05252481243 | AL11: 0.05252481243 | AM11: 0.05252481243 | AN11: 0.05252481243 | AO11: 0.05252481243 | AP11: 0.05252481243 | AQ11: 0.05252481243 | AR11: 0.05252481243 | AS11: 0.05252481243 | AT11: 0.05252481243
F13: Debt financing | K13: AusNet T PTRM 2022-27 | O13: 0.6
F14: Equity financing | K14: AusNet T PTRM 2022-27 | O14: 0.4
F16: Corporate tax rate | K16: AusNet T PTRM 2022-27 | O16: 0.3
F17: Value of imputation credits | K17: AusNet T PTRM 2022-27 | O17: 0.585
F18: Imputation credit payout ratio | K18: AusNet T PTRM 2022-27 | O18: 0.9
F20: Nominal rate of return | R20: =WACC!W88 -> 0.05101229823 | S20: =WACC!X88 -> 0.05218270995 | T20: =WACC!Y88 -> 0.05214673017 | U20: =WACC!Z88 -> 0.0530333341 | V20: =WACC!AA88 -> 0.05357747293 | W20: =WACC!AB88 -> 0.05464329374 | X20: =WACC!AC88 -> 0.05537193319 | Y20: =WACC!AD88 -> 0.05569744231 | Z20: =WACC!AE88 -> 0.05602295142 | AA20: =WACC!AF88 -> 0.05634846053 | AB20: =WACC!AG88 -> 0.05688986988 | AC20: =WACC!AH88 -> 0.05725045593 | AD20: =WACC!AI88 -> 0.05761115974 | AE20: =WACC!AJ88 -> 0.05785162895 | AF20: =WACC!AK88 -> 0.05803221569 | AG20: =WACC!AL88 -> 0.05809268524 | AH20: =WACC!AM88 -> 0.05809268524 | AI20: =WACC!AN88 -> 0.05809268524 | AJ20: =WACC!AO88 -> 0.05809268524 | AK20: =WACC!AP88 -> 0.05809268524 | AL20: =WACC!AQ88 -> 0.05809268524 | AM20: =WACC!AR88 -> 0.05809268524 | AN20: =WACC!AS88 -> 0.05809268524 | AO20: =WACC!AT88 -> 0.05809268524 | AP20: =WACC!AU88 -> 0.05809268524 | AQ20: =WACC!AV88 -> 0.05809268524 | AR20: =WACC!AW88 -> 0.05809268524 | AS20: =WACC!AX88 -> 0.05809268524 | AT20: =WACC!AY88 -> 0.05809268524
F21: Real rate of return | R21: =WACC!W89 -> 0.02537785193 | S21: =WACC!X89 -> 0.02651971702 | T21: =WACC!Y89 -> 0.0264846148 | U21: =WACC!Z89 -> 0.02734959424 | V21: =WACC!AA89 -> 0.02788046139 | W21: =WACC!AB89 -> 0.02892028657 | X21: =WACC!AC89 -> 0.02963115434 | Y21: =WACC!AD89 -> 0.0299487242 | Z21: =WACC!AE89 -> 0.03026629406 | AA21: =WACC!AF89 -> 0.03058386393 | AB21: =WACC!AG89 -> 0.03111206817 | AC21: =WACC!AH89 -> 0.03146385944 | AD21: =WACC!AI89 -> 0.0318157656 | AE21: =WACC!AJ89 -> 0.03205036971 | AF21: =WACC!AK89 -> 0.03222655189 | AG21: =WACC!AL89 -> 0.03228554658 | AH21: =WACC!AM89 -> 0.03228554658 | AI21: =WACC!AN89 -> 0.03228554658 | AJ21: =WACC!AO89 -> 0.03228554658 | AK21: =WACC!AP89 -> 0.03228554658 | AL21: =WACC!AQ89 -> 0.03228554658 | AM21: =WACC!AR89 -> 0.03228554658 | AN21: =WACC!AS89 -> 0.03228554658 | AO21: =WACC!AT89 -> 0.03228554658 | AP21: =WACC!AU89 -> 0.03228554658 | AQ21: =WACC!AV89 -> 0.03228554658 | AR21: =WACC!AW89 -> 0.03228554658 | AS21: =WACC!AX89 -> 0.03228554658 | AT21: =WACC!AY89 -> 0.03228554658
F23: Discount index | Q23: 1 | R23: =Q23*(1+R20) -> 1.051012298 | S23: =R23*(1+S20) -> 1.105856968 | T23: 1.163523793 | U23: 1.225229339 | V23: 1.290874031 | W23: 1.36141164 | X23: 1.436795634 | Y23: 1.516821476 | Z23: 1.601798292 | AA23: 1.69205716 | AB23: 1.788318071 | AC23: 1.890700096 | AD23: 1.999625521 | AE23: 2.115307115 | AF23: 2.238063074 | AG23: 2.368078168 | AH23: 2.505646187 | AI23: 2.651205903 | AJ23: 2.805221573 | AK23: 2.968184426 | AL23: 3.14061423 | AM23: 3.323060944 | AN23: 3.516106477 | AO23: 3.720366544 | AP23: 3.936492627 | AQ23: 4.165174054 | AR23: 4.407140199 | AS23: 4.663162808 | AT23: 4.934058457
F24: Discount factor | Q24: =1/Q23 -> 1 | R24: =1/R23 -> 0.9514636524 | S24: =1/S23 -> 0.9042760762 | T24: 0.8594581443 | U24: 0.8161737302 | V24: 0.7746689267 | W24: 0.7345316955 | X24: 0.6959932062 | Y24: 0.6592733659 | Z24: 0.6242983309 | AA24: 0.5909965832 | AB24: 0.5591846417 | AC24: 0.5289046116 | AD24: 0.5000936372 | AE24: 0.4727445924 | AF24: 0.4468149319 | AG24: 0.4222833577 | AH24: 0.3990986457 | AI24: =1/AI23 -> 0.3771868488 | AJ24: =1/AJ23 -> 0.3564780799 | AK24: 0.3369062889 | AL24: 0.3184090521 | AM24: 0.3009273729 | AN24: 0.2844054941 | AO24: 0.2687907194 | AP24: 0.254033246 | AQ24: 0.2400860053 | AR24: 0.2269045129 | AS24: 0.2144467267 | AT24: 0.2026729129
F26: Lifetime of new capex | L26: For depreciation | N26: Years | O26: 40
F27: Diminishing value | L27: For tax depreciation | O27: =2/O26 -> 0.05
F29: Capex program
F31: Net capex | K31: AusNet T PTRM 2022-27 | L31: Real | M31: $m | R31: 146.511153 | S31: 157.6689353 | T31: 193.325259 | U31: 178.6159704 | V31: 140.7660282 | W31: =V147*Controls!$G$11 -> 178.9368742 | X31: =W147*Controls!$G$11 -> 178.7363315 | Y31: =X147*Controls!$G$11 -> 178.6972162 | Z31: =Y147*Controls!$G$11 -> 178.7801621 | AA31: =Z147*Controls!$G$11 -> 179.2264478 | AB31: =AA147*Controls!$G$11 -> 179.7219857 | AC31: =AB147*Controls!$G$11 -> 180.41967 | AD31: =AC147*Controls!$G$11 -> 181.002705 | AE31: =AD147*Controls!$G$11 -> 181.4545421 | AF31: =AE147*Controls!$G$11 -> 182.8412704 | AG31: =AF147*Controls!$G$11 -> 186.3749556 | AH31: =AG147*Controls!$G$11 -> 189.9794827 | AI31: =AH147*Controls!$G$11 -> 193.6520332 | AJ31: =AI147*Controls!$G$11 -> 197.4073262 | AK31: =AJ147*Controls!$G$11 -> 201.225871 | AL31: =AK147*Controls!$G$11 -> 205.1670417 | AM31: =AL147*Controls!$G$11 -> 209.2308147 | AN31: =AM147*Controls!$G$11 -> 213.2352803 | AO31: =AN147*Controls!$G$11 -> 217.1694086 | AP31: =AO147*Controls!$G$11 -> 221.0349262 | AQ31: =AP147*Controls!$G$11 -> 224.7411195 | AR31: =AQ147*Controls!$G$11 -> 228.3369713 | AS31: =AR147*Controls!$G$11 -> 231.8326772 | AT31: =AS147*Controls!$G$11 -> 235.2360232
F32: Lifetime of new capex | R32: =$O$26 -> 40 | S32: =$O$26 -> 40 | T32: 40 | U32: 40 | V32: 40 | W32: 40 | X32: 40 | Y32: 40 | Z32: 40 | AA32: 40 | AB32: 40 | AC32: 40 | AD32: 40 | AE32: 40 | AF32: 40 | AG32: 40 | AH32: 40 | AI32: 40 | AJ32: 40 | AK32: 40 | AL32: 40 | AM32: 40 | AN32: 40 | AO32: 40 | AP32: 40 | AQ32: 40 | AR32: 40 | AS32: 40 | AT32: 40
F33: Dimishing value for new capex | L33: For tax | R33: =$O$27 -> 0.05 | S33: =$O$27 -> 0.05 | T33: 0.05 | U33: 0.05 | V33: 0.05 | W33: 0.05 | X33: 0.05 | Y33: 0.05 | Z33: 0.05 | AA33: 0.05 | AB33: 0.05 | AC33: 0.05 | AD33: 0.05 | AE33: 0.05 | AF33: 0.05 | AG33: 0.05 | AH33: 0.05 | AI33: 0.05 | AJ33: 0.05 | AK33: 0.05 | AL33: 0.05 | AM33: 0.05 | AN33: 0.05 | AO33: 0.05 | AP33: 0.05 | AQ33: 0.05 | AR33: 0.05 | AS33: 0.05 | AT33: 0.05
F34: Net capex | L34: Nominal | W34: =W152 -> 210.4911805 | X34: 215.5860896 | Y34: 220.9614504 | Z34: 226.6255448 | AA34: 232.9069351 | AB34: 239.4510041 | AC34: 246.4320993 | AD34: 253.4523924 | AE34: 260.4668189 | AF34: 269.0417778 | AG34: 281.1054868 | AH34: 293.7056735 | AI34: 306.8679708 | AJ34: 320.6392116 | AK34: 335.0125273 | AL34: 350.1133677 | AM34: 365.9743163 | AN34: 382.3031609 | AO34: 399.0904554 | AP34: 416.3489377 | AQ34: 433.9133013 | AR34: 451.8772999 | AS34: 470.2651598 | AT34: 489.0979566
C37: RAB (Real)
F39: Opening RAB | R39: =Q147 -> 3166.909677 | S39: =R147 -> 3135.935566 | T39: =S147 -> 3132.917667 | U39: 3159.361974 | V39: =U147 -> 3163.44552 | W39: =V147 -> 3123.709587 | X39: =W147 -> 3120.208703 | Y39: 3119.525865 | Z39: =Y147 -> 3120.973856 | AA39: 3128.764687 | AB39: 3137.415316 | AC39: 3149.594824 | AD39: 3159.772894 | AE39: 3167.660635 | AF39: 3191.868818 | AG39: 3253.55653 | AH39: 3316.480933 | AI39: 3380.592822 | AJ39: 3446.149152 | AK39: 3512.809673 | AL39: 3581.610877 | AM39: 3652.552358 | AN39: 3722.458506 | AO39: 3791.136772 | AP39: 3858.617297 | AQ39: 3923.316491 | AR39: 3986.089449 | AS39: 4047.114153 | AT39: 4106.526528
F40: Net capex | K40: AusNet T PTRM 2022-27 | R40: =R31*(1+R21)^0.5 -> 148.3585747 | S40: =S31*(1+S21)^0.5 -> 159.7459229 | T40: 195.8686017 | U40: 181.0420315 | V40: 142.714849 | W40: 181.5058853 | X40: 181.3650823 | Y40: 181.3533527 | Z40: 181.4655012 | AA40: 181.9465255 | AB40: 182.4963334 | AC40: 183.2360377 | AD40: 183.8595297 | AE40: 184.3394513 | AF40: 185.7640809 | AG40: 189.3596648 | AH40: 193.0219168 | AI40: 196.7532815 | AJ40: 200.5687138 | AK40: 204.4484109 | AL40: 208.4526976 | AM40: 212.5815501 | AN40: 216.6501454 | AO40: 220.6472769 | AP40: 224.5746989 | AQ40: 228.3402452 | AR40: 231.993683 | AS40: 235.545371 | AT40: 239.00322
F41: Straight-line depreciation (opening RAB) | K41: AusNet T PTRM 2022-27 | R41: 179.3326851 | S41: 162.7638221 | T41: 169.4242948 | U41: 176.958486 | V41: 182.4507816 | W41: 180.5333473 | X41: 173.1060904 | Y41: 166.4961012 | Z41: 155.7959052 | AA41: 150.936471 | AB41: 143.4643496 | AC41: 141.695001 | AD41: 140.0837533 | AE41: 119.7068702 | AF41: 79.08093926 | AG41: 76.7804576 | AH41: 74.50573611 | AI41: 71.95136011 | AJ41: 69.72741806 | AK41: 66.4357842 | AL41: 63.17061931 | AM41: 63.10403363 | AN41: 63.06962942 | AO41: 62.8352663 | AP41: 64.0181459 | AQ41: 64.09140141 | AR41: 63.78466712 | AS41: 63.15286902 | AT41: 60.67076669
F43: Future capex calculations
F44: Starting RAB (future capex) | L44: RAB | O44: 6 | R44: =IF($O44=R$2,R$40,IF(R$2>$O44,Q44-Q45,0)) -> 0 | S44: =IF($O44=S$2,S$40,IF(S$2>$O44,R44-R45,0)) -> 0 | T44: =IF($O44=T$2,T$40,IF(T$2>$O44,S44-S45,0)) -> 0 | U44: 0 | V44: 0 | W44: 181.5058853 | X44: 177.0324634 | Y44: 172.5590416 | Z44: 168.0856197 | AA44: 163.6121979 | AB44: 159.138776 | AC44: 154.6653542 | AD44: 150.1919323 | AE44: 145.7185105 | AF44: 141.2450886 | AG44: 136.7716667 | AH44: 132.2982449 | AI44: 127.824823 | AJ44: 123.3514012 | AK44: 118.8779793 | AL44: 114.4045575 | AM44: 109.9311356 | AN44: 105.4577138 | AO44: 100.9842919 | AP44: 96.51087005 | AQ44: 92.0374482 | AR44: 87.56402634 | AS44: 83.09060448 | AT44: 78.61718263
F45: Straight-line depreciation (future capex) | L45: DEP | O45: 6 | R45: =IF(R$2>=$O45,IF(R44-HLOOKUP($O45,$R$2:$AT$33,30,FALSE)/HLOOKUP($O45,$R$2:$AT$33,31,FALSE)<=0,R44,HLOOKUP($O45,$R$2:$AT$33,30,FALSE)/HLOOKUP($O45,$R$2:$AT$33,31,FALSE)),0) -> 0 | S45: 0 | T45: 0 | U45: 0 | V45: 0 | W45: 4.473421855 | X45: 4.473421855 | Y45: 4.473421855 | Z45: 4.473421855 | AA45: 4.473421855 | AB45: 4.473421855 | AC45: 4.473421855 | AD45: 4.473421855 | AE45: 4.473421855 | AF45: 4.473421855 | AG45: 4.473421855 | AH45: 4.473421855 | AI45: 4.473421855 | AJ45: 4.473421855 | AK45: 4.473421855 | AL45: 4.473421855 | AM45: 4.473421855 | AN45: 4.473421855 | AO45: 4.473421855 | AP45: 4.473421855 | AQ45: 4.473421855 | AR45: 4.473421855 | AS45: 4.473421855 | AT45: 4.473421855
F46: Starting RAB (future capex) | L46: RAB | O46: 7 | R46: =IF($O46=R$2,R$40,IF(R$2>$O46,Q46-Q47,0)) -> 0 | S46: 0 | T46: 0 | U46: 0 | V46: 0 | W46: 0 | X46: 181.3650823 | Y46: 176.896674 | Z46: 172.4282658 | AA46: 167.9598575 | AB46: 163.4914492 | AC46: 159.0230409 | AD46: 154.5546326 | AE46: 150.0862243 | AF46: 145.617816 | AG46: 141.1494077 | AH46: 136.6809995 | AI46: 132.2125912 | AJ46: 127.7441829 | AK46: 123.2757746 | AL46: 118.8073663 | AM46: 114.338958 | AN46: 109.8705497 | AO46: 105.4021414 | AP46: 100.9337332 | AQ46: 96.46532487 | AR46: 91.99691658 | AS46: 87.52850829 | AT46: 83.06010001
F47: Straight-line depreciation (future capex) | L47: DEP | O47: 7 | R47: =IF(R$2>=$O47,IF(R46-HLOOKUP($O47,$R$2:$AT$33,30,FALSE)/HLOOKUP($O47,$R$2:$AT$33,31,FALSE)<=0,R46,HLOOKUP($O47,$R$2:$AT$33,30,FALSE)/HLOOKUP($O47,$R$2:$AT$33,31,FALSE)),0) -> 0 | S47: 0 | T47: 0 | U47: 0 | V47: 0 | W47: 0 | X47: 4.468408287 | Y47: 4.468408287 | Z47: 4.468408287 | AA47: 4.468408287 | AB47: 4.468408287 | AC47: 4.468408287 | AD47: 4.468408287 | AE47: 4.468408287 | AF47: 4.468408287 | AG47: 4.468408287 | AH47: 4.468408287 | AI47: 4.468408287 | AJ47: 4.468408287 | AK47: 4.468408287 | AL47: 4.468408287 | AM47: 4.468408287 | AN47: 4.468408287 | AO47: 4.468408287 | AP47: 4.468408287 | AQ47: 4.468408287 | AR47: 4.468408287 | AS47: 4.468408287 | AT47: 4.468408287
F48: Starting RAB (future capex) | L48: RAB | O48: 8 | R48: =IF($O48=R$2,R$40,IF(R$2>$O48,Q48-Q49,0)) -> 0 | S48: 0 | T48: 0 | U48: 0 | V48: 0 | W48: 0 | X48: 0 | Y48: 181.3533527 | Z48: 176.8859223 | AA48: 172.4184919 | AB48: 167.9510615 | AC48: 163.4836311 | AD48: 159.0162007 | AE48: 154.5487703 | AF48: 150.0813399 | AG48: 145.6139095 | AH48: 141.1464791 | AI48: 136.6790487 | AJ48: 132.2116183 | AK48: 127.7441879 | AL48: 123.2767575 | AM48: 118.8093271 | AN48: 114.3418967 | AO48: 109.8744662 | AP48: 105.4070358 | AQ48: 100.9396054 | AR48: 96.47217504 | AS48: 92.00474463 | AT48: 87.53731423
F49: Straight-line depreciation (future capex) | L49: DEP | O49: 8 | R49: =IF(R$2>=$O49,IF(R48-HLOOKUP($O49,$R$2:$AT$33,30,FALSE)/HLOOKUP($O49,$R$2:$AT$33,31,FALSE)<=0,R48,HLOOKUP($O49,$R$2:$AT$33,30,FALSE)/HLOOKUP($O49,$R$2:$AT$33,31,FALSE)),0) -> 0 | S49: 0 | T49: 0 | U49: 0 | V49: 0 | W49: 0 | X49: 0 | Y49: 4.467430404 | Z49: 4.467430404 | AA49: 4.467430404 | AB49: 4.467430404 | AC49: 4.467430404 | AD49: 4.467430404 | AE49: 4.467430404 | AF49: 4.467430404 | AG49: 4.467430404 | AH49: 4.467430404 | AI49: 4.467430404 | AJ49: 4.467430404 | AK49: 4.467430404 | AL49: 4.467430404 | AM49: 4.467430404 | AN49: 4.467430404 | AO49: 4.467430404 | AP49: 4.467430404 | AQ49: 4.467430404 | AR49: 4.467430404 | AS49: 4.467430404 | AT49: 4.467430404
F50: Starting RAB (future capex) | L50: RAB | O50: 9 | R50: =IF($O50=R$2,R$40,IF(R$2>$O50,Q50-Q51,0)) -> 0 | S50: 0 | T50: 0 | U50: 0 | V50: 0 | W50: 0 | X50: 0 | Y50: 0 | Z50: 181.4655012 | AA50: 176.9959972 | AB50: 172.5264931 | AC50: 168.056989 | AD50: 163.587485 | AE50: 159.1179809 | AF50: 154.6484769 | AG50: 150.1789728 | AH50: 145.7094688 | AI50: 141.2399647 | AJ50: 136.7704607 | AK50: 132.3009566 | AL50: 127.8314526 | AM50: 123.3619485 | AN50: 118.8924445 | AO50: 114.4229404 | AP50: 109.9534364 | AQ50: 105.4839323 | AR50: 101.0144283 | AS50: 96.54492422 | AT50: 92.07542016
F51: Straight-line depreciation (future capex) | L51: DEP | O51: 9 | R51: =IF(R$2>=$O51,IF(R50-HLOOKUP($O51,$R$2:$AT$33,30,FALSE)/HLOOKUP($O51,$R$2:$AT$33,31,FALSE)<=0,R50,HLOOKUP($O51,$R$2:$AT$33,30,FALSE)/HLOOKUP($O51,$R$2:$AT$33,31,FALSE)),0) -> 0 | S51: 0 | T51: 0 | U51: 0 | V51: 0 | W51: 0 | X51: 0 | Y51: 0 | Z51: 4.469504052 | AA51: 4.469504052 | AB51: 4.469504052 | AC51: 4.469504052 | AD51: 4.469504052 | AE51: 4.469504052 | AF51: 4.469504052 | AG51: 4.469504052 | AH51: 4.469504052 | AI51: 4.469504052 | AJ51: 4.469504052 | AK51: 4.469504052 | AL51: 4.469504052 | AM51: 4.469504052 | AN51: 4.469504052 | AO51: 4.469504052 | AP51: 4.469504052 | AQ51: 4.469504052 | AR51: 4.469504052 | AS51: 4.469504052 | AT51: 4.469504052
F52: Starting RAB (future capex) | L52: RAB | O52: 10 | R52: =IF($O52=R$2,R$40,IF(R$2>$O52,Q52-Q53,0)) -> 0 | S52: 0 | T52: 0 | U52: 0 | V52: 0 | W52: 0 | X52: 0 | Y52: 0 | Z52: 0 | AA52: 181.9465255 | AB52: 177.4658643 | AC52: 172.9852031 | AD52: 168.5045419 | AE52: 164.0238807 | AF52: 159.5432195 | AG52: 155.0625583 | AH52: 150.5818971 | AI52: 146.1012359 | AJ52: 141.6205747 | AK52: 137.1399135 | AL52: 132.6592523 | AM52: 128.1785911 | AN52: 123.6979299 | AO52: 119.2172687 | AP52: 114.7366075 | AQ52: 110.2559463 | AR52: 105.7752852 | AS52: 101.294624 | AT52: 96.81396276
F53: Straight-line depreciation (future capex) | L53: DEP | O53: 10 | R53: =IF(R$2>=$O53,IF(R52-HLOOKUP($O53,$R$2:$AT$33,30,FALSE)/HLOOKUP($O53,$R$2:$AT$33,31,FALSE)<=0,R52,HLOOKUP($O53,$R$2:$AT$33,30,FALSE)/HLOOKUP($O53,$R$2:$AT$33,31,FALSE)),0) -> 0 | S53: 0 | T53: 0 | U53: 0 | V53: 0 | W53: 0 | X53: 0 | Y53: 0 | Z53: 0 | AA53: 4.480661195 | AB53: 4.480661195 | AC53: 4.480661195 | AD53: 4.480661195 | AE53: 4.480661195 | AF53: 4.480661195 | AG53: 4.480661195 | AH53: 4.480661195 | AI53: 4.480661195 | AJ53: 4.480661195 | AK53: 4.480661195 | AL53: 4.480661195 | AM53: 4.480661195 | AN53: 4.480661195 | AO53: 4.480661195 | AP53: 4.480661195 | AQ53: 4.480661195 | AR53: 4.480661195 | AS53: 4.480661195 | AT53: 4.480661195
F54: Starting RAB (future capex) | L54: RAB | O54: 11 | R54: =IF($O54=R$2,R$40,IF(R$2>$O54,Q54-Q55,0)) -> 0 | S54: 0 | T54: 0 | U54: 0 | V54: 0 | W54: 0 | X54: 0 | Y54: 0 | Z54: 0 | AA54: 0 | AB54: 182.4963334 | AC54: 178.0032838 | AD54: 173.5102341 | AE54: 169.0171845 | AF54: 164.5241348 | AG54: 160.0310852 | AH54: 155.5380355 | AI54: 151.0449859 | AJ54: 146.5519363 | AK54: 142.0588866 | AL54: 137.565837 | AM54: 133.0727873 | AN54: 128.5797377 | AO54: 124.086688 | AP54: 119.5936384 | AQ54: 115.1005888 | AR54: 110.6075391 | AS54: 106.1144895 | AT54: 101.6214398
F55: Straight-line depreciation (future capex) | L55: DEP | O55: 11 | R55: =IF(R$2>=$O55,IF(R54-HLOOKUP($O55,$R$2:$AT$33,30,FALSE)/HLOOKUP($O55,$R$2:$AT$33,31,FALSE)<=0,R54,HLOOKUP($O55,$R$2:$AT$33,30,FALSE)/HLOOKUP($O55,$R$2:$AT$33,31,FALSE)),0) -> 0 | S55: 0 | T55: 0 | U55: 0 | V55: 0 | W55: 0 | X55: 0 | Y55: 0 | Z55: 0 | AA55: 0 | AB55: 4.493049643 | AC55: 4.493049643 | AD55: 4.493049643 | AE55: 4.493049643 | AF55: 4.493049643 | AG55: 4.493049643 | AH55: 4.493049643 | AI55: 4.493049643 | AJ55: 4.493049643 | AK55: 4.493049643 | AL55: 4.493049643 | AM55: 4.493049643 | AN55: 4.493049643 | AO55: 4.493049643 | AP55: 4.493049643 | AQ55: 4.493049643 | AR55: 4.493049643 | AS55: 4.493049643 | AT55: 4.493049643
F56: Starting RAB (future capex) | L56: RAB | O56: 12 | R56: =IF($O56=R$2,R$40,IF(R$2>$O56,Q56-Q57,0)) -> 0 | S56: 0 | T56: 0 | U56: 0 | V56: 0 | W56: 0 | X56: 0 | Y56: 0 | Z56: 0 | AA56: 0 | AB56: 0 | AC56: 183.2360377 | AD56: 178.7255459 | AE56: 174.2150542 | AF56: 169.7045624 | AG56: 165.1940707 | AH56: 160.6835789 | AI56: 156.1730872 | AJ56: 151.6625954 | AK56: 147.1521037 | AL56: 142.6416119 | AM56: 138.1311202 | AN56: 133.6206284 | AO56: 129.1101367 | AP56: 124.5996449 | AQ56: 120.0891532 | AR56: 115.5786614 | AS56: 111.0681697 | AT56: 106.5576779
F57: Straight-line depreciation (future capex) | L57: DEP | O57: 12 | R57: =IF(R$2>=$O57,IF(R56-HLOOKUP($O57,$R$2:$AT$33,30,FALSE)/HLOOKUP($O57,$R$2:$AT$33,31,FALSE)<=0,R56,HLOOKUP($O57,$R$2:$AT$33,30,FALSE)/HLOOKUP($O57,$R$2:$AT$33,31,FALSE)),0) -> 0 | S57: 0 | T57: 0 | U57: 0 | V57: 0 | W57: 0 | X57: 0 | Y57: 0 | Z57: 0 | AA57: 0 | AB57: 0 | AC57: 4.51049175 | AD57: 4.51049175 | AE57: 4.51049175 | AF57: 4.51049175 | AG57: 4.51049175 | AH57: 4.51049175 | AI57: 4.51049175 | AJ57: 4.51049175 | AK57: 4.51049175 | AL57: 4.51049175 | AM57: 4.51049175 | AN57: 4.51049175 | AO57: 4.51049175 | AP57: 4.51049175 | AQ57: 4.51049175 | AR57: 4.51049175 | AS57: 4.51049175 | AT57: 4.51049175
F58: Starting RAB (future capex) | L58: RAB | O58: 13 | R58: =IF($O58=R$2,R$40,IF(R$2>$O58,Q58-Q59,0)) -> 0 | S58: 0 | T58: 0 | U58: 0 | V58: 0 | W58: 0 | X58: 0 | Y58: 0 | Z58: 0 | AA58: 0 | AB58: 0 | AC58: 0 | AD58: 183.8595297 | AE58: 179.3344621 | AF58: 174.8093945 | AG58: 170.2843268 | AH58: 165.7592592 | AI58: 161.2341916 | AJ58: 156.709124 | AK58: 152.1840563 | AL58: 147.6589887 | AM58: 143.1339211 | AN58: 138.6088535 | AO58: 134.0837858 | AP58: 129.5587182 | AQ58: 125.0336506 | AR58: 120.508583 | AS58: 115.9835153 | AT58: 111.4584477
F59: Straight-line depreciation (future capex) | L59: DEP | O59: 13 | R59: =IF(R$2>=$O59,IF(R58-HLOOKUP($O59,$R$2:$AT$33,30,FALSE)/HLOOKUP($O59,$R$2:$AT$33,31,FALSE)<=0,R58,HLOOKUP($O59,$R$2:$AT$33,30,FALSE)/HLOOKUP($O59,$R$2:$AT$33,31,FALSE)),0) -> 0 | S59: 0 | T59: 0 | U59: 0 | V59: 0 | W59: 0 | X59: 0 | Y59: 0 | Z59: 0 | AA59: 0 | AB59: 0 | AC59: 0 | AD59: 4.525067625 | AE59: 4.525067625 | AF59: 4.525067625 | AG59: 4.525067625 | AH59: 4.525067625 | AI59: 4.525067625 | AJ59: 4.525067625 | AK59: 4.525067625 | AL59: 4.525067625 | AM59: 4.525067625 | AN59: 4.525067625 | AO59: 4.525067625 | AP59: 4.525067625 | AQ59: 4.525067625 | AR59: 4.525067625 | AS59: 4.525067625 | AT59: 4.525067625
F60: Starting RAB (future capex) | L60: RAB | O60: 14 | R60: =IF($O60=R$2,R$40,IF(R$2>$O60,Q60-Q61,0)) -> 0 | S60: 0 | T60: 0 | U60: 0 | V60: 0 | W60: 0 | X60: 0 | Y60: 0 | Z60: 0 | AA60: 0 | AB60: 0 | AC60: 0 | AD60: 0 | AE60: 184.3394513 | AF60: 179.8030878 | AG60: 175.2667242 | AH60: 170.7303607 | AI60: 166.1939971 | AJ60: 161.6576336 | AK60: 157.12127 | AL60: 152.5849065 | AM60: 148.0485429 | AN60: 143.5121794 | AO60: 138.9758158 | AP60: 134.4394523 | AQ60: 129.9030887 | AR60: 125.3667252 | AS60: 120.8303616 | AT60: 116.2939981
F61: Straight-line depreciation (future capex) | L61: DEP | O61: 14 | R61: =IF(R$2>=$O61,IF(R60-HLOOKUP($O61,$R$2:$AT$33,30,FALSE)/HLOOKUP($O61,$R$2:$AT$33,31,FALSE)<=0,R60,HLOOKUP($O61,$R$2:$AT$33,30,FALSE)/HLOOKUP($O61,$R$2:$AT$33,31,FALSE)),0) -> 0 | S61: 0 | T61: 0 | U61: 0 | V61: 0 | W61: 0 | X61: 0 | Y61: 0 | Z61: 0 | AA61: 0 | AB61: 0 | AC61: 0 | AD61: 0 | AE61: 4.536363552 | AF61: 4.536363552 | AG61: 4.536363552 | AH61: 4.536363552 | AI61: 4.536363552 | AJ61: 4.536363552 | AK61: 4.536363552 | AL61: 4.536363552 | AM61: 4.536363552 | AN61: 4.536363552 | AO61: 4.536363552 | AP61: 4.536363552 | AQ61: 4.536363552 | AR61: 4.536363552 | AS61: 4.536363552 | AT61: 4.536363552
F62: Starting RAB (future capex) | L62: RAB | O62: 15 | R62: =IF($O62=R$2,R$40,IF(R$2>$O62,Q62-Q63,0)) -> 0 | S62: 0 | T62: 0 | U62: 0 | V62: 0 | W62: 0 | X62: 0 | Y62: 0 | Z62: 0 | AA62: 0 | AB62: 0 | AC62: 0 | AD62: 0 | AE62: 0 | AF62: 185.7640809 | AG62: 181.1930492 | AH62: 176.6220174 | AI62: 172.0509856 | AJ62: 167.4799539 | AK62: 162.9089221 | AL62: 158.3378904 | AM62: 153.7668586 | AN62: 149.1958268 | AO62: 144.6247951 | AP62: 140.0537633 | AQ62: 135.4827316 | AR62: 130.9116998 | AS62: 126.340668 | AT62: 121.7696363
F63: Straight-line depreciation (future capex) | L63: DEP | O63: 15 | R63: =IF(R$2>=$O63,IF(R62-HLOOKUP($O63,$R$2:$AT$33,30,FALSE)/HLOOKUP($O63,$R$2:$AT$33,31,FALSE)<=0,R62,HLOOKUP($O63,$R$2:$AT$33,30,FALSE)/HLOOKUP($O63,$R$2:$AT$33,31,FALSE)),0) -> 0 | S63: 0 | T63: 0 | U63: 0 | V63: 0 | W63: 0 | X63: 0 | Y63: 0 | Z63: 0 | AA63: 0 | AB63: 0 | AC63: 0 | AD63: 0 | AE63: 0 | AF63: 4.57103176 | AG63: 4.57103176 | AH63: 4.57103176 | AI63: 4.57103176 | AJ63: 4.57103176 | AK63: 4.57103176 | AL63: 4.57103176 | AM63: 4.57103176 | AN63: 4.57103176 | AO63: 4.57103176 | AP63: 4.57103176 | AQ63: 4.57103176 | AR63: 4.57103176 | AS63: 4.57103176 | AT63: 4.57103176
F64: Starting RAB (future capex) | L64: RAB | O64: 16 | R64: =IF($O64=R$2,R$40,IF(R$2>$O64,Q64-Q65,0)) -> 0 | S64: 0 | T64: 0 | U64: 0 | V64: 0 | W64: 0 | X64: 0 | Y64: 0 | Z64: 0 | AA64: 0 | AB64: 0 | AC64: 0 | AD64: 0 | AE64: 0 | AF64: 0 | AG64: 189.3596648 | AH64: 184.700291 | AI64: 180.0409171 | AJ64: 175.3815432 | AK64: 170.7221693 | AL64: 166.0627954 | AM64: 161.4034215 | AN64: 156.7440476 | AO64: 152.0846737 | AP64: 147.4252998 | AQ64: 142.765926 | AR64: 138.1065521 | AS64: 133.4471782 | AT64: 128.7878043
F65: Straight-line depreciation (future capex) | L65: DEP | O65: 16 | R65: =IF(R$2>=$O65,IF(R64-HLOOKUP($O65,$R$2:$AT$33,30,FALSE)/HLOOKUP($O65,$R$2:$AT$33,31,FALSE)<=0,R64,HLOOKUP($O65,$R$2:$AT$33,30,FALSE)/HLOOKUP($O65,$R$2:$AT$33,31,FALSE)),0) -> 0 | S65: 0 | T65: 0 | U65: 0 | V65: 0 | W65: 0 | X65: 0 | Y65: 0 | Z65: 0 | AA65: 0 | AB65: 0 | AC65: 0 | AD65: 0 | AE65: 0 | AF65: 0 | AG65: 4.659373889 | AH65: 4.659373889 | AI65: 4.659373889 | AJ65: 4.659373889 | AK65: 4.659373889 | AL65: 4.659373889 | AM65: 4.659373889 | AN65: 4.659373889 | AO65: 4.659373889 | AP65: 4.659373889 | AQ65: 4.659373889 | AR65: 4.659373889 | AS65: 4.659373889 | AT65: 4.659373889
F66: Starting RAB (future capex) | L66: RAB | O66: 17 | R66: =IF($O66=R$2,R$40,IF(R$2>$O66,Q66-Q67,0)) -> 0 | S66: 0 | T66: 0 | U66: 0 | V66: 0 | W66: 0 | X66: 0 | Y66: 0 | Z66: 0 | AA66: 0 | AB66: 0 | AC66: 0 | AD66: 0 | AE66: 0 | AF66: 0 | AG66: 0 | AH66: 193.0219168 | AI66: 188.2724298 | AJ66: 183.5229427 | AK66: 178.7734556 | AL66: 174.0239686 | AM66: 169.2744815 | AN66: 164.5249944 | AO66: 159.7755074 | AP66: 155.0260203 | AQ66: 150.2765332 | AR66: 145.5270462 | AS66: 140.7775591 | AT66: 136.028072
F67: Straight-line depreciation (future capex) | L67: DEP | O67: 17 | R67: =IF(R$2>=$O67,IF(R66-HLOOKUP($O67,$R$2:$AT$33,30,FALSE)/HLOOKUP($O67,$R$2:$AT$33,31,FALSE)<=0,R66,HLOOKUP($O67,$R$2:$AT$33,30,FALSE)/HLOOKUP($O67,$R$2:$AT$33,31,FALSE)),0) -> 0 | S67: 0 | T67: 0 | U67: 0 | V67: 0 | W67: 0 | X67: 0 | Y67: 0 | Z67: 0 | AA67: 0 | AB67: 0 | AC67: 0 | AD67: 0 | AE67: 0 | AF67: 0 | AG67: 0 | AH67: 4.749487068 | AI67: 4.749487068 | AJ67: 4.749487068 | AK67: 4.749487068 | AL67: 4.749487068 | AM67: 4.749487068 | AN67: 4.749487068 | AO67: 4.749487068 | AP67: 4.749487068 | AQ67: 4.749487068 | AR67: 4.749487068 | AS67: 4.749487068 | AT67: 4.749487068
F68: Starting RAB (future capex) | L68: RAB | O68: 18 | R68: =IF($O68=R$2,R$40,IF(R$2>$O68,Q68-Q69,0)) -> 0 | S68: 0 | T68: 0 | U68: 0 | V68: 0 | W68: 0 | X68: 0 | Y68: 0 | Z68: 0 | AA68: 0 | AB68: 0 | AC68: 0 | AD68: 0 | AE68: 0 | AF68: 0 | AG68: 0 | AH68: 0 | AI68: 196.7532815 | AJ68: 191.9119807 | AK68: 187.0706799 | AL68: 182.229379 | AM68: 177.3880782 | AN68: 172.5467774 | AO68: 167.7054766 | AP68: 162.8641757 | AQ68: 158.0228749 | AR68: 153.1815741 | AS68: 148.3402732 | AT68: 143.4989724
F69: Straight-line depreciation (future capex) | L69: DEP | O69: 18 | R69: =IF(R$2>=$O69,IF(R68-HLOOKUP($O69,$R$2:$AT$33,30,FALSE)/HLOOKUP($O69,$R$2:$AT$33,31,FALSE)<=0,R68,HLOOKUP($O69,$R$2:$AT$33,30,FALSE)/HLOOKUP($O69,$R$2:$AT$33,31,FALSE)),0) -> 0 | S69: 0 | T69: 0 | U69: 0 | V69: 0 | W69: 0 | X69: 0 | Y69: 0 | Z69: 0 | AA69: 0 | AB69: 0 | AC69: 0 | AD69: 0 | AE69: 0 | AF69: 0 | AG69: 0 | AH69: 0 | AI69: 4.84130083 | AJ69: 4.84130083 | AK69: 4.84130083 | AL69: 4.84130083 | AM69: 4.84130083 | AN69: 4.84130083 | AO69: 4.84130083 | AP69: 4.84130083 | AQ69: 4.84130083 | AR69: 4.84130083 | AS69: 4.84130083 | AT69: 4.84130083
F70: Starting RAB (future capex) | L70: RAB | O70: 19 | R70: =IF($O70=R$2,R$40,IF(R$2>$O70,Q70-Q71,0)) -> 0 | S70: 0 | T70: 0 | U70: 0 | V70: 0 | W70: 0 | X70: 0 | Y70: 0 | Z70: 0 | AA70: 0 | AB70: 0 | AC70: 0 | AD70: 0 | AE70: 0 | AF70: 0 | AG70: 0 | AH70: 0 | AI70: 0 | AJ70: 200.5687138 | AK70: 195.6335306 | AL70: 190.6983475 | AM70: 185.7631643 | AN70: 180.8279812 | AO70: 175.892798 | AP70: 170.9576149 | AQ70: 166.0224317 | AR70: 161.0872486 | AS70: 156.1520654 | AT70: 151.2168823
F71: Straight-line depreciation (future capex) | L71: DEP | O71: 19 | R71: =IF(R$2>=$O71,IF(R70-HLOOKUP($O71,$R$2:$AT$33,30,FALSE)/HLOOKUP($O71,$R$2:$AT$33,31,FALSE)<=0,R70,HLOOKUP($O71,$R$2:$AT$33,30,FALSE)/HLOOKUP($O71,$R$2:$AT$33,31,FALSE)),0) -> 0 | S71: 0 | T71: 0 | U71: 0 | V71: 0 | W71: 0 | X71: 0 | Y71: 0 | Z71: 0 | AA71: 0 | AB71: 0 | AC71: 0 | AD71: 0 | AE71: 0 | AF71: 0 | AG71: 0 | AH71: 0 | AI71: 0 | AJ71: 4.935183154 | AK71: 4.935183154 | AL71: 4.935183154 | AM71: 4.935183154 | AN71: 4.935183154 | AO71: 4.935183154 | AP71: 4.935183154 | AQ71: 4.935183154 | AR71: 4.935183154 | AS71: 4.935183154 | AT71: 4.935183154
F72: Starting RAB (future capex) | L72: RAB | O72: 20 | R72: =IF($O72=R$2,R$40,IF(R$2>$O72,Q72-Q73,0)) -> 0 | S72: 0 | T72: 0 | U72: 0 | V72: 0 | W72: 0 | X72: 0 | Y72: 0 | Z72: 0 | AA72: 0 | AB72: 0 | AC72: 0 | AD72: 0 | AE72: 0 | AF72: 0 | AG72: 0 | AH72: 0 | AI72: 0 | AJ72: 0 | AK72: 204.4484109 | AL72: 199.4177641 | AM72: 194.3871174 | AN72: 189.3564706 | AO72: 184.3258238 | AP72: 179.295177 | AQ72: 174.2645303 | AR72: 169.2338835 | AS72: 164.2032367 | AT72: 159.1725899
F73: Straight-line depreciation (future capex) | L73: DEP | O73: 20 | R73: =IF(R$2>=$O73,IF(R72-HLOOKUP($O73,$R$2:$AT$33,30,FALSE)/HLOOKUP($O73,$R$2:$AT$33,31,FALSE)<=0,R72,HLOOKUP($O73,$R$2:$AT$33,30,FALSE)/HLOOKUP($O73,$R$2:$AT$33,31,FALSE)),0) -> 0 | S73: 0 | T73: 0 | U73: 0 | V73: 0 | W73: 0 | X73: 0 | Y73: 0 | Z73: 0 | AA73: 0 | AB73: 0 | AC73: 0 | AD73: 0 | AE73: 0 | AF73: 0 | AG73: 0 | AH73: 0 | AI73: 0 | AJ73: 0 | AK73: 5.030646776 | AL73: 5.030646776 | AM73: 5.030646776 | AN73: 5.030646776 | AO73: 5.030646776 | AP73: 5.030646776 | AQ73: 5.030646776 | AR73: 5.030646776 | AS73: 5.030646776 | AT73: 5.030646776
F74: Starting RAB (future capex) | L74: RAB | O74: 21 | R74: =IF($O74=R$2,R$40,IF(R$2>$O74,Q74-Q75,0)) -> 0 | S74: 0 | T74: 0 | U74: 0 | V74: 0 | W74: 0 | X74: 0 | Y74: 0 | Z74: 0 | AA74: 0 | AB74: 0 | AC74: 0 | AD74: 0 | AE74: 0 | AF74: 0 | AG74: 0 | AH74: 0 | AI74: 0 | AJ74: 0 | AK74: 0 | AL74: 208.4526976 | AM74: 203.3235216 | AN74: 198.1943455 | AO74: 193.0651695 | AP74: 187.9359934 | AQ74: 182.8068174 | AR74: 177.6776413 | AS74: 172.5484653 | AT74: 167.4192893
F75: Straight-line depreciation (future capex) | L75: DEP | O75: 21 | R75: =IF(R$2>=$O75,IF(R74-HLOOKUP($O75,$R$2:$AT$33,30,FALSE)/HLOOKUP($O75,$R$2:$AT$33,31,FALSE)<=0,R74,HLOOKUP($O75,$R$2:$AT$33,30,FALSE)/HLOOKUP($O75,$R$2:$AT$33,31,FALSE)),0) -> 0 | S75: 0 | T75: 0 | U75: 0 | V75: 0 | W75: 0 | X75: 0 | Y75: 0 | Z75: 0 | AA75: 0 | AB75: 0 | AC75: 0 | AD75: 0 | AE75: 0 | AF75: 0 | AG75: 0 | AH75: 0 | AI75: 0 | AJ75: 0 | AK75: 0 | AL75: 5.129176042 | AM75: 5.129176042 | AN75: 5.129176042 | AO75: 5.129176042 | AP75: 5.129176042 | AQ75: 5.129176042 | AR75: 5.129176042 | AS75: 5.129176042 | AT75: 5.129176042
F76: Starting RAB (future capex) | L76: RAB | O76: 22 | R76: =IF($O76=R$2,R$40,IF(R$2>$O76,Q76-Q77,0)) -> 0 | S76: 0 | T76: 0 | U76: 0 | V76: 0 | W76: 0 | X76: 0 | Y76: 0 | Z76: 0 | AA76: 0 | AB76: 0 | AC76: 0 | AD76: 0 | AE76: 0 | AF76: 0 | AG76: 0 | AH76: 0 | AI76: 0 | AJ76: 0 | AK76: 0 | AL76: 0 | AM76: 212.5815501 | AN76: 207.3507797 | AO76: 202.1200093 | AP76: 196.889239 | AQ76: 191.6584686 | AR76: 186.4276982 | AS76: 181.1969279 | AT76: 175.9661575
F77: Straight-line depreciation (future capex) | L77: DEP | O77: 22 | R77: =IF(R$2>=$O77,IF(R76-HLOOKUP($O77,$R$2:$AT$33,30,FALSE)/HLOOKUP($O77,$R$2:$AT$33,31,FALSE)<=0,R76,HLOOKUP($O77,$R$2:$AT$33,30,FALSE)/HLOOKUP($O77,$R$2:$AT$33,31,FALSE)),0) -> 0 | S77: 0 | T77: 0 | U77: 0 | V77: 0 | W77: 0 | X77: 0 | Y77: 0 | Z77: 0 | AA77: 0 | AB77: 0 | AC77: 0 | AD77: 0 | AE77: 0 | AF77: 0 | AG77: 0 | AH77: 0 | AI77: 0 | AJ77: 0 | AK77: 0 | AL77: 0 | AM77: 5.230770368 | AN77: 5.230770368 | AO77: 5.230770368 | AP77: 5.230770368 | AQ77: 5.230770368 | AR77: 5.230770368 | AS77: 5.230770368 | AT77: 5.230770368
F78: Starting RAB (future capex) | L78: RAB | O78: 23 | R78: =IF($O78=R$2,R$40,IF(R$2>$O78,Q78-Q79,0)) -> 0 | S78: 0 | T78: 0 | U78: 0 | V78: 0 | W78: 0 | X78: 0 | Y78: 0 | Z78: 0 | AA78: 0 | AB78: 0 | AC78: 0 | AD78: 0 | AE78: 0 | AF78: 0 | AG78: 0 | AH78: 0 | AI78: 0 | AJ78: 0 | AK78: 0 | AL78: 0 | AM78: 0 | AN78: 216.6501454 | AO78: 211.3192634 | AP78: 205.9883814 | AQ78: 200.6574993 | AR78: 195.3266173 | AS78: 189.9957353 | AT78: 184.6648533
F79: Straight-line depreciation (future capex) | L79: DEP | O79: 23 | R79: =IF(R$2>=$O79,IF(R78-HLOOKUP($O79,$R$2:$AT$33,30,FALSE)/HLOOKUP($O79,$R$2:$AT$33,31,FALSE)<=0,R78,HLOOKUP($O79,$R$2:$AT$33,30,FALSE)/HLOOKUP($O79,$R$2:$AT$33,31,FALSE)),0) -> 0 | S79: 0 | T79: 0 | U79: 0 | V79: 0 | W79: 0 | X79: 0 | Y79: 0 | Z79: 0 | AA79: 0 | AB79: 0 | AC79: 0 | AD79: 0 | AE79: 0 | AF79: 0 | AG79: 0 | AH79: 0 | AI79: 0 | AJ79: 0 | AK79: 0 | AL79: 0 | AM79: 0 | AN79: 5.330882008 | AO79: 5.330882008 | AP79: 5.330882008 | AQ79: 5.330882008 | AR79: 5.330882008 | AS79: 5.330882008 | AT79: 5.330882008
F80: Starting RAB (future capex) | L80: RAB | O80: 24 | R80: =IF($O80=R$2,R$40,IF(R$2>$O80,Q80-Q81,0)) -> 0 | S80: 0 | T80: 0 | U80: 0 | V80: 0 | W80: 0 | X80: 0 | Y80: 0 | Z80: 0 | AA80: 0 | AB80: 0 | AC80: 0 | AD80: 0 | AE80: 0 | AF80: 0 | AG80: 0 | AH80: 0 | AI80: 0 | AJ80: 0 | AK80: 0 | AL80: 0 | AM80: 0 | AN80: 0 | AO80: 220.6472769 | AP80: 215.2180417 | AQ80: 209.7888065 | AR80: 204.3595713 | AS80: 198.930336 | AT80: 193.5011008
F81: Straight-line depreciation (future capex) | L81: DEP | O81: 24 | R81: =IF(R$2>=$O81,IF(R80-HLOOKUP($O81,$R$2:$AT$33,30,FALSE)/HLOOKUP($O81,$R$2:$AT$33,31,FALSE)<=0,R80,HLOOKUP($O81,$R$2:$AT$33,30,FALSE)/HLOOKUP($O81,$R$2:$AT$33,31,FALSE)),0) -> 0 | S81: 0 | T81: 0 | U81: 0 | V81: 0 | W81: 0 | X81: 0 | Y81: 0 | Z81: 0 | AA81: 0 | AB81: 0 | AC81: 0 | AD81: 0 | AE81: 0 | AF81: 0 | AG81: 0 | AH81: 0 | AI81: 0 | AJ81: 0 | AK81: 0 | AL81: 0 | AM81: 0 | AN81: 0 | AO81: 5.429235215 | AP81: 5.429235215 | AQ81: 5.429235215 | AR81: 5.429235215 | AS81: 5.429235215 | AT81: 5.429235215
F82: Starting RAB (future capex) | L82: RAB | O82: 25 | R82: =IF($O82=R$2,R$40,IF(R$2>$O82,Q82-Q83,0)) -> 0 | S82: 0 | T82: 0 | U82: 0 | V82: 0 | W82: 0 | X82: 0 | Y82: 0 | Z82: 0 | AA82: 0 | AB82: 0 | AC82: 0 | AD82: 0 | AE82: 0 | AF82: 0 | AG82: 0 | AH82: 0 | AI82: 0 | AJ82: 0 | AK82: 0 | AL82: 0 | AM82: 0 | AN82: 0 | AO82: 0 | AP82: 224.5746989 | AQ82: 219.0488258 | AR82: 213.5229526 | AS82: 207.9970795 | AT82: 202.4712063
F83: Straight-line depreciation (future capex) | L83: DEP | O83: 25 | R83: =IF(R$2>=$O83,IF(R82-HLOOKUP($O83,$R$2:$AT$33,30,FALSE)/HLOOKUP($O83,$R$2:$AT$33,31,FALSE)<=0,R82,HLOOKUP($O83,$R$2:$AT$33,30,FALSE)/HLOOKUP($O83,$R$2:$AT$33,31,FALSE)),0) -> 0 | S83: 0 | T83: 0 | U83: 0 | V83: 0 | W83: 0 | X83: 0 | Y83: 0 | Z83: 0 | AA83: 0 | AB83: 0 | AC83: 0 | AD83: 0 | AE83: 0 | AF83: 0 | AG83: 0 | AH83: 0 | AI83: 0 | AJ83: 0 | AK83: 0 | AL83: 0 | AM83: 0 | AN83: 0 | AO83: 0 | AP83: 5.525873154 | AQ83: 5.525873154 | AR83: 5.525873154 | AS83: 5.525873154 | AT83: 5.525873154
F84: Starting RAB (future capex) | L84: RAB | O84: 26 | R84: =IF($O84=R$2,R$40,IF(R$2>$O84,Q84-Q85,0)) -> 0 | S84: 0 | T84: 0 | U84: 0 | V84: 0 | W84: 0 | X84: 0 | Y84: 0 | Z84: 0 | AA84: 0 | AB84: 0 | AC84: 0 | AD84: 0 | AE84: 0 | AF84: 0 | AG84: 0 | AH84: 0 | AI84: 0 | AJ84: 0 | AK84: 0 | AL84: 0 | AM84: 0 | AN84: 0 | AO84: 0 | AP84: 0 | AQ84: 228.3402452 | AR84: 222.7217173 | AS84: 217.1031893 | AT84: 211.4846613
F85: Straight-line depreciation (future capex) | L85: DEP | O85: 26 | R85: =IF(R$2>=$O85,IF(R84-HLOOKUP($O85,$R$2:$AT$33,30,FALSE)/HLOOKUP($O85,$R$2:$AT$33,31,FALSE)<=0,R84,HLOOKUP($O85,$R$2:$AT$33,30,FALSE)/HLOOKUP($O85,$R$2:$AT$33,31,FALSE)),0) -> 0 | S85: 0 | T85: 0 | U85: 0 | V85: 0 | W85: 0 | X85: 0 | Y85: 0 | Z85: 0 | AA85: 0 | AB85: 0 | AC85: 0 | AD85: 0 | AE85: 0 | AF85: 0 | AG85: 0 | AH85: 0 | AI85: 0 | AJ85: 0 | AK85: 0 | AL85: 0 | AM85: 0 | AN85: 0 | AO85: 0 | AP85: 0 | AQ85: 5.618527987 | AR85: 5.618527987 | AS85: 5.618527987 | AT85: 5.618527987
F86: Starting RAB (future capex) | L86: RAB | O86: 27 | R86: =IF($O86=R$2,R$40,IF(R$2>$O86,Q86-Q87,0)) -> 0 | S86: 0 | T86: 0 | U86: 0 | V86: 0 | W86: 0 | X86: 0 | Y86: 0 | Z86: 0 | AA86: 0 | AB86: 0 | AC86: 0 | AD86: 0 | AE86: 0 | AF86: 0 | AG86: 0 | AH86: 0 | AI86: 0 | AJ86: 0 | AK86: 0 | AL86: 0 | AM86: 0 | AN86: 0 | AO86: 0 | AP86: 0 | AQ86: 0 | AR86: 231.993683 | AS86: 226.2852587 | AT86: 220.5768344
F87: Straight-line depreciation (future capex) | L87: DEP | O87: 27 | R87: =IF(R$2>=$O87,IF(R86-HLOOKUP($O87,$R$2:$AT$33,30,FALSE)/HLOOKUP($O87,$R$2:$AT$33,31,FALSE)<=0,R86,HLOOKUP($O87,$R$2:$AT$33,30,FALSE)/HLOOKUP($O87,$R$2:$AT$33,31,FALSE)),0) -> 0 | S87: 0 | T87: 0 | U87: 0 | V87: 0 | W87: 0 | X87: 0 | Y87: 0 | Z87: 0 | AA87: 0 | AB87: 0 | AC87: 0 | AD87: 0 | AE87: 0 | AF87: 0 | AG87: 0 | AH87: 0 | AI87: 0 | AJ87: 0 | AK87: 0 | AL87: 0 | AM87: 0 | AN87: 0 | AO87: 0 | AP87: 0 | AQ87: 0 | AR87: 5.708424282 | AS87: 5.708424282 | AT87: 5.708424282
F88: Starting RAB (future capex) | L88: RAB | O88: 28 | R88: =IF($O88=R$2,R$40,IF(R$2>$O88,Q88-Q89,0)) -> 0 | S88: 0 | T88: 0 | U88: 0 | V88: 0 | W88: 0 | X88: 0 | Y88: 0 | Z88: 0 | AA88: 0 | AB88: 0 | AC88: 0 | AD88: 0 | AE88: 0 | AF88: 0 | AG88: 0 | AH88: 0 | AI88: 0 | AJ88: 0 | AK88: 0 | AL88: 0 | AM88: 0 | AN88: 0 | AO88: 0 | AP88: 0 | AQ88: 0 | AR88: 0 | AS88: 235.545371 | AT88: 229.749554
F89: Straight-line depreciation (future capex) | L89: DEP | O89: 28 | R89: =IF(R$2>=$O89,IF(R88-HLOOKUP($O89,$R$2:$AT$33,30,FALSE)/HLOOKUP($O89,$R$2:$AT$33,31,FALSE)<=0,R88,HLOOKUP($O89,$R$2:$AT$33,30,FALSE)/HLOOKUP($O89,$R$2:$AT$33,31,FALSE)),0) -> 0 | S89: 0 | T89: 0 | U89: 0 | V89: 0 | W89: 0 | X89: 0 | Y89: 0 | Z89: 0 | AA89: 0 | AB89: 0 | AC89: 0 | AD89: 0 | AE89: 0 | AF89: 0 | AG89: 0 | AH89: 0 | AI89: 0 | AJ89: 0 | AK89: 0 | AL89: 0 | AM89: 0 | AN89: 0 | AO89: 0 | AP89: 0 | AQ89: 0 | AR89: 0 | AS89: 5.795816929 | AT89: 5.795816929
F90: Starting RAB (future capex) | L90: RAB | O90: 29 | R90: =IF($O90=R$2,R$40,IF(R$2>$O90,Q90-Q91,0)) -> 0 | S90: 0 | T90: 0 | U90: 0 | V90: 0 | W90: 0 | X90: 0 | Y90: 0 | Z90: 0 | AA90: 0 | AB90: 0 | AC90: 0 | AD90: 0 | AE90: 0 | AF90: 0 | AG90: 0 | AH90: 0 | AI90: 0 | AJ90: 0 | AK90: 0 | AL90: 0 | AM90: 0 | AN90: 0 | AO90: 0 | AP90: 0 | AQ90: 0 | AR90: 0 | AS90: 0 | AT90: 239.00322
F91: Straight-line depreciation (future capex) | L91: DEP | O91: 29 | R91: =IF(R$2>=$O91,IF(R90-HLOOKUP($O91,$R$2:$AT$33,30,FALSE)/HLOOKUP($O91,$R$2:$AT$33,31,FALSE)<=0,R90,HLOOKUP($O91,$R$2:$AT$33,30,FALSE)/HLOOKUP($O91,$R$2:$AT$33,31,FALSE)),0) -> 0 | S91: 0 | T91: 0 | U91: 0 | V91: 0 | W91: 0 | X91: 0 | Y91: 0 | Z91: 0 | AA91: 0 | AB91: 0 | AC91: 0 | AD91: 0 | AE91: 0 | AF91: 0 | AG91: 0 | AH91: 0 | AI91: 0 | AJ91: 0 | AK91: 0 | AL91: 0 | AM91: 0 | AN91: 0 | AO91: 0 | AP91: 0 | AQ91: 0 | AR91: 0 | AS91: 0 | AT91: 5.880900579
F92: Starting RAB (future capex) | L92: RAB | O92: 30 | R92: =IF($O92=R$2,R$40,IF(R$2>$O92,Q92-Q93,0)) -> 0 | S92: 0 | T92: 0 | U92: 0 | V92: 0 | W92: 0 | X92: 0 | Y92: 0 | Z92: 0 | AA92: 0 | AB92: 0 | AC92: 0 | AD92: 0 | AE92: 0 | AF92: 0 | AG92: 0 | AH92: 0 | AI92: 0 | AJ92: 0 | AK92: 0 | AL92: 0 | AM92: 0 | AN92: 0 | AO92: 0 | AP92: 0 | AQ92: 0 | AR92: 0 | AS92: 0 | AT92: 0
F93: Straight-line depreciation (future capex) | L93: DEP | O93: 30 | R93: =IF(R$2>=$O93,IF(R92-HLOOKUP($O93,$R$2:$AT$33,30,FALSE)/HLOOKUP($O93,$R$2:$AT$33,31,FALSE)<=0,R92,HLOOKUP($O93,$R$2:$AT$33,30,FALSE)/HLOOKUP($O93,$R$2:$AT$33,31,FALSE)),0) -> 0 | S93: 0 | T93: 0 | U93: 0 | V93: 0 | W93: 0 | X93: 0 | Y93: 0 | Z93: 0 | AA93: 0 | AB93: 0 | AC93: 0 | AD93: 0 | AE93: 0 | AF93: 0 | AG93: 0 | AH93: 0 | AI93: 0 | AJ93: 0 | AK93: 0 | AL93: 0 | AM93: 0 | AN93: 0 | AO93: 0 | AP93: 0 | AQ93: 0 | AR93: 0 | AS93: 0 | AT93: 0
F94: Starting RAB (future capex) | L94: RAB | O94: 31 | R94: =IF($O94=R$2,R$40,IF(R$2>$O94,Q94-Q95,0)) -> 0 | S94: 0 | T94: 0 | U94: 0 | V94: 0 | W94: 0 | X94: 0 | Y94: 0 | Z94: 0 | AA94: 0 | AB94: 0 | AC94: 0 | AD94: 0 | AE94: 0 | AF94: 0 | AG94: 0 | AH94: 0 | AI94: 0 | AJ94: 0 | AK94: 0 | AL94: 0 | AM94: 0 | AN94: 0 | AO94: 0 | AP94: 0 | AQ94: 0 | AR94: 0 | AS94: 0 | AT94: 0
F95: Straight-line depreciation (future capex) | L95: DEP | O95: 31 | R95: =IF(R$2>=$O95,IF(R94-HLOOKUP($O95,$R$2:$AT$33,30,FALSE)/HLOOKUP($O95,$R$2:$AT$33,31,FALSE)<=0,R94,HLOOKUP($O95,$R$2:$AT$33,30,FALSE)/HLOOKUP($O95,$R$2:$AT$33,31,FALSE)),0) -> 0 | S95: 0 | T95: 0 | U95: 0 | V95: 0 | W95: 0 | X95: 0 | Y95: 0 | Z95: 0 | AA95: 0 | AB95: 0 | AC95: 0 | AD95: 0 | AE95: 0 | AF95: 0 | AG95: 0 | AH95: 0 | AI95: 0 | AJ95: 0 | AK95: 0 | AL95: 0 | AM95: 0 | AN95: 0 | AO95: 0 | AP95: 0 | AQ95: 0 | AR95: 0 | AS95: 0 | AT95: 0
F96: Starting RAB (future capex) | L96: RAB | O96: 32 | R96: =IF($O96=R$2,R$40,IF(R$2>$O96,Q96-Q97,0)) -> 0 | S96: 0 | T96: 0 | U96: 0 | V96: 0 | W96: 0 | X96: 0 | Y96: 0 | Z96: 0 | AA96: 0 | AB96: 0 | AC96: 0 | AD96: 0 | AE96: 0 | AF96: 0 | AG96: 0 | AH96: 0 | AI96: 0 | AJ96: 0 | AK96: 0 | AL96: 0 | AM96: 0 | AN96: 0 | AO96: 0 | AP96: 0 | AQ96: 0 | AR96: 0 | AS96: 0 | AT96: 0
F97: Straight-line depreciation (future capex) | L97: DEP | O97: 32 | R97: =IF(R$2>=$O97,IF(R96-HLOOKUP($O97,$R$2:$AT$33,30,FALSE)/HLOOKUP($O97,$R$2:$AT$33,31,FALSE)<=0,R96,HLOOKUP($O97,$R$2:$AT$33,30,FALSE)/HLOOKUP($O97,$R$2:$AT$33,31,FALSE)),0) -> 0 | S97: 0 | T97: 0 | U97: 0 | V97: 0 | W97: 0 | X97: 0 | Y97: 0 | Z97: 0 | AA97: 0 | AB97: 0 | AC97: 0 | AD97: 0 | AE97: 0 | AF97: 0 | AG97: 0 | AH97: 0 | AI97: 0 | AJ97: 0 | AK97: 0 | AL97: 0 | AM97: 0 | AN97: 0 | AO97: 0 | AP97: 0 | AQ97: 0 | AR97: 0 | AS97: 0 | AT97: 0
F98: Starting RAB (future capex) | L98: RAB | O98: 33 | R98: =IF($O98=R$2,R$40,IF(R$2>$O98,Q98-Q99,0)) -> 0 | S98: 0 | T98: 0 | U98: 0 | V98: 0 | W98: 0 | X98: 0 | Y98: 0 | Z98: 0 | AA98: 0 | AB98: 0 | AC98: 0 | AD98: 0 | AE98: 0 | AF98: 0 | AG98: 0 | AH98: 0 | AI98: 0 | AJ98: 0 | AK98: 0 | AL98: 0 | AM98: 0 | AN98: 0 | AO98: 0 | AP98: 0 | AQ98: 0 | AR98: 0 | AS98: 0 | AT98: 0
F99: Straight-line depreciation (future capex) | L99: DEP | O99: 33 | R99: =IF(R$2>=$O99,IF(R98-HLOOKUP($O99,$R$2:$AT$33,30,FALSE)/HLOOKUP($O99,$R$2:$AT$33,31,FALSE)<=0,R98,HLOOKUP($O99,$R$2:$AT$33,30,FALSE)/HLOOKUP($O99,$R$2:$AT$33,31,FALSE)),0) -> 0 | S99: 0 | T99: 0 | U99: 0 | V99: 0 | W99: 0 | X99: 0 | Y99: 0 | Z99: 0 | AA99: 0 | AB99: 0 | AC99: 0 | AD99: 0 | AE99: 0 | AF99: 0 | AG99: 0 | AH99: 0 | AI99: 0 | AJ99: 0 | AK99: 0 | AL99: 0 | AM99: 0 | AN99: 0 | AO99: 0 | AP99: 0 | AQ99: 0 | AR99: 0 | AS99: 0 | AT99: 0
F100: Starting RAB (future capex) | L100: RAB | O100: 34 | R100: =IF($O100=R$2,R$40,IF(R$2>$O100,Q100-Q101,0)) -> 0 | S100: 0 | T100: 0 | U100: 0 | V100: 0 | W100: 0 | X100: 0 | Y100: 0 | Z100: 0 | AA100: 0 | AB100: 0 | AC100: 0 | AD100: 0 | AE100: 0 | AF100: 0 | AG100: 0 | AH100: 0 | AI100: 0 | AJ100: 0 | AK100: 0 | AL100: 0 | AM100: 0 | AN100: 0 | AO100: 0 | AP100: 0 | AQ100: 0 | AR100: 0 | AS100: 0 | AT100: 0
F101: Straight-line depreciation (future capex) | L101: DEP | O101: 34 | R101: =IF(R$2>=$O101,IF(R100-HLOOKUP($O101,$R$2:$AT$33,30,FALSE)/HLOOKUP($O101,$R$2:$AT$33,31,FALSE)<=0,R100,HLOOKUP($O101,$R$2:$AT$33,30,FALSE)/HLOOKUP($O101,$R$2:$AT$33,31,FALSE)),0) -> 0 | S101: 0 | T101: 0 | U101: 0 | V101: 0 | W101: 0 | X101: 0 | Y101: 0 | Z101: 0 | AA101: 0 | AB101: 0 | AC101: 0 | AD101: 0 | AE101: 0 | AF101: 0 | AG101: 0 | AH101: 0 | AI101: 0 | AJ101: 0 | AK101: 0 | AL101: 0 | AM101: 0 | AN101: 0 | AO101: 0 | AP101: 0 | AQ101: 0 | AR101: 0 | AS101: 0 | AT101: 0
F102: Starting RAB (future capex) | L102: RAB | O102: 35 | R102: =IF($O102=R$2,R$40,IF(R$2>$O102,Q102-Q103,0)) -> 0 | S102: 0 | T102: 0 | U102: 0 | V102: 0 | W102: 0 | X102: 0 | Y102: 0 | Z102: 0 | AA102: 0 | AB102: 0 | AC102: 0 | AD102: 0 | AE102: 0 | AF102: 0 | AG102: 0 | AH102: 0 | AI102: 0 | AJ102: 0 | AK102: 0 | AL102: 0 | AM102: 0 | AN102: 0 | AO102: 0 | AP102: 0 | AQ102: 0 | AR102: 0 | AS102: 0 | AT102: 0
F103: Straight-line depreciation (future capex) | L103: DEP | O103: 35 | R103: =IF(R$2>=$O103,IF(R102-HLOOKUP($O103,$R$2:$AT$33,30,FALSE)/HLOOKUP($O103,$R$2:$AT$33,31,FALSE)<=0,R102,HLOOKUP($O103,$R$2:$AT$33,30,FALSE)/HLOOKUP($O103,$R$2:$AT$33,31,FALSE)),0) -> 0 | S103: 0 | T103: 0 | U103: 0 | V103: 0 | W103: 0 | X103: 0 | Y103: 0 | Z103: 0 | AA103: 0 | AB103: 0 | AC103: 0 | AD103: 0 | AE103: 0 | AF103: 0 | AG103: 0 | AH103: 0 | AI103: 0 | AJ103: 0 | AK103: 0 | AL103: 0 | AM103: 0 | AN103: 0 | AO103: 0 | AP103: 0 | AQ103: 0 | AR103: 0 | AS103: 0 | AT103: 0
F104: Starting RAB (future capex) | L104: RAB | O104: 36 | R104: =IF($O104=R$2,R$40,IF(R$2>$O104,Q104-Q105,0)) -> 0 | S104: 0 | T104: 0 | U104: 0 | V104: 0 | W104: 0 | X104: 0 | Y104: 0 | Z104: 0 | AA104: 0 | AB104: 0 | AC104: 0 | AD104: 0 | AE104: 0 | AF104: 0 | AG104: 0 | AH104: 0 | AI104: 0 | AJ104: 0 | AK104: 0 | AL104: 0 | AM104: 0 | AN104: 0 | AO104: 0 | AP104: 0 | AQ104: 0 | AR104: 0 | AS104: 0 | AT104: 0
F105: Straight-line depreciation (future capex) | L105: DEP | O105: 36 | R105: =IF(R$2>=$O105,IF(R104-HLOOKUP($O105,$R$2:$AT$33,30,FALSE)/HLOOKUP($O105,$R$2:$AT$33,31,FALSE)<=0,R104,HLOOKUP($O105,$R$2:$AT$33,30,FALSE)/HLOOKUP($O105,$R$2:$AT$33,31,FALSE)),0) -> 0 | S105: 0 | T105: 0 | U105: 0 | V105: 0 | W105: 0 | X105: 0 | Y105: 0 | Z105: 0 | AA105: 0 | AB105: 0 | AC105: 0 | AD105: 0 | AE105: 0 | AF105: 0 | AG105: 0 | AH105: 0 | AI105: 0 | AJ105: 0 | AK105: 0 | AL105: 0 | AM105: 0 | AN105: 0 | AO105: 0 | AP105: 0 | AQ105: 0 | AR105: 0 | AS105: 0 | AT105: 0
F106: Starting RAB (future capex) | L106: RAB | O106: 37 | R106: =IF($O106=R$2,R$40,IF(R$2>$O106,Q106-Q107,0)) -> 0 | S106: 0 | T106: 0 | U106: 0 | V106: 0 | W106: 0 | X106: 0 | Y106: 0 | Z106: 0 | AA106: 0 | AB106: 0 | AC106: 0 | AD106: 0 | AE106: 0 | AF106: 0 | AG106: 0 | AH106: 0 | AI106: 0 | AJ106: 0 | AK106: 0 | AL106: 0 | AM106: 0 | AN106: 0 | AO106: 0 | AP106: 0 | AQ106: 0 | AR106: 0 | AS106: 0 | AT106: 0
F107: Straight-line depreciation (future capex) | L107: DEP | O107: 37 | R107: =IF(R$2>=$O107,IF(R106-HLOOKUP($O107,$R$2:$AT$33,30,FALSE)/HLOOKUP($O107,$R$2:$AT$33,31,FALSE)<=0,R106,HLOOKUP($O107,$R$2:$AT$33,30,FALSE)/HLOOKUP($O107,$R$2:$AT$33,31,FALSE)),0) -> 0 | S107: 0 | T107: 0 | U107: 0 | V107: 0 | W107: 0 | X107: 0 | Y107: 0 | Z107: 0 | AA107: 0 | AB107: 0 | AC107: 0 | AD107: 0 | AE107: 0 | AF107: 0 | AG107: 0 | AH107: 0 | AI107: 0 | AJ107: 0 | AK107: 0 | AL107: 0 | AM107: 0 | AN107: 0 | AO107: 0 | AP107: 0 | AQ107: 0 | AR107: 0 | AS107: 0 | AT107: 0
F108: Starting RAB (future capex) | L108: RAB | O108: 38 | R108: =IF($O108=R$2,R$40,IF(R$2>$O108,Q108-Q109,0)) -> 0 | S108: 0 | T108: 0 | U108: 0 | V108: 0 | W108: 0 | X108: 0 | Y108: 0 | Z108: 0 | AA108: 0 | AB108: 0 | AC108: 0 | AD108: 0 | AE108: 0 | AF108: 0 | AG108: 0 | AH108: 0 | AI108: 0 | AJ108: 0 | AK108: 0 | AL108: 0 | AM108: 0 | AN108: 0 | AO108: 0 | AP108: 0 | AQ108: 0 | AR108: 0 | AS108: 0 | AT108: 0
F109: Straight-line depreciation (future capex) | L109: DEP | O109: 38 | R109: =IF(R$2>=$O109,IF(R108-HLOOKUP($O109,$R$2:$AT$33,30,FALSE)/HLOOKUP($O109,$R$2:$AT$33,31,FALSE)<=0,R108,HLOOKUP($O109,$R$2:$AT$33,30,FALSE)/HLOOKUP($O109,$R$2:$AT$33,31,FALSE)),0) -> 0 | S109: 0 | T109: 0 | U109: 0 | V109: 0 | W109: 0 | X109: 0 | Y109: 0 | Z109: 0 | AA109: 0 | AB109: 0 | AC109: 0 | AD109: 0 | AE109: 0 | AF109: 0 | AG109: 0 | AH109: 0 | AI109: 0 | AJ109: 0 | AK109: 0 | AL109: 0 | AM109: 0 | AN109: 0 | AO109: 0 | AP109: 0 | AQ109: 0 | AR109: 0 | AS109: 0 | AT109: 0
F110: Starting RAB (future capex) | L110: RAB | O110: 39 | R110: =IF($O110=R$2,R$40,IF(R$2>$O110,Q110-Q111,0)) -> 0 | S110: 0 | T110: 0 | U110: 0 | V110: 0 | W110: 0 | X110: 0 | Y110: 0 | Z110: 0 | AA110: 0 | AB110: 0 | AC110: 0 | AD110: 0 | AE110: 0 | AF110: 0 | AG110: 0 | AH110: 0 | AI110: 0 | AJ110: 0 | AK110: 0 | AL110: 0 | AM110: 0 | AN110: 0 | AO110: 0 | AP110: 0 | AQ110: 0 | AR110: 0 | AS110: 0 | AT110: 0
F111: Straight-line depreciation (future capex) | L111: DEP | O111: 39 | R111: =IF(R$2>=$O111,IF(R110-HLOOKUP($O111,$R$2:$AT$33,30,FALSE)/HLOOKUP($O111,$R$2:$AT$33,31,FALSE)<=0,R110,HLOOKUP($O111,$R$2:$AT$33,30,FALSE)/HLOOKUP($O111,$R$2:$AT$33,31,FALSE)),0) -> 0 | S111: 0 | T111: 0 | U111: 0 | V111: 0 | W111: 0 | X111: 0 | Y111: 0 | Z111: 0 | AA111: 0 | AB111: 0 | AC111: 0 | AD111: 0 | AE111: 0 | AF111: 0 | AG111: 0 | AH111: 0 | AI111: 0 | AJ111: 0 | AK111: 0 | AL111: 0 | AM111: 0 | AN111: 0 | AO111: 0 | AP111: 0 | AQ111: 0 | AR111: 0 | AS111: 0 | AT111: 0
F112: Starting RAB (future capex) | L112: RAB | O112: 40 | R112: =IF($O112=R$2,R$40,IF(R$2>$O112,Q112-Q113,0)) -> 0 | S112: 0 | T112: 0 | U112: 0 | V112: 0 | W112: 0 | X112: 0 | Y112: 0 | Z112: 0 | AA112: 0 | AB112: 0 | AC112: 0 | AD112: 0 | AE112: 0 | AF112: 0 | AG112: 0 | AH112: 0 | AI112: 0 | AJ112: 0 | AK112: 0 | AL112: 0 | AM112: 0 | AN112: 0 | AO112: 0 | AP112: 0 | AQ112: 0 | AR112: 0 | AS112: 0 | AT112: 0
F113: Straight-line depreciation (future capex) | L113: DEP | O113: 40 | R113: =IF(R$2>=$O113,IF(R112-HLOOKUP($O113,$R$2:$AT$33,30,FALSE)/HLOOKUP($O113,$R$2:$AT$33,31,FALSE)<=0,R112,HLOOKUP($O113,$R$2:$AT$33,30,FALSE)/HLOOKUP($O113,$R$2:$AT$33,31,FALSE)),0) -> 0 | S113: 0 | T113: 0 | U113: 0 | V113: 0 | W113: 0 | X113: 0 | Y113: 0 | Z113: 0 | AA113: 0 | AB113: 0 | AC113: 0 | AD113: 0 | AE113: 0 | AF113: 0 | AG113: 0 | AH113: 0 | AI113: 0 | AJ113: 0 | AK113: 0 | AL113: 0 | AM113: 0 | AN113: 0 | AO113: 0 | AP113: 0 | AQ113: 0 | AR113: 0 | AS113: 0 | AT113: 0
F114: Starting RAB (future capex) | L114: RAB | O114: 41 | R114: =IF($O114=R$2,R$40,IF(R$2>$O114,Q114-Q115,0)) -> 0 | S114: 0 | T114: 0 | U114: 0 | V114: 0 | W114: 0 | X114: 0 | Y114: 0 | Z114: 0 | AA114: 0 | AB114: 0 | AC114: 0 | AD114: 0 | AE114: 0 | AF114: 0 | AG114: 0 | AH114: 0 | AI114: 0 | AJ114: 0 | AK114: 0 | AL114: 0 | AM114: 0 | AN114: 0 | AO114: 0 | AP114: 0 | AQ114: 0 | AR114: 0 | AS114: 0 | AT114: 0
F115: Straight-line depreciation (future capex) | L115: DEP | O115: 41 | R115: =IF(R$2>=$O115,IF(R114-HLOOKUP($O115,$R$2:$AT$33,30,FALSE)/HLOOKUP($O115,$R$2:$AT$33,31,FALSE)<=0,R114,HLOOKUP($O115,$R$2:$AT$33,30,FALSE)/HLOOKUP($O115,$R$2:$AT$33,31,FALSE)),0) -> 0 | S115: 0 | T115: 0 | U115: 0 | V115: 0 | W115: 0 | X115: 0 | Y115: 0 | Z115: 0 | AA115: 0 | AB115: 0 | AC115: 0 | AD115: 0 | AE115: 0 | AF115: 0 | AG115: 0 | AH115: 0 | AI115: 0 | AJ115: 0 | AK115: 0 | AL115: 0 | AM115: 0 | AN115: 0 | AO115: 0 | AP115: 0 | AQ115: 0 | AR115: 0 | AS115: 0 | AT115: 0
F116: Starting RAB (future capex) | L116: RAB | O116: 42 | R116: =IF($O116=R$2,R$40,IF(R$2>$O116,Q116-Q117,0)) -> 0 | S116: 0 | T116: 0 | U116: 0 | V116: 0 | W116: 0 | X116: 0 | Y116: 0 | Z116: 0 | AA116: 0 | AB116: 0 | AC116: 0 | AD116: 0 | AE116: 0 | AF116: 0 | AG116: 0 | AH116: 0 | AI116: 0 | AJ116: 0 | AK116: 0 | AL116: 0 | AM116: 0 | AN116: 0 | AO116: 0 | AP116: 0 | AQ116: 0 | AR116: 0 | AS116: 0 | AT116: 0
F117: Straight-line depreciation (future capex) | L117: DEP | O117: 42 | R117: =IF(R$2>=$O117,IF(R116-HLOOKUP($O117,$R$2:$AT$33,30,FALSE)/HLOOKUP($O117,$R$2:$AT$33,31,FALSE)<=0,R116,HLOOKUP($O117,$R$2:$AT$33,30,FALSE)/HLOOKUP($O117,$R$2:$AT$33,31,FALSE)),0) -> 0 | S117: 0 | T117: 0 | U117: 0 | V117: 0 | W117: 0 | X117: 0 | Y117: 0 | Z117: 0 | AA117: 0 | AB117: 0 | AC117: 0 | AD117: 0 | AE117: 0 | AF117: 0 | AG117: 0 | AH117: 0 | AI117: 0 | AJ117: 0 | AK117: 0 | AL117: 0 | AM117: 0 | AN117: 0 | AO117: 0 | AP117: 0 | AQ117: 0 | AR117: 0 | AS117: 0 | AT117: 0
F118: Starting RAB (future capex) | L118: RAB | O118: 43 | R118: =IF($O118=R$2,R$40,IF(R$2>$O118,Q118-Q119,0)) -> 0 | S118: 0 | T118: 0 | U118: 0 | V118: 0 | W118: 0 | X118: 0 | Y118: 0 | Z118: 0 | AA118: 0 | AB118: 0 | AC118: 0 | AD118: 0 | AE118: 0 | AF118: 0 | AG118: 0 | AH118: 0 | AI118: 0 | AJ118: 0 | AK118: 0 | AL118: 0 | AM118: 0 | AN118: 0 | AO118: 0 | AP118: 0 | AQ118: 0 | AR118: 0 | AS118: 0 | AT118: 0
F119: Straight-line depreciation (future capex) | L119: DEP | O119: 43 | R119: =IF(R$2>=$O119,IF(R118-HLOOKUP($O119,$R$2:$AT$33,30,FALSE)/HLOOKUP($O119,$R$2:$AT$33,31,FALSE)<=0,R118,HLOOKUP($O119,$R$2:$AT$33,30,FALSE)/HLOOKUP($O119,$R$2:$AT$33,31,FALSE)),0) -> 0 | S119: 0 | T119: 0 | U119: 0 | V119: 0 | W119: 0 | X119: 0 | Y119: 0 | Z119: 0 | AA119: 0 | AB119: 0 | AC119: 0 | AD119: 0 | AE119: 0 | AF119: 0 | AG119: 0 | AH119: 0 | AI119: 0 | AJ119: 0 | AK119: 0 | AL119: 0 | AM119: 0 | AN119: 0 | AO119: 0 | AP119: 0 | AQ119: 0 | AR119: 0 | AS119: 0 | AT119: 0
F120: Starting RAB (future capex) | L120: RAB | O120: 44 | R120: =IF($O120=R$2,R$40,IF(R$2>$O120,Q120-Q121,0)) -> 0 | S120: 0 | T120: 0 | U120: 0 | V120: 0 | W120: 0 | X120: 0 | Y120: 0 | Z120: 0 | AA120: 0 | AB120: 0 | AC120: 0 | AD120: 0 | AE120: 0 | AF120: 0 | AG120: 0 | AH120: 0 | AI120: 0 | AJ120: 0 | AK120: 0 | AL120: 0 | AM120: 0 | AN120: 0 | AO120: 0 | AP120: 0 | AQ120: 0 | AR120: 0 | AS120: 0 | AT120: 0
F121: Straight-line depreciation (future capex) | L121: DEP | O121: 44 | R121: =IF(R$2>=$O121,IF(R120-HLOOKUP($O121,$R$2:$AT$33,30,FALSE)/HLOOKUP($O121,$R$2:$AT$33,31,FALSE)<=0,R120,HLOOKUP($O121,$R$2:$AT$33,30,FALSE)/HLOOKUP($O121,$R$2:$AT$33,31,FALSE)),0) -> 0 | S121: 0 | T121: 0 | U121: 0 | V121: 0 | W121: 0 | X121: 0 | Y121: 0 | Z121: 0 | AA121: 0 | AB121: 0 | AC121: 0 | AD121: 0 | AE121: 0 | AF121: 0 | AG121: 0 | AH121: 0 | AI121: 0 | AJ121: 0 | AK121: 0 | AL121: 0 | AM121: 0 | AN121: 0 | AO121: 0 | AP121: 0 | AQ121: 0 | AR121: 0 | AS121: 0 | AT121: 0
F122: Starting RAB (future capex) | L122: RAB | O122: 45 | R122: =IF($O122=R$2,R$40,IF(R$2>$O122,Q122-Q123,0)) -> 0 | S122: 0 | T122: 0 | U122: 0 | V122: 0 | W122: 0 | X122: 0 | Y122: 0 | Z122: 0 | AA122: 0 | AB122: 0 | AC122: 0 | AD122: 0 | AE122: 0 | AF122: 0 | AG122: 0 | AH122: 0 | AI122: 0 | AJ122: 0 | AK122: 0 | AL122: 0 | AM122: 0 | AN122: 0 | AO122: 0 | AP122: 0 | AQ122: 0 | AR122: 0 | AS122: 0 | AT122: 0
F123: Straight-line depreciation (future capex) | L123: DEP | O123: 45 | R123: =IF(R$2>=$O123,IF(R122-HLOOKUP($O123,$R$2:$AT$33,30,FALSE)/HLOOKUP($O123,$R$2:$AT$33,31,FALSE)<=0,R122,HLOOKUP($O123,$R$2:$AT$33,30,FALSE)/HLOOKUP($O123,$R$2:$AT$33,31,FALSE)),0) -> 0 | S123: 0 | T123: 0 | U123: 0 | V123: 0 | W123: 0 | X123: 0 | Y123: 0 | Z123: 0 | AA123: 0 | AB123: 0 | AC123: 0 | AD123: 0 | AE123: 0 | AF123: 0 | AG123: 0 | AH123: 0 | AI123: 0 | AJ123: 0 | AK123: 0 | AL123: 0 | AM123: 0 | AN123: 0 | AO123: 0 | AP123: 0 | AQ123: 0 | AR123: 0 | AS123: 0 | AT123: 0
F124: Starting RAB (future capex) | L124: RAB | O124: 46 | R124: =IF($O124=R$2,R$40,IF(R$2>$O124,Q124-Q125,0)) -> 0 | S124: 0 | T124: 0 | U124: 0 | V124: 0 | W124: 0 | X124: 0 | Y124: 0 | Z124: 0 | AA124: 0 | AB124: 0 | AC124: 0 | AD124: 0 | AE124: 0 | AF124: 0 | AG124: 0 | AH124: 0 | AI124: 0 | AJ124: 0 | AK124: 0 | AL124: 0 | AM124: 0 | AN124: 0 | AO124: 0 | AP124: 0 | AQ124: 0 | AR124: 0 | AS124: 0 | AT124: 0
F125: Straight-line depreciation (future capex) | L125: DEP | O125: 46 | R125: =IF(R$2>=$O125,IF(R124-HLOOKUP($O125,$R$2:$AT$33,30,FALSE)/HLOOKUP($O125,$R$2:$AT$33,31,FALSE)<=0,R124,HLOOKUP($O125,$R$2:$AT$33,30,FALSE)/HLOOKUP($O125,$R$2:$AT$33,31,FALSE)),0) -> 0 | S125: 0 | T125: 0 | U125: 0 | V125: 0 | W125: 0 | X125: 0 | Y125: 0 | Z125: 0 | AA125: 0 | AB125: 0 | AC125: 0 | AD125: 0 | AE125: 0 | AF125: 0 | AG125: 0 | AH125: 0 | AI125: 0 | AJ125: 0 | AK125: 0 | AL125: 0 | AM125: 0 | AN125: 0 | AO125: 0 | AP125: 0 | AQ125: 0 | AR125: 0 | AS125: 0 | AT125: 0
F126: Starting RAB (future capex) | L126: RAB | O126: 47 | R126: =IF($O126=R$2,R$40,IF(R$2>$O126,Q126-Q127,0)) -> 0 | S126: 0 | T126: 0 | U126: 0 | V126: 0 | W126: 0 | X126: 0 | Y126: 0 | Z126: 0 | AA126: 0 | AB126: 0 | AC126: 0 | AD126: 0 | AE126: 0 | AF126: 0 | AG126: 0 | AH126: 0 | AI126: 0 | AJ126: 0 | AK126: 0 | AL126: 0 | AM126: 0 | AN126: 0 | AO126: 0 | AP126: 0 | AQ126: 0 | AR126: 0 | AS126: 0 | AT126: 0
F127: Straight-line depreciation (future capex) | L127: DEP | O127: 47 | R127: =IF(R$2>=$O127,IF(R126-HLOOKUP($O127,$R$2:$AT$33,30,FALSE)/HLOOKUP($O127,$R$2:$AT$33,31,FALSE)<=0,R126,HLOOKUP($O127,$R$2:$AT$33,30,FALSE)/HLOOKUP($O127,$R$2:$AT$33,31,FALSE)),0) -> 0 | S127: 0 | T127: 0 | U127: 0 | V127: 0 | W127: 0 | X127: 0 | Y127: 0 | Z127: 0 | AA127: 0 | AB127: 0 | AC127: 0 | AD127: 0 | AE127: 0 | AF127: 0 | AG127: 0 | AH127: 0 | AI127: 0 | AJ127: 0 | AK127: 0 | AL127: 0 | AM127: 0 | AN127: 0 | AO127: 0 | AP127: 0 | AQ127: 0 | AR127: 0 | AS127: 0 | AT127: 0
F128: Starting RAB (future capex) | L128: RAB | O128: 48 | R128: =IF($O128=R$2,R$40,IF(R$2>$O128,Q128-Q129,0)) -> 0 | S128: 0 | T128: 0 | U128: 0 | V128: 0 | W128: 0 | X128: 0 | Y128: 0 | Z128: 0 | AA128: 0 | AB128: 0 | AC128: 0 | AD128: 0 | AE128: 0 | AF128: 0 | AG128: 0 | AH128: 0 | AI128: 0 | AJ128: 0 | AK128: 0 | AL128: 0 | AM128: 0 | AN128: 0 | AO128: 0 | AP128: 0 | AQ128: 0 | AR128: 0 | AS128: 0 | AT128: 0
F129: Straight-line depreciation (future capex) | L129: DEP | O129: 48 | R129: =IF(R$2>=$O129,IF(R128-HLOOKUP($O129,$R$2:$AT$33,30,FALSE)/HLOOKUP($O129,$R$2:$AT$33,31,FALSE)<=0,R128,HLOOKUP($O129,$R$2:$AT$33,30,FALSE)/HLOOKUP($O129,$R$2:$AT$33,31,FALSE)),0) -> 0 | S129: 0 | T129: 0 | U129: 0 | V129: 0 | W129: 0 | X129: 0 | Y129: 0 | Z129: 0 | AA129: 0 | AB129: 0 | AC129: 0 | AD129: 0 | AE129: 0 | AF129: 0 | AG129: 0 | AH129: 0 | AI129: 0 | AJ129: 0 | AK129: 0 | AL129: 0 | AM129: 0 | AN129: 0 | AO129: 0 | AP129: 0 | AQ129: 0 | AR129: 0 | AS129: 0 | AT129: 0
F130: Starting RAB (future capex) | L130: RAB | O130: 49 | R130: =IF($O130=R$2,R$40,IF(R$2>$O130,Q130-Q131,0)) -> 0 | S130: 0 | T130: 0 | U130: 0 | V130: 0 | W130: 0 | X130: 0 | Y130: 0 | Z130: 0 | AA130: 0 | AB130: 0 | AC130: 0 | AD130: 0 | AE130: 0 | AF130: 0 | AG130: 0 | AH130: 0 | AI130: 0 | AJ130: 0 | AK130: 0 | AL130: 0 | AM130: 0 | AN130: 0 | AO130: 0 | AP130: 0 | AQ130: 0 | AR130: 0 | AS130: 0 | AT130: 0
F131: Straight-line depreciation (future capex) | L131: DEP | O131: 49 | R131: =IF(R$2>=$O131,IF(R130-HLOOKUP($O131,$R$2:$AT$33,30,FALSE)/HLOOKUP($O131,$R$2:$AT$33,31,FALSE)<=0,R130,HLOOKUP($O131,$R$2:$AT$33,30,FALSE)/HLOOKUP($O131,$R$2:$AT$33,31,FALSE)),0) -> 0 | S131: 0 | T131: 0 | U131: 0 | V131: 0 | W131: 0 | X131: 0 | Y131: 0 | Z131: 0 | AA131: 0 | AB131: 0 | AC131: 0 | AD131: 0 | AE131: 0 | AF131: 0 | AG131: 0 | AH131: 0 | AI131: 0 | AJ131: 0 | AK131: 0 | AL131: 0 | AM131: 0 | AN131: 0 | AO131: 0 | AP131: 0 | AQ131: 0 | AR131: 0 | AS131: 0 | AT131: 0
F132: Starting RAB (future capex) | L132: RAB | O132: 50 | R132: =IF($O132=R$2,R$40,IF(R$2>$O132,Q132-Q133,0)) -> 0 | S132: 0 | T132: 0 | U132: 0 | V132: 0 | W132: 0 | X132: 0 | Y132: 0 | Z132: 0 | AA132: 0 | AB132: 0 | AC132: 0 | AD132: 0 | AE132: 0 | AF132: 0 | AG132: 0 | AH132: 0 | AI132: 0 | AJ132: 0 | AK132: 0 | AL132: 0 | AM132: 0 | AN132: 0 | AO132: 0 | AP132: 0 | AQ132: 0 | AR132: 0 | AS132: 0 | AT132: 0
F133: Straight-line depreciation (future capex) | L133: DEP | O133: 50 | R133: =IF(R$2>=$O133,IF(R132-HLOOKUP($O133,$R$2:$AT$33,30,FALSE)/HLOOKUP($O133,$R$2:$AT$33,31,FALSE)<=0,R132,HLOOKUP($O133,$R$2:$AT$33,30,FALSE)/HLOOKUP($O133,$R$2:$AT$33,31,FALSE)),0) -> 0 | S133: 0 | T133: 0 | U133: 0 | V133: 0 | W133: 0 | X133: 0 | Y133: 0 | Z133: 0 | AA133: 0 | AB133: 0 | AC133: 0 | AD133: 0 | AE133: 0 | AF133: 0 | AG133: 0 | AH133: 0 | AI133: 0 | AJ133: 0 | AK133: 0 | AL133: 0 | AM133: 0 | AN133: 0 | AO133: 0 | AP133: 0 | AQ133: 0 | AR133: 0 | AS133: 0 | AT133: 0
F134: Starting RAB (future capex) | L134: RAB | O134: 51 | R134: =IF($O134=R$2,R$40,IF(R$2>$O134,Q134-Q135,0)) -> 0 | S134: 0 | T134: 0 | U134: 0 | V134: 0 | W134: 0 | X134: 0 | Y134: 0 | Z134: 0 | AA134: 0 | AB134: 0 | AC134: 0 | AD134: 0 | AE134: 0 | AF134: 0 | AG134: 0 | AH134: 0 | AI134: 0 | AJ134: 0 | AK134: 0 | AL134: 0 | AM134: 0 | AN134: 0 | AO134: 0 | AP134: 0 | AQ134: 0 | AR134: 0 | AS134: 0 | AT134: 0
F135: Straight-line depreciation (future capex) | L135: DEP | O135: 51 | R135: =IF(R$2>=$O135,IF(R134-HLOOKUP($O135,$R$2:$AT$33,30,FALSE)/HLOOKUP($O135,$R$2:$AT$33,31,FALSE)<=0,R134,HLOOKUP($O135,$R$2:$AT$33,30,FALSE)/HLOOKUP($O135,$R$2:$AT$33,31,FALSE)),0) -> 0 | S135: 0 | T135: 0 | U135: 0 | V135: 0 | W135: 0 | X135: 0 | Y135: 0 | Z135: 0 | AA135: 0 | AB135: 0 | AC135: 0 | AD135: 0 | AE135: 0 | AF135: 0 | AG135: 0 | AH135: 0 | AI135: 0 | AJ135: 0 | AK135: 0 | AL135: 0 | AM135: 0 | AN135: 0 | AO135: 0 | AP135: 0 | AQ135: 0 | AR135: 0 | AS135: 0 | AT135: 0
F136: Starting RAB (future capex) | L136: RAB | O136: 52 | R136: =IF($O136=R$2,R$40,IF(R$2>$O136,Q136-Q137,0)) -> 0 | S136: 0 | T136: 0 | U136: 0 | V136: 0 | W136: 0 | X136: 0 | Y136: 0 | Z136: 0 | AA136: 0 | AB136: 0 | AC136: 0 | AD136: 0 | AE136: 0 | AF136: 0 | AG136: 0 | AH136: 0 | AI136: 0 | AJ136: 0 | AK136: 0 | AL136: 0 | AM136: 0 | AN136: 0 | AO136: 0 | AP136: 0 | AQ136: 0 | AR136: 0 | AS136: 0 | AT136: 0
F137: Straight-line depreciation (future capex) | L137: DEP | O137: 52 | R137: =IF(R$2>=$O137,IF(R136-HLOOKUP($O137,$R$2:$AT$33,30,FALSE)/HLOOKUP($O137,$R$2:$AT$33,31,FALSE)<=0,R136,HLOOKUP($O137,$R$2:$AT$33,30,FALSE)/HLOOKUP($O137,$R$2:$AT$33,31,FALSE)),0) -> 0 | S137: 0 | T137: 0 | U137: 0 | V137: 0 | W137: 0 | X137: 0 | Y137: 0 | Z137: 0 | AA137: 0 | AB137: 0 | AC137: 0 | AD137: 0 | AE137: 0 | AF137: 0 | AG137: 0 | AH137: 0 | AI137: 0 | AJ137: 0 | AK137: 0 | AL137: 0 | AM137: 0 | AN137: 0 | AO137: 0 | AP137: 0 | AQ137: 0 | AR137: 0 | AS137: 0 | AT137: 0
F138: Starting RAB (future capex) | L138: RAB | O138: 53 | R138: =IF($O138=R$2,R$40,IF(R$2>$O138,Q138-Q139,0)) -> 0 | S138: 0 | T138: 0 | U138: 0 | V138: 0 | W138: 0 | X138: 0 | Y138: 0 | Z138: 0 | AA138: 0 | AB138: 0 | AC138: 0 | AD138: 0 | AE138: 0 | AF138: 0 | AG138: 0 | AH138: 0 | AI138: 0 | AJ138: 0 | AK138: 0 | AL138: 0 | AM138: 0 | AN138: 0 | AO138: 0 | AP138: 0 | AQ138: 0 | AR138: 0 | AS138: 0 | AT138: 0
F139: Straight-line depreciation (future capex) | L139: DEP | O139: 53 | R139: =IF(R$2>=$O139,IF(R138-HLOOKUP($O139,$R$2:$AT$33,30,FALSE)/HLOOKUP($O139,$R$2:$AT$33,31,FALSE)<=0,R138,HLOOKUP($O139,$R$2:$AT$33,30,FALSE)/HLOOKUP($O139,$R$2:$AT$33,31,FALSE)),0) -> 0 | S139: 0 | T139: 0 | U139: 0 | V139: 0 | W139: 0 | X139: 0 | Y139: 0 | Z139: 0 | AA139: 0 | AB139: 0 | AC139: 0 | AD139: 0 | AE139: 0 | AF139: 0 | AG139: 0 | AH139: 0 | AI139: 0 | AJ139: 0 | AK139: 0 | AL139: 0 | AM139: 0 | AN139: 0 | AO139: 0 | AP139: 0 | AQ139: 0 | AR139: 0 | AS139: 0 | AT139: 0
F140: Starting RAB (future capex) | L140: RAB | O140: 54 | R140: =IF($O140=R$2,R$40,IF(R$2>$O140,Q140-Q141,0)) -> 0 | S140: 0 | T140: 0 | U140: 0 | V140: 0 | W140: 0 | X140: 0 | Y140: 0 | Z140: 0 | AA140: 0 | AB140: 0 | AC140: 0 | AD140: 0 | AE140: 0 | AF140: 0 | AG140: 0 | AH140: 0 | AI140: 0 | AJ140: 0 | AK140: 0 | AL140: 0 | AM140: 0 | AN140: 0 | AO140: 0 | AP140: 0 | AQ140: 0 | AR140: 0 | AS140: 0 | AT140: 0
F141: Straight-line depreciation (future capex) | L141: DEP | O141: 54 | R141: =IF(R$2>=$O141,IF(R140-HLOOKUP($O141,$R$2:$AT$33,30,FALSE)/HLOOKUP($O141,$R$2:$AT$33,31,FALSE)<=0,R140,HLOOKUP($O141,$R$2:$AT$33,30,FALSE)/HLOOKUP($O141,$R$2:$AT$33,31,FALSE)),0) -> 0 | S141: 0 | T141: 0 | U141: 0 | V141: 0 | W141: 0 | X141: 0 | Y141: 0 | Z141: 0 | AA141: 0 | AB141: 0 | AC141: 0 | AD141: 0 | AE141: 0 | AF141: 0 | AG141: 0 | AH141: 0 | AI141: 0 | AJ141: 0 | AK141: 0 | AL141: 0 | AM141: 0 | AN141: 0 | AO141: 0 | AP141: 0 | AQ141: 0 | AR141: 0 | AS141: 0 | AT141: 0
F142: Starting RAB (future capex) | L142: RAB | O142: 55 | R142: =IF($O142=R$2,R$40,IF(R$2>$O142,Q142-Q143,0)) -> 0 | S142: 0 | T142: 0 | U142: 0 | V142: 0 | W142: 0 | X142: 0 | Y142: 0 | Z142: 0 | AA142: 0 | AB142: 0 | AC142: 0 | AD142: 0 | AE142: 0 | AF142: 0 | AG142: 0 | AH142: 0 | AI142: 0 | AJ142: 0 | AK142: 0 | AL142: 0 | AM142: 0 | AN142: 0 | AO142: 0 | AP142: 0 | AQ142: 0 | AR142: 0 | AS142: 0 | AT142: 0
F143: Straight-line depreciation (future capex) | L143: DEP | O143: 55 | R143: =IF(R$2>=$O143,IF(R142-HLOOKUP($O143,$R$2:$AT$33,30,FALSE)/HLOOKUP($O143,$R$2:$AT$33,31,FALSE)<=0,R142,HLOOKUP($O143,$R$2:$AT$33,30,FALSE)/HLOOKUP($O143,$R$2:$AT$33,31,FALSE)),0) -> 0 | S143: 0 | T143: 0 | U143: 0 | V143: 0 | W143: 0 | X143: 0 | Y143: 0 | Z143: 0 | AA143: 0 | AB143: 0 | AC143: 0 | AD143: 0 | AE143: 0 | AF143: 0 | AG143: 0 | AH143: 0 | AI143: 0 | AJ143: 0 | AK143: 0 | AL143: 0 | AM143: 0 | AN143: 0 | AO143: 0 | AP143: 0 | AQ143: 0 | AR143: 0 | AS143: 0 | AT143: 0
F145: Total straight-line depreciation (future capex) | L145: DEP | R145: =SUMIF($L$44:$L$143,$L$145,R44:R143) -> 0 | S145: =SUMIF($L$44:$L$143,$L$145,S44:S143) -> 0 | T145: 0 | U145: 0 | V145: =SUMIF($L$44:$L$143,$L$145,V44:V143) -> 0 | W145: 4.473421855 | X145: 8.941830142 | Y145: 13.40926055 | Z145: 17.8787646 | AA145: 22.35942579 | AB145: 26.85247544 | AC145: 31.36296719 | AD145: 35.88803481 | AE145: 40.42439836 | AF145: 44.99543012 | AG145: 49.65480401 | AH145: 54.40429108 | AI145: 59.24559191 | AJ145: 64.18077506 | AK145: 69.21142184 | AL145: =SUMIF($L$44:$L$143,$L$145,AL44:AL143) -> 74.34059788 | AM145: 79.57136825 | AN145: 84.90225026 | AO145: 90.33148547 | AP145: 95.85735863 | AQ145: 101.4758866 | AR145: 107.1843109 | AS145: 112.9801278 | AT145: 118.8610284
F146: Total starting RAB (future capex) | L146: RAB | R146: =SUMIF($L$44:$L$143,$L$146,R44:R143) -> 0 | S146: =SUMIF($L$44:$L$143,$L$146,S44:S143) -> 0 | T146: 0 | U146: 0 | V146: 0 | W146: 181.5058853 | X146: 358.3975458 | Y146: 530.8090683 | Z146: 698.865309 | AA146: 862.9330699 | AB146: 1023.069977 | AC146: 1179.45354 | AD146: 1331.950102 | AE146: 1480.401519 | AF146: 1625.741201 | AG146: 1770.105436 | AH146: 1913.472549 | AI146: 2055.821539 | AJ146: 2197.144661 | AK146: 2337.412297 | AL146: =SUMIF($L$44:$L$143,$L$146,AL44:AL143) -> 2476.653573 | AM146: 2614.894525 | AN146: 2751.973302 | AO146: 2887.718329 | AP146: 3021.961542 | AQ146: 3154.444429 | AR146: 3284.962225 | AS146: 3413.323285 | AT146: 3539.346377
F147: Closing RAB | K147: AusNet T PTRM 2022-27 | L147: On 31/3/2022 | Q147: 3166.909677 | R147: =R39+R40-R41-R145 -> 3135.935566 | S147: =S39+S40-S41-S145 -> 3132.917667 | T147: =T39+T40-T41-T145 -> 3159.361974 | U147: 3163.44552 | V147: =V39+V40-V41-V145 -> 3123.709587 | W147: =W39+W40-W41-W145 -> 3120.208703 | X147: 3119.525865 | Y147: 3120.973856 | Z147: 3128.764687 | AA147: 3137.415316 | AB147: 3149.594824 | AC147: 3159.772894 | AD147: 3167.660635 | AE147: 3191.868818 | AF147: =AF39+AF40-AF41-AF145 -> 3253.55653 | AG147: 3316.480933 | AH147: 3380.592822 | AI147: 3446.149152 | AJ147: 3512.809673 | AK147: 3581.610877 | AL147: =AL39+AL40-AL41-AL145 -> 3652.552358 | AM147: 3722.458506 | AN147: 3791.136772 | AO147: 3858.617297 | AP147: 3923.316491 | AQ147: 3986.089449 | AR147: 4047.114153 | AS147: 4106.526528 | AT147: 4165.997952
C149: RAB (Nominal)
F151: Opening RAB | R151: =R39*R8 -> 3246.082419 | S151: =S39*S8 -> 3294.692304 | T151: 3373.809665 | U151: 3487.344473 | V151: 3579.148242 | W151: 3622.545448 | X151: 3708.947634 | Y151: 3800.839353 | Z151: 3897.668679 | AA151: 4005.083319 | AB151: 4116.560776 | AC151: 4235.85488 | AD151: 4355.781833 | AE151: 4475.821551 | AF151: 4622.777757 | AG151: 4829.922955 | AH151: 5046.41795 | AI151: 5272.571066 | AJ151: 5509.186981 | AK151: 5756.147681 | AL151: 6015.608628 | AM151: 6288.129667 | AN151: 6568.690045 | AO151: 6857.127458 | AP151: 7153.660765 | AQ151: 7455.449691 | AR151: 7764.105101 | AS151: 8080.043248 | AT151: 8403.626251
F152: Net Capex | R152: =R40*R8 -> 152.0675391 | S152: =S40*S8 -> 167.8330603 | T152: 210.9290609 | U152: 199.8365281 | V152: 161.4687522 | W152: 210.4911805 | X152: 215.5860896 | Y152: 220.9614504 | Z152: 226.6255448 | AA152: 232.9069351 | AB152: 239.4510041 | AC152: 246.4320993 | AD152: 253.4523924 | AE152: 260.4668189 | AF152: 269.0417778 | AG152: 281.1054868 | AH152: 293.7056735 | AI152: 306.8679708 | AJ152: 320.6392116 | AK152: 335.0125273 | AL152: 350.1133677 | AM152: 365.9743163 | AN152: 382.3031609 | AO152: 399.0904554 | AP152: 416.3489377 | AQ152: 433.9133013 | AR152: 451.8772999 | AS152: 470.2651598 | AT152: 489.0979566
F153: Indexation of opening RAB | R153: =Q156*$O$8 -> 79.17274192 | S153: =R156*$O$8 -> 80.35834889 | T153: =S156*$O$8 -> 82.2880406 | U153: =T156*$O$8 -> 85.05718227 | V153: 87.29629858 | W153: 88.35476703 | X153: 90.46213741 | Y153: 92.70339884 | Z153: 95.06508972 | AA153: 97.68495899 | AB153: 100.4039214 | AC153: 103.3135337 | AD153: 106.2385813 | AE153: 109.1663793 | AF153: 112.750677 | AG153: 117.8029989 | AH153: 123.0833646 | AI153: 128.5992943 | AJ153: 134.3704142 | AK153: =AJ156*$O$8 -> 140.3938459 | AL153: 146.7221617 | AM153: 153.3690163 | AN153: 160.2119523 | AO153: 167.2470112 | AP153: 174.4795309 | AQ153: 181.8402364 | AR153: 189.3684171 | AS153: 197.0742256 | AT153: 204.9664939
F154: Straight-line depreciation | R154: =(R41*R8)+(R145*R8) -> 183.8160023 | S154: =(S41*S8)+(S145*S8) -> 171.0037406 | T154: 182.4514347 | U154: 195.329058 | V154: 206.4263127 | W154: 214.5511325 | X154: 216.3977696 | Y154: 219.197214 | Z154: 216.8958639 | AA154: 221.8333991 | AB154: 223.4704338 | AC154: 232.7437274 | AD154: 242.5790536 | AE154: 226.2612904 | AF154: 179.6995783 | AG154: 187.6938565 | AH154: 196.1518514 | AI154: 204.62247 | AJ154: 214.0723578 | AK154: 222.2737419 | AL154: 230.9613448 | AM154: 245.625891 | AN154: 261.1127596 | AO154: 277.0366785 | AP154: 296.4002481 | AQ154: 314.6263089 | AR154: 333.0133785 | AS154: 351.6486508 | AT154: 367.395193
F155: Nominal regulatory depreciation | R155: =R154-R153 -> 104.6432603 | S155: =S154-S153 -> 90.64539172 | T155: 100.1633941 | U155: 110.2718757 | V155: 119.1300142 | W155: 126.1963655 | X155: 125.9356322 | Y155: 126.4938152 | Z155: 121.8307742 | AA155: 124.1484401 | AB155: 123.0665124 | AC155: 129.4301937 | AD155: 136.3404723 | AE155: 117.0949111 | AF155: 66.94890129 | AG155: 69.8908576 | AH155: 73.06848679 | AI155: 76.02317565 | AJ155: 79.70194362 | AK155: 81.87989601 | AL155: 84.23918309 | AM155: 92.25687473 | AN155: 100.9008073 | AO155: 109.7896674 | AP155: 121.9207172 | AQ155: 132.7860726 | AR155: 143.6449614 | AS155: 154.5744253 | AT155: 162.4286991
F156: Closing RAB | Q156: =Q147*Q8 -> 3166.909677 | R156: =R147*R8 -> 3214.333955 | S156: 3291.521624 | T156: 3402.287291 | U156: 3491.851943 | V156: 3534.190681 | W156: 3618.485496 | X156: 3708.135954 | Y156: 3802.603589 | Z156: 3907.39836 | AA156: 4016.156855 | AB156: 4132.541346 | AC156: 4249.543252 | AD156: 4366.655172 | AE156: 4510.02708 | AF156: 4712.119956 | AG156: 4923.334585 | AH156: 5143.971772 | AI156: 5374.816567 | AJ156: 5615.753835 | AK156: 5868.886467 | AL156: 6134.760651 | AM156: 6408.478093 | AN156: 6689.880446 | AO156: 6979.181234 | AP156: 7273.609455 | AQ156: 7574.736684 | AR156: 7882.969022 | AS156: 8198.659757 | AT156: 8525.329014
C158: Revenue (Nominal)
F160: Debt | R160: =Q156*$O$13 -> 1900.145806 | S160: =R156*$O$13 -> 1928.600373 | T160: 1974.912974 | U160: 2041.372374 | V160: 2095.111166 | W160: 2120.514409 | X160: 2171.091298 | Y160: 2224.881572 | Z160: 2281.562153 | AA160: 2344.439016 | AB160: 2409.694113 | AC160: 2479.524808 | AD160: 2549.725951 | AE160: 2619.993103 | AF160: 2706.016248 | AG160: 2827.271974 | AH160: 2954.000751 | AI160: 3086.383063 | AJ160: 3224.88994 | AK160: 3369.452301 | AL160: 3521.33188 | AM160: 3680.856391 | AN160: 3845.086856 | AO160: 4013.928268 | AP160: 4187.508741 | AQ160: 4364.165673 | AR160: 4544.84201 | AS160: 4729.781413 | AT160: 4919.195854
F161: Equity | R161: =Q156*$O$14 -> 1266.763871 | S161: =R156*$O$14 -> 1285.733582 | T161: 1316.60865 | U161: 1360.914916 | V161: 1396.740777 | W161: 1413.676273 | X161: 1447.394199 | Y161: 1483.254381 | Z161: 1521.041436 | AA161: 1562.959344 | AB161: 1606.462742 | AC161: 1653.016539 | AD161: 1699.817301 | AE161: 1746.662069 | AF161: 1804.010832 | AG161: 1884.847983 | AH161: 1969.333834 | AI161: 2057.588709 | AJ161: 2149.926627 | AK161: 2246.301534 | AL161: 2347.554587 | AM161: 2453.90426 | AN161: 2563.391237 | AO161: 2675.952179 | AP161: 2791.672494 | AQ161: 2909.443782 | AR161: 3029.894673 | AS161: 3153.187609 | AT161: 3279.463903
F163: Return on debt | R163: =R160*WACC!W80 -> 86.06463344 | S163: =S160*WACC!X80 -> 87.24069707 | T163: =T160*WACC!Y80 -> 89.21981448 | U163: =U160*WACC!Z80 -> 92.51155309 | V163: =V160*WACC!AA80 -> 95.45295195 | W163: =W160*WACC!AB80 -> 97.54702024 | X163: =X160*WACC!AC80 -> 101.0514872 | Y163: =Y160*WACC!AD80 -> 104.7621391 | Z163: =Z160*WACC!AE80 -> 108.6688178 | AA163: =AA160*WACC!AF80 -> 112.9354818 | AB163: =AB160*WACC!AG80 -> 118.2533119 | AC163: =AC160*WACC!AH80 -> 123.1703197 | AD163: =AD160*WACC!AI80 -> 128.1903859 | AE163: =AE160*WACC!AJ80 -> 132.7731933 | AF163: =AF160*WACC!AK80 -> 137.9470329 | AG163: =AG160*WACC!AL80 -> 144.4133352 | AH163: =AH160*WACC!AM80 -> 150.8864746 | AI163: =AI160*WACC!AN80 -> 157.648389 | AJ163: =AJ160*WACC!AO80 -> 164.7231382 | AK163: =AK160*WACC!AP80 -> 172.1071935 | AL163: =AL160*WACC!AQ80 -> 179.8650027 | AM163: =AM160*WACC!AR80 -> 188.013305 | AN163: =AN160*WACC!AS80 -> 196.4019812 | AO163: =AO160*WACC!AT80 -> 205.0261786 | AP163: =AP160*WACC!AU80 -> 213.8924409 | AQ163: =AQ160*WACC!AV80 -> 222.9158447 | AR163: =AR160*WACC!AW80 -> 232.1445545 | AS163: =AS160*WACC!AX80 -> 241.5910161 | AT163: =AT160*WACC!AY80 -> 251.2660567
F164: Return on equity | R164: =R161*WACC!W81 -> 75.48670744 | S164: =S161*WACC!X81 -> 80.4919594 | T164: =T161*WACC!Y81 -> 82.42227548 | U164: =U161*WACC!Z81 -> 87.9230855 | V164: =V161*WACC!AA81 -> 91.63165101 | W164: =W161*WACC!AB81 -> 95.57279928 | X164: =X161*WACC!AC81 -> 99.31104996 | Y164: =Y161*WACC!AD81 -> 101.7715493 | Z164: =Z161*WACC!AE81 -> 104.3642583 | AA164: =AA161*WACC!AF81 -> 107.2404005 | AB164: =AB161*WACC!AG81 -> 110.2253289 | AC164: =AC161*WACC!AH81 -> 113.4195565 | AD164: =AD161*WACC!AI81 -> 116.6307292 | AE164: =AE161*WACC!AJ81 -> 119.8449214 | AF164: =AF161*WACC!AK81 -> 123.7798314 | AG164: =AG161*WACC!AL81 -> 129.3263662 | AH164: =AH161*WACC!AM81 -> 135.1232518 | AI164: =AI161*WACC!AN81 -> 141.178744 | AJ164: =AJ161*WACC!AO81 -> 147.5143889 | AK164: =AK161*WACC!AP81 -> 154.1270264 | AL164: =AL161*WACC!AQ81 -> 161.0743715 | AM164: =AM161*WACC!AR81 -> 168.3714145 | AN164: =AN161*WACC!AS81 -> 175.8837195 | AO164: =AO161*WACC!AT81 -> 183.6069405 | AP164: =AP161*WACC!AU81 -> 191.5469378 | AQ164: =AQ161*WACC!AV81 -> 199.6276599 | AR164: =AR161*WACC!AW81 -> 207.8922394 | AS164: =AS161*WACC!AX81 -> 216.3518221 | AT164: =AT161*WACC!AY81 -> 225.016104
F166: Opex | R166: 284.3794204 | S166: 291.6038318 | T166: 297.8314617 | U166: 305.6394076 | V166: 313.3245033 | W166: =V166*(1+$O$8) -> 321.1576159 | X166: =W166*(1+$O$8) -> 329.1865563 | Y166: 337.4162202 | Z166: 345.8516257 | AA166: 354.4979163 | AB166: 363.3603642 | AC166: 372.4443734 | AD166: 381.7554827 | AE166: 391.2993698 | AF166: 401.081854 | AG166: 411.1089004 | AH166: 421.3866229 | AI166: 431.9212884 | AJ166: 442.7193206 | AK166: 453.7873037 | AL166: 465.1319862 | AM166: 476.7602859 | AN166: 488.6792931 | AO166: 500.8962754 | AP166: 513.4186823 | AQ166: 526.2541493 | AR166: 539.4105031 | AS166: 552.8957656 | AT166: 566.7181598
F167: Nominal regulatory depreciation | R167: =R155 -> 104.6432603 | S167: =S155 -> 90.64539172 | T167: =T155 -> 100.1633941 | U167: 110.2718757 | V167: 119.1300142 | W167: 126.1963655 | X167: 125.9356322 | Y167: 126.4938152 | Z167: 121.8307742 | AA167: 124.1484401 | AB167: 123.0665124 | AC167: 129.4301937 | AD167: 136.3404723 | AE167: 117.0949111 | AF167: 66.94890129 | AG167: 69.8908576 | AH167: 73.06848679 | AI167: 76.02317565 | AJ167: 79.70194362 | AK167: 81.87989601 | AL167: 84.23918309 | AM167: 92.25687473 | AN167: 100.9008073 | AO167: 109.7896674 | AP167: 121.9207172 | AQ167: 132.7860726 | AR167: 143.6449614 | AS167: 154.5744253 | AT167: 162.4286991
F169: Tax payable | R169: =R305 -> 4.956077263 | S169: =S305 -> 3.217909292 | T169: 3.689888285 | U169: 5.619832479 | V169: 6.97089126 | W169: 7.483317044 | X169: 9.413454973 | Y169: 10.0297313 | Z169: 17.66673867 | AA169: 22.0705329 | AB169: 21.19915542 | AC169: 21.99808202 | AD169: 23.0405376 | AE169: 15.98151054 | AF169: 0 | AG169: 0 | AH169: 0 | AI169: 0 | AJ169: =AJ305 -> 0 | AK169: =AK305 -> 0 | AL169: 0 | AM169: 0 | AN169: 0 | AO169: 3.052007773 | AP169: 10.09473835 | AQ169: 22.70671683 | AR169: 25.27738741 | AS169: 27.82641166 | AT169: 32.50494628
F170: Value of imputation credits | R170: =R169*$O$17 -> 2.899305199 | S170: =S169*$O$17 -> 1.882476936 | T170: 2.158584647 | U170: 3.287602 | V170: 4.077971387 | W170: 4.377740471 | X170: 5.506871159 | Y170: 5.867392809 | Z170: 10.33504212 | AA170: 12.91126175 | AB170: 12.40150592 | AC170: 12.86887798 | AD170: 13.47871449 | AE170: 9.349183665 | AF170: 0 | AG170: 0 | AH170: 0 | AI170: 0 | AJ170: 0 | AK170: 0 | AL170: 0 | AM170: 0 | AN170: 0 | AO170: 1.785424547 | AP170: 5.905421937 | AQ170: 13.28342935 | AR170: 14.78727164 | AS170: 16.27845082 | AT170: 19.01539357
F172: Revenue for tax assessment | R172: =R163+R164+R166+R167+R169-R170+R316 -> 577.6970864 | S172: =S163+S164+S166+S167+S169-S170+S316 -> 566.3783106 | T172: 584.5241364 | U172: 610.1933773 | V172: 622.0023922 | W172: 643.5793775 | X172: 659.3913095 | Y172: 674.6060622 | Z172: 688.0471725 | AA172: 707.9815098 | AB172: 723.703167 | AC172: 747.5936473 | AD172: 772.4788932 | AE172: 767.6447225 | AF172: 729.7576195 | AG172: 754.7394594 | AH172: 780.464836 | AI172: 806.7715971 | AJ172: 834.6587913 | AK172: 861.9014196 | AL172: 890.3105435 | AM172: 925.4018802 | AN172: 961.865801 | AO172: 1000.585645 | AP172: 1044.968095 | AQ172: 1091.007014 | AR172: 1133.582374 | AS172: 1176.96099 | AT172: 1218.918572
C174: Tax
F176: Tax depreciation
F178: Opening TAB (initial assets) | R178: =Q183 -> 2825.11 | S178: =R183 -> 2770.705582 | T178: 2835.964976 | U178: 2815.87141 | V178: 2878.889095 | W178: 2833.121635 | X178: 2643.715843 | Y178: 2466.718395 | Z178: 2298.509956 | AA178: 2164.451119 | AB178: 2047.666621 | AC178: 1935.898944 | AD178: 1826.243599 | AE178: 1718.731822 | AF178: 1615.763188 | AG178: 1516.216474 | AH178: 1418.235464 | AI178: 1320.096498 | AJ178: 1223.155614 | AK178: 1127.836879 | AL178: 1033.58254 | AM178: 940.7087614 | AN178: 850.6197469 | AO178: 761.2227214 | AP178: 674.2193326 | AQ178: 588.975105 | AR178: 533.3482414 | AS178: 478.1677931 | AT178: 423.4210131
F179: Tax depreciation (initial assets) | K179: AusNet T PTRM 2022-27 | L179: TaxDep | R179: 165.6664823 | S179: 161.7464192 | T179: 171.8173456 | U179: 181.7944167 | V179: 190.4182808 | W179: 189.4057922 | X179: 176.9974472 | Y179: 168.208439 | Z179: 134.0588379 | AA179: 116.7844978 | AB179: 111.7676769 | AC179: 109.6553448 | AD179: 107.5117771 | AE179: 102.9686339 | AF179: 99.54671412 | AG179: 97.98100992 | AH179: 98.13896583 | AI179: 96.94088394 | AJ179: 95.31873514 | AK179: 94.25433896 | AL179: 92.87377864 | AM179: 90.08901456 | AN179: 89.39702553 | AO179: 87.00338872 | AP179: 85.24422761 | AQ179: 55.62686358 | AR179: 55.18044836 | AS179: 54.74677999 | AT179: 44.90555042
